{"text_format":"1","workbook":"xlsx","n_sheets":3,"sheets":["Dokumentenauswertung","Punkteauswertung","Fragenauswertung"],"not_rendered":{"charts":1,"images":0,"macros":1,"external_links":0,"defined_names":0,"comments":0,"pivot_tables":0},"unopened":[],"bounds":{"document_bytes":16777216,"sheet_cells":100000,"rows_first":2000,"rows_last":500,"rows_between":2000,"halvings":0,"cell_chars":16384,"cell_head_chars":4096},"cells_cut":0,"cells_raw":0,"read":"whole","date_system":"1900"}

{"sheet":"Dokumentenauswertung","index":0,"n_rows":63,"n_cols":4,"rows_kept":63,"cut":false,"hidden":false,"merged":[]}
[]
[]
[]
[]
[]
[]
[]
[]
[]
[]
[]
[]
["Frage #","Lösung","Punkte pro Frage","Richtig = 1"]
["A1.a",6,1,1]
["A1.b",4,1,1]
["A1.c",19,1,1]
["A2.a.1",50,1,1]
["A2.a.2",27,1,1]
["A2.b.1",10,1,1]
["A2.b.2",67,1,1]
["A3.a",6,0.5,1]
["A3.b",5,0.5,1]
["A3.c",7,0.5,1]
["A3.d",5,0.5,1]
["A3.g",5,0.5,1]
["A3.h",6,0.5,1]
["A3.e",9,0.5,1]
["A3.f",4,0.5,1]
["A4.a",26,1,1]
["A4.b",3,1,1]
["A4.c",17,1,1]
["B1.1","8,90",0.5,1]
["B1.2","Euro",0.5,1]
["B2.1","29,00",1,1]
["B2.2","Euro",1,1]
["B3.1",900,1,1]
["B3.2","Meter",1,1]
["B4.1",0.2,3,1]
["B4.2","Meter",1,1]
["C1.1","3,50",2,1]
["C1.2","Euro",1,1]
["C2.1",9,3,1]
["C2.2","Stunden",1,1]
["C3.1",16.670000000000002,3,1]
["C3.2","Prozent",1,1]
["C4.1",1,1,1]
["C4.2",4,1,1]
["D1.1","Rechteck",1,1]
["D1.2","Trapez",1,1]
["D1.3","Quader",1,1]
["D1.4","Zylinder",1,1]
["D2.1",60,1,1]
["D2.2",170,1,1]
["D2.3",340,1,1]
["D3.1","Halbgerade",1,1]
["D3.2","Strecke",1,1]
["D3.3","Gerade",1,1]
["D4.1",62,1,1]
["D4.2","m²",1,1]
["E1",-2,1,1]
["E2.1",40,1,1]
["E2.2",20,1,1]
["E3","c",1,1]

{"sheet":"Punkteauswertung","index":1,"n_rows":80,"n_cols":36,"rows_kept":80,"cut":false,"hidden":false,"merged":[]}
[]
[]
[]
[]
[]
[]
[]
[]
[]
[null,null,"Auswertung Nr.",1,2,3,4,5,6,7,8,9,10,11,12,13,14,15,16,17,18,19,20,21,22,23,24,25,26,27,28,29,30,31,32,33]
[null,null,"Name",{"$f":"IF(Dokumentenauswertung!E11=\"\",\"\",Dokumentenauswertung!E11)","v":""},{"$f":"IF(Dokumentenauswertung!F11=\"\",\"\",Dokumentenauswertung!F11)","v":""},{"$f":"IF(Dokumentenauswertung!G11=\"\",\"\",Dokumentenauswertung!G11)","v":""},{"$f":"IF(Dokumentenauswertung!H11=\"\",\"\",Dokumentenauswertung!H11)","v":""},{"$f":"IF(Dokumentenauswertung!I11=\"\",\"\",Dokumentenauswertung!I11)","v":""},{"$f":"IF(Dokumentenauswertung!J11=\"\",\"\",Dokumentenauswertung!J11)","v":""},{"$f":"IF(Dokumentenauswertung!K11=\"\",\"\",Dokumentenauswertung!K11)","v":""},{"$f":"IF(Dokumentenauswertung!L11=\"\",\"\",Dokumentenauswertung!L11)","v":""},{"$f":"IF(Dokumentenauswertung!M11=\"\",\"\",Dokumentenauswertung!M11)","v":""},{"$f":"IF(Dokumentenauswertung!N11=\"\",\"\",Dokumentenauswertung!N11)","v":""},{"$f":"IF(Dokumentenauswertung!O11=\"\",\"\",Dokumentenauswertung!O11)","v":""},{"$f":"IF(Dokumentenauswertung!P11=\"\",\"\",Dokumentenauswertung!P11)","v":""},{"$f":"IF(Dokumentenauswertung!Q11=\"\",\"\",Dokumentenauswertung!Q11)","v":""},{"$f":"IF(Dokumentenauswertung!R11=\"\",\"\",Dokumentenauswertung!R11)","v":""},{"$f":"IF(Dokumentenauswertung!S11=\"\",\"\",Dokumentenauswertung!S11)","v":""},{"$f":"IF(Dokumentenauswertung!T11=\"\",\"\",Dokumentenauswertung!T11)","v":""},{"$f":"IF(Dokumentenauswertung!U11=\"\",\"\",Dokumentenauswertung!U11)","v":""},{"$f":"IF(Dokumentenauswertung!V11=\"\",\"\",Dokumentenauswertung!V11)","v":""},{"$f":"IF(Dokumentenauswertung!W11=\"\",\"\",Dokumentenauswertung!W11)","v":""},{"$f":"IF(Dokumentenauswertung!X11=\"\",\"\",Dokumentenauswertung!X11)","v":""},{"$f":"IF(Dokumentenauswertung!Y11=\"\",\"\",Dokumentenauswertung!Y11)","v":""},{"$f":"IF(Dokumentenauswertung!Z11=\"\",\"\",Dokumentenauswertung!Z11)","v":""},{"$f":"IF(Dokumentenauswertung!AA11=\"\",\"\",Dokumentenauswertung!AA11)","v":""},{"$f":"IF(Dokumentenauswertung!AB11=\"\",\"\",Dokumentenauswertung!AB11)","v":""},{"$f":"IF(Dokumentenauswertung!AC11=\"\",\"\",Dokumentenauswertung!AC11)","v":""},{"$f":"IF(Dokumentenauswertung!AD11=\"\",\"\",Dokumentenauswertung!AD11)","v":""},{"$f":"IF(Dokumentenauswertung!AE11=\"\",\"\",Dokumentenauswertung!AE11)","v":""},{"$f":"IF(Dokumentenauswertung!AF11=\"\",\"\",Dokumentenauswertung!AF11)","v":""},{"$f":"IF(Dokumentenauswertung!AG11=\"\",\"\",Dokumentenauswertung!AG11)","v":""},{"$f":"IF(Dokumentenauswertung!AH11=\"\",\"\",Dokumentenauswertung!AH11)","v":""},{"$f":"IF(Dokumentenauswertung!AI11=\"\",\"\",Dokumentenauswertung!AI11)","v":""},{"$f":"IF(Dokumentenauswertung!AJ11=\"\",\"\",Dokumentenauswertung!AJ11)","v":""},{"$f":"IF(Dokumentenauswertung!AK11=\"\",\"\",Dokumentenauswertung!AK11)","v":""}]
[null,null,"Klasse",{"$f":"IF(Dokumentenauswertung!E12=\"\",\"\",Dokumentenauswertung!E12)","v":""},{"$f":"IF(Dokumentenauswertung!F12=\"\",\"\",Dokumentenauswertung!F12)","v":""},{"$f":"IF(Dokumentenauswertung!G12=\"\",\"\",Dokumentenauswertung!G12)","v":""},{"$f":"IF(Dokumentenauswertung!H12=\"\",\"\",Dokumentenauswertung!H12)","v":""},{"$f":"IF(Dokumentenauswertung!I12=\"\",\"\",Dokumentenauswertung!I12)","v":""},{"$f":"IF(Dokumentenauswertung!J12=\"\",\"\",Dokumentenauswertung!J12)","v":""},{"$f":"IF(Dokumentenauswertung!K12=\"\",\"\",Dokumentenauswertung!K12)","v":""},{"$f":"IF(Dokumentenauswertung!L12=\"\",\"\",Dokumentenauswertung!L12)","v":""},{"$f":"IF(Dokumentenauswertung!M12=\"\",\"\",Dokumentenauswertung!M12)","v":""},{"$f":"IF(Dokumentenauswertung!N12=\"\",\"\",Dokumentenauswertung!N12)","v":""},{"$f":"IF(Dokumentenauswertung!O12=\"\",\"\",Dokumentenauswertung!O12)","v":""},{"$f":"IF(Dokumentenauswertung!P12=\"\",\"\",Dokumentenauswertung!P12)","v":""},{"$f":"IF(Dokumentenauswertung!Q12=\"\",\"\",Dokumentenauswertung!Q12)","v":""},{"$f":"IF(Dokumentenauswertung!R12=\"\",\"\",Dokumentenauswertung!R12)","v":""},{"$f":"IF(Dokumentenauswertung!S12=\"\",\"\",Dokumentenauswertung!S12)","v":""},{"$f":"IF(Dokumentenauswertung!T12=\"\",\"\",Dokumentenauswertung!T12)","v":""},{"$f":"IF(Dokumentenauswertung!U12=\"\",\"\",Dokumentenauswertung!U12)","v":""},{"$f":"IF(Dokumentenauswertung!V12=\"\",\"\",Dokumentenauswertung!V12)","v":""},{"$f":"IF(Dokumentenauswertung!W12=\"\",\"\",Dokumentenauswertung!W12)","v":""},{"$f":"IF(Dokumentenauswertung!X12=\"\",\"\",Dokumentenauswertung!X12)","v":""},{"$f":"IF(Dokumentenauswertung!Y12=\"\",\"\",Dokumentenauswertung!Y12)","v":""},{"$f":"IF(Dokumentenauswertung!Z12=\"\",\"\",Dokumentenauswertung!Z12)","v":""},{"$f":"IF(Dokumentenauswertung!AA12=\"\",\"\",Dokumentenauswertung!AA12)","v":""},{"$f":"IF(Dokumentenauswertung!AB12=\"\",\"\",Dokumentenauswertung!AB12)","v":""},{"$f":"IF(Dokumentenauswertung!AC12=\"\",\"\",Dokumentenauswertung!AC12)","v":""},{"$f":"IF(Dokumentenauswertung!AD12=\"\",\"\",Dokumentenauswertung!AD12)","v":""},{"$f":"IF(Dokumentenauswertung!AE12=\"\",\"\",Dokumentenauswertung!AE12)","v":""},{"$f":"IF(Dokumentenauswertung!AF12=\"\",\"\",Dokumentenauswertung!AF12)","v":""},{"$f":"IF(Dokumentenauswertung!AG12=\"\",\"\",Dokumentenauswertung!AG12)","v":""},{"$f":"IF(Dokumentenauswertung!AH12=\"\",\"\",Dokumentenauswertung!AH12)","v":""},{"$f":"IF(Dokumentenauswertung!AI12=\"\",\"\",Dokumentenauswertung!AI12)","v":""},{"$f":"IF(Dokumentenauswertung!AJ12=\"\",\"\",Dokumentenauswertung!AJ12)","v":""},{"$f":"IF(Dokumentenauswertung!AK12=\"\",\"\",Dokumentenauswertung!AK12)","v":""}]
[null,null,"Datum",{"$f":"IF(Dokumentenauswertung!E13=\"\",\"\",Dokumentenauswertung!E13)","v":""},{"$f":"IF(Dokumentenauswertung!F13=\"\",\"\",Dokumentenauswertung!F13)","v":""},{"$f":"IF(Dokumentenauswertung!G13=\"\",\"\",Dokumentenauswertung!G13)","v":""},{"$f":"IF(Dokumentenauswertung!H13=\"\",\"\",Dokumentenauswertung!H13)","v":""},{"$f":"IF(Dokumentenauswertung!I13=\"\",\"\",Dokumentenauswertung!I13)","v":""},{"$f":"IF(Dokumentenauswertung!J13=\"\",\"\",Dokumentenauswertung!J13)","v":""},{"$f":"IF(Dokumentenauswertung!K13=\"\",\"\",Dokumentenauswertung!K13)","v":""},{"$f":"IF(Dokumentenauswertung!L13=\"\",\"\",Dokumentenauswertung!L13)","v":""},{"$f":"IF(Dokumentenauswertung!M13=\"\",\"\",Dokumentenauswertung!M13)","v":""},{"$f":"IF(Dokumentenauswertung!N13=\"\",\"\",Dokumentenauswertung!N13)","v":""},{"$f":"IF(Dokumentenauswertung!O13=\"\",\"\",Dokumentenauswertung!O13)","v":""},{"$f":"IF(Dokumentenauswertung!P13=\"\",\"\",Dokumentenauswertung!P13)","v":""},{"$f":"IF(Dokumentenauswertung!Q13=\"\",\"\",Dokumentenauswertung!Q13)","v":""},{"$f":"IF(Dokumentenauswertung!R13=\"\",\"\",Dokumentenauswertung!R13)","v":""},{"$f":"IF(Dokumentenauswertung!S13=\"\",\"\",Dokumentenauswertung!S13)","v":""},{"$f":"IF(Dokumentenauswertung!T13=\"\",\"\",Dokumentenauswertung!T13)","v":""},{"$f":"IF(Dokumentenauswertung!U13=\"\",\"\",Dokumentenauswertung!U13)","v":""},{"$f":"IF(Dokumentenauswertung!V13=\"\",\"\",Dokumentenauswertung!V13)","v":""},{"$f":"IF(Dokumentenauswertung!W13=\"\",\"\",Dokumentenauswertung!W13)","v":""},{"$f":"IF(Dokumentenauswertung!X13=\"\",\"\",Dokumentenauswertung!X13)","v":""},{"$f":"IF(Dokumentenauswertung!Y13=\"\",\"\",Dokumentenauswertung!Y13)","v":""},{"$f":"IF(Dokumentenauswertung!Z13=\"\",\"\",Dokumentenauswertung!Z13)","v":""},{"$f":"IF(Dokumentenauswertung!AA13=\"\",\"\",Dokumentenauswertung!AA13)","v":""},{"$f":"IF(Dokumentenauswertung!AB13=\"\",\"\",Dokumentenauswertung!AB13)","v":""},{"$f":"IF(Dokumentenauswertung!AC13=\"\",\"\",Dokumentenauswertung!AC13)","v":""},{"$f":"IF(Dokumentenauswertung!AD13=\"\",\"\",Dokumentenauswertung!AD13)","v":""},{"$f":"IF(Dokumentenauswertung!AE13=\"\",\"\",Dokumentenauswertung!AE13)","v":""},{"$f":"IF(Dokumentenauswertung!AF13=\"\",\"\",Dokumentenauswertung!AF13)","v":""},{"$f":"IF(Dokumentenauswertung!AG13=\"\",\"\",Dokumentenauswertung!AG13)","v":""},{"$f":"IF(Dokumentenauswertung!AH13=\"\",\"\",Dokumentenauswertung!AH13)","v":""},{"$f":"IF(Dokumentenauswertung!AI13=\"\",\"\",Dokumentenauswertung!AI13)","v":""},{"$f":"IF(Dokumentenauswertung!AJ13=\"\",\"\",Dokumentenauswertung!AJ13)","v":""},{"$f":"IF(Dokumentenauswertung!AK13=\"\",\"\",Dokumentenauswertung!AK13)","v":""}]
[null,null,{"$f":"Dokumentenauswertung!$A14","v":"A1.a"},{"$f":"IF(Dokumentenauswertung!E$10=\"\",\"\",IF(EXACT(Dokumentenauswertung!$B14,Dokumentenauswertung!E14)=TRUE,Dokumentenauswertung!$C14,0))","v":""},{"$f":"IF(Dokumentenauswertung!F$10=\"\",\"\",IF(EXACT(Dokumentenauswertung!$B14,Dokumentenauswertung!F14)=TRUE,Dokumentenauswertung!$C14,0))","v":""},{"$f":"IF(Dokumentenauswertung!G$10=\"\",\"\",IF(EXACT(Dokumentenauswertung!$B14,Dokumentenauswertung!G14)=TRUE,Dokumentenauswertung!$C14,0))","v":""},{"$f":"IF(Dokumentenauswertung!H$10=\"\",\"\",IF(EXACT(Dokumentenauswertung!$B14,Dokumentenauswertung!H14)=TRUE,Dokumentenauswertung!$C14,0))","v":""},{"$f":"IF(Dokumentenauswertung!I$10=\"\",\"\",IF(EXACT(Dokumentenauswertung!$B14,Dokumentenauswertung!I14)=TRUE,Dokumentenauswertung!$C14,0))","v":""},{"$f":"IF(Dokumentenauswertung!J$10=\"\",\"\",IF(EXACT(Dokumentenauswertung!$B14,Dokumentenauswertung!J14)=TRUE,Dokumentenauswertung!$C14,0))","v":""},{"$f":"IF(Dokumentenauswertung!K$10=\"\",\"\",IF(EXACT(Dokumentenauswertung!$B14,Dokumentenauswertung!K14)=TRUE,Dokumentenauswertung!$C14,0))","v":""},{"$f":"IF(Dokumentenauswertung!L$10=\"\",\"\",IF(EXACT(Dokumentenauswertung!$B14,Dokumentenauswertung!L14)=TRUE,Dokumentenauswertung!$C14,0))","v":""},{"$f":"IF(Dokumentenauswertung!M$10=\"\",\"\",IF(EXACT(Dokumentenauswertung!$B14,Dokumentenauswertung!M14)=TRUE,Dokumentenauswertung!$C14,0))","v":""},{"$f":"IF(Dokumentenauswertung!N$10=\"\",\"\",IF(EXACT(Dokumentenauswertung!$B14,Dokumentenauswertung!N14)=TRUE,Dokumentenauswertung!$C14,0))","v":""},{"$f":"IF(Dokumentenauswertung!O$10=\"\",\"\",IF(EXACT(Dokumentenauswertung!$B14,Dokumentenauswertung!O14)=TRUE,Dokumentenauswertung!$C14,0))","v":""},{"$f":"IF(Dokumentenauswertung!P$10=\"\",\"\",IF(EXACT(Dokumentenauswertung!$B14,Dokumentenauswertung!P14)=TRUE,Dokumentenauswertung!$C14,0))","v":""},{"$f":"IF(Dokumentenauswertung!Q$10=\"\",\"\",IF(EXACT(Dokumentenauswertung!$B14,Dokumentenauswertung!Q14)=TRUE,Dokumentenauswertung!$C14,0))","v":""},{"$f":"IF(Dokumentenauswertung!R$10=\"\",\"\",IF(EXACT(Dokumentenauswertung!$B14,Dokumentenauswertung!R14)=TRUE,Dokumentenauswertung!$C14,0))","v":""},{"$f":"IF(Dokumentenauswertung!S$10=\"\",\"\",IF(EXACT(Dokumentenauswertung!$B14,Dokumentenauswertung!S14)=TRUE,Dokumentenauswertung!$C14,0))","v":""},{"$f":"IF(Dokumentenauswertung!T$10=\"\",\"\",IF(EXACT(Dokumentenauswertung!$B14,Dokumentenauswertung!T14)=TRUE,Dokumentenauswertung!$C14,0))","v":""},{"$f":"IF(Dokumentenauswertung!U$10=\"\",\"\",IF(EXACT(Dokumentenauswertung!$B14,Dokumentenauswertung!U14)=TRUE,Dokumentenauswertung!$C14,0))","v":""},{"$f":"IF(Dokumentenauswertung!V$10=\"\",\"\",IF(EXACT(Dokumentenauswertung!$B14,Dokumentenauswertung!V14)=TRUE,Dokumentenauswertung!$C14,0))","v":""},{"$f":"IF(Dokumentenauswertung!W$10=\"\",\"\",IF(EXACT(Dokumentenauswertung!$B14,Dokumentenauswertung!W14)=TRUE,Dokumentenauswertung!$C14,0))","v":""},{"$f":"IF(Dokumentenauswertung!X$10=\"\",\"\",IF(EXACT(Dokumentenauswertung!$B14,Dokumentenauswertung!X14)=TRUE,Dokumentenauswertung!$C14,0))","v":""},{"$f":"IF(Dokumentenauswertung!Y$10=\"\",\"\",IF(EXACT(Dokumentenauswertung!$B14,Dokumentenauswertung!Y14)=TRUE,Dokumentenauswertung!$C14,0))","v":""},{"$f":"IF(Dokumentenauswertung!Z$10=\"\",\"\",IF(EXACT(Dokumentenauswertung!$B14,Dokumentenauswertung!Z14)=TRUE,Dokumentenauswertung!$C14,0))","v":""},{"$f":"IF(Dokumentenauswertung!AA$10=\"\",\"\",IF(EXACT(Dokumentenauswertung!$B14,Dokumentenauswertung!AA14)=TRUE,Dokumentenauswertung!$C14,0))","v":""},{"$f":"IF(Dokumentenauswertung!AB$10=\"\",\"\",IF(EXACT(Dokumentenauswertung!$B14,Dokumentenauswertung!AB14)=TRUE,Dokumentenauswertung!$C14,0))","v":""},{"$f":"IF(Dokumentenauswertung!AC$10=\"\",\"\",IF(EXACT(Dokumentenauswertung!$B14,Dokumentenauswertung!AC14)=TRUE,Dokumentenauswertung!$C14,0))","v":""},{"$f":"IF(Dokumentenauswertung!AD$10=\"\",\"\",IF(EXACT(Dokumentenauswertung!$B14,Dokumentenauswertung!AD14)=TRUE,Dokumentenauswertung!$C14,0))","v":""},{"$f":"IF(Dokumentenauswertung!AE$10=\"\",\"\",IF(EXACT(Dokumentenauswertung!$B14,Dokumentenauswertung!AE14)=TRUE,Dokumentenauswertung!$C14,0))","v":""},{"$f":"IF(Dokumentenauswertung!AF$10=\"\",\"\",IF(EXACT(Dokumentenauswertung!$B14,Dokumentenauswertung!AF14)=TRUE,Dokumentenauswertung!$C14,0))","v":""},{"$f":"IF(Dokumentenauswertung!AG$10=\"\",\"\",IF(EXACT(Dokumentenauswertung!$B14,Dokumentenauswertung!AG14)=TRUE,Dokumentenauswertung!$C14,0))","v":""},{"$f":"IF(Dokumentenauswertung!AH$10=\"\",\"\",IF(EXACT(Dokumentenauswertung!$B14,Dokumentenauswertung!AH14)=TRUE,Dokumentenauswertung!$C14,0))","v":""},{"$f":"IF(Dokumentenauswertung!AI$10=\"\",\"\",IF(EXACT(Dokumentenauswertung!$B14,Dokumentenauswertung!AI14)=TRUE,Dokumentenauswertung!$C14,0))","v":""},{"$f":"IF(Dokumentenauswertung!AJ$10=\"\",\"\",IF(EXACT(Dokumentenauswertung!$B14,Dokumentenauswertung!AJ14)=TRUE,Dokumentenauswertung!$C14,0))","v":""},{"$f":"IF(Dokumentenauswertung!AK$10=\"\",\"\",IF(EXACT(Dokumentenauswertung!$B14,Dokumentenauswertung!AK14)=TRUE,Dokumentenauswertung!$C14,0))","v":""}]
[null,null,{"$f":"Dokumentenauswertung!$A15","v":"A1.b"},{"$f":"IF(Dokumentenauswertung!E$10=\"\",\"\",IF(EXACT(Dokumentenauswertung!$B15,Dokumentenauswertung!E15)=TRUE,Dokumentenauswertung!$C15,0))","v":""},{"$f":"IF(Dokumentenauswertung!F$10=\"\",\"\",IF(EXACT(Dokumentenauswertung!$B15,Dokumentenauswertung!F15)=TRUE,Dokumentenauswertung!$C15,0))","v":""},{"$f":"IF(Dokumentenauswertung!G$10=\"\",\"\",IF(EXACT(Dokumentenauswertung!$B15,Dokumentenauswertung!G15)=TRUE,Dokumentenauswertung!$C15,0))","v":""},{"$f":"IF(Dokumentenauswertung!H$10=\"\",\"\",IF(EXACT(Dokumentenauswertung!$B15,Dokumentenauswertung!H15)=TRUE,Dokumentenauswertung!$C15,0))","v":""},{"$f":"IF(Dokumentenauswertung!I$10=\"\",\"\",IF(EXACT(Dokumentenauswertung!$B15,Dokumentenauswertung!I15)=TRUE,Dokumentenauswertung!$C15,0))","v":""},{"$f":"IF(Dokumentenauswertung!J$10=\"\",\"\",IF(EXACT(Dokumentenauswertung!$B15,Dokumentenauswertung!J15)=TRUE,Dokumentenauswertung!$C15,0))","v":""},{"$f":"IF(Dokumentenauswertung!K$10=\"\",\"\",IF(EXACT(Dokumentenauswertung!$B15,Dokumentenauswertung!K15)=TRUE,Dokumentenauswertung!$C15,0))","v":""},{"$f":"IF(Dokumentenauswertung!L$10=\"\",\"\",IF(EXACT(Dokumentenauswertung!$B15,Dokumentenauswertung!L15)=TRUE,Dokumentenauswertung!$C15,0))","v":""},{"$f":"IF(Dokumentenauswertung!M$10=\"\",\"\",IF(EXACT(Dokumentenauswertung!$B15,Dokumentenauswertung!M15)=TRUE,Dokumentenauswertung!$C15,0))","v":""},{"$f":"IF(Dokumentenauswertung!N$10=\"\",\"\",IF(EXACT(Dokumentenauswertung!$B15,Dokumentenauswertung!N15)=TRUE,Dokumentenauswertung!$C15,0))","v":""},{"$f":"IF(Dokumentenauswertung!O$10=\"\",\"\",IF(EXACT(Dokumentenauswertung!$B15,Dokumentenauswertung!O15)=TRUE,Dokumentenauswertung!$C15,0))","v":""},{"$f":"IF(Dokumentenauswertung!P$10=\"\",\"\",IF(EXACT(Dokumentenauswertung!$B15,Dokumentenauswertung!P15)=TRUE,Dokumentenauswertung!$C15,0))","v":""},{"$f":"IF(Dokumentenauswertung!Q$10=\"\",\"\",IF(EXACT(Dokumentenauswertung!$B15,Dokumentenauswertung!Q15)=TRUE,Dokumentenauswertung!$C15,0))","v":""},{"$f":"IF(Dokumentenauswertung!R$10=\"\",\"\",IF(EXACT(Dokumentenauswertung!$B15,Dokumentenauswertung!R15)=TRUE,Dokumentenauswertung!$C15,0))","v":""},{"$f":"IF(Dokumentenauswertung!S$10=\"\",\"\",IF(EXACT(Dokumentenauswertung!$B15,Dokumentenauswertung!S15)=TRUE,Dokumentenauswertung!$C15,0))","v":""},{"$f":"IF(Dokumentenauswertung!T$10=\"\",\"\",IF(EXACT(Dokumentenauswertung!$B15,Dokumentenauswertung!T15)=TRUE,Dokumentenauswertung!$C15,0))","v":""},{"$f":"IF(Dokumentenauswertung!U$10=\"\",\"\",IF(EXACT(Dokumentenauswertung!$B15,Dokumentenauswertung!U15)=TRUE,Dokumentenauswertung!$C15,0))","v":""},{"$f":"IF(Dokumentenauswertung!V$10=\"\",\"\",IF(EXACT(Dokumentenauswertung!$B15,Dokumentenauswertung!V15)=TRUE,Dokumentenauswertung!$C15,0))","v":""},{"$f":"IF(Dokumentenauswertung!W$10=\"\",\"\",IF(EXACT(Dokumentenauswertung!$B15,Dokumentenauswertung!W15)=TRUE,Dokumentenauswertung!$C15,0))","v":""},{"$f":"IF(Dokumentenauswertung!X$10=\"\",\"\",IF(EXACT(Dokumentenauswertung!$B15,Dokumentenauswertung!X15)=TRUE,Dokumentenauswertung!$C15,0))","v":""},{"$f":"IF(Dokumentenauswertung!Y$10=\"\",\"\",IF(EXACT(Dokumentenauswertung!$B15,Dokumentenauswertung!Y15)=TRUE,Dokumentenauswertung!$C15,0))","v":""},{"$f":"IF(Dokumentenauswertung!Z$10=\"\",\"\",IF(EXACT(Dokumentenauswertung!$B15,Dokumentenauswertung!Z15)=TRUE,Dokumentenauswertung!$C15,0))","v":""},{"$f":"IF(Dokumentenauswertung!AA$10=\"\",\"\",IF(EXACT(Dokumentenauswertung!$B15,Dokumentenauswertung!AA15)=TRUE,Dokumentenauswertung!$C15,0))","v":""},{"$f":"IF(Dokumentenauswertung!AB$10=\"\",\"\",IF(EXACT(Dokumentenauswertung!$B15,Dokumentenauswertung!AB15)=TRUE,Dokumentenauswertung!$C15,0))","v":""},{"$f":"IF(Dokumentenauswertung!AC$10=\"\",\"\",IF(EXACT(Dokumentenauswertung!$B15,Dokumentenauswertung!AC15)=TRUE,Dokumentenauswertung!$C15,0))","v":""},{"$f":"IF(Dokumentenauswertung!AD$10=\"\",\"\",IF(EXACT(Dokumentenauswertung!$B15,Dokumentenauswertung!AD15)=TRUE,Dokumentenauswertung!$C15,0))","v":""},{"$f":"IF(Dokumentenauswertung!AE$10=\"\",\"\",IF(EXACT(Dokumentenauswertung!$B15,Dokumentenauswertung!AE15)=TRUE,Dokumentenauswertung!$C15,0))","v":""},{"$f":"IF(Dokumentenauswertung!AF$10=\"\",\"\",IF(EXACT(Dokumentenauswertung!$B15,Dokumentenauswertung!AF15)=TRUE,Dokumentenauswertung!$C15,0))","v":""},{"$f":"IF(Dokumentenauswertung!AG$10=\"\",\"\",IF(EXACT(Dokumentenauswertung!$B15,Dokumentenauswertung!AG15)=TRUE,Dokumentenauswertung!$C15,0))","v":""},{"$f":"IF(Dokumentenauswertung!AH$10=\"\",\"\",IF(EXACT(Dokumentenauswertung!$B15,Dokumentenauswertung!AH15)=TRUE,Dokumentenauswertung!$C15,0))","v":""},{"$f":"IF(Dokumentenauswertung!AI$10=\"\",\"\",IF(EXACT(Dokumentenauswertung!$B15,Dokumentenauswertung!AI15)=TRUE,Dokumentenauswertung!$C15,0))","v":""},{"$f":"IF(Dokumentenauswertung!AJ$10=\"\",\"\",IF(EXACT(Dokumentenauswertung!$B15,Dokumentenauswertung!AJ15)=TRUE,Dokumentenauswertung!$C15,0))","v":""},{"$f":"IF(Dokumentenauswertung!AK$10=\"\",\"\",IF(EXACT(Dokumentenauswertung!$B15,Dokumentenauswertung!AK15)=TRUE,Dokumentenauswertung!$C15,0))","v":""}]
[null,null,{"$f":"Dokumentenauswertung!$A16","v":"A1.c"},{"$f":"IF(Dokumentenauswertung!E$10=\"\",\"\",IF(EXACT(Dokumentenauswertung!$B16,Dokumentenauswertung!E16)=TRUE,Dokumentenauswertung!$C16,0))","v":""},{"$f":"IF(Dokumentenauswertung!F$10=\"\",\"\",IF(EXACT(Dokumentenauswertung!$B16,Dokumentenauswertung!F16)=TRUE,Dokumentenauswertung!$C16,0))","v":""},{"$f":"IF(Dokumentenauswertung!G$10=\"\",\"\",IF(EXACT(Dokumentenauswertung!$B16,Dokumentenauswertung!G16)=TRUE,Dokumentenauswertung!$C16,0))","v":""},{"$f":"IF(Dokumentenauswertung!H$10=\"\",\"\",IF(EXACT(Dokumentenauswertung!$B16,Dokumentenauswertung!H16)=TRUE,Dokumentenauswertung!$C16,0))","v":""},{"$f":"IF(Dokumentenauswertung!I$10=\"\",\"\",IF(EXACT(Dokumentenauswertung!$B16,Dokumentenauswertung!I16)=TRUE,Dokumentenauswertung!$C16,0))","v":""},{"$f":"IF(Dokumentenauswertung!J$10=\"\",\"\",IF(EXACT(Dokumentenauswertung!$B16,Dokumentenauswertung!J16)=TRUE,Dokumentenauswertung!$C16,0))","v":""},{"$f":"IF(Dokumentenauswertung!K$10=\"\",\"\",IF(EXACT(Dokumentenauswertung!$B16,Dokumentenauswertung!K16)=TRUE,Dokumentenauswertung!$C16,0))","v":""},{"$f":"IF(Dokumentenauswertung!L$10=\"\",\"\",IF(EXACT(Dokumentenauswertung!$B16,Dokumentenauswertung!L16)=TRUE,Dokumentenauswertung!$C16,0))","v":""},{"$f":"IF(Dokumentenauswertung!M$10=\"\",\"\",IF(EXACT(Dokumentenauswertung!$B16,Dokumentenauswertung!M16)=TRUE,Dokumentenauswertung!$C16,0))","v":""},{"$f":"IF(Dokumentenauswertung!N$10=\"\",\"\",IF(EXACT(Dokumentenauswertung!$B16,Dokumentenauswertung!N16)=TRUE,Dokumentenauswertung!$C16,0))","v":""},{"$f":"IF(Dokumentenauswertung!O$10=\"\",\"\",IF(EXACT(Dokumentenauswertung!$B16,Dokumentenauswertung!O16)=TRUE,Dokumentenauswertung!$C16,0))","v":""},{"$f":"IF(Dokumentenauswertung!P$10=\"\",\"\",IF(EXACT(Dokumentenauswertung!$B16,Dokumentenauswertung!P16)=TRUE,Dokumentenauswertung!$C16,0))","v":""},{"$f":"IF(Dokumentenauswertung!Q$10=\"\",\"\",IF(EXACT(Dokumentenauswertung!$B16,Dokumentenauswertung!Q16)=TRUE,Dokumentenauswertung!$C16,0))","v":""},{"$f":"IF(Dokumentenauswertung!R$10=\"\",\"\",IF(EXACT(Dokumentenauswertung!$B16,Dokumentenauswertung!R16)=TRUE,Dokumentenauswertung!$C16,0))","v":""},{"$f":"IF(Dokumentenauswertung!S$10=\"\",\"\",IF(EXACT(Dokumentenauswertung!$B16,Dokumentenauswertung!S16)=TRUE,Dokumentenauswertung!$C16,0))","v":""},{"$f":"IF(Dokumentenauswertung!T$10=\"\",\"\",IF(EXACT(Dokumentenauswertung!$B16,Dokumentenauswertung!T16)=TRUE,Dokumentenauswertung!$C16,0))","v":""},{"$f":"IF(Dokumentenauswertung!U$10=\"\",\"\",IF(EXACT(Dokumentenauswertung!$B16,Dokumentenauswertung!U16)=TRUE,Dokumentenauswertung!$C16,0))","v":""},{"$f":"IF(Dokumentenauswertung!V$10=\"\",\"\",IF(EXACT(Dokumentenauswertung!$B16,Dokumentenauswertung!V16)=TRUE,Dokumentenauswertung!$C16,0))","v":""},{"$f":"IF(Dokumentenauswertung!W$10=\"\",\"\",IF(EXACT(Dokumentenauswertung!$B16,Dokumentenauswertung!W16)=TRUE,Dokumentenauswertung!$C16,0))","v":""},{"$f":"IF(Dokumentenauswertung!X$10=\"\",\"\",IF(EXACT(Dokumentenauswertung!$B16,Dokumentenauswertung!X16)=TRUE,Dokumentenauswertung!$C16,0))","v":""},{"$f":"IF(Dokumentenauswertung!Y$10=\"\",\"\",IF(EXACT(Dokumentenauswertung!$B16,Dokumentenauswertung!Y16)=TRUE,Dokumentenauswertung!$C16,0))","v":""},{"$f":"IF(Dokumentenauswertung!Z$10=\"\",\"\",IF(EXACT(Dokumentenauswertung!$B16,Dokumentenauswertung!Z16)=TRUE,Dokumentenauswertung!$C16,0))","v":""},{"$f":"IF(Dokumentenauswertung!AA$10=\"\",\"\",IF(EXACT(Dokumentenauswertung!$B16,Dokumentenauswertung!AA16)=TRUE,Dokumentenauswertung!$C16,0))","v":""},{"$f":"IF(Dokumentenauswertung!AB$10=\"\",\"\",IF(EXACT(Dokumentenauswertung!$B16,Dokumentenauswertung!AB16)=TRUE,Dokumentenauswertung!$C16,0))","v":""},{"$f":"IF(Dokumentenauswertung!AC$10=\"\",\"\",IF(EXACT(Dokumentenauswertung!$B16,Dokumentenauswertung!AC16)=TRUE,Dokumentenauswertung!$C16,0))","v":""},{"$f":"IF(Dokumentenauswertung!AD$10=\"\",\"\",IF(EXACT(Dokumentenauswertung!$B16,Dokumentenauswertung!AD16)=TRUE,Dokumentenauswertung!$C16,0))","v":""},{"$f":"IF(Dokumentenauswertung!AE$10=\"\",\"\",IF(EXACT(Dokumentenauswertung!$B16,Dokumentenauswertung!AE16)=TRUE,Dokumentenauswertung!$C16,0))","v":""},{"$f":"IF(Dokumentenauswertung!AF$10=\"\",\"\",IF(EXACT(Dokumentenauswertung!$B16,Dokumentenauswertung!AF16)=TRUE,Dokumentenauswertung!$C16,0))","v":""},{"$f":"IF(Dokumentenauswertung!AG$10=\"\",\"\",IF(EXACT(Dokumentenauswertung!$B16,Dokumentenauswertung!AG16)=TRUE,Dokumentenauswertung!$C16,0))","v":""},{"$f":"IF(Dokumentenauswertung!AH$10=\"\",\"\",IF(EXACT(Dokumentenauswertung!$B16,Dokumentenauswertung!AH16)=TRUE,Dokumentenauswertung!$C16,0))","v":""},{"$f":"IF(Dokumentenauswertung!AI$10=\"\",\"\",IF(EXACT(Dokumentenauswertung!$B16,Dokumentenauswertung!AI16)=TRUE,Dokumentenauswertung!$C16,0))","v":""},{"$f":"IF(Dokumentenauswertung!AJ$10=\"\",\"\",IF(EXACT(Dokumentenauswertung!$B16,Dokumentenauswertung!AJ16)=TRUE,Dokumentenauswertung!$C16,0))","v":""},{"$f":"IF(Dokumentenauswertung!AK$10=\"\",\"\",IF(EXACT(Dokumentenauswertung!$B16,Dokumentenauswertung!AK16)=TRUE,Dokumentenauswertung!$C16,0))","v":""}]
[null,null,{"$f":"Dokumentenauswertung!$A17","v":"A2.a.1"},{"$f":"IF(Dokumentenauswertung!E$10=\"\",\"\",IF(EXACT(Dokumentenauswertung!$B17,Dokumentenauswertung!E17)=TRUE,Dokumentenauswertung!$C17,0))","v":""},{"$f":"IF(Dokumentenauswertung!F$10=\"\",\"\",IF(EXACT(Dokumentenauswertung!$B17,Dokumentenauswertung!F17)=TRUE,Dokumentenauswertung!$C17,0))","v":""},{"$f":"IF(Dokumentenauswertung!G$10=\"\",\"\",IF(EXACT(Dokumentenauswertung!$B17,Dokumentenauswertung!G17)=TRUE,Dokumentenauswertung!$C17,0))","v":""},{"$f":"IF(Dokumentenauswertung!H$10=\"\",\"\",IF(EXACT(Dokumentenauswertung!$B17,Dokumentenauswertung!H17)=TRUE,Dokumentenauswertung!$C17,0))","v":""},{"$f":"IF(Dokumentenauswertung!I$10=\"\",\"\",IF(EXACT(Dokumentenauswertung!$B17,Dokumentenauswertung!I17)=TRUE,Dokumentenauswertung!$C17,0))","v":""},{"$f":"IF(Dokumentenauswertung!J$10=\"\",\"\",IF(EXACT(Dokumentenauswertung!$B17,Dokumentenauswertung!J17)=TRUE,Dokumentenauswertung!$C17,0))","v":""},{"$f":"IF(Dokumentenauswertung!K$10=\"\",\"\",IF(EXACT(Dokumentenauswertung!$B17,Dokumentenauswertung!K17)=TRUE,Dokumentenauswertung!$C17,0))","v":""},{"$f":"IF(Dokumentenauswertung!L$10=\"\",\"\",IF(EXACT(Dokumentenauswertung!$B17,Dokumentenauswertung!L17)=TRUE,Dokumentenauswertung!$C17,0))","v":""},{"$f":"IF(Dokumentenauswertung!M$10=\"\",\"\",IF(EXACT(Dokumentenauswertung!$B17,Dokumentenauswertung!M17)=TRUE,Dokumentenauswertung!$C17,0))","v":""},{"$f":"IF(Dokumentenauswertung!N$10=\"\",\"\",IF(EXACT(Dokumentenauswertung!$B17,Dokumentenauswertung!N17)=TRUE,Dokumentenauswertung!$C17,0))","v":""},{"$f":"IF(Dokumentenauswertung!O$10=\"\",\"\",IF(EXACT(Dokumentenauswertung!$B17,Dokumentenauswertung!O17)=TRUE,Dokumentenauswertung!$C17,0))","v":""},{"$f":"IF(Dokumentenauswertung!P$10=\"\",\"\",IF(EXACT(Dokumentenauswertung!$B17,Dokumentenauswertung!P17)=TRUE,Dokumentenauswertung!$C17,0))","v":""},{"$f":"IF(Dokumentenauswertung!Q$10=\"\",\"\",IF(EXACT(Dokumentenauswertung!$B17,Dokumentenauswertung!Q17)=TRUE,Dokumentenauswertung!$C17,0))","v":""},{"$f":"IF(Dokumentenauswertung!R$10=\"\",\"\",IF(EXACT(Dokumentenauswertung!$B17,Dokumentenauswertung!R17)=TRUE,Dokumentenauswertung!$C17,0))","v":""},{"$f":"IF(Dokumentenauswertung!S$10=\"\",\"\",IF(EXACT(Dokumentenauswertung!$B17,Dokumentenauswertung!S17)=TRUE,Dokumentenauswertung!$C17,0))","v":""},{"$f":"IF(Dokumentenauswertung!T$10=\"\",\"\",IF(EXACT(Dokumentenauswertung!$B17,Dokumentenauswertung!T17)=TRUE,Dokumentenauswertung!$C17,0))","v":""},{"$f":"IF(Dokumentenauswertung!U$10=\"\",\"\",IF(EXACT(Dokumentenauswertung!$B17,Dokumentenauswertung!U17)=TRUE,Dokumentenauswertung!$C17,0))","v":""},{"$f":"IF(Dokumentenauswertung!V$10=\"\",\"\",IF(EXACT(Dokumentenauswertung!$B17,Dokumentenauswertung!V17)=TRUE,Dokumentenauswertung!$C17,0))","v":""},{"$f":"IF(Dokumentenauswertung!W$10=\"\",\"\",IF(EXACT(Dokumentenauswertung!$B17,Dokumentenauswertung!W17)=TRUE,Dokumentenauswertung!$C17,0))","v":""},{"$f":"IF(Dokumentenauswertung!X$10=\"\",\"\",IF(EXACT(Dokumentenauswertung!$B17,Dokumentenauswertung!X17)=TRUE,Dokumentenauswertung!$C17,0))","v":""},{"$f":"IF(Dokumentenauswertung!Y$10=\"\",\"\",IF(EXACT(Dokumentenauswertung!$B17,Dokumentenauswertung!Y17)=TRUE,Dokumentenauswertung!$C17,0))","v":""},{"$f":"IF(Dokumentenauswertung!Z$10=\"\",\"\",IF(EXACT(Dokumentenauswertung!$B17,Dokumentenauswertung!Z17)=TRUE,Dokumentenauswertung!$C17,0))","v":""},{"$f":"IF(Dokumentenauswertung!AA$10=\"\",\"\",IF(EXACT(Dokumentenauswertung!$B17,Dokumentenauswertung!AA17)=TRUE,Dokumentenauswertung!$C17,0))","v":""},{"$f":"IF(Dokumentenauswertung!AB$10=\"\",\"\",IF(EXACT(Dokumentenauswertung!$B17,Dokumentenauswertung!AB17)=TRUE,Dokumentenauswertung!$C17,0))","v":""},{"$f":"IF(Dokumentenauswertung!AC$10=\"\",\"\",IF(EXACT(Dokumentenauswertung!$B17,Dokumentenauswertung!AC17)=TRUE,Dokumentenauswertung!$C17,0))","v":""},{"$f":"IF(Dokumentenauswertung!AD$10=\"\",\"\",IF(EXACT(Dokumentenauswertung!$B17,Dokumentenauswertung!AD17)=TRUE,Dokumentenauswertung!$C17,0))","v":""},{"$f":"IF(Dokumentenauswertung!AE$10=\"\",\"\",IF(EXACT(Dokumentenauswertung!$B17,Dokumentenauswertung!AE17)=TRUE,Dokumentenauswertung!$C17,0))","v":""},{"$f":"IF(Dokumentenauswertung!AF$10=\"\",\"\",IF(EXACT(Dokumentenauswertung!$B17,Dokumentenauswertung!AF17)=TRUE,Dokumentenauswertung!$C17,0))","v":""},{"$f":"IF(Dokumentenauswertung!AG$10=\"\",\"\",IF(EXACT(Dokumentenauswertung!$B17,Dokumentenauswertung!AG17)=TRUE,Dokumentenauswertung!$C17,0))","v":""},{"$f":"IF(Dokumentenauswertung!AH$10=\"\",\"\",IF(EXACT(Dokumentenauswertung!$B17,Dokumentenauswertung!AH17)=TRUE,Dokumentenauswertung!$C17,0))","v":""},{"$f":"IF(Dokumentenauswertung!AI$10=\"\",\"\",IF(EXACT(Dokumentenauswertung!$B17,Dokumentenauswertung!AI17)=TRUE,Dokumentenauswertung!$C17,0))","v":""},{"$f":"IF(Dokumentenauswertung!AJ$10=\"\",\"\",IF(EXACT(Dokumentenauswertung!$B17,Dokumentenauswertung!AJ17)=TRUE,Dokumentenauswertung!$C17,0))","v":""},{"$f":"IF(Dokumentenauswertung!AK$10=\"\",\"\",IF(EXACT(Dokumentenauswertung!$B17,Dokumentenauswertung!AK17)=TRUE,Dokumentenauswertung!$C17,0))","v":""}]
[null,null,{"$f":"Dokumentenauswertung!$A18","v":"A2.a.2"},{"$f":"IF(Dokumentenauswertung!E$10=\"\",\"\",IF(EXACT(Dokumentenauswertung!$B18,Dokumentenauswertung!E18)=TRUE,Dokumentenauswertung!$C18,0))","v":""},{"$f":"IF(Dokumentenauswertung!F$10=\"\",\"\",IF(EXACT(Dokumentenauswertung!$B18,Dokumentenauswertung!F18)=TRUE,Dokumentenauswertung!$C18,0))","v":""},{"$f":"IF(Dokumentenauswertung!G$10=\"\",\"\",IF(EXACT(Dokumentenauswertung!$B18,Dokumentenauswertung!G18)=TRUE,Dokumentenauswertung!$C18,0))","v":""},{"$f":"IF(Dokumentenauswertung!H$10=\"\",\"\",IF(EXACT(Dokumentenauswertung!$B18,Dokumentenauswertung!H18)=TRUE,Dokumentenauswertung!$C18,0))","v":""},{"$f":"IF(Dokumentenauswertung!I$10=\"\",\"\",IF(EXACT(Dokumentenauswertung!$B18,Dokumentenauswertung!I18)=TRUE,Dokumentenauswertung!$C18,0))","v":""},{"$f":"IF(Dokumentenauswertung!J$10=\"\",\"\",IF(EXACT(Dokumentenauswertung!$B18,Dokumentenauswertung!J18)=TRUE,Dokumentenauswertung!$C18,0))","v":""},{"$f":"IF(Dokumentenauswertung!K$10=\"\",\"\",IF(EXACT(Dokumentenauswertung!$B18,Dokumentenauswertung!K18)=TRUE,Dokumentenauswertung!$C18,0))","v":""},{"$f":"IF(Dokumentenauswertung!L$10=\"\",\"\",IF(EXACT(Dokumentenauswertung!$B18,Dokumentenauswertung!L18)=TRUE,Dokumentenauswertung!$C18,0))","v":""},{"$f":"IF(Dokumentenauswertung!M$10=\"\",\"\",IF(EXACT(Dokumentenauswertung!$B18,Dokumentenauswertung!M18)=TRUE,Dokumentenauswertung!$C18,0))","v":""},{"$f":"IF(Dokumentenauswertung!N$10=\"\",\"\",IF(EXACT(Dokumentenauswertung!$B18,Dokumentenauswertung!N18)=TRUE,Dokumentenauswertung!$C18,0))","v":""},{"$f":"IF(Dokumentenauswertung!O$10=\"\",\"\",IF(EXACT(Dokumentenauswertung!$B18,Dokumentenauswertung!O18)=TRUE,Dokumentenauswertung!$C18,0))","v":""},{"$f":"IF(Dokumentenauswertung!P$10=\"\",\"\",IF(EXACT(Dokumentenauswertung!$B18,Dokumentenauswertung!P18)=TRUE,Dokumentenauswertung!$C18,0))","v":""},{"$f":"IF(Dokumentenauswertung!Q$10=\"\",\"\",IF(EXACT(Dokumentenauswertung!$B18,Dokumentenauswertung!Q18)=TRUE,Dokumentenauswertung!$C18,0))","v":""},{"$f":"IF(Dokumentenauswertung!R$10=\"\",\"\",IF(EXACT(Dokumentenauswertung!$B18,Dokumentenauswertung!R18)=TRUE,Dokumentenauswertung!$C18,0))","v":""},{"$f":"IF(Dokumentenauswertung!S$10=\"\",\"\",IF(EXACT(Dokumentenauswertung!$B18,Dokumentenauswertung!S18)=TRUE,Dokumentenauswertung!$C18,0))","v":""},{"$f":"IF(Dokumentenauswertung!T$10=\"\",\"\",IF(EXACT(Dokumentenauswertung!$B18,Dokumentenauswertung!T18)=TRUE,Dokumentenauswertung!$C18,0))","v":""},{"$f":"IF(Dokumentenauswertung!U$10=\"\",\"\",IF(EXACT(Dokumentenauswertung!$B18,Dokumentenauswertung!U18)=TRUE,Dokumentenauswertung!$C18,0))","v":""},{"$f":"IF(Dokumentenauswertung!V$10=\"\",\"\",IF(EXACT(Dokumentenauswertung!$B18,Dokumentenauswertung!V18)=TRUE,Dokumentenauswertung!$C18,0))","v":""},{"$f":"IF(Dokumentenauswertung!W$10=\"\",\"\",IF(EXACT(Dokumentenauswertung!$B18,Dokumentenauswertung!W18)=TRUE,Dokumentenauswertung!$C18,0))","v":""},{"$f":"IF(Dokumentenauswertung!X$10=\"\",\"\",IF(EXACT(Dokumentenauswertung!$B18,Dokumentenauswertung!X18)=TRUE,Dokumentenauswertung!$C18,0))","v":""},{"$f":"IF(Dokumentenauswertung!Y$10=\"\",\"\",IF(EXACT(Dokumentenauswertung!$B18,Dokumentenauswertung!Y18)=TRUE,Dokumentenauswertung!$C18,0))","v":""},{"$f":"IF(Dokumentenauswertung!Z$10=\"\",\"\",IF(EXACT(Dokumentenauswertung!$B18,Dokumentenauswertung!Z18)=TRUE,Dokumentenauswertung!$C18,0))","v":""},{"$f":"IF(Dokumentenauswertung!AA$10=\"\",\"\",IF(EXACT(Dokumentenauswertung!$B18,Dokumentenauswertung!AA18)=TRUE,Dokumentenauswertung!$C18,0))","v":""},{"$f":"IF(Dokumentenauswertung!AB$10=\"\",\"\",IF(EXACT(Dokumentenauswertung!$B18,Dokumentenauswertung!AB18)=TRUE,Dokumentenauswertung!$C18,0))","v":""},{"$f":"IF(Dokumentenauswertung!AC$10=\"\",\"\",IF(EXACT(Dokumentenauswertung!$B18,Dokumentenauswertung!AC18)=TRUE,Dokumentenauswertung!$C18,0))","v":""},{"$f":"IF(Dokumentenauswertung!AD$10=\"\",\"\",IF(EXACT(Dokumentenauswertung!$B18,Dokumentenauswertung!AD18)=TRUE,Dokumentenauswertung!$C18,0))","v":""},{"$f":"IF(Dokumentenauswertung!AE$10=\"\",\"\",IF(EXACT(Dokumentenauswertung!$B18,Dokumentenauswertung!AE18)=TRUE,Dokumentenauswertung!$C18,0))","v":""},{"$f":"IF(Dokumentenauswertung!AF$10=\"\",\"\",IF(EXACT(Dokumentenauswertung!$B18,Dokumentenauswertung!AF18)=TRUE,Dokumentenauswertung!$C18,0))","v":""},{"$f":"IF(Dokumentenauswertung!AG$10=\"\",\"\",IF(EXACT(Dokumentenauswertung!$B18,Dokumentenauswertung!AG18)=TRUE,Dokumentenauswertung!$C18,0))","v":""},{"$f":"IF(Dokumentenauswertung!AH$10=\"\",\"\",IF(EXACT(Dokumentenauswertung!$B18,Dokumentenauswertung!AH18)=TRUE,Dokumentenauswertung!$C18,0))","v":""},{"$f":"IF(Dokumentenauswertung!AI$10=\"\",\"\",IF(EXACT(Dokumentenauswertung!$B18,Dokumentenauswertung!AI18)=TRUE,Dokumentenauswertung!$C18,0))","v":""},{"$f":"IF(Dokumentenauswertung!AJ$10=\"\",\"\",IF(EXACT(Dokumentenauswertung!$B18,Dokumentenauswertung!AJ18)=TRUE,Dokumentenauswertung!$C18,0))","v":""},{"$f":"IF(Dokumentenauswertung!AK$10=\"\",\"\",IF(EXACT(Dokumentenauswertung!$B18,Dokumentenauswertung!AK18)=TRUE,Dokumentenauswertung!$C18,0))","v":""}]
[null,null,{"$f":"Dokumentenauswertung!$A19","v":"A2.b.1"},{"$f":"IF(Dokumentenauswertung!E$10=\"\",\"\",IF(EXACT(Dokumentenauswertung!$B19,Dokumentenauswertung!E19)=TRUE,Dokumentenauswertung!$C19,0))","v":""},{"$f":"IF(Dokumentenauswertung!F$10=\"\",\"\",IF(EXACT(Dokumentenauswertung!$B19,Dokumentenauswertung!F19)=TRUE,Dokumentenauswertung!$C19,0))","v":""},{"$f":"IF(Dokumentenauswertung!G$10=\"\",\"\",IF(EXACT(Dokumentenauswertung!$B19,Dokumentenauswertung!G19)=TRUE,Dokumentenauswertung!$C19,0))","v":""},{"$f":"IF(Dokumentenauswertung!H$10=\"\",\"\",IF(EXACT(Dokumentenauswertung!$B19,Dokumentenauswertung!H19)=TRUE,Dokumentenauswertung!$C19,0))","v":""},{"$f":"IF(Dokumentenauswertung!I$10=\"\",\"\",IF(EXACT(Dokumentenauswertung!$B19,Dokumentenauswertung!I19)=TRUE,Dokumentenauswertung!$C19,0))","v":""},{"$f":"IF(Dokumentenauswertung!J$10=\"\",\"\",IF(EXACT(Dokumentenauswertung!$B19,Dokumentenauswertung!J19)=TRUE,Dokumentenauswertung!$C19,0))","v":""},{"$f":"IF(Dokumentenauswertung!K$10=\"\",\"\",IF(EXACT(Dokumentenauswertung!$B19,Dokumentenauswertung!K19)=TRUE,Dokumentenauswertung!$C19,0))","v":""},{"$f":"IF(Dokumentenauswertung!L$10=\"\",\"\",IF(EXACT(Dokumentenauswertung!$B19,Dokumentenauswertung!L19)=TRUE,Dokumentenauswertung!$C19,0))","v":""},{"$f":"IF(Dokumentenauswertung!M$10=\"\",\"\",IF(EXACT(Dokumentenauswertung!$B19,Dokumentenauswertung!M19)=TRUE,Dokumentenauswertung!$C19,0))","v":""},{"$f":"IF(Dokumentenauswertung!N$10=\"\",\"\",IF(EXACT(Dokumentenauswertung!$B19,Dokumentenauswertung!N19)=TRUE,Dokumentenauswertung!$C19,0))","v":""},{"$f":"IF(Dokumentenauswertung!O$10=\"\",\"\",IF(EXACT(Dokumentenauswertung!$B19,Dokumentenauswertung!O19)=TRUE,Dokumentenauswertung!$C19,0))","v":""},{"$f":"IF(Dokumentenauswertung!P$10=\"\",\"\",IF(EXACT(Dokumentenauswertung!$B19,Dokumentenauswertung!P19)=TRUE,Dokumentenauswertung!$C19,0))","v":""},{"$f":"IF(Dokumentenauswertung!Q$10=\"\",\"\",IF(EXACT(Dokumentenauswertung!$B19,Dokumentenauswertung!Q19)=TRUE,Dokumentenauswertung!$C19,0))","v":""},{"$f":"IF(Dokumentenauswertung!R$10=\"\",\"\",IF(EXACT(Dokumentenauswertung!$B19,Dokumentenauswertung!R19)=TRUE,Dokumentenauswertung!$C19,0))","v":""},{"$f":"IF(Dokumentenauswertung!S$10=\"\",\"\",IF(EXACT(Dokumentenauswertung!$B19,Dokumentenauswertung!S19)=TRUE,Dokumentenauswertung!$C19,0))","v":""},{"$f":"IF(Dokumentenauswertung!T$10=\"\",\"\",IF(EXACT(Dokumentenauswertung!$B19,Dokumentenauswertung!T19)=TRUE,Dokumentenauswertung!$C19,0))","v":""},{"$f":"IF(Dokumentenauswertung!U$10=\"\",\"\",IF(EXACT(Dokumentenauswertung!$B19,Dokumentenauswertung!U19)=TRUE,Dokumentenauswertung!$C19,0))","v":""},{"$f":"IF(Dokumentenauswertung!V$10=\"\",\"\",IF(EXACT(Dokumentenauswertung!$B19,Dokumentenauswertung!V19)=TRUE,Dokumentenauswertung!$C19,0))","v":""},{"$f":"IF(Dokumentenauswertung!W$10=\"\",\"\",IF(EXACT(Dokumentenauswertung!$B19,Dokumentenauswertung!W19)=TRUE,Dokumentenauswertung!$C19,0))","v":""},{"$f":"IF(Dokumentenauswertung!X$10=\"\",\"\",IF(EXACT(Dokumentenauswertung!$B19,Dokumentenauswertung!X19)=TRUE,Dokumentenauswertung!$C19,0))","v":""},{"$f":"IF(Dokumentenauswertung!Y$10=\"\",\"\",IF(EXACT(Dokumentenauswertung!$B19,Dokumentenauswertung!Y19)=TRUE,Dokumentenauswertung!$C19,0))","v":""},{"$f":"IF(Dokumentenauswertung!Z$10=\"\",\"\",IF(EXACT(Dokumentenauswertung!$B19,Dokumentenauswertung!Z19)=TRUE,Dokumentenauswertung!$C19,0))","v":""},{"$f":"IF(Dokumentenauswertung!AA$10=\"\",\"\",IF(EXACT(Dokumentenauswertung!$B19,Dokumentenauswertung!AA19)=TRUE,Dokumentenauswertung!$C19,0))","v":""},{"$f":"IF(Dokumentenauswertung!AB$10=\"\",\"\",IF(EXACT(Dokumentenauswertung!$B19,Dokumentenauswertung!AB19)=TRUE,Dokumentenauswertung!$C19,0))","v":""},{"$f":"IF(Dokumentenauswertung!AC$10=\"\",\"\",IF(EXACT(Dokumentenauswertung!$B19,Dokumentenauswertung!AC19)=TRUE,Dokumentenauswertung!$C19,0))","v":""},{"$f":"IF(Dokumentenauswertung!AD$10=\"\",\"\",IF(EXACT(Dokumentenauswertung!$B19,Dokumentenauswertung!AD19)=TRUE,Dokumentenauswertung!$C19,0))","v":""},{"$f":"IF(Dokumentenauswertung!AE$10=\"\",\"\",IF(EXACT(Dokumentenauswertung!$B19,Dokumentenauswertung!AE19)=TRUE,Dokumentenauswertung!$C19,0))","v":""},{"$f":"IF(Dokumentenauswertung!AF$10=\"\",\"\",IF(EXACT(Dokumentenauswertung!$B19,Dokumentenauswertung!AF19)=TRUE,Dokumentenauswertung!$C19,0))","v":""},{"$f":"IF(Dokumentenauswertung!AG$10=\"\",\"\",IF(EXACT(Dokumentenauswertung!$B19,Dokumentenauswertung!AG19)=TRUE,Dokumentenauswertung!$C19,0))","v":""},{"$f":"IF(Dokumentenauswertung!AH$10=\"\",\"\",IF(EXACT(Dokumentenauswertung!$B19,Dokumentenauswertung!AH19)=TRUE,Dokumentenauswertung!$C19,0))","v":""},{"$f":"IF(Dokumentenauswertung!AI$10=\"\",\"\",IF(EXACT(Dokumentenauswertung!$B19,Dokumentenauswertung!AI19)=TRUE,Dokumentenauswertung!$C19,0))","v":""},{"$f":"IF(Dokumentenauswertung!AJ$10=\"\",\"\",IF(EXACT(Dokumentenauswertung!$B19,Dokumentenauswertung!AJ19)=TRUE,Dokumentenauswertung!$C19,0))","v":""},{"$f":"IF(Dokumentenauswertung!AK$10=\"\",\"\",IF(EXACT(Dokumentenauswertung!$B19,Dokumentenauswertung!AK19)=TRUE,Dokumentenauswertung!$C19,0))","v":""}]
[null,null,{"$f":"Dokumentenauswertung!$A20","v":"A2.b.2"},{"$f":"IF(Dokumentenauswertung!E$10=\"\",\"\",IF(EXACT(Dokumentenauswertung!$B20,Dokumentenauswertung!E20)=TRUE,Dokumentenauswertung!$C20,0))","v":""},{"$f":"IF(Dokumentenauswertung!F$10=\"\",\"\",IF(EXACT(Dokumentenauswertung!$B20,Dokumentenauswertung!F20)=TRUE,Dokumentenauswertung!$C20,0))","v":""},{"$f":"IF(Dokumentenauswertung!G$10=\"\",\"\",IF(EXACT(Dokumentenauswertung!$B20,Dokumentenauswertung!G20)=TRUE,Dokumentenauswertung!$C20,0))","v":""},{"$f":"IF(Dokumentenauswertung!H$10=\"\",\"\",IF(EXACT(Dokumentenauswertung!$B20,Dokumentenauswertung!H20)=TRUE,Dokumentenauswertung!$C20,0))","v":""},{"$f":"IF(Dokumentenauswertung!I$10=\"\",\"\",IF(EXACT(Dokumentenauswertung!$B20,Dokumentenauswertung!I20)=TRUE,Dokumentenauswertung!$C20,0))","v":""},{"$f":"IF(Dokumentenauswertung!J$10=\"\",\"\",IF(EXACT(Dokumentenauswertung!$B20,Dokumentenauswertung!J20)=TRUE,Dokumentenauswertung!$C20,0))","v":""},{"$f":"IF(Dokumentenauswertung!K$10=\"\",\"\",IF(EXACT(Dokumentenauswertung!$B20,Dokumentenauswertung!K20)=TRUE,Dokumentenauswertung!$C20,0))","v":""},{"$f":"IF(Dokumentenauswertung!L$10=\"\",\"\",IF(EXACT(Dokumentenauswertung!$B20,Dokumentenauswertung!L20)=TRUE,Dokumentenauswertung!$C20,0))","v":""},{"$f":"IF(Dokumentenauswertung!M$10=\"\",\"\",IF(EXACT(Dokumentenauswertung!$B20,Dokumentenauswertung!M20)=TRUE,Dokumentenauswertung!$C20,0))","v":""},{"$f":"IF(Dokumentenauswertung!N$10=\"\",\"\",IF(EXACT(Dokumentenauswertung!$B20,Dokumentenauswertung!N20)=TRUE,Dokumentenauswertung!$C20,0))","v":""},{"$f":"IF(Dokumentenauswertung!O$10=\"\",\"\",IF(EXACT(Dokumentenauswertung!$B20,Dokumentenauswertung!O20)=TRUE,Dokumentenauswertung!$C20,0))","v":""},{"$f":"IF(Dokumentenauswertung!P$10=\"\",\"\",IF(EXACT(Dokumentenauswertung!$B20,Dokumentenauswertung!P20)=TRUE,Dokumentenauswertung!$C20,0))","v":""},{"$f":"IF(Dokumentenauswertung!Q$10=\"\",\"\",IF(EXACT(Dokumentenauswertung!$B20,Dokumentenauswertung!Q20)=TRUE,Dokumentenauswertung!$C20,0))","v":""},{"$f":"IF(Dokumentenauswertung!R$10=\"\",\"\",IF(EXACT(Dokumentenauswertung!$B20,Dokumentenauswertung!R20)=TRUE,Dokumentenauswertung!$C20,0))","v":""},{"$f":"IF(Dokumentenauswertung!S$10=\"\",\"\",IF(EXACT(Dokumentenauswertung!$B20,Dokumentenauswertung!S20)=TRUE,Dokumentenauswertung!$C20,0))","v":""},{"$f":"IF(Dokumentenauswertung!T$10=\"\",\"\",IF(EXACT(Dokumentenauswertung!$B20,Dokumentenauswertung!T20)=TRUE,Dokumentenauswertung!$C20,0))","v":""},{"$f":"IF(Dokumentenauswertung!U$10=\"\",\"\",IF(EXACT(Dokumentenauswertung!$B20,Dokumentenauswertung!U20)=TRUE,Dokumentenauswertung!$C20,0))","v":""},{"$f":"IF(Dokumentenauswertung!V$10=\"\",\"\",IF(EXACT(Dokumentenauswertung!$B20,Dokumentenauswertung!V20)=TRUE,Dokumentenauswertung!$C20,0))","v":""},{"$f":"IF(Dokumentenauswertung!W$10=\"\",\"\",IF(EXACT(Dokumentenauswertung!$B20,Dokumentenauswertung!W20)=TRUE,Dokumentenauswertung!$C20,0))","v":""},{"$f":"IF(Dokumentenauswertung!X$10=\"\",\"\",IF(EXACT(Dokumentenauswertung!$B20,Dokumentenauswertung!X20)=TRUE,Dokumentenauswertung!$C20,0))","v":""},{"$f":"IF(Dokumentenauswertung!Y$10=\"\",\"\",IF(EXACT(Dokumentenauswertung!$B20,Dokumentenauswertung!Y20)=TRUE,Dokumentenauswertung!$C20,0))","v":""},{"$f":"IF(Dokumentenauswertung!Z$10=\"\",\"\",IF(EXACT(Dokumentenauswertung!$B20,Dokumentenauswertung!Z20)=TRUE,Dokumentenauswertung!$C20,0))","v":""},{"$f":"IF(Dokumentenauswertung!AA$10=\"\",\"\",IF(EXACT(Dokumentenauswertung!$B20,Dokumentenauswertung!AA20)=TRUE,Dokumentenauswertung!$C20,0))","v":""},{"$f":"IF(Dokumentenauswertung!AB$10=\"\",\"\",IF(EXACT(Dokumentenauswertung!$B20,Dokumentenauswertung!AB20)=TRUE,Dokumentenauswertung!$C20,0))","v":""},{"$f":"IF(Dokumentenauswertung!AC$10=\"\",\"\",IF(EXACT(Dokumentenauswertung!$B20,Dokumentenauswertung!AC20)=TRUE,Dokumentenauswertung!$C20,0))","v":""},{"$f":"IF(Dokumentenauswertung!AD$10=\"\",\"\",IF(EXACT(Dokumentenauswertung!$B20,Dokumentenauswertung!AD20)=TRUE,Dokumentenauswertung!$C20,0))","v":""},{"$f":"IF(Dokumentenauswertung!AE$10=\"\",\"\",IF(EXACT(Dokumentenauswertung!$B20,Dokumentenauswertung!AE20)=TRUE,Dokumentenauswertung!$C20,0))","v":""},{"$f":"IF(Dokumentenauswertung!AF$10=\"\",\"\",IF(EXACT(Dokumentenauswertung!$B20,Dokumentenauswertung!AF20)=TRUE,Dokumentenauswertung!$C20,0))","v":""},{"$f":"IF(Dokumentenauswertung!AG$10=\"\",\"\",IF(EXACT(Dokumentenauswertung!$B20,Dokumentenauswertung!AG20)=TRUE,Dokumentenauswertung!$C20,0))","v":""},{"$f":"IF(Dokumentenauswertung!AH$10=\"\",\"\",IF(EXACT(Dokumentenauswertung!$B20,Dokumentenauswertung!AH20)=TRUE,Dokumentenauswertung!$C20,0))","v":""},{"$f":"IF(Dokumentenauswertung!AI$10=\"\",\"\",IF(EXACT(Dokumentenauswertung!$B20,Dokumentenauswertung!AI20)=TRUE,Dokumentenauswertung!$C20,0))","v":""},{"$f":"IF(Dokumentenauswertung!AJ$10=\"\",\"\",IF(EXACT(Dokumentenauswertung!$B20,Dokumentenauswertung!AJ20)=TRUE,Dokumentenauswertung!$C20,0))","v":""},{"$f":"IF(Dokumentenauswertung!AK$10=\"\",\"\",IF(EXACT(Dokumentenauswertung!$B20,Dokumentenauswertung!AK20)=TRUE,Dokumentenauswertung!$C20,0))","v":""}]
[null,null,{"$f":"Dokumentenauswertung!$A21","v":"A3.a"},{"$f":"IF(Dokumentenauswertung!E$10=\"\",\"\",IF(EXACT(Dokumentenauswertung!$B21,Dokumentenauswertung!E21)=TRUE,Dokumentenauswertung!$C21,0))","v":""},{"$f":"IF(Dokumentenauswertung!F$10=\"\",\"\",IF(EXACT(Dokumentenauswertung!$B21,Dokumentenauswertung!F21)=TRUE,Dokumentenauswertung!$C21,0))","v":""},{"$f":"IF(Dokumentenauswertung!G$10=\"\",\"\",IF(EXACT(Dokumentenauswertung!$B21,Dokumentenauswertung!G21)=TRUE,Dokumentenauswertung!$C21,0))","v":""},{"$f":"IF(Dokumentenauswertung!H$10=\"\",\"\",IF(EXACT(Dokumentenauswertung!$B21,Dokumentenauswertung!H21)=TRUE,Dokumentenauswertung!$C21,0))","v":""},{"$f":"IF(Dokumentenauswertung!I$10=\"\",\"\",IF(EXACT(Dokumentenauswertung!$B21,Dokumentenauswertung!I21)=TRUE,Dokumentenauswertung!$C21,0))","v":""},{"$f":"IF(Dokumentenauswertung!J$10=\"\",\"\",IF(EXACT(Dokumentenauswertung!$B21,Dokumentenauswertung!J21)=TRUE,Dokumentenauswertung!$C21,0))","v":""},{"$f":"IF(Dokumentenauswertung!K$10=\"\",\"\",IF(EXACT(Dokumentenauswertung!$B21,Dokumentenauswertung!K21)=TRUE,Dokumentenauswertung!$C21,0))","v":""},{"$f":"IF(Dokumentenauswertung!L$10=\"\",\"\",IF(EXACT(Dokumentenauswertung!$B21,Dokumentenauswertung!L21)=TRUE,Dokumentenauswertung!$C21,0))","v":""},{"$f":"IF(Dokumentenauswertung!M$10=\"\",\"\",IF(EXACT(Dokumentenauswertung!$B21,Dokumentenauswertung!M21)=TRUE,Dokumentenauswertung!$C21,0))","v":""},{"$f":"IF(Dokumentenauswertung!N$10=\"\",\"\",IF(EXACT(Dokumentenauswertung!$B21,Dokumentenauswertung!N21)=TRUE,Dokumentenauswertung!$C21,0))","v":""},{"$f":"IF(Dokumentenauswertung!O$10=\"\",\"\",IF(EXACT(Dokumentenauswertung!$B21,Dokumentenauswertung!O21)=TRUE,Dokumentenauswertung!$C21,0))","v":""},{"$f":"IF(Dokumentenauswertung!P$10=\"\",\"\",IF(EXACT(Dokumentenauswertung!$B21,Dokumentenauswertung!P21)=TRUE,Dokumentenauswertung!$C21,0))","v":""},{"$f":"IF(Dokumentenauswertung!Q$10=\"\",\"\",IF(EXACT(Dokumentenauswertung!$B21,Dokumentenauswertung!Q21)=TRUE,Dokumentenauswertung!$C21,0))","v":""},{"$f":"IF(Dokumentenauswertung!R$10=\"\",\"\",IF(EXACT(Dokumentenauswertung!$B21,Dokumentenauswertung!R21)=TRUE,Dokumentenauswertung!$C21,0))","v":""},{"$f":"IF(Dokumentenauswertung!S$10=\"\",\"\",IF(EXACT(Dokumentenauswertung!$B21,Dokumentenauswertung!S21)=TRUE,Dokumentenauswertung!$C21,0))","v":""},{"$f":"IF(Dokumentenauswertung!T$10=\"\",\"\",IF(EXACT(Dokumentenauswertung!$B21,Dokumentenauswertung!T21)=TRUE,Dokumentenauswertung!$C21,0))","v":""},{"$f":"IF(Dokumentenauswertung!U$10=\"\",\"\",IF(EXACT(Dokumentenauswertung!$B21,Dokumentenauswertung!U21)=TRUE,Dokumentenauswertung!$C21,0))","v":""},{"$f":"IF(Dokumentenauswertung!V$10=\"\",\"\",IF(EXACT(Dokumentenauswertung!$B21,Dokumentenauswertung!V21)=TRUE,Dokumentenauswertung!$C21,0))","v":""},{"$f":"IF(Dokumentenauswertung!W$10=\"\",\"\",IF(EXACT(Dokumentenauswertung!$B21,Dokumentenauswertung!W21)=TRUE,Dokumentenauswertung!$C21,0))","v":""},{"$f":"IF(Dokumentenauswertung!X$10=\"\",\"\",IF(EXACT(Dokumentenauswertung!$B21,Dokumentenauswertung!X21)=TRUE,Dokumentenauswertung!$C21,0))","v":""},{"$f":"IF(Dokumentenauswertung!Y$10=\"\",\"\",IF(EXACT(Dokumentenauswertung!$B21,Dokumentenauswertung!Y21)=TRUE,Dokumentenauswertung!$C21,0))","v":""},{"$f":"IF(Dokumentenauswertung!Z$10=\"\",\"\",IF(EXACT(Dokumentenauswertung!$B21,Dokumentenauswertung!Z21)=TRUE,Dokumentenauswertung!$C21,0))","v":""},{"$f":"IF(Dokumentenauswertung!AA$10=\"\",\"\",IF(EXACT(Dokumentenauswertung!$B21,Dokumentenauswertung!AA21)=TRUE,Dokumentenauswertung!$C21,0))","v":""},{"$f":"IF(Dokumentenauswertung!AB$10=\"\",\"\",IF(EXACT(Dokumentenauswertung!$B21,Dokumentenauswertung!AB21)=TRUE,Dokumentenauswertung!$C21,0))","v":""},{"$f":"IF(Dokumentenauswertung!AC$10=\"\",\"\",IF(EXACT(Dokumentenauswertung!$B21,Dokumentenauswertung!AC21)=TRUE,Dokumentenauswertung!$C21,0))","v":""},{"$f":"IF(Dokumentenauswertung!AD$10=\"\",\"\",IF(EXACT(Dokumentenauswertung!$B21,Dokumentenauswertung!AD21)=TRUE,Dokumentenauswertung!$C21,0))","v":""},{"$f":"IF(Dokumentenauswertung!AE$10=\"\",\"\",IF(EXACT(Dokumentenauswertung!$B21,Dokumentenauswertung!AE21)=TRUE,Dokumentenauswertung!$C21,0))","v":""},{"$f":"IF(Dokumentenauswertung!AF$10=\"\",\"\",IF(EXACT(Dokumentenauswertung!$B21,Dokumentenauswertung!AF21)=TRUE,Dokumentenauswertung!$C21,0))","v":""},{"$f":"IF(Dokumentenauswertung!AG$10=\"\",\"\",IF(EXACT(Dokumentenauswertung!$B21,Dokumentenauswertung!AG21)=TRUE,Dokumentenauswertung!$C21,0))","v":""},{"$f":"IF(Dokumentenauswertung!AH$10=\"\",\"\",IF(EXACT(Dokumentenauswertung!$B21,Dokumentenauswertung!AH21)=TRUE,Dokumentenauswertung!$C21,0))","v":""},{"$f":"IF(Dokumentenauswertung!AI$10=\"\",\"\",IF(EXACT(Dokumentenauswertung!$B21,Dokumentenauswertung!AI21)=TRUE,Dokumentenauswertung!$C21,0))","v":""},{"$f":"IF(Dokumentenauswertung!AJ$10=\"\",\"\",IF(EXACT(Dokumentenauswertung!$B21,Dokumentenauswertung!AJ21)=TRUE,Dokumentenauswertung!$C21,0))","v":""},{"$f":"IF(Dokumentenauswertung!AK$10=\"\",\"\",IF(EXACT(Dokumentenauswertung!$B21,Dokumentenauswertung!AK21)=TRUE,Dokumentenauswertung!$C21,0))","v":""}]
[null,null,{"$f":"Dokumentenauswertung!$A22","v":"A3.b"},{"$f":"IF(Dokumentenauswertung!E$10=\"\",\"\",IF(EXACT(Dokumentenauswertung!$B22,Dokumentenauswertung!E22)=TRUE,Dokumentenauswertung!$C22,0))","v":""},{"$f":"IF(Dokumentenauswertung!F$10=\"\",\"\",IF(EXACT(Dokumentenauswertung!$B22,Dokumentenauswertung!F22)=TRUE,Dokumentenauswertung!$C22,0))","v":""},{"$f":"IF(Dokumentenauswertung!G$10=\"\",\"\",IF(EXACT(Dokumentenauswertung!$B22,Dokumentenauswertung!G22)=TRUE,Dokumentenauswertung!$C22,0))","v":""},{"$f":"IF(Dokumentenauswertung!H$10=\"\",\"\",IF(EXACT(Dokumentenauswertung!$B22,Dokumentenauswertung!H22)=TRUE,Dokumentenauswertung!$C22,0))","v":""},{"$f":"IF(Dokumentenauswertung!I$10=\"\",\"\",IF(EXACT(Dokumentenauswertung!$B22,Dokumentenauswertung!I22)=TRUE,Dokumentenauswertung!$C22,0))","v":""},{"$f":"IF(Dokumentenauswertung!J$10=\"\",\"\",IF(EXACT(Dokumentenauswertung!$B22,Dokumentenauswertung!J22)=TRUE,Dokumentenauswertung!$C22,0))","v":""},{"$f":"IF(Dokumentenauswertung!K$10=\"\",\"\",IF(EXACT(Dokumentenauswertung!$B22,Dokumentenauswertung!K22)=TRUE,Dokumentenauswertung!$C22,0))","v":""},{"$f":"IF(Dokumentenauswertung!L$10=\"\",\"\",IF(EXACT(Dokumentenauswertung!$B22,Dokumentenauswertung!L22)=TRUE,Dokumentenauswertung!$C22,0))","v":""},{"$f":"IF(Dokumentenauswertung!M$10=\"\",\"\",IF(EXACT(Dokumentenauswertung!$B22,Dokumentenauswertung!M22)=TRUE,Dokumentenauswertung!$C22,0))","v":""},{"$f":"IF(Dokumentenauswertung!N$10=\"\",\"\",IF(EXACT(Dokumentenauswertung!$B22,Dokumentenauswertung!N22)=TRUE,Dokumentenauswertung!$C22,0))","v":""},{"$f":"IF(Dokumentenauswertung!O$10=\"\",\"\",IF(EXACT(Dokumentenauswertung!$B22,Dokumentenauswertung!O22)=TRUE,Dokumentenauswertung!$C22,0))","v":""},{"$f":"IF(Dokumentenauswertung!P$10=\"\",\"\",IF(EXACT(Dokumentenauswertung!$B22,Dokumentenauswertung!P22)=TRUE,Dokumentenauswertung!$C22,0))","v":""},{"$f":"IF(Dokumentenauswertung!Q$10=\"\",\"\",IF(EXACT(Dokumentenauswertung!$B22,Dokumentenauswertung!Q22)=TRUE,Dokumentenauswertung!$C22,0))","v":""},{"$f":"IF(Dokumentenauswertung!R$10=\"\",\"\",IF(EXACT(Dokumentenauswertung!$B22,Dokumentenauswertung!R22)=TRUE,Dokumentenauswertung!$C22,0))","v":""},{"$f":"IF(Dokumentenauswertung!S$10=\"\",\"\",IF(EXACT(Dokumentenauswertung!$B22,Dokumentenauswertung!S22)=TRUE,Dokumentenauswertung!$C22,0))","v":""},{"$f":"IF(Dokumentenauswertung!T$10=\"\",\"\",IF(EXACT(Dokumentenauswertung!$B22,Dokumentenauswertung!T22)=TRUE,Dokumentenauswertung!$C22,0))","v":""},{"$f":"IF(Dokumentenauswertung!U$10=\"\",\"\",IF(EXACT(Dokumentenauswertung!$B22,Dokumentenauswertung!U22)=TRUE,Dokumentenauswertung!$C22,0))","v":""},{"$f":"IF(Dokumentenauswertung!V$10=\"\",\"\",IF(EXACT(Dokumentenauswertung!$B22,Dokumentenauswertung!V22)=TRUE,Dokumentenauswertung!$C22,0))","v":""},{"$f":"IF(Dokumentenauswertung!W$10=\"\",\"\",IF(EXACT(Dokumentenauswertung!$B22,Dokumentenauswertung!W22)=TRUE,Dokumentenauswertung!$C22,0))","v":""},{"$f":"IF(Dokumentenauswertung!X$10=\"\",\"\",IF(EXACT(Dokumentenauswertung!$B22,Dokumentenauswertung!X22)=TRUE,Dokumentenauswertung!$C22,0))","v":""},{"$f":"IF(Dokumentenauswertung!Y$10=\"\",\"\",IF(EXACT(Dokumentenauswertung!$B22,Dokumentenauswertung!Y22)=TRUE,Dokumentenauswertung!$C22,0))","v":""},{"$f":"IF(Dokumentenauswertung!Z$10=\"\",\"\",IF(EXACT(Dokumentenauswertung!$B22,Dokumentenauswertung!Z22)=TRUE,Dokumentenauswertung!$C22,0))","v":""},{"$f":"IF(Dokumentenauswertung!AA$10=\"\",\"\",IF(EXACT(Dokumentenauswertung!$B22,Dokumentenauswertung!AA22)=TRUE,Dokumentenauswertung!$C22,0))","v":""},{"$f":"IF(Dokumentenauswertung!AB$10=\"\",\"\",IF(EXACT(Dokumentenauswertung!$B22,Dokumentenauswertung!AB22)=TRUE,Dokumentenauswertung!$C22,0))","v":""},{"$f":"IF(Dokumentenauswertung!AC$10=\"\",\"\",IF(EXACT(Dokumentenauswertung!$B22,Dokumentenauswertung!AC22)=TRUE,Dokumentenauswertung!$C22,0))","v":""},{"$f":"IF(Dokumentenauswertung!AD$10=\"\",\"\",IF(EXACT(Dokumentenauswertung!$B22,Dokumentenauswertung!AD22)=TRUE,Dokumentenauswertung!$C22,0))","v":""},{"$f":"IF(Dokumentenauswertung!AE$10=\"\",\"\",IF(EXACT(Dokumentenauswertung!$B22,Dokumentenauswertung!AE22)=TRUE,Dokumentenauswertung!$C22,0))","v":""},{"$f":"IF(Dokumentenauswertung!AF$10=\"\",\"\",IF(EXACT(Dokumentenauswertung!$B22,Dokumentenauswertung!AF22)=TRUE,Dokumentenauswertung!$C22,0))","v":""},{"$f":"IF(Dokumentenauswertung!AG$10=\"\",\"\",IF(EXACT(Dokumentenauswertung!$B22,Dokumentenauswertung!AG22)=TRUE,Dokumentenauswertung!$C22,0))","v":""},{"$f":"IF(Dokumentenauswertung!AH$10=\"\",\"\",IF(EXACT(Dokumentenauswertung!$B22,Dokumentenauswertung!AH22)=TRUE,Dokumentenauswertung!$C22,0))","v":""},{"$f":"IF(Dokumentenauswertung!AI$10=\"\",\"\",IF(EXACT(Dokumentenauswertung!$B22,Dokumentenauswertung!AI22)=TRUE,Dokumentenauswertung!$C22,0))","v":""},{"$f":"IF(Dokumentenauswertung!AJ$10=\"\",\"\",IF(EXACT(Dokumentenauswertung!$B22,Dokumentenauswertung!AJ22)=TRUE,Dokumentenauswertung!$C22,0))","v":""},{"$f":"IF(Dokumentenauswertung!AK$10=\"\",\"\",IF(EXACT(Dokumentenauswertung!$B22,Dokumentenauswertung!AK22)=TRUE,Dokumentenauswertung!$C22,0))","v":""}]
[null,null,{"$f":"Dokumentenauswertung!$A23","v":"A3.c"},{"$f":"IF(Dokumentenauswertung!E$10=\"\",\"\",IF(EXACT(Dokumentenauswertung!$B23,Dokumentenauswertung!E23)=TRUE,Dokumentenauswertung!$C23,0))","v":""},{"$f":"IF(Dokumentenauswertung!F$10=\"\",\"\",IF(EXACT(Dokumentenauswertung!$B23,Dokumentenauswertung!F23)=TRUE,Dokumentenauswertung!$C23,0))","v":""},{"$f":"IF(Dokumentenauswertung!G$10=\"\",\"\",IF(EXACT(Dokumentenauswertung!$B23,Dokumentenauswertung!G23)=TRUE,Dokumentenauswertung!$C23,0))","v":""},{"$f":"IF(Dokumentenauswertung!H$10=\"\",\"\",IF(EXACT(Dokumentenauswertung!$B23,Dokumentenauswertung!H23)=TRUE,Dokumentenauswertung!$C23,0))","v":""},{"$f":"IF(Dokumentenauswertung!I$10=\"\",\"\",IF(EXACT(Dokumentenauswertung!$B23,Dokumentenauswertung!I23)=TRUE,Dokumentenauswertung!$C23,0))","v":""},{"$f":"IF(Dokumentenauswertung!J$10=\"\",\"\",IF(EXACT(Dokumentenauswertung!$B23,Dokumentenauswertung!J23)=TRUE,Dokumentenauswertung!$C23,0))","v":""},{"$f":"IF(Dokumentenauswertung!K$10=\"\",\"\",IF(EXACT(Dokumentenauswertung!$B23,Dokumentenauswertung!K23)=TRUE,Dokumentenauswertung!$C23,0))","v":""},{"$f":"IF(Dokumentenauswertung!L$10=\"\",\"\",IF(EXACT(Dokumentenauswertung!$B23,Dokumentenauswertung!L23)=TRUE,Dokumentenauswertung!$C23,0))","v":""},{"$f":"IF(Dokumentenauswertung!M$10=\"\",\"\",IF(EXACT(Dokumentenauswertung!$B23,Dokumentenauswertung!M23)=TRUE,Dokumentenauswertung!$C23,0))","v":""},{"$f":"IF(Dokumentenauswertung!N$10=\"\",\"\",IF(EXACT(Dokumentenauswertung!$B23,Dokumentenauswertung!N23)=TRUE,Dokumentenauswertung!$C23,0))","v":""},{"$f":"IF(Dokumentenauswertung!O$10=\"\",\"\",IF(EXACT(Dokumentenauswertung!$B23,Dokumentenauswertung!O23)=TRUE,Dokumentenauswertung!$C23,0))","v":""},{"$f":"IF(Dokumentenauswertung!P$10=\"\",\"\",IF(EXACT(Dokumentenauswertung!$B23,Dokumentenauswertung!P23)=TRUE,Dokumentenauswertung!$C23,0))","v":""},{"$f":"IF(Dokumentenauswertung!Q$10=\"\",\"\",IF(EXACT(Dokumentenauswertung!$B23,Dokumentenauswertung!Q23)=TRUE,Dokumentenauswertung!$C23,0))","v":""},{"$f":"IF(Dokumentenauswertung!R$10=\"\",\"\",IF(EXACT(Dokumentenauswertung!$B23,Dokumentenauswertung!R23)=TRUE,Dokumentenauswertung!$C23,0))","v":""},{"$f":"IF(Dokumentenauswertung!S$10=\"\",\"\",IF(EXACT(Dokumentenauswertung!$B23,Dokumentenauswertung!S23)=TRUE,Dokumentenauswertung!$C23,0))","v":""},{"$f":"IF(Dokumentenauswertung!T$10=\"\",\"\",IF(EXACT(Dokumentenauswertung!$B23,Dokumentenauswertung!T23)=TRUE,Dokumentenauswertung!$C23,0))","v":""},{"$f":"IF(Dokumentenauswertung!U$10=\"\",\"\",IF(EXACT(Dokumentenauswertung!$B23,Dokumentenauswertung!U23)=TRUE,Dokumentenauswertung!$C23,0))","v":""},{"$f":"IF(Dokumentenauswertung!V$10=\"\",\"\",IF(EXACT(Dokumentenauswertung!$B23,Dokumentenauswertung!V23)=TRUE,Dokumentenauswertung!$C23,0))","v":""},{"$f":"IF(Dokumentenauswertung!W$10=\"\",\"\",IF(EXACT(Dokumentenauswertung!$B23,Dokumentenauswertung!W23)=TRUE,Dokumentenauswertung!$C23,0))","v":""},{"$f":"IF(Dokumentenauswertung!X$10=\"\",\"\",IF(EXACT(Dokumentenauswertung!$B23,Dokumentenauswertung!X23)=TRUE,Dokumentenauswertung!$C23,0))","v":""},{"$f":"IF(Dokumentenauswertung!Y$10=\"\",\"\",IF(EXACT(Dokumentenauswertung!$B23,Dokumentenauswertung!Y23)=TRUE,Dokumentenauswertung!$C23,0))","v":""},{"$f":"IF(Dokumentenauswertung!Z$10=\"\",\"\",IF(EXACT(Dokumentenauswertung!$B23,Dokumentenauswertung!Z23)=TRUE,Dokumentenauswertung!$C23,0))","v":""},{"$f":"IF(Dokumentenauswertung!AA$10=\"\",\"\",IF(EXACT(Dokumentenauswertung!$B23,Dokumentenauswertung!AA23)=TRUE,Dokumentenauswertung!$C23,0))","v":""},{"$f":"IF(Dokumentenauswertung!AB$10=\"\",\"\",IF(EXACT(Dokumentenauswertung!$B23,Dokumentenauswertung!AB23)=TRUE,Dokumentenauswertung!$C23,0))","v":""},{"$f":"IF(Dokumentenauswertung!AC$10=\"\",\"\",IF(EXACT(Dokumentenauswertung!$B23,Dokumentenauswertung!AC23)=TRUE,Dokumentenauswertung!$C23,0))","v":""},{"$f":"IF(Dokumentenauswertung!AD$10=\"\",\"\",IF(EXACT(Dokumentenauswertung!$B23,Dokumentenauswertung!AD23)=TRUE,Dokumentenauswertung!$C23,0))","v":""},{"$f":"IF(Dokumentenauswertung!AE$10=\"\",\"\",IF(EXACT(Dokumentenauswertung!$B23,Dokumentenauswertung!AE23)=TRUE,Dokumentenauswertung!$C23,0))","v":""},{"$f":"IF(Dokumentenauswertung!AF$10=\"\",\"\",IF(EXACT(Dokumentenauswertung!$B23,Dokumentenauswertung!AF23)=TRUE,Dokumentenauswertung!$C23,0))","v":""},{"$f":"IF(Dokumentenauswertung!AG$10=\"\",\"\",IF(EXACT(Dokumentenauswertung!$B23,Dokumentenauswertung!AG23)=TRUE,Dokumentenauswertung!$C23,0))","v":""},{"$f":"IF(Dokumentenauswertung!AH$10=\"\",\"\",IF(EXACT(Dokumentenauswertung!$B23,Dokumentenauswertung!AH23)=TRUE,Dokumentenauswertung!$C23,0))","v":""},{"$f":"IF(Dokumentenauswertung!AI$10=\"\",\"\",IF(EXACT(Dokumentenauswertung!$B23,Dokumentenauswertung!AI23)=TRUE,Dokumentenauswertung!$C23,0))","v":""},{"$f":"IF(Dokumentenauswertung!AJ$10=\"\",\"\",IF(EXACT(Dokumentenauswertung!$B23,Dokumentenauswertung!AJ23)=TRUE,Dokumentenauswertung!$C23,0))","v":""},{"$f":"IF(Dokumentenauswertung!AK$10=\"\",\"\",IF(EXACT(Dokumentenauswertung!$B23,Dokumentenauswertung!AK23)=TRUE,Dokumentenauswertung!$C23,0))","v":""}]
[null,null,{"$f":"Dokumentenauswertung!$A24","v":"A3.d"},{"$f":"IF(Dokumentenauswertung!E$10=\"\",\"\",IF(EXACT(Dokumentenauswertung!$B24,Dokumentenauswertung!E24)=TRUE,Dokumentenauswertung!$C24,0))","v":""},{"$f":"IF(Dokumentenauswertung!F$10=\"\",\"\",IF(EXACT(Dokumentenauswertung!$B24,Dokumentenauswertung!F24)=TRUE,Dokumentenauswertung!$C24,0))","v":""},{"$f":"IF(Dokumentenauswertung!G$10=\"\",\"\",IF(EXACT(Dokumentenauswertung!$B24,Dokumentenauswertung!G24)=TRUE,Dokumentenauswertung!$C24,0))","v":""},{"$f":"IF(Dokumentenauswertung!H$10=\"\",\"\",IF(EXACT(Dokumentenauswertung!$B24,Dokumentenauswertung!H24)=TRUE,Dokumentenauswertung!$C24,0))","v":""},{"$f":"IF(Dokumentenauswertung!I$10=\"\",\"\",IF(EXACT(Dokumentenauswertung!$B24,Dokumentenauswertung!I24)=TRUE,Dokumentenauswertung!$C24,0))","v":""},{"$f":"IF(Dokumentenauswertung!J$10=\"\",\"\",IF(EXACT(Dokumentenauswertung!$B24,Dokumentenauswertung!J24)=TRUE,Dokumentenauswertung!$C24,0))","v":""},{"$f":"IF(Dokumentenauswertung!K$10=\"\",\"\",IF(EXACT(Dokumentenauswertung!$B24,Dokumentenauswertung!K24)=TRUE,Dokumentenauswertung!$C24,0))","v":""},{"$f":"IF(Dokumentenauswertung!L$10=\"\",\"\",IF(EXACT(Dokumentenauswertung!$B24,Dokumentenauswertung!L24)=TRUE,Dokumentenauswertung!$C24,0))","v":""},{"$f":"IF(Dokumentenauswertung!M$10=\"\",\"\",IF(EXACT(Dokumentenauswertung!$B24,Dokumentenauswertung!M24)=TRUE,Dokumentenauswertung!$C24,0))","v":""},{"$f":"IF(Dokumentenauswertung!N$10=\"\",\"\",IF(EXACT(Dokumentenauswertung!$B24,Dokumentenauswertung!N24)=TRUE,Dokumentenauswertung!$C24,0))","v":""},{"$f":"IF(Dokumentenauswertung!O$10=\"\",\"\",IF(EXACT(Dokumentenauswertung!$B24,Dokumentenauswertung!O24)=TRUE,Dokumentenauswertung!$C24,0))","v":""},{"$f":"IF(Dokumentenauswertung!P$10=\"\",\"\",IF(EXACT(Dokumentenauswertung!$B24,Dokumentenauswertung!P24)=TRUE,Dokumentenauswertung!$C24,0))","v":""},{"$f":"IF(Dokumentenauswertung!Q$10=\"\",\"\",IF(EXACT(Dokumentenauswertung!$B24,Dokumentenauswertung!Q24)=TRUE,Dokumentenauswertung!$C24,0))","v":""},{"$f":"IF(Dokumentenauswertung!R$10=\"\",\"\",IF(EXACT(Dokumentenauswertung!$B24,Dokumentenauswertung!R24)=TRUE,Dokumentenauswertung!$C24,0))","v":""},{"$f":"IF(Dokumentenauswertung!S$10=\"\",\"\",IF(EXACT(Dokumentenauswertung!$B24,Dokumentenauswertung!S24)=TRUE,Dokumentenauswertung!$C24,0))","v":""},{"$f":"IF(Dokumentenauswertung!T$10=\"\",\"\",IF(EXACT(Dokumentenauswertung!$B24,Dokumentenauswertung!T24)=TRUE,Dokumentenauswertung!$C24,0))","v":""},{"$f":"IF(Dokumentenauswertung!U$10=\"\",\"\",IF(EXACT(Dokumentenauswertung!$B24,Dokumentenauswertung!U24)=TRUE,Dokumentenauswertung!$C24,0))","v":""},{"$f":"IF(Dokumentenauswertung!V$10=\"\",\"\",IF(EXACT(Dokumentenauswertung!$B24,Dokumentenauswertung!V24)=TRUE,Dokumentenauswertung!$C24,0))","v":""},{"$f":"IF(Dokumentenauswertung!W$10=\"\",\"\",IF(EXACT(Dokumentenauswertung!$B24,Dokumentenauswertung!W24)=TRUE,Dokumentenauswertung!$C24,0))","v":""},{"$f":"IF(Dokumentenauswertung!X$10=\"\",\"\",IF(EXACT(Dokumentenauswertung!$B24,Dokumentenauswertung!X24)=TRUE,Dokumentenauswertung!$C24,0))","v":""},{"$f":"IF(Dokumentenauswertung!Y$10=\"\",\"\",IF(EXACT(Dokumentenauswertung!$B24,Dokumentenauswertung!Y24)=TRUE,Dokumentenauswertung!$C24,0))","v":""},{"$f":"IF(Dokumentenauswertung!Z$10=\"\",\"\",IF(EXACT(Dokumentenauswertung!$B24,Dokumentenauswertung!Z24)=TRUE,Dokumentenauswertung!$C24,0))","v":""},{"$f":"IF(Dokumentenauswertung!AA$10=\"\",\"\",IF(EXACT(Dokumentenauswertung!$B24,Dokumentenauswertung!AA24)=TRUE,Dokumentenauswertung!$C24,0))","v":""},{"$f":"IF(Dokumentenauswertung!AB$10=\"\",\"\",IF(EXACT(Dokumentenauswertung!$B24,Dokumentenauswertung!AB24)=TRUE,Dokumentenauswertung!$C24,0))","v":""},{"$f":"IF(Dokumentenauswertung!AC$10=\"\",\"\",IF(EXACT(Dokumentenauswertung!$B24,Dokumentenauswertung!AC24)=TRUE,Dokumentenauswertung!$C24,0))","v":""},{"$f":"IF(Dokumentenauswertung!AD$10=\"\",\"\",IF(EXACT(Dokumentenauswertung!$B24,Dokumentenauswertung!AD24)=TRUE,Dokumentenauswertung!$C24,0))","v":""},{"$f":"IF(Dokumentenauswertung!AE$10=\"\",\"\",IF(EXACT(Dokumentenauswertung!$B24,Dokumentenauswertung!AE24)=TRUE,Dokumentenauswertung!$C24,0))","v":""},{"$f":"IF(Dokumentenauswertung!AF$10=\"\",\"\",IF(EXACT(Dokumentenauswertung!$B24,Dokumentenauswertung!AF24)=TRUE,Dokumentenauswertung!$C24,0))","v":""},{"$f":"IF(Dokumentenauswertung!AG$10=\"\",\"\",IF(EXACT(Dokumentenauswertung!$B24,Dokumentenauswertung!AG24)=TRUE,Dokumentenauswertung!$C24,0))","v":""},{"$f":"IF(Dokumentenauswertung!AH$10=\"\",\"\",IF(EXACT(Dokumentenauswertung!$B24,Dokumentenauswertung!AH24)=TRUE,Dokumentenauswertung!$C24,0))","v":""},{"$f":"IF(Dokumentenauswertung!AI$10=\"\",\"\",IF(EXACT(Dokumentenauswertung!$B24,Dokumentenauswertung!AI24)=TRUE,Dokumentenauswertung!$C24,0))","v":""},{"$f":"IF(Dokumentenauswertung!AJ$10=\"\",\"\",IF(EXACT(Dokumentenauswertung!$B24,Dokumentenauswertung!AJ24)=TRUE,Dokumentenauswertung!$C24,0))","v":""},{"$f":"IF(Dokumentenauswertung!AK$10=\"\",\"\",IF(EXACT(Dokumentenauswertung!$B24,Dokumentenauswertung!AK24)=TRUE,Dokumentenauswertung!$C24,0))","v":""}]
[null,null,{"$f":"Dokumentenauswertung!$A25","v":"A3.g"},{"$f":"IF(Dokumentenauswertung!E$10=\"\",\"\",IF(EXACT(Dokumentenauswertung!$B25,Dokumentenauswertung!E25)=TRUE,Dokumentenauswertung!$C25,0))","v":""},{"$f":"IF(Dokumentenauswertung!F$10=\"\",\"\",IF(EXACT(Dokumentenauswertung!$B25,Dokumentenauswertung!F25)=TRUE,Dokumentenauswertung!$C25,0))","v":""},{"$f":"IF(Dokumentenauswertung!G$10=\"\",\"\",IF(EXACT(Dokumentenauswertung!$B25,Dokumentenauswertung!G25)=TRUE,Dokumentenauswertung!$C25,0))","v":""},{"$f":"IF(Dokumentenauswertung!H$10=\"\",\"\",IF(EXACT(Dokumentenauswertung!$B25,Dokumentenauswertung!H25)=TRUE,Dokumentenauswertung!$C25,0))","v":""},{"$f":"IF(Dokumentenauswertung!I$10=\"\",\"\",IF(EXACT(Dokumentenauswertung!$B25,Dokumentenauswertung!I25)=TRUE,Dokumentenauswertung!$C25,0))","v":""},{"$f":"IF(Dokumentenauswertung!J$10=\"\",\"\",IF(EXACT(Dokumentenauswertung!$B25,Dokumentenauswertung!J25)=TRUE,Dokumentenauswertung!$C25,0))","v":""},{"$f":"IF(Dokumentenauswertung!K$10=\"\",\"\",IF(EXACT(Dokumentenauswertung!$B25,Dokumentenauswertung!K25)=TRUE,Dokumentenauswertung!$C25,0))","v":""},{"$f":"IF(Dokumentenauswertung!L$10=\"\",\"\",IF(EXACT(Dokumentenauswertung!$B25,Dokumentenauswertung!L25)=TRUE,Dokumentenauswertung!$C25,0))","v":""},{"$f":"IF(Dokumentenauswertung!M$10=\"\",\"\",IF(EXACT(Dokumentenauswertung!$B25,Dokumentenauswertung!M25)=TRUE,Dokumentenauswertung!$C25,0))","v":""},{"$f":"IF(Dokumentenauswertung!N$10=\"\",\"\",IF(EXACT(Dokumentenauswertung!$B25,Dokumentenauswertung!N25)=TRUE,Dokumentenauswertung!$C25,0))","v":""},{"$f":"IF(Dokumentenauswertung!O$10=\"\",\"\",IF(EXACT(Dokumentenauswertung!$B25,Dokumentenauswertung!O25)=TRUE,Dokumentenauswertung!$C25,0))","v":""},{"$f":"IF(Dokumentenauswertung!P$10=\"\",\"\",IF(EXACT(Dokumentenauswertung!$B25,Dokumentenauswertung!P25)=TRUE,Dokumentenauswertung!$C25,0))","v":""},{"$f":"IF(Dokumentenauswertung!Q$10=\"\",\"\",IF(EXACT(Dokumentenauswertung!$B25,Dokumentenauswertung!Q25)=TRUE,Dokumentenauswertung!$C25,0))","v":""},{"$f":"IF(Dokumentenauswertung!R$10=\"\",\"\",IF(EXACT(Dokumentenauswertung!$B25,Dokumentenauswertung!R25)=TRUE,Dokumentenauswertung!$C25,0))","v":""},{"$f":"IF(Dokumentenauswertung!S$10=\"\",\"\",IF(EXACT(Dokumentenauswertung!$B25,Dokumentenauswertung!S25)=TRUE,Dokumentenauswertung!$C25,0))","v":""},{"$f":"IF(Dokumentenauswertung!T$10=\"\",\"\",IF(EXACT(Dokumentenauswertung!$B25,Dokumentenauswertung!T25)=TRUE,Dokumentenauswertung!$C25,0))","v":""},{"$f":"IF(Dokumentenauswertung!U$10=\"\",\"\",IF(EXACT(Dokumentenauswertung!$B25,Dokumentenauswertung!U25)=TRUE,Dokumentenauswertung!$C25,0))","v":""},{"$f":"IF(Dokumentenauswertung!V$10=\"\",\"\",IF(EXACT(Dokumentenauswertung!$B25,Dokumentenauswertung!V25)=TRUE,Dokumentenauswertung!$C25,0))","v":""},{"$f":"IF(Dokumentenauswertung!W$10=\"\",\"\",IF(EXACT(Dokumentenauswertung!$B25,Dokumentenauswertung!W25)=TRUE,Dokumentenauswertung!$C25,0))","v":""},{"$f":"IF(Dokumentenauswertung!X$10=\"\",\"\",IF(EXACT(Dokumentenauswertung!$B25,Dokumentenauswertung!X25)=TRUE,Dokumentenauswertung!$C25,0))","v":""},{"$f":"IF(Dokumentenauswertung!Y$10=\"\",\"\",IF(EXACT(Dokumentenauswertung!$B25,Dokumentenauswertung!Y25)=TRUE,Dokumentenauswertung!$C25,0))","v":""},{"$f":"IF(Dokumentenauswertung!Z$10=\"\",\"\",IF(EXACT(Dokumentenauswertung!$B25,Dokumentenauswertung!Z25)=TRUE,Dokumentenauswertung!$C25,0))","v":""},{"$f":"IF(Dokumentenauswertung!AA$10=\"\",\"\",IF(EXACT(Dokumentenauswertung!$B25,Dokumentenauswertung!AA25)=TRUE,Dokumentenauswertung!$C25,0))","v":""},{"$f":"IF(Dokumentenauswertung!AB$10=\"\",\"\",IF(EXACT(Dokumentenauswertung!$B25,Dokumentenauswertung!AB25)=TRUE,Dokumentenauswertung!$C25,0))","v":""},{"$f":"IF(Dokumentenauswertung!AC$10=\"\",\"\",IF(EXACT(Dokumentenauswertung!$B25,Dokumentenauswertung!AC25)=TRUE,Dokumentenauswertung!$C25,0))","v":""},{"$f":"IF(Dokumentenauswertung!AD$10=\"\",\"\",IF(EXACT(Dokumentenauswertung!$B25,Dokumentenauswertung!AD25)=TRUE,Dokumentenauswertung!$C25,0))","v":""},{"$f":"IF(Dokumentenauswertung!AE$10=\"\",\"\",IF(EXACT(Dokumentenauswertung!$B25,Dokumentenauswertung!AE25)=TRUE,Dokumentenauswertung!$C25,0))","v":""},{"$f":"IF(Dokumentenauswertung!AF$10=\"\",\"\",IF(EXACT(Dokumentenauswertung!$B25,Dokumentenauswertung!AF25)=TRUE,Dokumentenauswertung!$C25,0))","v":""},{"$f":"IF(Dokumentenauswertung!AG$10=\"\",\"\",IF(EXACT(Dokumentenauswertung!$B25,Dokumentenauswertung!AG25)=TRUE,Dokumentenauswertung!$C25,0))","v":""},{"$f":"IF(Dokumentenauswertung!AH$10=\"\",\"\",IF(EXACT(Dokumentenauswertung!$B25,Dokumentenauswertung!AH25)=TRUE,Dokumentenauswertung!$C25,0))","v":""},{"$f":"IF(Dokumentenauswertung!AI$10=\"\",\"\",IF(EXACT(Dokumentenauswertung!$B25,Dokumentenauswertung!AI25)=TRUE,Dokumentenauswertung!$C25,0))","v":""},{"$f":"IF(Dokumentenauswertung!AJ$10=\"\",\"\",IF(EXACT(Dokumentenauswertung!$B25,Dokumentenauswertung!AJ25)=TRUE,Dokumentenauswertung!$C25,0))","v":""},{"$f":"IF(Dokumentenauswertung!AK$10=\"\",\"\",IF(EXACT(Dokumentenauswertung!$B25,Dokumentenauswertung!AK25)=TRUE,Dokumentenauswertung!$C25,0))","v":""}]
[null,null,{"$f":"Dokumentenauswertung!$A26","v":"A3.h"},{"$f":"IF(Dokumentenauswertung!E$10=\"\",\"\",IF(EXACT(Dokumentenauswertung!$B26,Dokumentenauswertung!E26)=TRUE,Dokumentenauswertung!$C26,0))","v":""},{"$f":"IF(Dokumentenauswertung!F$10=\"\",\"\",IF(EXACT(Dokumentenauswertung!$B26,Dokumentenauswertung!F26)=TRUE,Dokumentenauswertung!$C26,0))","v":""},{"$f":"IF(Dokumentenauswertung!G$10=\"\",\"\",IF(EXACT(Dokumentenauswertung!$B26,Dokumentenauswertung!G26)=TRUE,Dokumentenauswertung!$C26,0))","v":""},{"$f":"IF(Dokumentenauswertung!H$10=\"\",\"\",IF(EXACT(Dokumentenauswertung!$B26,Dokumentenauswertung!H26)=TRUE,Dokumentenauswertung!$C26,0))","v":""},{"$f":"IF(Dokumentenauswertung!I$10=\"\",\"\",IF(EXACT(Dokumentenauswertung!$B26,Dokumentenauswertung!I26)=TRUE,Dokumentenauswertung!$C26,0))","v":""},{"$f":"IF(Dokumentenauswertung!J$10=\"\",\"\",IF(EXACT(Dokumentenauswertung!$B26,Dokumentenauswertung!J26)=TRUE,Dokumentenauswertung!$C26,0))","v":""},{"$f":"IF(Dokumentenauswertung!K$10=\"\",\"\",IF(EXACT(Dokumentenauswertung!$B26,Dokumentenauswertung!K26)=TRUE,Dokumentenauswertung!$C26,0))","v":""},{"$f":"IF(Dokumentenauswertung!L$10=\"\",\"\",IF(EXACT(Dokumentenauswertung!$B26,Dokumentenauswertung!L26)=TRUE,Dokumentenauswertung!$C26,0))","v":""},{"$f":"IF(Dokumentenauswertung!M$10=\"\",\"\",IF(EXACT(Dokumentenauswertung!$B26,Dokumentenauswertung!M26)=TRUE,Dokumentenauswertung!$C26,0))","v":""},{"$f":"IF(Dokumentenauswertung!N$10=\"\",\"\",IF(EXACT(Dokumentenauswertung!$B26,Dokumentenauswertung!N26)=TRUE,Dokumentenauswertung!$C26,0))","v":""},{"$f":"IF(Dokumentenauswertung!O$10=\"\",\"\",IF(EXACT(Dokumentenauswertung!$B26,Dokumentenauswertung!O26)=TRUE,Dokumentenauswertung!$C26,0))","v":""},{"$f":"IF(Dokumentenauswertung!P$10=\"\",\"\",IF(EXACT(Dokumentenauswertung!$B26,Dokumentenauswertung!P26)=TRUE,Dokumentenauswertung!$C26,0))","v":""},{"$f":"IF(Dokumentenauswertung!Q$10=\"\",\"\",IF(EXACT(Dokumentenauswertung!$B26,Dokumentenauswertung!Q26)=TRUE,Dokumentenauswertung!$C26,0))","v":""},{"$f":"IF(Dokumentenauswertung!R$10=\"\",\"\",IF(EXACT(Dokumentenauswertung!$B26,Dokumentenauswertung!R26)=TRUE,Dokumentenauswertung!$C26,0))","v":""},{"$f":"IF(Dokumentenauswertung!S$10=\"\",\"\",IF(EXACT(Dokumentenauswertung!$B26,Dokumentenauswertung!S26)=TRUE,Dokumentenauswertung!$C26,0))","v":""},{"$f":"IF(Dokumentenauswertung!T$10=\"\",\"\",IF(EXACT(Dokumentenauswertung!$B26,Dokumentenauswertung!T26)=TRUE,Dokumentenauswertung!$C26,0))","v":""},{"$f":"IF(Dokumentenauswertung!U$10=\"\",\"\",IF(EXACT(Dokumentenauswertung!$B26,Dokumentenauswertung!U26)=TRUE,Dokumentenauswertung!$C26,0))","v":""},{"$f":"IF(Dokumentenauswertung!V$10=\"\",\"\",IF(EXACT(Dokumentenauswertung!$B26,Dokumentenauswertung!V26)=TRUE,Dokumentenauswertung!$C26,0))","v":""},{"$f":"IF(Dokumentenauswertung!W$10=\"\",\"\",IF(EXACT(Dokumentenauswertung!$B26,Dokumentenauswertung!W26)=TRUE,Dokumentenauswertung!$C26,0))","v":""},{"$f":"IF(Dokumentenauswertung!X$10=\"\",\"\",IF(EXACT(Dokumentenauswertung!$B26,Dokumentenauswertung!X26)=TRUE,Dokumentenauswertung!$C26,0))","v":""},{"$f":"IF(Dokumentenauswertung!Y$10=\"\",\"\",IF(EXACT(Dokumentenauswertung!$B26,Dokumentenauswertung!Y26)=TRUE,Dokumentenauswertung!$C26,0))","v":""},{"$f":"IF(Dokumentenauswertung!Z$10=\"\",\"\",IF(EXACT(Dokumentenauswertung!$B26,Dokumentenauswertung!Z26)=TRUE,Dokumentenauswertung!$C26,0))","v":""},{"$f":"IF(Dokumentenauswertung!AA$10=\"\",\"\",IF(EXACT(Dokumentenauswertung!$B26,Dokumentenauswertung!AA26)=TRUE,Dokumentenauswertung!$C26,0))","v":""},{"$f":"IF(Dokumentenauswertung!AB$10=\"\",\"\",IF(EXACT(Dokumentenauswertung!$B26,Dokumentenauswertung!AB26)=TRUE,Dokumentenauswertung!$C26,0))","v":""},{"$f":"IF(Dokumentenauswertung!AC$10=\"\",\"\",IF(EXACT(Dokumentenauswertung!$B26,Dokumentenauswertung!AC26)=TRUE,Dokumentenauswertung!$C26,0))","v":""},{"$f":"IF(Dokumentenauswertung!AD$10=\"\",\"\",IF(EXACT(Dokumentenauswertung!$B26,Dokumentenauswertung!AD26)=TRUE,Dokumentenauswertung!$C26,0))","v":""},{"$f":"IF(Dokumentenauswertung!AE$10=\"\",\"\",IF(EXACT(Dokumentenauswertung!$B26,Dokumentenauswertung!AE26)=TRUE,Dokumentenauswertung!$C26,0))","v":""},{"$f":"IF(Dokumentenauswertung!AF$10=\"\",\"\",IF(EXACT(Dokumentenauswertung!$B26,Dokumentenauswertung!AF26)=TRUE,Dokumentenauswertung!$C26,0))","v":""},{"$f":"IF(Dokumentenauswertung!AG$10=\"\",\"\",IF(EXACT(Dokumentenauswertung!$B26,Dokumentenauswertung!AG26)=TRUE,Dokumentenauswertung!$C26,0))","v":""},{"$f":"IF(Dokumentenauswertung!AH$10=\"\",\"\",IF(EXACT(Dokumentenauswertung!$B26,Dokumentenauswertung!AH26)=TRUE,Dokumentenauswertung!$C26,0))","v":""},{"$f":"IF(Dokumentenauswertung!AI$10=\"\",\"\",IF(EXACT(Dokumentenauswertung!$B26,Dokumentenauswertung!AI26)=TRUE,Dokumentenauswertung!$C26,0))","v":""},{"$f":"IF(Dokumentenauswertung!AJ$10=\"\",\"\",IF(EXACT(Dokumentenauswertung!$B26,Dokumentenauswertung!AJ26)=TRUE,Dokumentenauswertung!$C26,0))","v":""},{"$f":"IF(Dokumentenauswertung!AK$10=\"\",\"\",IF(EXACT(Dokumentenauswertung!$B26,Dokumentenauswertung!AK26)=TRUE,Dokumentenauswertung!$C26,0))","v":""}]
[null,null,{"$f":"Dokumentenauswertung!$A27","v":"A3.e"},{"$f":"IF(Dokumentenauswertung!E$10=\"\",\"\",IF(EXACT(Dokumentenauswertung!$B27,Dokumentenauswertung!E27)=TRUE,Dokumentenauswertung!$C27,0))","v":""},{"$f":"IF(Dokumentenauswertung!F$10=\"\",\"\",IF(EXACT(Dokumentenauswertung!$B27,Dokumentenauswertung!F27)=TRUE,Dokumentenauswertung!$C27,0))","v":""},{"$f":"IF(Dokumentenauswertung!G$10=\"\",\"\",IF(EXACT(Dokumentenauswertung!$B27,Dokumentenauswertung!G27)=TRUE,Dokumentenauswertung!$C27,0))","v":""},{"$f":"IF(Dokumentenauswertung!H$10=\"\",\"\",IF(EXACT(Dokumentenauswertung!$B27,Dokumentenauswertung!H27)=TRUE,Dokumentenauswertung!$C27,0))","v":""},{"$f":"IF(Dokumentenauswertung!I$10=\"\",\"\",IF(EXACT(Dokumentenauswertung!$B27,Dokumentenauswertung!I27)=TRUE,Dokumentenauswertung!$C27,0))","v":""},{"$f":"IF(Dokumentenauswertung!J$10=\"\",\"\",IF(EXACT(Dokumentenauswertung!$B27,Dokumentenauswertung!J27)=TRUE,Dokumentenauswertung!$C27,0))","v":""},{"$f":"IF(Dokumentenauswertung!K$10=\"\",\"\",IF(EXACT(Dokumentenauswertung!$B27,Dokumentenauswertung!K27)=TRUE,Dokumentenauswertung!$C27,0))","v":""},{"$f":"IF(Dokumentenauswertung!L$10=\"\",\"\",IF(EXACT(Dokumentenauswertung!$B27,Dokumentenauswertung!L27)=TRUE,Dokumentenauswertung!$C27,0))","v":""},{"$f":"IF(Dokumentenauswertung!M$10=\"\",\"\",IF(EXACT(Dokumentenauswertung!$B27,Dokumentenauswertung!M27)=TRUE,Dokumentenauswertung!$C27,0))","v":""},{"$f":"IF(Dokumentenauswertung!N$10=\"\",\"\",IF(EXACT(Dokumentenauswertung!$B27,Dokumentenauswertung!N27)=TRUE,Dokumentenauswertung!$C27,0))","v":""},{"$f":"IF(Dokumentenauswertung!O$10=\"\",\"\",IF(EXACT(Dokumentenauswertung!$B27,Dokumentenauswertung!O27)=TRUE,Dokumentenauswertung!$C27,0))","v":""},{"$f":"IF(Dokumentenauswertung!P$10=\"\",\"\",IF(EXACT(Dokumentenauswertung!$B27,Dokumentenauswertung!P27)=TRUE,Dokumentenauswertung!$C27,0))","v":""},{"$f":"IF(Dokumentenauswertung!Q$10=\"\",\"\",IF(EXACT(Dokumentenauswertung!$B27,Dokumentenauswertung!Q27)=TRUE,Dokumentenauswertung!$C27,0))","v":""},{"$f":"IF(Dokumentenauswertung!R$10=\"\",\"\",IF(EXACT(Dokumentenauswertung!$B27,Dokumentenauswertung!R27)=TRUE,Dokumentenauswertung!$C27,0))","v":""},{"$f":"IF(Dokumentenauswertung!S$10=\"\",\"\",IF(EXACT(Dokumentenauswertung!$B27,Dokumentenauswertung!S27)=TRUE,Dokumentenauswertung!$C27,0))","v":""},{"$f":"IF(Dokumentenauswertung!T$10=\"\",\"\",IF(EXACT(Dokumentenauswertung!$B27,Dokumentenauswertung!T27)=TRUE,Dokumentenauswertung!$C27,0))","v":""},{"$f":"IF(Dokumentenauswertung!U$10=\"\",\"\",IF(EXACT(Dokumentenauswertung!$B27,Dokumentenauswertung!U27)=TRUE,Dokumentenauswertung!$C27,0))","v":""},{"$f":"IF(Dokumentenauswertung!V$10=\"\",\"\",IF(EXACT(Dokumentenauswertung!$B27,Dokumentenauswertung!V27)=TRUE,Dokumentenauswertung!$C27,0))","v":""},{"$f":"IF(Dokumentenauswertung!W$10=\"\",\"\",IF(EXACT(Dokumentenauswertung!$B27,Dokumentenauswertung!W27)=TRUE,Dokumentenauswertung!$C27,0))","v":""},{"$f":"IF(Dokumentenauswertung!X$10=\"\",\"\",IF(EXACT(Dokumentenauswertung!$B27,Dokumentenauswertung!X27)=TRUE,Dokumentenauswertung!$C27,0))","v":""},{"$f":"IF(Dokumentenauswertung!Y$10=\"\",\"\",IF(EXACT(Dokumentenauswertung!$B27,Dokumentenauswertung!Y27)=TRUE,Dokumentenauswertung!$C27,0))","v":""},{"$f":"IF(Dokumentenauswertung!Z$10=\"\",\"\",IF(EXACT(Dokumentenauswertung!$B27,Dokumentenauswertung!Z27)=TRUE,Dokumentenauswertung!$C27,0))","v":""},{"$f":"IF(Dokumentenauswertung!AA$10=\"\",\"\",IF(EXACT(Dokumentenauswertung!$B27,Dokumentenauswertung!AA27)=TRUE,Dokumentenauswertung!$C27,0))","v":""},{"$f":"IF(Dokumentenauswertung!AB$10=\"\",\"\",IF(EXACT(Dokumentenauswertung!$B27,Dokumentenauswertung!AB27)=TRUE,Dokumentenauswertung!$C27,0))","v":""},{"$f":"IF(Dokumentenauswertung!AC$10=\"\",\"\",IF(EXACT(Dokumentenauswertung!$B27,Dokumentenauswertung!AC27)=TRUE,Dokumentenauswertung!$C27,0))","v":""},{"$f":"IF(Dokumentenauswertung!AD$10=\"\",\"\",IF(EXACT(Dokumentenauswertung!$B27,Dokumentenauswertung!AD27)=TRUE,Dokumentenauswertung!$C27,0))","v":""},{"$f":"IF(Dokumentenauswertung!AE$10=\"\",\"\",IF(EXACT(Dokumentenauswertung!$B27,Dokumentenauswertung!AE27)=TRUE,Dokumentenauswertung!$C27,0))","v":""},{"$f":"IF(Dokumentenauswertung!AF$10=\"\",\"\",IF(EXACT(Dokumentenauswertung!$B27,Dokumentenauswertung!AF27)=TRUE,Dokumentenauswertung!$C27,0))","v":""},{"$f":"IF(Dokumentenauswertung!AG$10=\"\",\"\",IF(EXACT(Dokumentenauswertung!$B27,Dokumentenauswertung!AG27)=TRUE,Dokumentenauswertung!$C27,0))","v":""},{"$f":"IF(Dokumentenauswertung!AH$10=\"\",\"\",IF(EXACT(Dokumentenauswertung!$B27,Dokumentenauswertung!AH27)=TRUE,Dokumentenauswertung!$C27,0))","v":""},{"$f":"IF(Dokumentenauswertung!AI$10=\"\",\"\",IF(EXACT(Dokumentenauswertung!$B27,Dokumentenauswertung!AI27)=TRUE,Dokumentenauswertung!$C27,0))","v":""},{"$f":"IF(Dokumentenauswertung!AJ$10=\"\",\"\",IF(EXACT(Dokumentenauswertung!$B27,Dokumentenauswertung!AJ27)=TRUE,Dokumentenauswertung!$C27,0))","v":""},{"$f":"IF(Dokumentenauswertung!AK$10=\"\",\"\",IF(EXACT(Dokumentenauswertung!$B27,Dokumentenauswertung!AK27)=TRUE,Dokumentenauswertung!$C27,0))","v":""}]
[null,null,{"$f":"Dokumentenauswertung!$A28","v":"A3.f"},{"$f":"IF(Dokumentenauswertung!E$10=\"\",\"\",IF(EXACT(Dokumentenauswertung!$B28,Dokumentenauswertung!E28)=TRUE,Dokumentenauswertung!$C28,0))","v":""},{"$f":"IF(Dokumentenauswertung!F$10=\"\",\"\",IF(EXACT(Dokumentenauswertung!$B28,Dokumentenauswertung!F28)=TRUE,Dokumentenauswertung!$C28,0))","v":""},{"$f":"IF(Dokumentenauswertung!G$10=\"\",\"\",IF(EXACT(Dokumentenauswertung!$B28,Dokumentenauswertung!G28)=TRUE,Dokumentenauswertung!$C28,0))","v":""},{"$f":"IF(Dokumentenauswertung!H$10=\"\",\"\",IF(EXACT(Dokumentenauswertung!$B28,Dokumentenauswertung!H28)=TRUE,Dokumentenauswertung!$C28,0))","v":""},{"$f":"IF(Dokumentenauswertung!I$10=\"\",\"\",IF(EXACT(Dokumentenauswertung!$B28,Dokumentenauswertung!I28)=TRUE,Dokumentenauswertung!$C28,0))","v":""},{"$f":"IF(Dokumentenauswertung!J$10=\"\",\"\",IF(EXACT(Dokumentenauswertung!$B28,Dokumentenauswertung!J28)=TRUE,Dokumentenauswertung!$C28,0))","v":""},{"$f":"IF(Dokumentenauswertung!K$10=\"\",\"\",IF(EXACT(Dokumentenauswertung!$B28,Dokumentenauswertung!K28)=TRUE,Dokumentenauswertung!$C28,0))","v":""},{"$f":"IF(Dokumentenauswertung!L$10=\"\",\"\",IF(EXACT(Dokumentenauswertung!$B28,Dokumentenauswertung!L28)=TRUE,Dokumentenauswertung!$C28,0))","v":""},{"$f":"IF(Dokumentenauswertung!M$10=\"\",\"\",IF(EXACT(Dokumentenauswertung!$B28,Dokumentenauswertung!M28)=TRUE,Dokumentenauswertung!$C28,0))","v":""},{"$f":"IF(Dokumentenauswertung!N$10=\"\",\"\",IF(EXACT(Dokumentenauswertung!$B28,Dokumentenauswertung!N28)=TRUE,Dokumentenauswertung!$C28,0))","v":""},{"$f":"IF(Dokumentenauswertung!O$10=\"\",\"\",IF(EXACT(Dokumentenauswertung!$B28,Dokumentenauswertung!O28)=TRUE,Dokumentenauswertung!$C28,0))","v":""},{"$f":"IF(Dokumentenauswertung!P$10=\"\",\"\",IF(EXACT(Dokumentenauswertung!$B28,Dokumentenauswertung!P28)=TRUE,Dokumentenauswertung!$C28,0))","v":""},{"$f":"IF(Dokumentenauswertung!Q$10=\"\",\"\",IF(EXACT(Dokumentenauswertung!$B28,Dokumentenauswertung!Q28)=TRUE,Dokumentenauswertung!$C28,0))","v":""},{"$f":"IF(Dokumentenauswertung!R$10=\"\",\"\",IF(EXACT(Dokumentenauswertung!$B28,Dokumentenauswertung!R28)=TRUE,Dokumentenauswertung!$C28,0))","v":""},{"$f":"IF(Dokumentenauswertung!S$10=\"\",\"\",IF(EXACT(Dokumentenauswertung!$B28,Dokumentenauswertung!S28)=TRUE,Dokumentenauswertung!$C28,0))","v":""},{"$f":"IF(Dokumentenauswertung!T$10=\"\",\"\",IF(EXACT(Dokumentenauswertung!$B28,Dokumentenauswertung!T28)=TRUE,Dokumentenauswertung!$C28,0))","v":""},{"$f":"IF(Dokumentenauswertung!U$10=\"\",\"\",IF(EXACT(Dokumentenauswertung!$B28,Dokumentenauswertung!U28)=TRUE,Dokumentenauswertung!$C28,0))","v":""},{"$f":"IF(Dokumentenauswertung!V$10=\"\",\"\",IF(EXACT(Dokumentenauswertung!$B28,Dokumentenauswertung!V28)=TRUE,Dokumentenauswertung!$C28,0))","v":""},{"$f":"IF(Dokumentenauswertung!W$10=\"\",\"\",IF(EXACT(Dokumentenauswertung!$B28,Dokumentenauswertung!W28)=TRUE,Dokumentenauswertung!$C28,0))","v":""},{"$f":"IF(Dokumentenauswertung!X$10=\"\",\"\",IF(EXACT(Dokumentenauswertung!$B28,Dokumentenauswertung!X28)=TRUE,Dokumentenauswertung!$C28,0))","v":""},{"$f":"IF(Dokumentenauswertung!Y$10=\"\",\"\",IF(EXACT(Dokumentenauswertung!$B28,Dokumentenauswertung!Y28)=TRUE,Dokumentenauswertung!$C28,0))","v":""},{"$f":"IF(Dokumentenauswertung!Z$10=\"\",\"\",IF(EXACT(Dokumentenauswertung!$B28,Dokumentenauswertung!Z28)=TRUE,Dokumentenauswertung!$C28,0))","v":""},{"$f":"IF(Dokumentenauswertung!AA$10=\"\",\"\",IF(EXACT(Dokumentenauswertung!$B28,Dokumentenauswertung!AA28)=TRUE,Dokumentenauswertung!$C28,0))","v":""},{"$f":"IF(Dokumentenauswertung!AB$10=\"\",\"\",IF(EXACT(Dokumentenauswertung!$B28,Dokumentenauswertung!AB28)=TRUE,Dokumentenauswertung!$C28,0))","v":""},{"$f":"IF(Dokumentenauswertung!AC$10=\"\",\"\",IF(EXACT(Dokumentenauswertung!$B28,Dokumentenauswertung!AC28)=TRUE,Dokumentenauswertung!$C28,0))","v":""},{"$f":"IF(Dokumentenauswertung!AD$10=\"\",\"\",IF(EXACT(Dokumentenauswertung!$B28,Dokumentenauswertung!AD28)=TRUE,Dokumentenauswertung!$C28,0))","v":""},{"$f":"IF(Dokumentenauswertung!AE$10=\"\",\"\",IF(EXACT(Dokumentenauswertung!$B28,Dokumentenauswertung!AE28)=TRUE,Dokumentenauswertung!$C28,0))","v":""},{"$f":"IF(Dokumentenauswertung!AF$10=\"\",\"\",IF(EXACT(Dokumentenauswertung!$B28,Dokumentenauswertung!AF28)=TRUE,Dokumentenauswertung!$C28,0))","v":""},{"$f":"IF(Dokumentenauswertung!AG$10=\"\",\"\",IF(EXACT(Dokumentenauswertung!$B28,Dokumentenauswertung!AG28)=TRUE,Dokumentenauswertung!$C28,0))","v":""},{"$f":"IF(Dokumentenauswertung!AH$10=\"\",\"\",IF(EXACT(Dokumentenauswertung!$B28,Dokumentenauswertung!AH28)=TRUE,Dokumentenauswertung!$C28,0))","v":""},{"$f":"IF(Dokumentenauswertung!AI$10=\"\",\"\",IF(EXACT(Dokumentenauswertung!$B28,Dokumentenauswertung!AI28)=TRUE,Dokumentenauswertung!$C28,0))","v":""},{"$f":"IF(Dokumentenauswertung!AJ$10=\"\",\"\",IF(EXACT(Dokumentenauswertung!$B28,Dokumentenauswertung!AJ28)=TRUE,Dokumentenauswertung!$C28,0))","v":""},{"$f":"IF(Dokumentenauswertung!AK$10=\"\",\"\",IF(EXACT(Dokumentenauswertung!$B28,Dokumentenauswertung!AK28)=TRUE,Dokumentenauswertung!$C28,0))","v":""}]
[null,null,{"$f":"Dokumentenauswertung!$A29","v":"A4.a"},{"$f":"IF(Dokumentenauswertung!E$10=\"\",\"\",IF(EXACT(Dokumentenauswertung!$B29,Dokumentenauswertung!E29)=TRUE,Dokumentenauswertung!$C29,0))","v":""},{"$f":"IF(Dokumentenauswertung!F$10=\"\",\"\",IF(EXACT(Dokumentenauswertung!$B29,Dokumentenauswertung!F29)=TRUE,Dokumentenauswertung!$C29,0))","v":""},{"$f":"IF(Dokumentenauswertung!G$10=\"\",\"\",IF(EXACT(Dokumentenauswertung!$B29,Dokumentenauswertung!G29)=TRUE,Dokumentenauswertung!$C29,0))","v":""},{"$f":"IF(Dokumentenauswertung!H$10=\"\",\"\",IF(EXACT(Dokumentenauswertung!$B29,Dokumentenauswertung!H29)=TRUE,Dokumentenauswertung!$C29,0))","v":""},{"$f":"IF(Dokumentenauswertung!I$10=\"\",\"\",IF(EXACT(Dokumentenauswertung!$B29,Dokumentenauswertung!I29)=TRUE,Dokumentenauswertung!$C29,0))","v":""},{"$f":"IF(Dokumentenauswertung!J$10=\"\",\"\",IF(EXACT(Dokumentenauswertung!$B29,Dokumentenauswertung!J29)=TRUE,Dokumentenauswertung!$C29,0))","v":""},{"$f":"IF(Dokumentenauswertung!K$10=\"\",\"\",IF(EXACT(Dokumentenauswertung!$B29,Dokumentenauswertung!K29)=TRUE,Dokumentenauswertung!$C29,0))","v":""},{"$f":"IF(Dokumentenauswertung!L$10=\"\",\"\",IF(EXACT(Dokumentenauswertung!$B29,Dokumentenauswertung!L29)=TRUE,Dokumentenauswertung!$C29,0))","v":""},{"$f":"IF(Dokumentenauswertung!M$10=\"\",\"\",IF(EXACT(Dokumentenauswertung!$B29,Dokumentenauswertung!M29)=TRUE,Dokumentenauswertung!$C29,0))","v":""},{"$f":"IF(Dokumentenauswertung!N$10=\"\",\"\",IF(EXACT(Dokumentenauswertung!$B29,Dokumentenauswertung!N29)=TRUE,Dokumentenauswertung!$C29,0))","v":""},{"$f":"IF(Dokumentenauswertung!O$10=\"\",\"\",IF(EXACT(Dokumentenauswertung!$B29,Dokumentenauswertung!O29)=TRUE,Dokumentenauswertung!$C29,0))","v":""},{"$f":"IF(Dokumentenauswertung!P$10=\"\",\"\",IF(EXACT(Dokumentenauswertung!$B29,Dokumentenauswertung!P29)=TRUE,Dokumentenauswertung!$C29,0))","v":""},{"$f":"IF(Dokumentenauswertung!Q$10=\"\",\"\",IF(EXACT(Dokumentenauswertung!$B29,Dokumentenauswertung!Q29)=TRUE,Dokumentenauswertung!$C29,0))","v":""},{"$f":"IF(Dokumentenauswertung!R$10=\"\",\"\",IF(EXACT(Dokumentenauswertung!$B29,Dokumentenauswertung!R29)=TRUE,Dokumentenauswertung!$C29,0))","v":""},{"$f":"IF(Dokumentenauswertung!S$10=\"\",\"\",IF(EXACT(Dokumentenauswertung!$B29,Dokumentenauswertung!S29)=TRUE,Dokumentenauswertung!$C29,0))","v":""},{"$f":"IF(Dokumentenauswertung!T$10=\"\",\"\",IF(EXACT(Dokumentenauswertung!$B29,Dokumentenauswertung!T29)=TRUE,Dokumentenauswertung!$C29,0))","v":""},{"$f":"IF(Dokumentenauswertung!U$10=\"\",\"\",IF(EXACT(Dokumentenauswertung!$B29,Dokumentenauswertung!U29)=TRUE,Dokumentenauswertung!$C29,0))","v":""},{"$f":"IF(Dokumentenauswertung!V$10=\"\",\"\",IF(EXACT(Dokumentenauswertung!$B29,Dokumentenauswertung!V29)=TRUE,Dokumentenauswertung!$C29,0))","v":""},{"$f":"IF(Dokumentenauswertung!W$10=\"\",\"\",IF(EXACT(Dokumentenauswertung!$B29,Dokumentenauswertung!W29)=TRUE,Dokumentenauswertung!$C29,0))","v":""},{"$f":"IF(Dokumentenauswertung!X$10=\"\",\"\",IF(EXACT(Dokumentenauswertung!$B29,Dokumentenauswertung!X29)=TRUE,Dokumentenauswertung!$C29,0))","v":""},{"$f":"IF(Dokumentenauswertung!Y$10=\"\",\"\",IF(EXACT(Dokumentenauswertung!$B29,Dokumentenauswertung!Y29)=TRUE,Dokumentenauswertung!$C29,0))","v":""},{"$f":"IF(Dokumentenauswertung!Z$10=\"\",\"\",IF(EXACT(Dokumentenauswertung!$B29,Dokumentenauswertung!Z29)=TRUE,Dokumentenauswertung!$C29,0))","v":""},{"$f":"IF(Dokumentenauswertung!AA$10=\"\",\"\",IF(EXACT(Dokumentenauswertung!$B29,Dokumentenauswertung!AA29)=TRUE,Dokumentenauswertung!$C29,0))","v":""},{"$f":"IF(Dokumentenauswertung!AB$10=\"\",\"\",IF(EXACT(Dokumentenauswertung!$B29,Dokumentenauswertung!AB29)=TRUE,Dokumentenauswertung!$C29,0))","v":""},{"$f":"IF(Dokumentenauswertung!AC$10=\"\",\"\",IF(EXACT(Dokumentenauswertung!$B29,Dokumentenauswertung!AC29)=TRUE,Dokumentenauswertung!$C29,0))","v":""},{"$f":"IF(Dokumentenauswertung!AD$10=\"\",\"\",IF(EXACT(Dokumentenauswertung!$B29,Dokumentenauswertung!AD29)=TRUE,Dokumentenauswertung!$C29,0))","v":""},{"$f":"IF(Dokumentenauswertung!AE$10=\"\",\"\",IF(EXACT(Dokumentenauswertung!$B29,Dokumentenauswertung!AE29)=TRUE,Dokumentenauswertung!$C29,0))","v":""},{"$f":"IF(Dokumentenauswertung!AF$10=\"\",\"\",IF(EXACT(Dokumentenauswertung!$B29,Dokumentenauswertung!AF29)=TRUE,Dokumentenauswertung!$C29,0))","v":""},{"$f":"IF(Dokumentenauswertung!AG$10=\"\",\"\",IF(EXACT(Dokumentenauswertung!$B29,Dokumentenauswertung!AG29)=TRUE,Dokumentenauswertung!$C29,0))","v":""},{"$f":"IF(Dokumentenauswertung!AH$10=\"\",\"\",IF(EXACT(Dokumentenauswertung!$B29,Dokumentenauswertung!AH29)=TRUE,Dokumentenauswertung!$C29,0))","v":""},{"$f":"IF(Dokumentenauswertung!AI$10=\"\",\"\",IF(EXACT(Dokumentenauswertung!$B29,Dokumentenauswertung!AI29)=TRUE,Dokumentenauswertung!$C29,0))","v":""},{"$f":"IF(Dokumentenauswertung!AJ$10=\"\",\"\",IF(EXACT(Dokumentenauswertung!$B29,Dokumentenauswertung!AJ29)=TRUE,Dokumentenauswertung!$C29,0))","v":""},{"$f":"IF(Dokumentenauswertung!AK$10=\"\",\"\",IF(EXACT(Dokumentenauswertung!$B29,Dokumentenauswertung!AK29)=TRUE,Dokumentenauswertung!$C29,0))","v":""}]
[null,null,{"$f":"Dokumentenauswertung!$A30","v":"A4.b"},{"$f":"IF(Dokumentenauswertung!E$10=\"\",\"\",IF(EXACT(Dokumentenauswertung!$B30,Dokumentenauswertung!E30)=TRUE,Dokumentenauswertung!$C30,0))","v":""},{"$f":"IF(Dokumentenauswertung!F$10=\"\",\"\",IF(EXACT(Dokumentenauswertung!$B30,Dokumentenauswertung!F30)=TRUE,Dokumentenauswertung!$C30,0))","v":""},{"$f":"IF(Dokumentenauswertung!G$10=\"\",\"\",IF(EXACT(Dokumentenauswertung!$B30,Dokumentenauswertung!G30)=TRUE,Dokumentenauswertung!$C30,0))","v":""},{"$f":"IF(Dokumentenauswertung!H$10=\"\",\"\",IF(EXACT(Dokumentenauswertung!$B30,Dokumentenauswertung!H30)=TRUE,Dokumentenauswertung!$C30,0))","v":""},{"$f":"IF(Dokumentenauswertung!I$10=\"\",\"\",IF(EXACT(Dokumentenauswertung!$B30,Dokumentenauswertung!I30)=TRUE,Dokumentenauswertung!$C30,0))","v":""},{"$f":"IF(Dokumentenauswertung!J$10=\"\",\"\",IF(EXACT(Dokumentenauswertung!$B30,Dokumentenauswertung!J30)=TRUE,Dokumentenauswertung!$C30,0))","v":""},{"$f":"IF(Dokumentenauswertung!K$10=\"\",\"\",IF(EXACT(Dokumentenauswertung!$B30,Dokumentenauswertung!K30)=TRUE,Dokumentenauswertung!$C30,0))","v":""},{"$f":"IF(Dokumentenauswertung!L$10=\"\",\"\",IF(EXACT(Dokumentenauswertung!$B30,Dokumentenauswertung!L30)=TRUE,Dokumentenauswertung!$C30,0))","v":""},{"$f":"IF(Dokumentenauswertung!M$10=\"\",\"\",IF(EXACT(Dokumentenauswertung!$B30,Dokumentenauswertung!M30)=TRUE,Dokumentenauswertung!$C30,0))","v":""},{"$f":"IF(Dokumentenauswertung!N$10=\"\",\"\",IF(EXACT(Dokumentenauswertung!$B30,Dokumentenauswertung!N30)=TRUE,Dokumentenauswertung!$C30,0))","v":""},{"$f":"IF(Dokumentenauswertung!O$10=\"\",\"\",IF(EXACT(Dokumentenauswertung!$B30,Dokumentenauswertung!O30)=TRUE,Dokumentenauswertung!$C30,0))","v":""},{"$f":"IF(Dokumentenauswertung!P$10=\"\",\"\",IF(EXACT(Dokumentenauswertung!$B30,Dokumentenauswertung!P30)=TRUE,Dokumentenauswertung!$C30,0))","v":""},{"$f":"IF(Dokumentenauswertung!Q$10=\"\",\"\",IF(EXACT(Dokumentenauswertung!$B30,Dokumentenauswertung!Q30)=TRUE,Dokumentenauswertung!$C30,0))","v":""},{"$f":"IF(Dokumentenauswertung!R$10=\"\",\"\",IF(EXACT(Dokumentenauswertung!$B30,Dokumentenauswertung!R30)=TRUE,Dokumentenauswertung!$C30,0))","v":""},{"$f":"IF(Dokumentenauswertung!S$10=\"\",\"\",IF(EXACT(Dokumentenauswertung!$B30,Dokumentenauswertung!S30)=TRUE,Dokumentenauswertung!$C30,0))","v":""},{"$f":"IF(Dokumentenauswertung!T$10=\"\",\"\",IF(EXACT(Dokumentenauswertung!$B30,Dokumentenauswertung!T30)=TRUE,Dokumentenauswertung!$C30,0))","v":""},{"$f":"IF(Dokumentenauswertung!U$10=\"\",\"\",IF(EXACT(Dokumentenauswertung!$B30,Dokumentenauswertung!U30)=TRUE,Dokumentenauswertung!$C30,0))","v":""},{"$f":"IF(Dokumentenauswertung!V$10=\"\",\"\",IF(EXACT(Dokumentenauswertung!$B30,Dokumentenauswertung!V30)=TRUE,Dokumentenauswertung!$C30,0))","v":""},{"$f":"IF(Dokumentenauswertung!W$10=\"\",\"\",IF(EXACT(Dokumentenauswertung!$B30,Dokumentenauswertung!W30)=TRUE,Dokumentenauswertung!$C30,0))","v":""},{"$f":"IF(Dokumentenauswertung!X$10=\"\",\"\",IF(EXACT(Dokumentenauswertung!$B30,Dokumentenauswertung!X30)=TRUE,Dokumentenauswertung!$C30,0))","v":""},{"$f":"IF(Dokumentenauswertung!Y$10=\"\",\"\",IF(EXACT(Dokumentenauswertung!$B30,Dokumentenauswertung!Y30)=TRUE,Dokumentenauswertung!$C30,0))","v":""},{"$f":"IF(Dokumentenauswertung!Z$10=\"\",\"\",IF(EXACT(Dokumentenauswertung!$B30,Dokumentenauswertung!Z30)=TRUE,Dokumentenauswertung!$C30,0))","v":""},{"$f":"IF(Dokumentenauswertung!AA$10=\"\",\"\",IF(EXACT(Dokumentenauswertung!$B30,Dokumentenauswertung!AA30)=TRUE,Dokumentenauswertung!$C30,0))","v":""},{"$f":"IF(Dokumentenauswertung!AB$10=\"\",\"\",IF(EXACT(Dokumentenauswertung!$B30,Dokumentenauswertung!AB30)=TRUE,Dokumentenauswertung!$C30,0))","v":""},{"$f":"IF(Dokumentenauswertung!AC$10=\"\",\"\",IF(EXACT(Dokumentenauswertung!$B30,Dokumentenauswertung!AC30)=TRUE,Dokumentenauswertung!$C30,0))","v":""},{"$f":"IF(Dokumentenauswertung!AD$10=\"\",\"\",IF(EXACT(Dokumentenauswertung!$B30,Dokumentenauswertung!AD30)=TRUE,Dokumentenauswertung!$C30,0))","v":""},{"$f":"IF(Dokumentenauswertung!AE$10=\"\",\"\",IF(EXACT(Dokumentenauswertung!$B30,Dokumentenauswertung!AE30)=TRUE,Dokumentenauswertung!$C30,0))","v":""},{"$f":"IF(Dokumentenauswertung!AF$10=\"\",\"\",IF(EXACT(Dokumentenauswertung!$B30,Dokumentenauswertung!AF30)=TRUE,Dokumentenauswertung!$C30,0))","v":""},{"$f":"IF(Dokumentenauswertung!AG$10=\"\",\"\",IF(EXACT(Dokumentenauswertung!$B30,Dokumentenauswertung!AG30)=TRUE,Dokumentenauswertung!$C30,0))","v":""},{"$f":"IF(Dokumentenauswertung!AH$10=\"\",\"\",IF(EXACT(Dokumentenauswertung!$B30,Dokumentenauswertung!AH30)=TRUE,Dokumentenauswertung!$C30,0))","v":""},{"$f":"IF(Dokumentenauswertung!AI$10=\"\",\"\",IF(EXACT(Dokumentenauswertung!$B30,Dokumentenauswertung!AI30)=TRUE,Dokumentenauswertung!$C30,0))","v":""},{"$f":"IF(Dokumentenauswertung!AJ$10=\"\",\"\",IF(EXACT(Dokumentenauswertung!$B30,Dokumentenauswertung!AJ30)=TRUE,Dokumentenauswertung!$C30,0))","v":""},{"$f":"IF(Dokumentenauswertung!AK$10=\"\",\"\",IF(EXACT(Dokumentenauswertung!$B30,Dokumentenauswertung!AK30)=TRUE,Dokumentenauswertung!$C30,0))","v":""}]
[null,null,{"$f":"Dokumentenauswertung!$A31","v":"A4.c"},{"$f":"IF(Dokumentenauswertung!E$10=\"\",\"\",IF(EXACT(Dokumentenauswertung!$B31,Dokumentenauswertung!E31)=TRUE,Dokumentenauswertung!$C31,0))","v":""},{"$f":"IF(Dokumentenauswertung!F$10=\"\",\"\",IF(EXACT(Dokumentenauswertung!$B31,Dokumentenauswertung!F31)=TRUE,Dokumentenauswertung!$C31,0))","v":""},{"$f":"IF(Dokumentenauswertung!G$10=\"\",\"\",IF(EXACT(Dokumentenauswertung!$B31,Dokumentenauswertung!G31)=TRUE,Dokumentenauswertung!$C31,0))","v":""},{"$f":"IF(Dokumentenauswertung!H$10=\"\",\"\",IF(EXACT(Dokumentenauswertung!$B31,Dokumentenauswertung!H31)=TRUE,Dokumentenauswertung!$C31,0))","v":""},{"$f":"IF(Dokumentenauswertung!I$10=\"\",\"\",IF(EXACT(Dokumentenauswertung!$B31,Dokumentenauswertung!I31)=TRUE,Dokumentenauswertung!$C31,0))","v":""},{"$f":"IF(Dokumentenauswertung!J$10=\"\",\"\",IF(EXACT(Dokumentenauswertung!$B31,Dokumentenauswertung!J31)=TRUE,Dokumentenauswertung!$C31,0))","v":""},{"$f":"IF(Dokumentenauswertung!K$10=\"\",\"\",IF(EXACT(Dokumentenauswertung!$B31,Dokumentenauswertung!K31)=TRUE,Dokumentenauswertung!$C31,0))","v":""},{"$f":"IF(Dokumentenauswertung!L$10=\"\",\"\",IF(EXACT(Dokumentenauswertung!$B31,Dokumentenauswertung!L31)=TRUE,Dokumentenauswertung!$C31,0))","v":""},{"$f":"IF(Dokumentenauswertung!M$10=\"\",\"\",IF(EXACT(Dokumentenauswertung!$B31,Dokumentenauswertung!M31)=TRUE,Dokumentenauswertung!$C31,0))","v":""},{"$f":"IF(Dokumentenauswertung!N$10=\"\",\"\",IF(EXACT(Dokumentenauswertung!$B31,Dokumentenauswertung!N31)=TRUE,Dokumentenauswertung!$C31,0))","v":""},{"$f":"IF(Dokumentenauswertung!O$10=\"\",\"\",IF(EXACT(Dokumentenauswertung!$B31,Dokumentenauswertung!O31)=TRUE,Dokumentenauswertung!$C31,0))","v":""},{"$f":"IF(Dokumentenauswertung!P$10=\"\",\"\",IF(EXACT(Dokumentenauswertung!$B31,Dokumentenauswertung!P31)=TRUE,Dokumentenauswertung!$C31,0))","v":""},{"$f":"IF(Dokumentenauswertung!Q$10=\"\",\"\",IF(EXACT(Dokumentenauswertung!$B31,Dokumentenauswertung!Q31)=TRUE,Dokumentenauswertung!$C31,0))","v":""},{"$f":"IF(Dokumentenauswertung!R$10=\"\",\"\",IF(EXACT(Dokumentenauswertung!$B31,Dokumentenauswertung!R31)=TRUE,Dokumentenauswertung!$C31,0))","v":""},{"$f":"IF(Dokumentenauswertung!S$10=\"\",\"\",IF(EXACT(Dokumentenauswertung!$B31,Dokumentenauswertung!S31)=TRUE,Dokumentenauswertung!$C31,0))","v":""},{"$f":"IF(Dokumentenauswertung!T$10=\"\",\"\",IF(EXACT(Dokumentenauswertung!$B31,Dokumentenauswertung!T31)=TRUE,Dokumentenauswertung!$C31,0))","v":""},{"$f":"IF(Dokumentenauswertung!U$10=\"\",\"\",IF(EXACT(Dokumentenauswertung!$B31,Dokumentenauswertung!U31)=TRUE,Dokumentenauswertung!$C31,0))","v":""},{"$f":"IF(Dokumentenauswertung!V$10=\"\",\"\",IF(EXACT(Dokumentenauswertung!$B31,Dokumentenauswertung!V31)=TRUE,Dokumentenauswertung!$C31,0))","v":""},{"$f":"IF(Dokumentenauswertung!W$10=\"\",\"\",IF(EXACT(Dokumentenauswertung!$B31,Dokumentenauswertung!W31)=TRUE,Dokumentenauswertung!$C31,0))","v":""},{"$f":"IF(Dokumentenauswertung!X$10=\"\",\"\",IF(EXACT(Dokumentenauswertung!$B31,Dokumentenauswertung!X31)=TRUE,Dokumentenauswertung!$C31,0))","v":""},{"$f":"IF(Dokumentenauswertung!Y$10=\"\",\"\",IF(EXACT(Dokumentenauswertung!$B31,Dokumentenauswertung!Y31)=TRUE,Dokumentenauswertung!$C31,0))","v":""},{"$f":"IF(Dokumentenauswertung!Z$10=\"\",\"\",IF(EXACT(Dokumentenauswertung!$B31,Dokumentenauswertung!Z31)=TRUE,Dokumentenauswertung!$C31,0))","v":""},{"$f":"IF(Dokumentenauswertung!AA$10=\"\",\"\",IF(EXACT(Dokumentenauswertung!$B31,Dokumentenauswertung!AA31)=TRUE,Dokumentenauswertung!$C31,0))","v":""},{"$f":"IF(Dokumentenauswertung!AB$10=\"\",\"\",IF(EXACT(Dokumentenauswertung!$B31,Dokumentenauswertung!AB31)=TRUE,Dokumentenauswertung!$C31,0))","v":""},{"$f":"IF(Dokumentenauswertung!AC$10=\"\",\"\",IF(EXACT(Dokumentenauswertung!$B31,Dokumentenauswertung!AC31)=TRUE,Dokumentenauswertung!$C31,0))","v":""},{"$f":"IF(Dokumentenauswertung!AD$10=\"\",\"\",IF(EXACT(Dokumentenauswertung!$B31,Dokumentenauswertung!AD31)=TRUE,Dokumentenauswertung!$C31,0))","v":""},{"$f":"IF(Dokumentenauswertung!AE$10=\"\",\"\",IF(EXACT(Dokumentenauswertung!$B31,Dokumentenauswertung!AE31)=TRUE,Dokumentenauswertung!$C31,0))","v":""},{"$f":"IF(Dokumentenauswertung!AF$10=\"\",\"\",IF(EXACT(Dokumentenauswertung!$B31,Dokumentenauswertung!AF31)=TRUE,Dokumentenauswertung!$C31,0))","v":""},{"$f":"IF(Dokumentenauswertung!AG$10=\"\",\"\",IF(EXACT(Dokumentenauswertung!$B31,Dokumentenauswertung!AG31)=TRUE,Dokumentenauswertung!$C31,0))","v":""},{"$f":"IF(Dokumentenauswertung!AH$10=\"\",\"\",IF(EXACT(Dokumentenauswertung!$B31,Dokumentenauswertung!AH31)=TRUE,Dokumentenauswertung!$C31,0))","v":""},{"$f":"IF(Dokumentenauswertung!AI$10=\"\",\"\",IF(EXACT(Dokumentenauswertung!$B31,Dokumentenauswertung!AI31)=TRUE,Dokumentenauswertung!$C31,0))","v":""},{"$f":"IF(Dokumentenauswertung!AJ$10=\"\",\"\",IF(EXACT(Dokumentenauswertung!$B31,Dokumentenauswertung!AJ31)=TRUE,Dokumentenauswertung!$C31,0))","v":""},{"$f":"IF(Dokumentenauswertung!AK$10=\"\",\"\",IF(EXACT(Dokumentenauswertung!$B31,Dokumentenauswertung!AK31)=TRUE,Dokumentenauswertung!$C31,0))","v":""}]
[null,null,{"$f":"Dokumentenauswertung!$A32","v":"B1.1"},{"$f":"IF(Dokumentenauswertung!E$10=\"\",\"\",IF(EXACT(Dokumentenauswertung!$B32,Dokumentenauswertung!E32)=TRUE,Dokumentenauswertung!$C32,0))","v":""},{"$f":"IF(Dokumentenauswertung!F$10=\"\",\"\",IF(EXACT(Dokumentenauswertung!$B32,Dokumentenauswertung!F32)=TRUE,Dokumentenauswertung!$C32,0))","v":""},{"$f":"IF(Dokumentenauswertung!G$10=\"\",\"\",IF(EXACT(Dokumentenauswertung!$B32,Dokumentenauswertung!G32)=TRUE,Dokumentenauswertung!$C32,0))","v":""},{"$f":"IF(Dokumentenauswertung!H$10=\"\",\"\",IF(EXACT(Dokumentenauswertung!$B32,Dokumentenauswertung!H32)=TRUE,Dokumentenauswertung!$C32,0))","v":""},{"$f":"IF(Dokumentenauswertung!I$10=\"\",\"\",IF(EXACT(Dokumentenauswertung!$B32,Dokumentenauswertung!I32)=TRUE,Dokumentenauswertung!$C32,0))","v":""},{"$f":"IF(Dokumentenauswertung!J$10=\"\",\"\",IF(EXACT(Dokumentenauswertung!$B32,Dokumentenauswertung!J32)=TRUE,Dokumentenauswertung!$C32,0))","v":""},{"$f":"IF(Dokumentenauswertung!K$10=\"\",\"\",IF(EXACT(Dokumentenauswertung!$B32,Dokumentenauswertung!K32)=TRUE,Dokumentenauswertung!$C32,0))","v":""},{"$f":"IF(Dokumentenauswertung!L$10=\"\",\"\",IF(EXACT(Dokumentenauswertung!$B32,Dokumentenauswertung!L32)=TRUE,Dokumentenauswertung!$C32,0))","v":""},{"$f":"IF(Dokumentenauswertung!M$10=\"\",\"\",IF(EXACT(Dokumentenauswertung!$B32,Dokumentenauswertung!M32)=TRUE,Dokumentenauswertung!$C32,0))","v":""},{"$f":"IF(Dokumentenauswertung!N$10=\"\",\"\",IF(EXACT(Dokumentenauswertung!$B32,Dokumentenauswertung!N32)=TRUE,Dokumentenauswertung!$C32,0))","v":""},{"$f":"IF(Dokumentenauswertung!O$10=\"\",\"\",IF(EXACT(Dokumentenauswertung!$B32,Dokumentenauswertung!O32)=TRUE,Dokumentenauswertung!$C32,0))","v":""},{"$f":"IF(Dokumentenauswertung!P$10=\"\",\"\",IF(EXACT(Dokumentenauswertung!$B32,Dokumentenauswertung!P32)=TRUE,Dokumentenauswertung!$C32,0))","v":""},{"$f":"IF(Dokumentenauswertung!Q$10=\"\",\"\",IF(EXACT(Dokumentenauswertung!$B32,Dokumentenauswertung!Q32)=TRUE,Dokumentenauswertung!$C32,0))","v":""},{"$f":"IF(Dokumentenauswertung!R$10=\"\",\"\",IF(EXACT(Dokumentenauswertung!$B32,Dokumentenauswertung!R32)=TRUE,Dokumentenauswertung!$C32,0))","v":""},{"$f":"IF(Dokumentenauswertung!S$10=\"\",\"\",IF(EXACT(Dokumentenauswertung!$B32,Dokumentenauswertung!S32)=TRUE,Dokumentenauswertung!$C32,0))","v":""},{"$f":"IF(Dokumentenauswertung!T$10=\"\",\"\",IF(EXACT(Dokumentenauswertung!$B32,Dokumentenauswertung!T32)=TRUE,Dokumentenauswertung!$C32,0))","v":""},{"$f":"IF(Dokumentenauswertung!U$10=\"\",\"\",IF(EXACT(Dokumentenauswertung!$B32,Dokumentenauswertung!U32)=TRUE,Dokumentenauswertung!$C32,0))","v":""},{"$f":"IF(Dokumentenauswertung!V$10=\"\",\"\",IF(EXACT(Dokumentenauswertung!$B32,Dokumentenauswertung!V32)=TRUE,Dokumentenauswertung!$C32,0))","v":""},{"$f":"IF(Dokumentenauswertung!W$10=\"\",\"\",IF(EXACT(Dokumentenauswertung!$B32,Dokumentenauswertung!W32)=TRUE,Dokumentenauswertung!$C32,0))","v":""},{"$f":"IF(Dokumentenauswertung!X$10=\"\",\"\",IF(EXACT(Dokumentenauswertung!$B32,Dokumentenauswertung!X32)=TRUE,Dokumentenauswertung!$C32,0))","v":""},{"$f":"IF(Dokumentenauswertung!Y$10=\"\",\"\",IF(EXACT(Dokumentenauswertung!$B32,Dokumentenauswertung!Y32)=TRUE,Dokumentenauswertung!$C32,0))","v":""},{"$f":"IF(Dokumentenauswertung!Z$10=\"\",\"\",IF(EXACT(Dokumentenauswertung!$B32,Dokumentenauswertung!Z32)=TRUE,Dokumentenauswertung!$C32,0))","v":""},{"$f":"IF(Dokumentenauswertung!AA$10=\"\",\"\",IF(EXACT(Dokumentenauswertung!$B32,Dokumentenauswertung!AA32)=TRUE,Dokumentenauswertung!$C32,0))","v":""},{"$f":"IF(Dokumentenauswertung!AB$10=\"\",\"\",IF(EXACT(Dokumentenauswertung!$B32,Dokumentenauswertung!AB32)=TRUE,Dokumentenauswertung!$C32,0))","v":""},{"$f":"IF(Dokumentenauswertung!AC$10=\"\",\"\",IF(EXACT(Dokumentenauswertung!$B32,Dokumentenauswertung!AC32)=TRUE,Dokumentenauswertung!$C32,0))","v":""},{"$f":"IF(Dokumentenauswertung!AD$10=\"\",\"\",IF(EXACT(Dokumentenauswertung!$B32,Dokumentenauswertung!AD32)=TRUE,Dokumentenauswertung!$C32,0))","v":""},{"$f":"IF(Dokumentenauswertung!AE$10=\"\",\"\",IF(EXACT(Dokumentenauswertung!$B32,Dokumentenauswertung!AE32)=TRUE,Dokumentenauswertung!$C32,0))","v":""},{"$f":"IF(Dokumentenauswertung!AF$10=\"\",\"\",IF(EXACT(Dokumentenauswertung!$B32,Dokumentenauswertung!AF32)=TRUE,Dokumentenauswertung!$C32,0))","v":""},{"$f":"IF(Dokumentenauswertung!AG$10=\"\",\"\",IF(EXACT(Dokumentenauswertung!$B32,Dokumentenauswertung!AG32)=TRUE,Dokumentenauswertung!$C32,0))","v":""},{"$f":"IF(Dokumentenauswertung!AH$10=\"\",\"\",IF(EXACT(Dokumentenauswertung!$B32,Dokumentenauswertung!AH32)=TRUE,Dokumentenauswertung!$C32,0))","v":""},{"$f":"IF(Dokumentenauswertung!AI$10=\"\",\"\",IF(EXACT(Dokumentenauswertung!$B32,Dokumentenauswertung!AI32)=TRUE,Dokumentenauswertung!$C32,0))","v":""},{"$f":"IF(Dokumentenauswertung!AJ$10=\"\",\"\",IF(EXACT(Dokumentenauswertung!$B32,Dokumentenauswertung!AJ32)=TRUE,Dokumentenauswertung!$C32,0))","v":""},{"$f":"IF(Dokumentenauswertung!AK$10=\"\",\"\",IF(EXACT(Dokumentenauswertung!$B32,Dokumentenauswertung!AK32)=TRUE,Dokumentenauswertung!$C32,0))","v":""}]
[null,null,{"$f":"Dokumentenauswertung!$A33","v":"B1.2"},{"$f":"IF(Dokumentenauswertung!E$10=\"\",\"\",IF(EXACT(Dokumentenauswertung!$B33,Dokumentenauswertung!E33)=TRUE,Dokumentenauswertung!$C33,0))","v":""},{"$f":"IF(Dokumentenauswertung!F$10=\"\",\"\",IF(EXACT(Dokumentenauswertung!$B33,Dokumentenauswertung!F33)=TRUE,Dokumentenauswertung!$C33,0))","v":""},{"$f":"IF(Dokumentenauswertung!G$10=\"\",\"\",IF(EXACT(Dokumentenauswertung!$B33,Dokumentenauswertung!G33)=TRUE,Dokumentenauswertung!$C33,0))","v":""},{"$f":"IF(Dokumentenauswertung!H$10=\"\",\"\",IF(EXACT(Dokumentenauswertung!$B33,Dokumentenauswertung!H33)=TRUE,Dokumentenauswertung!$C33,0))","v":""},{"$f":"IF(Dokumentenauswertung!I$10=\"\",\"\",IF(EXACT(Dokumentenauswertung!$B33,Dokumentenauswertung!I33)=TRUE,Dokumentenauswertung!$C33,0))","v":""},{"$f":"IF(Dokumentenauswertung!J$10=\"\",\"\",IF(EXACT(Dokumentenauswertung!$B33,Dokumentenauswertung!J33)=TRUE,Dokumentenauswertung!$C33,0))","v":""},{"$f":"IF(Dokumentenauswertung!K$10=\"\",\"\",IF(EXACT(Dokumentenauswertung!$B33,Dokumentenauswertung!K33)=TRUE,Dokumentenauswertung!$C33,0))","v":""},{"$f":"IF(Dokumentenauswertung!L$10=\"\",\"\",IF(EXACT(Dokumentenauswertung!$B33,Dokumentenauswertung!L33)=TRUE,Dokumentenauswertung!$C33,0))","v":""},{"$f":"IF(Dokumentenauswertung!M$10=\"\",\"\",IF(EXACT(Dokumentenauswertung!$B33,Dokumentenauswertung!M33)=TRUE,Dokumentenauswertung!$C33,0))","v":""},{"$f":"IF(Dokumentenauswertung!N$10=\"\",\"\",IF(EXACT(Dokumentenauswertung!$B33,Dokumentenauswertung!N33)=TRUE,Dokumentenauswertung!$C33,0))","v":""},{"$f":"IF(Dokumentenauswertung!O$10=\"\",\"\",IF(EXACT(Dokumentenauswertung!$B33,Dokumentenauswertung!O33)=TRUE,Dokumentenauswertung!$C33,0))","v":""},{"$f":"IF(Dokumentenauswertung!P$10=\"\",\"\",IF(EXACT(Dokumentenauswertung!$B33,Dokumentenauswertung!P33)=TRUE,Dokumentenauswertung!$C33,0))","v":""},{"$f":"IF(Dokumentenauswertung!Q$10=\"\",\"\",IF(EXACT(Dokumentenauswertung!$B33,Dokumentenauswertung!Q33)=TRUE,Dokumentenauswertung!$C33,0))","v":""},{"$f":"IF(Dokumentenauswertung!R$10=\"\",\"\",IF(EXACT(Dokumentenauswertung!$B33,Dokumentenauswertung!R33)=TRUE,Dokumentenauswertung!$C33,0))","v":""},{"$f":"IF(Dokumentenauswertung!S$10=\"\",\"\",IF(EXACT(Dokumentenauswertung!$B33,Dokumentenauswertung!S33)=TRUE,Dokumentenauswertung!$C33,0))","v":""},{"$f":"IF(Dokumentenauswertung!T$10=\"\",\"\",IF(EXACT(Dokumentenauswertung!$B33,Dokumentenauswertung!T33)=TRUE,Dokumentenauswertung!$C33,0))","v":""},{"$f":"IF(Dokumentenauswertung!U$10=\"\",\"\",IF(EXACT(Dokumentenauswertung!$B33,Dokumentenauswertung!U33)=TRUE,Dokumentenauswertung!$C33,0))","v":""},{"$f":"IF(Dokumentenauswertung!V$10=\"\",\"\",IF(EXACT(Dokumentenauswertung!$B33,Dokumentenauswertung!V33)=TRUE,Dokumentenauswertung!$C33,0))","v":""},{"$f":"IF(Dokumentenauswertung!W$10=\"\",\"\",IF(EXACT(Dokumentenauswertung!$B33,Dokumentenauswertung!W33)=TRUE,Dokumentenauswertung!$C33,0))","v":""},{"$f":"IF(Dokumentenauswertung!X$10=\"\",\"\",IF(EXACT(Dokumentenauswertung!$B33,Dokumentenauswertung!X33)=TRUE,Dokumentenauswertung!$C33,0))","v":""},{"$f":"IF(Dokumentenauswertung!Y$10=\"\",\"\",IF(EXACT(Dokumentenauswertung!$B33,Dokumentenauswertung!Y33)=TRUE,Dokumentenauswertung!$C33,0))","v":""},{"$f":"IF(Dokumentenauswertung!Z$10=\"\",\"\",IF(EXACT(Dokumentenauswertung!$B33,Dokumentenauswertung!Z33)=TRUE,Dokumentenauswertung!$C33,0))","v":""},{"$f":"IF(Dokumentenauswertung!AA$10=\"\",\"\",IF(EXACT(Dokumentenauswertung!$B33,Dokumentenauswertung!AA33)=TRUE,Dokumentenauswertung!$C33,0))","v":""},{"$f":"IF(Dokumentenauswertung!AB$10=\"\",\"\",IF(EXACT(Dokumentenauswertung!$B33,Dokumentenauswertung!AB33)=TRUE,Dokumentenauswertung!$C33,0))","v":""},{"$f":"IF(Dokumentenauswertung!AC$10=\"\",\"\",IF(EXACT(Dokumentenauswertung!$B33,Dokumentenauswertung!AC33)=TRUE,Dokumentenauswertung!$C33,0))","v":""},{"$f":"IF(Dokumentenauswertung!AD$10=\"\",\"\",IF(EXACT(Dokumentenauswertung!$B33,Dokumentenauswertung!AD33)=TRUE,Dokumentenauswertung!$C33,0))","v":""},{"$f":"IF(Dokumentenauswertung!AE$10=\"\",\"\",IF(EXACT(Dokumentenauswertung!$B33,Dokumentenauswertung!AE33)=TRUE,Dokumentenauswertung!$C33,0))","v":""},{"$f":"IF(Dokumentenauswertung!AF$10=\"\",\"\",IF(EXACT(Dokumentenauswertung!$B33,Dokumentenauswertung!AF33)=TRUE,Dokumentenauswertung!$C33,0))","v":""},{"$f":"IF(Dokumentenauswertung!AG$10=\"\",\"\",IF(EXACT(Dokumentenauswertung!$B33,Dokumentenauswertung!AG33)=TRUE,Dokumentenauswertung!$C33,0))","v":""},{"$f":"IF(Dokumentenauswertung!AH$10=\"\",\"\",IF(EXACT(Dokumentenauswertung!$B33,Dokumentenauswertung!AH33)=TRUE,Dokumentenauswertung!$C33,0))","v":""},{"$f":"IF(Dokumentenauswertung!AI$10=\"\",\"\",IF(EXACT(Dokumentenauswertung!$B33,Dokumentenauswertung!AI33)=TRUE,Dokumentenauswertung!$C33,0))","v":""},{"$f":"IF(Dokumentenauswertung!AJ$10=\"\",\"\",IF(EXACT(Dokumentenauswertung!$B33,Dokumentenauswertung!AJ33)=TRUE,Dokumentenauswertung!$C33,0))","v":""},{"$f":"IF(Dokumentenauswertung!AK$10=\"\",\"\",IF(EXACT(Dokumentenauswertung!$B33,Dokumentenauswertung!AK33)=TRUE,Dokumentenauswertung!$C33,0))","v":""}]
[null,null,{"$f":"Dokumentenauswertung!$A34","v":"B2.1"},{"$f":"IF(Dokumentenauswertung!E$10=\"\",\"\",IF(EXACT(Dokumentenauswertung!$B34,Dokumentenauswertung!E34)=TRUE,Dokumentenauswertung!$C34,0))","v":""},{"$f":"IF(Dokumentenauswertung!F$10=\"\",\"\",IF(EXACT(Dokumentenauswertung!$B34,Dokumentenauswertung!F34)=TRUE,Dokumentenauswertung!$C34,0))","v":""},{"$f":"IF(Dokumentenauswertung!G$10=\"\",\"\",IF(EXACT(Dokumentenauswertung!$B34,Dokumentenauswertung!G34)=TRUE,Dokumentenauswertung!$C34,0))","v":""},{"$f":"IF(Dokumentenauswertung!H$10=\"\",\"\",IF(EXACT(Dokumentenauswertung!$B34,Dokumentenauswertung!H34)=TRUE,Dokumentenauswertung!$C34,0))","v":""},{"$f":"IF(Dokumentenauswertung!I$10=\"\",\"\",IF(EXACT(Dokumentenauswertung!$B34,Dokumentenauswertung!I34)=TRUE,Dokumentenauswertung!$C34,0))","v":""},{"$f":"IF(Dokumentenauswertung!J$10=\"\",\"\",IF(EXACT(Dokumentenauswertung!$B34,Dokumentenauswertung!J34)=TRUE,Dokumentenauswertung!$C34,0))","v":""},{"$f":"IF(Dokumentenauswertung!K$10=\"\",\"\",IF(EXACT(Dokumentenauswertung!$B34,Dokumentenauswertung!K34)=TRUE,Dokumentenauswertung!$C34,0))","v":""},{"$f":"IF(Dokumentenauswertung!L$10=\"\",\"\",IF(EXACT(Dokumentenauswertung!$B34,Dokumentenauswertung!L34)=TRUE,Dokumentenauswertung!$C34,0))","v":""},{"$f":"IF(Dokumentenauswertung!M$10=\"\",\"\",IF(EXACT(Dokumentenauswertung!$B34,Dokumentenauswertung!M34)=TRUE,Dokumentenauswertung!$C34,0))","v":""},{"$f":"IF(Dokumentenauswertung!N$10=\"\",\"\",IF(EXACT(Dokumentenauswertung!$B34,Dokumentenauswertung!N34)=TRUE,Dokumentenauswertung!$C34,0))","v":""},{"$f":"IF(Dokumentenauswertung!O$10=\"\",\"\",IF(EXACT(Dokumentenauswertung!$B34,Dokumentenauswertung!O34)=TRUE,Dokumentenauswertung!$C34,0))","v":""},{"$f":"IF(Dokumentenauswertung!P$10=\"\",\"\",IF(EXACT(Dokumentenauswertung!$B34,Dokumentenauswertung!P34)=TRUE,Dokumentenauswertung!$C34,0))","v":""},{"$f":"IF(Dokumentenauswertung!Q$10=\"\",\"\",IF(EXACT(Dokumentenauswertung!$B34,Dokumentenauswertung!Q34)=TRUE,Dokumentenauswertung!$C34,0))","v":""},{"$f":"IF(Dokumentenauswertung!R$10=\"\",\"\",IF(EXACT(Dokumentenauswertung!$B34,Dokumentenauswertung!R34)=TRUE,Dokumentenauswertung!$C34,0))","v":""},{"$f":"IF(Dokumentenauswertung!S$10=\"\",\"\",IF(EXACT(Dokumentenauswertung!$B34,Dokumentenauswertung!S34)=TRUE,Dokumentenauswertung!$C34,0))","v":""},{"$f":"IF(Dokumentenauswertung!T$10=\"\",\"\",IF(EXACT(Dokumentenauswertung!$B34,Dokumentenauswertung!T34)=TRUE,Dokumentenauswertung!$C34,0))","v":""},{"$f":"IF(Dokumentenauswertung!U$10=\"\",\"\",IF(EXACT(Dokumentenauswertung!$B34,Dokumentenauswertung!U34)=TRUE,Dokumentenauswertung!$C34,0))","v":""},{"$f":"IF(Dokumentenauswertung!V$10=\"\",\"\",IF(EXACT(Dokumentenauswertung!$B34,Dokumentenauswertung!V34)=TRUE,Dokumentenauswertung!$C34,0))","v":""},{"$f":"IF(Dokumentenauswertung!W$10=\"\",\"\",IF(EXACT(Dokumentenauswertung!$B34,Dokumentenauswertung!W34)=TRUE,Dokumentenauswertung!$C34,0))","v":""},{"$f":"IF(Dokumentenauswertung!X$10=\"\",\"\",IF(EXACT(Dokumentenauswertung!$B34,Dokumentenauswertung!X34)=TRUE,Dokumentenauswertung!$C34,0))","v":""},{"$f":"IF(Dokumentenauswertung!Y$10=\"\",\"\",IF(EXACT(Dokumentenauswertung!$B34,Dokumentenauswertung!Y34)=TRUE,Dokumentenauswertung!$C34,0))","v":""},{"$f":"IF(Dokumentenauswertung!Z$10=\"\",\"\",IF(EXACT(Dokumentenauswertung!$B34,Dokumentenauswertung!Z34)=TRUE,Dokumentenauswertung!$C34,0))","v":""},{"$f":"IF(Dokumentenauswertung!AA$10=\"\",\"\",IF(EXACT(Dokumentenauswertung!$B34,Dokumentenauswertung!AA34)=TRUE,Dokumentenauswertung!$C34,0))","v":""},{"$f":"IF(Dokumentenauswertung!AB$10=\"\",\"\",IF(EXACT(Dokumentenauswertung!$B34,Dokumentenauswertung!AB34)=TRUE,Dokumentenauswertung!$C34,0))","v":""},{"$f":"IF(Dokumentenauswertung!AC$10=\"\",\"\",IF(EXACT(Dokumentenauswertung!$B34,Dokumentenauswertung!AC34)=TRUE,Dokumentenauswertung!$C34,0))","v":""},{"$f":"IF(Dokumentenauswertung!AD$10=\"\",\"\",IF(EXACT(Dokumentenauswertung!$B34,Dokumentenauswertung!AD34)=TRUE,Dokumentenauswertung!$C34,0))","v":""},{"$f":"IF(Dokumentenauswertung!AE$10=\"\",\"\",IF(EXACT(Dokumentenauswertung!$B34,Dokumentenauswertung!AE34)=TRUE,Dokumentenauswertung!$C34,0))","v":""},{"$f":"IF(Dokumentenauswertung!AF$10=\"\",\"\",IF(EXACT(Dokumentenauswertung!$B34,Dokumentenauswertung!AF34)=TRUE,Dokumentenauswertung!$C34,0))","v":""},{"$f":"IF(Dokumentenauswertung!AG$10=\"\",\"\",IF(EXACT(Dokumentenauswertung!$B34,Dokumentenauswertung!AG34)=TRUE,Dokumentenauswertung!$C34,0))","v":""},{"$f":"IF(Dokumentenauswertung!AH$10=\"\",\"\",IF(EXACT(Dokumentenauswertung!$B34,Dokumentenauswertung!AH34)=TRUE,Dokumentenauswertung!$C34,0))","v":""},{"$f":"IF(Dokumentenauswertung!AI$10=\"\",\"\",IF(EXACT(Dokumentenauswertung!$B34,Dokumentenauswertung!AI34)=TRUE,Dokumentenauswertung!$C34,0))","v":""},{"$f":"IF(Dokumentenauswertung!AJ$10=\"\",\"\",IF(EXACT(Dokumentenauswertung!$B34,Dokumentenauswertung!AJ34)=TRUE,Dokumentenauswertung!$C34,0))","v":""},{"$f":"IF(Dokumentenauswertung!AK$10=\"\",\"\",IF(EXACT(Dokumentenauswertung!$B34,Dokumentenauswertung!AK34)=TRUE,Dokumentenauswertung!$C34,0))","v":""}]
[null,null,{"$f":"Dokumentenauswertung!$A35","v":"B2.2"},{"$f":"IF(Dokumentenauswertung!E$10=\"\",\"\",IF(EXACT(Dokumentenauswertung!$B35,Dokumentenauswertung!E35)=TRUE,Dokumentenauswertung!$C35,0))","v":""},{"$f":"IF(Dokumentenauswertung!F$10=\"\",\"\",IF(EXACT(Dokumentenauswertung!$B35,Dokumentenauswertung!F35)=TRUE,Dokumentenauswertung!$C35,0))","v":""},{"$f":"IF(Dokumentenauswertung!G$10=\"\",\"\",IF(EXACT(Dokumentenauswertung!$B35,Dokumentenauswertung!G35)=TRUE,Dokumentenauswertung!$C35,0))","v":""},{"$f":"IF(Dokumentenauswertung!H$10=\"\",\"\",IF(EXACT(Dokumentenauswertung!$B35,Dokumentenauswertung!H35)=TRUE,Dokumentenauswertung!$C35,0))","v":""},{"$f":"IF(Dokumentenauswertung!I$10=\"\",\"\",IF(EXACT(Dokumentenauswertung!$B35,Dokumentenauswertung!I35)=TRUE,Dokumentenauswertung!$C35,0))","v":""},{"$f":"IF(Dokumentenauswertung!J$10=\"\",\"\",IF(EXACT(Dokumentenauswertung!$B35,Dokumentenauswertung!J35)=TRUE,Dokumentenauswertung!$C35,0))","v":""},{"$f":"IF(Dokumentenauswertung!K$10=\"\",\"\",IF(EXACT(Dokumentenauswertung!$B35,Dokumentenauswertung!K35)=TRUE,Dokumentenauswertung!$C35,0))","v":""},{"$f":"IF(Dokumentenauswertung!L$10=\"\",\"\",IF(EXACT(Dokumentenauswertung!$B35,Dokumentenauswertung!L35)=TRUE,Dokumentenauswertung!$C35,0))","v":""},{"$f":"IF(Dokumentenauswertung!M$10=\"\",\"\",IF(EXACT(Dokumentenauswertung!$B35,Dokumentenauswertung!M35)=TRUE,Dokumentenauswertung!$C35,0))","v":""},{"$f":"IF(Dokumentenauswertung!N$10=\"\",\"\",IF(EXACT(Dokumentenauswertung!$B35,Dokumentenauswertung!N35)=TRUE,Dokumentenauswertung!$C35,0))","v":""},{"$f":"IF(Dokumentenauswertung!O$10=\"\",\"\",IF(EXACT(Dokumentenauswertung!$B35,Dokumentenauswertung!O35)=TRUE,Dokumentenauswertung!$C35,0))","v":""},{"$f":"IF(Dokumentenauswertung!P$10=\"\",\"\",IF(EXACT(Dokumentenauswertung!$B35,Dokumentenauswertung!P35)=TRUE,Dokumentenauswertung!$C35,0))","v":""},{"$f":"IF(Dokumentenauswertung!Q$10=\"\",\"\",IF(EXACT(Dokumentenauswertung!$B35,Dokumentenauswertung!Q35)=TRUE,Dokumentenauswertung!$C35,0))","v":""},{"$f":"IF(Dokumentenauswertung!R$10=\"\",\"\",IF(EXACT(Dokumentenauswertung!$B35,Dokumentenauswertung!R35)=TRUE,Dokumentenauswertung!$C35,0))","v":""},{"$f":"IF(Dokumentenauswertung!S$10=\"\",\"\",IF(EXACT(Dokumentenauswertung!$B35,Dokumentenauswertung!S35)=TRUE,Dokumentenauswertung!$C35,0))","v":""},{"$f":"IF(Dokumentenauswertung!T$10=\"\",\"\",IF(EXACT(Dokumentenauswertung!$B35,Dokumentenauswertung!T35)=TRUE,Dokumentenauswertung!$C35,0))","v":""},{"$f":"IF(Dokumentenauswertung!U$10=\"\",\"\",IF(EXACT(Dokumentenauswertung!$B35,Dokumentenauswertung!U35)=TRUE,Dokumentenauswertung!$C35,0))","v":""},{"$f":"IF(Dokumentenauswertung!V$10=\"\",\"\",IF(EXACT(Dokumentenauswertung!$B35,Dokumentenauswertung!V35)=TRUE,Dokumentenauswertung!$C35,0))","v":""},{"$f":"IF(Dokumentenauswertung!W$10=\"\",\"\",IF(EXACT(Dokumentenauswertung!$B35,Dokumentenauswertung!W35)=TRUE,Dokumentenauswertung!$C35,0))","v":""},{"$f":"IF(Dokumentenauswertung!X$10=\"\",\"\",IF(EXACT(Dokumentenauswertung!$B35,Dokumentenauswertung!X35)=TRUE,Dokumentenauswertung!$C35,0))","v":""},{"$f":"IF(Dokumentenauswertung!Y$10=\"\",\"\",IF(EXACT(Dokumentenauswertung!$B35,Dokumentenauswertung!Y35)=TRUE,Dokumentenauswertung!$C35,0))","v":""},{"$f":"IF(Dokumentenauswertung!Z$10=\"\",\"\",IF(EXACT(Dokumentenauswertung!$B35,Dokumentenauswertung!Z35)=TRUE,Dokumentenauswertung!$C35,0))","v":""},{"$f":"IF(Dokumentenauswertung!AA$10=\"\",\"\",IF(EXACT(Dokumentenauswertung!$B35,Dokumentenauswertung!AA35)=TRUE,Dokumentenauswertung!$C35,0))","v":""},{"$f":"IF(Dokumentenauswertung!AB$10=\"\",\"\",IF(EXACT(Dokumentenauswertung!$B35,Dokumentenauswertung!AB35)=TRUE,Dokumentenauswertung!$C35,0))","v":""},{"$f":"IF(Dokumentenauswertung!AC$10=\"\",\"\",IF(EXACT(Dokumentenauswertung!$B35,Dokumentenauswertung!AC35)=TRUE,Dokumentenauswertung!$C35,0))","v":""},{"$f":"IF(Dokumentenauswertung!AD$10=\"\",\"\",IF(EXACT(Dokumentenauswertung!$B35,Dokumentenauswertung!AD35)=TRUE,Dokumentenauswertung!$C35,0))","v":""},{"$f":"IF(Dokumentenauswertung!AE$10=\"\",\"\",IF(EXACT(Dokumentenauswertung!$B35,Dokumentenauswertung!AE35)=TRUE,Dokumentenauswertung!$C35,0))","v":""},{"$f":"IF(Dokumentenauswertung!AF$10=\"\",\"\",IF(EXACT(Dokumentenauswertung!$B35,Dokumentenauswertung!AF35)=TRUE,Dokumentenauswertung!$C35,0))","v":""},{"$f":"IF(Dokumentenauswertung!AG$10=\"\",\"\",IF(EXACT(Dokumentenauswertung!$B35,Dokumentenauswertung!AG35)=TRUE,Dokumentenauswertung!$C35,0))","v":""},{"$f":"IF(Dokumentenauswertung!AH$10=\"\",\"\",IF(EXACT(Dokumentenauswertung!$B35,Dokumentenauswertung!AH35)=TRUE,Dokumentenauswertung!$C35,0))","v":""},{"$f":"IF(Dokumentenauswertung!AI$10=\"\",\"\",IF(EXACT(Dokumentenauswertung!$B35,Dokumentenauswertung!AI35)=TRUE,Dokumentenauswertung!$C35,0))","v":""},{"$f":"IF(Dokumentenauswertung!AJ$10=\"\",\"\",IF(EXACT(Dokumentenauswertung!$B35,Dokumentenauswertung!AJ35)=TRUE,Dokumentenauswertung!$C35,0))","v":""},{"$f":"IF(Dokumentenauswertung!AK$10=\"\",\"\",IF(EXACT(Dokumentenauswertung!$B35,Dokumentenauswertung!AK35)=TRUE,Dokumentenauswertung!$C35,0))","v":""}]
[null,null,{"$f":"Dokumentenauswertung!$A36","v":"B3.1"},{"$f":"IF(Dokumentenauswertung!E$10=\"\",\"\",IF(EXACT(Dokumentenauswertung!$B36,Dokumentenauswertung!E36)=TRUE,Dokumentenauswertung!$C36,0))","v":""},{"$f":"IF(Dokumentenauswertung!F$10=\"\",\"\",IF(EXACT(Dokumentenauswertung!$B36,Dokumentenauswertung!F36)=TRUE,Dokumentenauswertung!$C36,0))","v":""},{"$f":"IF(Dokumentenauswertung!G$10=\"\",\"\",IF(EXACT(Dokumentenauswertung!$B36,Dokumentenauswertung!G36)=TRUE,Dokumentenauswertung!$C36,0))","v":""},{"$f":"IF(Dokumentenauswertung!H$10=\"\",\"\",IF(EXACT(Dokumentenauswertung!$B36,Dokumentenauswertung!H36)=TRUE,Dokumentenauswertung!$C36,0))","v":""},{"$f":"IF(Dokumentenauswertung!I$10=\"\",\"\",IF(EXACT(Dokumentenauswertung!$B36,Dokumentenauswertung!I36)=TRUE,Dokumentenauswertung!$C36,0))","v":""},{"$f":"IF(Dokumentenauswertung!J$10=\"\",\"\",IF(EXACT(Dokumentenauswertung!$B36,Dokumentenauswertung!J36)=TRUE,Dokumentenauswertung!$C36,0))","v":""},{"$f":"IF(Dokumentenauswertung!K$10=\"\",\"\",IF(EXACT(Dokumentenauswertung!$B36,Dokumentenauswertung!K36)=TRUE,Dokumentenauswertung!$C36,0))","v":""},{"$f":"IF(Dokumentenauswertung!L$10=\"\",\"\",IF(EXACT(Dokumentenauswertung!$B36,Dokumentenauswertung!L36)=TRUE,Dokumentenauswertung!$C36,0))","v":""},{"$f":"IF(Dokumentenauswertung!M$10=\"\",\"\",IF(EXACT(Dokumentenauswertung!$B36,Dokumentenauswertung!M36)=TRUE,Dokumentenauswertung!$C36,0))","v":""},{"$f":"IF(Dokumentenauswertung!N$10=\"\",\"\",IF(EXACT(Dokumentenauswertung!$B36,Dokumentenauswertung!N36)=TRUE,Dokumentenauswertung!$C36,0))","v":""},{"$f":"IF(Dokumentenauswertung!O$10=\"\",\"\",IF(EXACT(Dokumentenauswertung!$B36,Dokumentenauswertung!O36)=TRUE,Dokumentenauswertung!$C36,0))","v":""},{"$f":"IF(Dokumentenauswertung!P$10=\"\",\"\",IF(EXACT(Dokumentenauswertung!$B36,Dokumentenauswertung!P36)=TRUE,Dokumentenauswertung!$C36,0))","v":""},{"$f":"IF(Dokumentenauswertung!Q$10=\"\",\"\",IF(EXACT(Dokumentenauswertung!$B36,Dokumentenauswertung!Q36)=TRUE,Dokumentenauswertung!$C36,0))","v":""},{"$f":"IF(Dokumentenauswertung!R$10=\"\",\"\",IF(EXACT(Dokumentenauswertung!$B36,Dokumentenauswertung!R36)=TRUE,Dokumentenauswertung!$C36,0))","v":""},{"$f":"IF(Dokumentenauswertung!S$10=\"\",\"\",IF(EXACT(Dokumentenauswertung!$B36,Dokumentenauswertung!S36)=TRUE,Dokumentenauswertung!$C36,0))","v":""},{"$f":"IF(Dokumentenauswertung!T$10=\"\",\"\",IF(EXACT(Dokumentenauswertung!$B36,Dokumentenauswertung!T36)=TRUE,Dokumentenauswertung!$C36,0))","v":""},{"$f":"IF(Dokumentenauswertung!U$10=\"\",\"\",IF(EXACT(Dokumentenauswertung!$B36,Dokumentenauswertung!U36)=TRUE,Dokumentenauswertung!$C36,0))","v":""},{"$f":"IF(Dokumentenauswertung!V$10=\"\",\"\",IF(EXACT(Dokumentenauswertung!$B36,Dokumentenauswertung!V36)=TRUE,Dokumentenauswertung!$C36,0))","v":""},{"$f":"IF(Dokumentenauswertung!W$10=\"\",\"\",IF(EXACT(Dokumentenauswertung!$B36,Dokumentenauswertung!W36)=TRUE,Dokumentenauswertung!$C36,0))","v":""},{"$f":"IF(Dokumentenauswertung!X$10=\"\",\"\",IF(EXACT(Dokumentenauswertung!$B36,Dokumentenauswertung!X36)=TRUE,Dokumentenauswertung!$C36,0))","v":""},{"$f":"IF(Dokumentenauswertung!Y$10=\"\",\"\",IF(EXACT(Dokumentenauswertung!$B36,Dokumentenauswertung!Y36)=TRUE,Dokumentenauswertung!$C36,0))","v":""},{"$f":"IF(Dokumentenauswertung!Z$10=\"\",\"\",IF(EXACT(Dokumentenauswertung!$B36,Dokumentenauswertung!Z36)=TRUE,Dokumentenauswertung!$C36,0))","v":""},{"$f":"IF(Dokumentenauswertung!AA$10=\"\",\"\",IF(EXACT(Dokumentenauswertung!$B36,Dokumentenauswertung!AA36)=TRUE,Dokumentenauswertung!$C36,0))","v":""},{"$f":"IF(Dokumentenauswertung!AB$10=\"\",\"\",IF(EXACT(Dokumentenauswertung!$B36,Dokumentenauswertung!AB36)=TRUE,Dokumentenauswertung!$C36,0))","v":""},{"$f":"IF(Dokumentenauswertung!AC$10=\"\",\"\",IF(EXACT(Dokumentenauswertung!$B36,Dokumentenauswertung!AC36)=TRUE,Dokumentenauswertung!$C36,0))","v":""},{"$f":"IF(Dokumentenauswertung!AD$10=\"\",\"\",IF(EXACT(Dokumentenauswertung!$B36,Dokumentenauswertung!AD36)=TRUE,Dokumentenauswertung!$C36,0))","v":""},{"$f":"IF(Dokumentenauswertung!AE$10=\"\",\"\",IF(EXACT(Dokumentenauswertung!$B36,Dokumentenauswertung!AE36)=TRUE,Dokumentenauswertung!$C36,0))","v":""},{"$f":"IF(Dokumentenauswertung!AF$10=\"\",\"\",IF(EXACT(Dokumentenauswertung!$B36,Dokumentenauswertung!AF36)=TRUE,Dokumentenauswertung!$C36,0))","v":""},{"$f":"IF(Dokumentenauswertung!AG$10=\"\",\"\",IF(EXACT(Dokumentenauswertung!$B36,Dokumentenauswertung!AG36)=TRUE,Dokumentenauswertung!$C36,0))","v":""},{"$f":"IF(Dokumentenauswertung!AH$10=\"\",\"\",IF(EXACT(Dokumentenauswertung!$B36,Dokumentenauswertung!AH36)=TRUE,Dokumentenauswertung!$C36,0))","v":""},{"$f":"IF(Dokumentenauswertung!AI$10=\"\",\"\",IF(EXACT(Dokumentenauswertung!$B36,Dokumentenauswertung!AI36)=TRUE,Dokumentenauswertung!$C36,0))","v":""},{"$f":"IF(Dokumentenauswertung!AJ$10=\"\",\"\",IF(EXACT(Dokumentenauswertung!$B36,Dokumentenauswertung!AJ36)=TRUE,Dokumentenauswertung!$C36,0))","v":""},{"$f":"IF(Dokumentenauswertung!AK$10=\"\",\"\",IF(EXACT(Dokumentenauswertung!$B36,Dokumentenauswertung!AK36)=TRUE,Dokumentenauswertung!$C36,0))","v":""}]
[null,null,{"$f":"Dokumentenauswertung!$A37","v":"B3.2"},{"$f":"IF(Dokumentenauswertung!E$10=\"\",\"\",IF(EXACT(Dokumentenauswertung!$B37,Dokumentenauswertung!E37)=TRUE,Dokumentenauswertung!$C37,0))","v":""},{"$f":"IF(Dokumentenauswertung!F$10=\"\",\"\",IF(EXACT(Dokumentenauswertung!$B37,Dokumentenauswertung!F37)=TRUE,Dokumentenauswertung!$C37,0))","v":""},{"$f":"IF(Dokumentenauswertung!G$10=\"\",\"\",IF(EXACT(Dokumentenauswertung!$B37,Dokumentenauswertung!G37)=TRUE,Dokumentenauswertung!$C37,0))","v":""},{"$f":"IF(Dokumentenauswertung!H$10=\"\",\"\",IF(EXACT(Dokumentenauswertung!$B37,Dokumentenauswertung!H37)=TRUE,Dokumentenauswertung!$C37,0))","v":""},{"$f":"IF(Dokumentenauswertung!I$10=\"\",\"\",IF(EXACT(Dokumentenauswertung!$B37,Dokumentenauswertung!I37)=TRUE,Dokumentenauswertung!$C37,0))","v":""},{"$f":"IF(Dokumentenauswertung!J$10=\"\",\"\",IF(EXACT(Dokumentenauswertung!$B37,Dokumentenauswertung!J37)=TRUE,Dokumentenauswertung!$C37,0))","v":""},{"$f":"IF(Dokumentenauswertung!K$10=\"\",\"\",IF(EXACT(Dokumentenauswertung!$B37,Dokumentenauswertung!K37)=TRUE,Dokumentenauswertung!$C37,0))","v":""},{"$f":"IF(Dokumentenauswertung!L$10=\"\",\"\",IF(EXACT(Dokumentenauswertung!$B37,Dokumentenauswertung!L37)=TRUE,Dokumentenauswertung!$C37,0))","v":""},{"$f":"IF(Dokumentenauswertung!M$10=\"\",\"\",IF(EXACT(Dokumentenauswertung!$B37,Dokumentenauswertung!M37)=TRUE,Dokumentenauswertung!$C37,0))","v":""},{"$f":"IF(Dokumentenauswertung!N$10=\"\",\"\",IF(EXACT(Dokumentenauswertung!$B37,Dokumentenauswertung!N37)=TRUE,Dokumentenauswertung!$C37,0))","v":""},{"$f":"IF(Dokumentenauswertung!O$10=\"\",\"\",IF(EXACT(Dokumentenauswertung!$B37,Dokumentenauswertung!O37)=TRUE,Dokumentenauswertung!$C37,0))","v":""},{"$f":"IF(Dokumentenauswertung!P$10=\"\",\"\",IF(EXACT(Dokumentenauswertung!$B37,Dokumentenauswertung!P37)=TRUE,Dokumentenauswertung!$C37,0))","v":""},{"$f":"IF(Dokumentenauswertung!Q$10=\"\",\"\",IF(EXACT(Dokumentenauswertung!$B37,Dokumentenauswertung!Q37)=TRUE,Dokumentenauswertung!$C37,0))","v":""},{"$f":"IF(Dokumentenauswertung!R$10=\"\",\"\",IF(EXACT(Dokumentenauswertung!$B37,Dokumentenauswertung!R37)=TRUE,Dokumentenauswertung!$C37,0))","v":""},{"$f":"IF(Dokumentenauswertung!S$10=\"\",\"\",IF(EXACT(Dokumentenauswertung!$B37,Dokumentenauswertung!S37)=TRUE,Dokumentenauswertung!$C37,0))","v":""},{"$f":"IF(Dokumentenauswertung!T$10=\"\",\"\",IF(EXACT(Dokumentenauswertung!$B37,Dokumentenauswertung!T37)=TRUE,Dokumentenauswertung!$C37,0))","v":""},{"$f":"IF(Dokumentenauswertung!U$10=\"\",\"\",IF(EXACT(Dokumentenauswertung!$B37,Dokumentenauswertung!U37)=TRUE,Dokumentenauswertung!$C37,0))","v":""},{"$f":"IF(Dokumentenauswertung!V$10=\"\",\"\",IF(EXACT(Dokumentenauswertung!$B37,Dokumentenauswertung!V37)=TRUE,Dokumentenauswertung!$C37,0))","v":""},{"$f":"IF(Dokumentenauswertung!W$10=\"\",\"\",IF(EXACT(Dokumentenauswertung!$B37,Dokumentenauswertung!W37)=TRUE,Dokumentenauswertung!$C37,0))","v":""},{"$f":"IF(Dokumentenauswertung!X$10=\"\",\"\",IF(EXACT(Dokumentenauswertung!$B37,Dokumentenauswertung!X37)=TRUE,Dokumentenauswertung!$C37,0))","v":""},{"$f":"IF(Dokumentenauswertung!Y$10=\"\",\"\",IF(EXACT(Dokumentenauswertung!$B37,Dokumentenauswertung!Y37)=TRUE,Dokumentenauswertung!$C37,0))","v":""},{"$f":"IF(Dokumentenauswertung!Z$10=\"\",\"\",IF(EXACT(Dokumentenauswertung!$B37,Dokumentenauswertung!Z37)=TRUE,Dokumentenauswertung!$C37,0))","v":""},{"$f":"IF(Dokumentenauswertung!AA$10=\"\",\"\",IF(EXACT(Dokumentenauswertung!$B37,Dokumentenauswertung!AA37)=TRUE,Dokumentenauswertung!$C37,0))","v":""},{"$f":"IF(Dokumentenauswertung!AB$10=\"\",\"\",IF(EXACT(Dokumentenauswertung!$B37,Dokumentenauswertung!AB37)=TRUE,Dokumentenauswertung!$C37,0))","v":""},{"$f":"IF(Dokumentenauswertung!AC$10=\"\",\"\",IF(EXACT(Dokumentenauswertung!$B37,Dokumentenauswertung!AC37)=TRUE,Dokumentenauswertung!$C37,0))","v":""},{"$f":"IF(Dokumentenauswertung!AD$10=\"\",\"\",IF(EXACT(Dokumentenauswertung!$B37,Dokumentenauswertung!AD37)=TRUE,Dokumentenauswertung!$C37,0))","v":""},{"$f":"IF(Dokumentenauswertung!AE$10=\"\",\"\",IF(EXACT(Dokumentenauswertung!$B37,Dokumentenauswertung!AE37)=TRUE,Dokumentenauswertung!$C37,0))","v":""},{"$f":"IF(Dokumentenauswertung!AF$10=\"\",\"\",IF(EXACT(Dokumentenauswertung!$B37,Dokumentenauswertung!AF37)=TRUE,Dokumentenauswertung!$C37,0))","v":""},{"$f":"IF(Dokumentenauswertung!AG$10=\"\",\"\",IF(EXACT(Dokumentenauswertung!$B37,Dokumentenauswertung!AG37)=TRUE,Dokumentenauswertung!$C37,0))","v":""},{"$f":"IF(Dokumentenauswertung!AH$10=\"\",\"\",IF(EXACT(Dokumentenauswertung!$B37,Dokumentenauswertung!AH37)=TRUE,Dokumentenauswertung!$C37,0))","v":""},{"$f":"IF(Dokumentenauswertung!AI$10=\"\",\"\",IF(EXACT(Dokumentenauswertung!$B37,Dokumentenauswertung!AI37)=TRUE,Dokumentenauswertung!$C37,0))","v":""},{"$f":"IF(Dokumentenauswertung!AJ$10=\"\",\"\",IF(EXACT(Dokumentenauswertung!$B37,Dokumentenauswertung!AJ37)=TRUE,Dokumentenauswertung!$C37,0))","v":""},{"$f":"IF(Dokumentenauswertung!AK$10=\"\",\"\",IF(EXACT(Dokumentenauswertung!$B37,Dokumentenauswertung!AK37)=TRUE,Dokumentenauswertung!$C37,0))","v":""}]
[null,null,{"$f":"Dokumentenauswertung!$A38","v":"B4.1"},{"$f":"IF(Dokumentenauswertung!E$10=\"\",\"\",IF(EXACT(Dokumentenauswertung!$B38,Dokumentenauswertung!E38)=TRUE,Dokumentenauswertung!$C38,0))","v":""},{"$f":"IF(Dokumentenauswertung!F$10=\"\",\"\",IF(EXACT(Dokumentenauswertung!$B38,Dokumentenauswertung!F38)=TRUE,Dokumentenauswertung!$C38,0))","v":""},{"$f":"IF(Dokumentenauswertung!G$10=\"\",\"\",IF(EXACT(Dokumentenauswertung!$B38,Dokumentenauswertung!G38)=TRUE,Dokumentenauswertung!$C38,0))","v":""},{"$f":"IF(Dokumentenauswertung!H$10=\"\",\"\",IF(EXACT(Dokumentenauswertung!$B38,Dokumentenauswertung!H38)=TRUE,Dokumentenauswertung!$C38,0))","v":""},{"$f":"IF(Dokumentenauswertung!I$10=\"\",\"\",IF(EXACT(Dokumentenauswertung!$B38,Dokumentenauswertung!I38)=TRUE,Dokumentenauswertung!$C38,0))","v":""},{"$f":"IF(Dokumentenauswertung!J$10=\"\",\"\",IF(EXACT(Dokumentenauswertung!$B38,Dokumentenauswertung!J38)=TRUE,Dokumentenauswertung!$C38,0))","v":""},{"$f":"IF(Dokumentenauswertung!K$10=\"\",\"\",IF(EXACT(Dokumentenauswertung!$B38,Dokumentenauswertung!K38)=TRUE,Dokumentenauswertung!$C38,0))","v":""},{"$f":"IF(Dokumentenauswertung!L$10=\"\",\"\",IF(EXACT(Dokumentenauswertung!$B38,Dokumentenauswertung!L38)=TRUE,Dokumentenauswertung!$C38,0))","v":""},{"$f":"IF(Dokumentenauswertung!M$10=\"\",\"\",IF(EXACT(Dokumentenauswertung!$B38,Dokumentenauswertung!M38)=TRUE,Dokumentenauswertung!$C38,0))","v":""},{"$f":"IF(Dokumentenauswertung!N$10=\"\",\"\",IF(EXACT(Dokumentenauswertung!$B38,Dokumentenauswertung!N38)=TRUE,Dokumentenauswertung!$C38,0))","v":""},{"$f":"IF(Dokumentenauswertung!O$10=\"\",\"\",IF(EXACT(Dokumentenauswertung!$B38,Dokumentenauswertung!O38)=TRUE,Dokumentenauswertung!$C38,0))","v":""},{"$f":"IF(Dokumentenauswertung!P$10=\"\",\"\",IF(EXACT(Dokumentenauswertung!$B38,Dokumentenauswertung!P38)=TRUE,Dokumentenauswertung!$C38,0))","v":""},{"$f":"IF(Dokumentenauswertung!Q$10=\"\",\"\",IF(EXACT(Dokumentenauswertung!$B38,Dokumentenauswertung!Q38)=TRUE,Dokumentenauswertung!$C38,0))","v":""},{"$f":"IF(Dokumentenauswertung!R$10=\"\",\"\",IF(EXACT(Dokumentenauswertung!$B38,Dokumentenauswertung!R38)=TRUE,Dokumentenauswertung!$C38,0))","v":""},{"$f":"IF(Dokumentenauswertung!S$10=\"\",\"\",IF(EXACT(Dokumentenauswertung!$B38,Dokumentenauswertung!S38)=TRUE,Dokumentenauswertung!$C38,0))","v":""},{"$f":"IF(Dokumentenauswertung!T$10=\"\",\"\",IF(EXACT(Dokumentenauswertung!$B38,Dokumentenauswertung!T38)=TRUE,Dokumentenauswertung!$C38,0))","v":""},{"$f":"IF(Dokumentenauswertung!U$10=\"\",\"\",IF(EXACT(Dokumentenauswertung!$B38,Dokumentenauswertung!U38)=TRUE,Dokumentenauswertung!$C38,0))","v":""},{"$f":"IF(Dokumentenauswertung!V$10=\"\",\"\",IF(EXACT(Dokumentenauswertung!$B38,Dokumentenauswertung!V38)=TRUE,Dokumentenauswertung!$C38,0))","v":""},{"$f":"IF(Dokumentenauswertung!W$10=\"\",\"\",IF(EXACT(Dokumentenauswertung!$B38,Dokumentenauswertung!W38)=TRUE,Dokumentenauswertung!$C38,0))","v":""},{"$f":"IF(Dokumentenauswertung!X$10=\"\",\"\",IF(EXACT(Dokumentenauswertung!$B38,Dokumentenauswertung!X38)=TRUE,Dokumentenauswertung!$C38,0))","v":""},{"$f":"IF(Dokumentenauswertung!Y$10=\"\",\"\",IF(EXACT(Dokumentenauswertung!$B38,Dokumentenauswertung!Y38)=TRUE,Dokumentenauswertung!$C38,0))","v":""},{"$f":"IF(Dokumentenauswertung!Z$10=\"\",\"\",IF(EXACT(Dokumentenauswertung!$B38,Dokumentenauswertung!Z38)=TRUE,Dokumentenauswertung!$C38,0))","v":""},{"$f":"IF(Dokumentenauswertung!AA$10=\"\",\"\",IF(EXACT(Dokumentenauswertung!$B38,Dokumentenauswertung!AA38)=TRUE,Dokumentenauswertung!$C38,0))","v":""},{"$f":"IF(Dokumentenauswertung!AB$10=\"\",\"\",IF(EXACT(Dokumentenauswertung!$B38,Dokumentenauswertung!AB38)=TRUE,Dokumentenauswertung!$C38,0))","v":""},{"$f":"IF(Dokumentenauswertung!AC$10=\"\",\"\",IF(EXACT(Dokumentenauswertung!$B38,Dokumentenauswertung!AC38)=TRUE,Dokumentenauswertung!$C38,0))","v":""},{"$f":"IF(Dokumentenauswertung!AD$10=\"\",\"\",IF(EXACT(Dokumentenauswertung!$B38,Dokumentenauswertung!AD38)=TRUE,Dokumentenauswertung!$C38,0))","v":""},{"$f":"IF(Dokumentenauswertung!AE$10=\"\",\"\",IF(EXACT(Dokumentenauswertung!$B38,Dokumentenauswertung!AE38)=TRUE,Dokumentenauswertung!$C38,0))","v":""},{"$f":"IF(Dokumentenauswertung!AF$10=\"\",\"\",IF(EXACT(Dokumentenauswertung!$B38,Dokumentenauswertung!AF38)=TRUE,Dokumentenauswertung!$C38,0))","v":""},{"$f":"IF(Dokumentenauswertung!AG$10=\"\",\"\",IF(EXACT(Dokumentenauswertung!$B38,Dokumentenauswertung!AG38)=TRUE,Dokumentenauswertung!$C38,0))","v":""},{"$f":"IF(Dokumentenauswertung!AH$10=\"\",\"\",IF(EXACT(Dokumentenauswertung!$B38,Dokumentenauswertung!AH38)=TRUE,Dokumentenauswertung!$C38,0))","v":""},{"$f":"IF(Dokumentenauswertung!AI$10=\"\",\"\",IF(EXACT(Dokumentenauswertung!$B38,Dokumentenauswertung!AI38)=TRUE,Dokumentenauswertung!$C38,0))","v":""},{"$f":"IF(Dokumentenauswertung!AJ$10=\"\",\"\",IF(EXACT(Dokumentenauswertung!$B38,Dokumentenauswertung!AJ38)=TRUE,Dokumentenauswertung!$C38,0))","v":""},{"$f":"IF(Dokumentenauswertung!AK$10=\"\",\"\",IF(EXACT(Dokumentenauswertung!$B38,Dokumentenauswertung!AK38)=TRUE,Dokumentenauswertung!$C38,0))","v":""}]
[null,null,{"$f":"Dokumentenauswertung!$A39","v":"B4.2"},{"$f":"IF(Dokumentenauswertung!E$10=\"\",\"\",IF(EXACT(Dokumentenauswertung!$B39,Dokumentenauswertung!E39)=TRUE,Dokumentenauswertung!$C39,0))","v":""},{"$f":"IF(Dokumentenauswertung!F$10=\"\",\"\",IF(EXACT(Dokumentenauswertung!$B39,Dokumentenauswertung!F39)=TRUE,Dokumentenauswertung!$C39,0))","v":""},{"$f":"IF(Dokumentenauswertung!G$10=\"\",\"\",IF(EXACT(Dokumentenauswertung!$B39,Dokumentenauswertung!G39)=TRUE,Dokumentenauswertung!$C39,0))","v":""},{"$f":"IF(Dokumentenauswertung!H$10=\"\",\"\",IF(EXACT(Dokumentenauswertung!$B39,Dokumentenauswertung!H39)=TRUE,Dokumentenauswertung!$C39,0))","v":""},{"$f":"IF(Dokumentenauswertung!I$10=\"\",\"\",IF(EXACT(Dokumentenauswertung!$B39,Dokumentenauswertung!I39)=TRUE,Dokumentenauswertung!$C39,0))","v":""},{"$f":"IF(Dokumentenauswertung!J$10=\"\",\"\",IF(EXACT(Dokumentenauswertung!$B39,Dokumentenauswertung!J39)=TRUE,Dokumentenauswertung!$C39,0))","v":""},{"$f":"IF(Dokumentenauswertung!K$10=\"\",\"\",IF(EXACT(Dokumentenauswertung!$B39,Dokumentenauswertung!K39)=TRUE,Dokumentenauswertung!$C39,0))","v":""},{"$f":"IF(Dokumentenauswertung!L$10=\"\",\"\",IF(EXACT(Dokumentenauswertung!$B39,Dokumentenauswertung!L39)=TRUE,Dokumentenauswertung!$C39,0))","v":""},{"$f":"IF(Dokumentenauswertung!M$10=\"\",\"\",IF(EXACT(Dokumentenauswertung!$B39,Dokumentenauswertung!M39)=TRUE,Dokumentenauswertung!$C39,0))","v":""},{"$f":"IF(Dokumentenauswertung!N$10=\"\",\"\",IF(EXACT(Dokumentenauswertung!$B39,Dokumentenauswertung!N39)=TRUE,Dokumentenauswertung!$C39,0))","v":""},{"$f":"IF(Dokumentenauswertung!O$10=\"\",\"\",IF(EXACT(Dokumentenauswertung!$B39,Dokumentenauswertung!O39)=TRUE,Dokumentenauswertung!$C39,0))","v":""},{"$f":"IF(Dokumentenauswertung!P$10=\"\",\"\",IF(EXACT(Dokumentenauswertung!$B39,Dokumentenauswertung!P39)=TRUE,Dokumentenauswertung!$C39,0))","v":""},{"$f":"IF(Dokumentenauswertung!Q$10=\"\",\"\",IF(EXACT(Dokumentenauswertung!$B39,Dokumentenauswertung!Q39)=TRUE,Dokumentenauswertung!$C39,0))","v":""},{"$f":"IF(Dokumentenauswertung!R$10=\"\",\"\",IF(EXACT(Dokumentenauswertung!$B39,Dokumentenauswertung!R39)=TRUE,Dokumentenauswertung!$C39,0))","v":""},{"$f":"IF(Dokumentenauswertung!S$10=\"\",\"\",IF(EXACT(Dokumentenauswertung!$B39,Dokumentenauswertung!S39)=TRUE,Dokumentenauswertung!$C39,0))","v":""},{"$f":"IF(Dokumentenauswertung!T$10=\"\",\"\",IF(EXACT(Dokumentenauswertung!$B39,Dokumentenauswertung!T39)=TRUE,Dokumentenauswertung!$C39,0))","v":""},{"$f":"IF(Dokumentenauswertung!U$10=\"\",\"\",IF(EXACT(Dokumentenauswertung!$B39,Dokumentenauswertung!U39)=TRUE,Dokumentenauswertung!$C39,0))","v":""},{"$f":"IF(Dokumentenauswertung!V$10=\"\",\"\",IF(EXACT(Dokumentenauswertung!$B39,Dokumentenauswertung!V39)=TRUE,Dokumentenauswertung!$C39,0))","v":""},{"$f":"IF(Dokumentenauswertung!W$10=\"\",\"\",IF(EXACT(Dokumentenauswertung!$B39,Dokumentenauswertung!W39)=TRUE,Dokumentenauswertung!$C39,0))","v":""},{"$f":"IF(Dokumentenauswertung!X$10=\"\",\"\",IF(EXACT(Dokumentenauswertung!$B39,Dokumentenauswertung!X39)=TRUE,Dokumentenauswertung!$C39,0))","v":""},{"$f":"IF(Dokumentenauswertung!Y$10=\"\",\"\",IF(EXACT(Dokumentenauswertung!$B39,Dokumentenauswertung!Y39)=TRUE,Dokumentenauswertung!$C39,0))","v":""},{"$f":"IF(Dokumentenauswertung!Z$10=\"\",\"\",IF(EXACT(Dokumentenauswertung!$B39,Dokumentenauswertung!Z39)=TRUE,Dokumentenauswertung!$C39,0))","v":""},{"$f":"IF(Dokumentenauswertung!AA$10=\"\",\"\",IF(EXACT(Dokumentenauswertung!$B39,Dokumentenauswertung!AA39)=TRUE,Dokumentenauswertung!$C39,0))","v":""},{"$f":"IF(Dokumentenauswertung!AB$10=\"\",\"\",IF(EXACT(Dokumentenauswertung!$B39,Dokumentenauswertung!AB39)=TRUE,Dokumentenauswertung!$C39,0))","v":""},{"$f":"IF(Dokumentenauswertung!AC$10=\"\",\"\",IF(EXACT(Dokumentenauswertung!$B39,Dokumentenauswertung!AC39)=TRUE,Dokumentenauswertung!$C39,0))","v":""},{"$f":"IF(Dokumentenauswertung!AD$10=\"\",\"\",IF(EXACT(Dokumentenauswertung!$B39,Dokumentenauswertung!AD39)=TRUE,Dokumentenauswertung!$C39,0))","v":""},{"$f":"IF(Dokumentenauswertung!AE$10=\"\",\"\",IF(EXACT(Dokumentenauswertung!$B39,Dokumentenauswertung!AE39)=TRUE,Dokumentenauswertung!$C39,0))","v":""},{"$f":"IF(Dokumentenauswertung!AF$10=\"\",\"\",IF(EXACT(Dokumentenauswertung!$B39,Dokumentenauswertung!AF39)=TRUE,Dokumentenauswertung!$C39,0))","v":""},{"$f":"IF(Dokumentenauswertung!AG$10=\"\",\"\",IF(EXACT(Dokumentenauswertung!$B39,Dokumentenauswertung!AG39)=TRUE,Dokumentenauswertung!$C39,0))","v":""},{"$f":"IF(Dokumentenauswertung!AH$10=\"\",\"\",IF(EXACT(Dokumentenauswertung!$B39,Dokumentenauswertung!AH39)=TRUE,Dokumentenauswertung!$C39,0))","v":""},{"$f":"IF(Dokumentenauswertung!AI$10=\"\",\"\",IF(EXACT(Dokumentenauswertung!$B39,Dokumentenauswertung!AI39)=TRUE,Dokumentenauswertung!$C39,0))","v":""},{"$f":"IF(Dokumentenauswertung!AJ$10=\"\",\"\",IF(EXACT(Dokumentenauswertung!$B39,Dokumentenauswertung!AJ39)=TRUE,Dokumentenauswertung!$C39,0))","v":""},{"$f":"IF(Dokumentenauswertung!AK$10=\"\",\"\",IF(EXACT(Dokumentenauswertung!$B39,Dokumentenauswertung!AK39)=TRUE,Dokumentenauswertung!$C39,0))","v":""}]
[null,null,{"$f":"Dokumentenauswertung!$A40","v":"C1.1"},{"$f":"IF(Dokumentenauswertung!E$10=\"\",\"\",IF(EXACT(Dokumentenauswertung!$B40,Dokumentenauswertung!E40)=TRUE,Dokumentenauswertung!$C40,0))","v":""},{"$f":"IF(Dokumentenauswertung!F$10=\"\",\"\",IF(EXACT(Dokumentenauswertung!$B40,Dokumentenauswertung!F40)=TRUE,Dokumentenauswertung!$C40,0))","v":""},{"$f":"IF(Dokumentenauswertung!G$10=\"\",\"\",IF(EXACT(Dokumentenauswertung!$B40,Dokumentenauswertung!G40)=TRUE,Dokumentenauswertung!$C40,0))","v":""},{"$f":"IF(Dokumentenauswertung!H$10=\"\",\"\",IF(EXACT(Dokumentenauswertung!$B40,Dokumentenauswertung!H40)=TRUE,Dokumentenauswertung!$C40,0))","v":""},{"$f":"IF(Dokumentenauswertung!I$10=\"\",\"\",IF(EXACT(Dokumentenauswertung!$B40,Dokumentenauswertung!I40)=TRUE,Dokumentenauswertung!$C40,0))","v":""},{"$f":"IF(Dokumentenauswertung!J$10=\"\",\"\",IF(EXACT(Dokumentenauswertung!$B40,Dokumentenauswertung!J40)=TRUE,Dokumentenauswertung!$C40,0))","v":""},{"$f":"IF(Dokumentenauswertung!K$10=\"\",\"\",IF(EXACT(Dokumentenauswertung!$B40,Dokumentenauswertung!K40)=TRUE,Dokumentenauswertung!$C40,0))","v":""},{"$f":"IF(Dokumentenauswertung!L$10=\"\",\"\",IF(EXACT(Dokumentenauswertung!$B40,Dokumentenauswertung!L40)=TRUE,Dokumentenauswertung!$C40,0))","v":""},{"$f":"IF(Dokumentenauswertung!M$10=\"\",\"\",IF(EXACT(Dokumentenauswertung!$B40,Dokumentenauswertung!M40)=TRUE,Dokumentenauswertung!$C40,0))","v":""},{"$f":"IF(Dokumentenauswertung!N$10=\"\",\"\",IF(EXACT(Dokumentenauswertung!$B40,Dokumentenauswertung!N40)=TRUE,Dokumentenauswertung!$C40,0))","v":""},{"$f":"IF(Dokumentenauswertung!O$10=\"\",\"\",IF(EXACT(Dokumentenauswertung!$B40,Dokumentenauswertung!O40)=TRUE,Dokumentenauswertung!$C40,0))","v":""},{"$f":"IF(Dokumentenauswertung!P$10=\"\",\"\",IF(EXACT(Dokumentenauswertung!$B40,Dokumentenauswertung!P40)=TRUE,Dokumentenauswertung!$C40,0))","v":""},{"$f":"IF(Dokumentenauswertung!Q$10=\"\",\"\",IF(EXACT(Dokumentenauswertung!$B40,Dokumentenauswertung!Q40)=TRUE,Dokumentenauswertung!$C40,0))","v":""},{"$f":"IF(Dokumentenauswertung!R$10=\"\",\"\",IF(EXACT(Dokumentenauswertung!$B40,Dokumentenauswertung!R40)=TRUE,Dokumentenauswertung!$C40,0))","v":""},{"$f":"IF(Dokumentenauswertung!S$10=\"\",\"\",IF(EXACT(Dokumentenauswertung!$B40,Dokumentenauswertung!S40)=TRUE,Dokumentenauswertung!$C40,0))","v":""},{"$f":"IF(Dokumentenauswertung!T$10=\"\",\"\",IF(EXACT(Dokumentenauswertung!$B40,Dokumentenauswertung!T40)=TRUE,Dokumentenauswertung!$C40,0))","v":""},{"$f":"IF(Dokumentenauswertung!U$10=\"\",\"\",IF(EXACT(Dokumentenauswertung!$B40,Dokumentenauswertung!U40)=TRUE,Dokumentenauswertung!$C40,0))","v":""},{"$f":"IF(Dokumentenauswertung!V$10=\"\",\"\",IF(EXACT(Dokumentenauswertung!$B40,Dokumentenauswertung!V40)=TRUE,Dokumentenauswertung!$C40,0))","v":""},{"$f":"IF(Dokumentenauswertung!W$10=\"\",\"\",IF(EXACT(Dokumentenauswertung!$B40,Dokumentenauswertung!W40)=TRUE,Dokumentenauswertung!$C40,0))","v":""},{"$f":"IF(Dokumentenauswertung!X$10=\"\",\"\",IF(EXACT(Dokumentenauswertung!$B40,Dokumentenauswertung!X40)=TRUE,Dokumentenauswertung!$C40,0))","v":""},{"$f":"IF(Dokumentenauswertung!Y$10=\"\",\"\",IF(EXACT(Dokumentenauswertung!$B40,Dokumentenauswertung!Y40)=TRUE,Dokumentenauswertung!$C40,0))","v":""},{"$f":"IF(Dokumentenauswertung!Z$10=\"\",\"\",IF(EXACT(Dokumentenauswertung!$B40,Dokumentenauswertung!Z40)=TRUE,Dokumentenauswertung!$C40,0))","v":""},{"$f":"IF(Dokumentenauswertung!AA$10=\"\",\"\",IF(EXACT(Dokumentenauswertung!$B40,Dokumentenauswertung!AA40)=TRUE,Dokumentenauswertung!$C40,0))","v":""},{"$f":"IF(Dokumentenauswertung!AB$10=\"\",\"\",IF(EXACT(Dokumentenauswertung!$B40,Dokumentenauswertung!AB40)=TRUE,Dokumentenauswertung!$C40,0))","v":""},{"$f":"IF(Dokumentenauswertung!AC$10=\"\",\"\",IF(EXACT(Dokumentenauswertung!$B40,Dokumentenauswertung!AC40)=TRUE,Dokumentenauswertung!$C40,0))","v":""},{"$f":"IF(Dokumentenauswertung!AD$10=\"\",\"\",IF(EXACT(Dokumentenauswertung!$B40,Dokumentenauswertung!AD40)=TRUE,Dokumentenauswertung!$C40,0))","v":""},{"$f":"IF(Dokumentenauswertung!AE$10=\"\",\"\",IF(EXACT(Dokumentenauswertung!$B40,Dokumentenauswertung!AE40)=TRUE,Dokumentenauswertung!$C40,0))","v":""},{"$f":"IF(Dokumentenauswertung!AF$10=\"\",\"\",IF(EXACT(Dokumentenauswertung!$B40,Dokumentenauswertung!AF40)=TRUE,Dokumentenauswertung!$C40,0))","v":""},{"$f":"IF(Dokumentenauswertung!AG$10=\"\",\"\",IF(EXACT(Dokumentenauswertung!$B40,Dokumentenauswertung!AG40)=TRUE,Dokumentenauswertung!$C40,0))","v":""},{"$f":"IF(Dokumentenauswertung!AH$10=\"\",\"\",IF(EXACT(Dokumentenauswertung!$B40,Dokumentenauswertung!AH40)=TRUE,Dokumentenauswertung!$C40,0))","v":""},{"$f":"IF(Dokumentenauswertung!AI$10=\"\",\"\",IF(EXACT(Dokumentenauswertung!$B40,Dokumentenauswertung!AI40)=TRUE,Dokumentenauswertung!$C40,0))","v":""},{"$f":"IF(Dokumentenauswertung!AJ$10=\"\",\"\",IF(EXACT(Dokumentenauswertung!$B40,Dokumentenauswertung!AJ40)=TRUE,Dokumentenauswertung!$C40,0))","v":""},{"$f":"IF(Dokumentenauswertung!AK$10=\"\",\"\",IF(EXACT(Dokumentenauswertung!$B40,Dokumentenauswertung!AK40)=TRUE,Dokumentenauswertung!$C40,0))","v":""}]
[null,null,{"$f":"Dokumentenauswertung!$A41","v":"C1.2"},{"$f":"IF(Dokumentenauswertung!E$10=\"\",\"\",IF(EXACT(Dokumentenauswertung!$B41,Dokumentenauswertung!E41)=TRUE,Dokumentenauswertung!$C41,0))","v":""},{"$f":"IF(Dokumentenauswertung!F$10=\"\",\"\",IF(EXACT(Dokumentenauswertung!$B41,Dokumentenauswertung!F41)=TRUE,Dokumentenauswertung!$C41,0))","v":""},{"$f":"IF(Dokumentenauswertung!G$10=\"\",\"\",IF(EXACT(Dokumentenauswertung!$B41,Dokumentenauswertung!G41)=TRUE,Dokumentenauswertung!$C41,0))","v":""},{"$f":"IF(Dokumentenauswertung!H$10=\"\",\"\",IF(EXACT(Dokumentenauswertung!$B41,Dokumentenauswertung!H41)=TRUE,Dokumentenauswertung!$C41,0))","v":""},{"$f":"IF(Dokumentenauswertung!I$10=\"\",\"\",IF(EXACT(Dokumentenauswertung!$B41,Dokumentenauswertung!I41)=TRUE,Dokumentenauswertung!$C41,0))","v":""},{"$f":"IF(Dokumentenauswertung!J$10=\"\",\"\",IF(EXACT(Dokumentenauswertung!$B41,Dokumentenauswertung!J41)=TRUE,Dokumentenauswertung!$C41,0))","v":""},{"$f":"IF(Dokumentenauswertung!K$10=\"\",\"\",IF(EXACT(Dokumentenauswertung!$B41,Dokumentenauswertung!K41)=TRUE,Dokumentenauswertung!$C41,0))","v":""},{"$f":"IF(Dokumentenauswertung!L$10=\"\",\"\",IF(EXACT(Dokumentenauswertung!$B41,Dokumentenauswertung!L41)=TRUE,Dokumentenauswertung!$C41,0))","v":""},{"$f":"IF(Dokumentenauswertung!M$10=\"\",\"\",IF(EXACT(Dokumentenauswertung!$B41,Dokumentenauswertung!M41)=TRUE,Dokumentenauswertung!$C41,0))","v":""},{"$f":"IF(Dokumentenauswertung!N$10=\"\",\"\",IF(EXACT(Dokumentenauswertung!$B41,Dokumentenauswertung!N41)=TRUE,Dokumentenauswertung!$C41,0))","v":""},{"$f":"IF(Dokumentenauswertung!O$10=\"\",\"\",IF(EXACT(Dokumentenauswertung!$B41,Dokumentenauswertung!O41)=TRUE,Dokumentenauswertung!$C41,0))","v":""},{"$f":"IF(Dokumentenauswertung!P$10=\"\",\"\",IF(EXACT(Dokumentenauswertung!$B41,Dokumentenauswertung!P41)=TRUE,Dokumentenauswertung!$C41,0))","v":""},{"$f":"IF(Dokumentenauswertung!Q$10=\"\",\"\",IF(EXACT(Dokumentenauswertung!$B41,Dokumentenauswertung!Q41)=TRUE,Dokumentenauswertung!$C41,0))","v":""},{"$f":"IF(Dokumentenauswertung!R$10=\"\",\"\",IF(EXACT(Dokumentenauswertung!$B41,Dokumentenauswertung!R41)=TRUE,Dokumentenauswertung!$C41,0))","v":""},{"$f":"IF(Dokumentenauswertung!S$10=\"\",\"\",IF(EXACT(Dokumentenauswertung!$B41,Dokumentenauswertung!S41)=TRUE,Dokumentenauswertung!$C41,0))","v":""},{"$f":"IF(Dokumentenauswertung!T$10=\"\",\"\",IF(EXACT(Dokumentenauswertung!$B41,Dokumentenauswertung!T41)=TRUE,Dokumentenauswertung!$C41,0))","v":""},{"$f":"IF(Dokumentenauswertung!U$10=\"\",\"\",IF(EXACT(Dokumentenauswertung!$B41,Dokumentenauswertung!U41)=TRUE,Dokumentenauswertung!$C41,0))","v":""},{"$f":"IF(Dokumentenauswertung!V$10=\"\",\"\",IF(EXACT(Dokumentenauswertung!$B41,Dokumentenauswertung!V41)=TRUE,Dokumentenauswertung!$C41,0))","v":""},{"$f":"IF(Dokumentenauswertung!W$10=\"\",\"\",IF(EXACT(Dokumentenauswertung!$B41,Dokumentenauswertung!W41)=TRUE,Dokumentenauswertung!$C41,0))","v":""},{"$f":"IF(Dokumentenauswertung!X$10=\"\",\"\",IF(EXACT(Dokumentenauswertung!$B41,Dokumentenauswertung!X41)=TRUE,Dokumentenauswertung!$C41,0))","v":""},{"$f":"IF(Dokumentenauswertung!Y$10=\"\",\"\",IF(EXACT(Dokumentenauswertung!$B41,Dokumentenauswertung!Y41)=TRUE,Dokumentenauswertung!$C41,0))","v":""},{"$f":"IF(Dokumentenauswertung!Z$10=\"\",\"\",IF(EXACT(Dokumentenauswertung!$B41,Dokumentenauswertung!Z41)=TRUE,Dokumentenauswertung!$C41,0))","v":""},{"$f":"IF(Dokumentenauswertung!AA$10=\"\",\"\",IF(EXACT(Dokumentenauswertung!$B41,Dokumentenauswertung!AA41)=TRUE,Dokumentenauswertung!$C41,0))","v":""},{"$f":"IF(Dokumentenauswertung!AB$10=\"\",\"\",IF(EXACT(Dokumentenauswertung!$B41,Dokumentenauswertung!AB41)=TRUE,Dokumentenauswertung!$C41,0))","v":""},{"$f":"IF(Dokumentenauswertung!AC$10=\"\",\"\",IF(EXACT(Dokumentenauswertung!$B41,Dokumentenauswertung!AC41)=TRUE,Dokumentenauswertung!$C41,0))","v":""},{"$f":"IF(Dokumentenauswertung!AD$10=\"\",\"\",IF(EXACT(Dokumentenauswertung!$B41,Dokumentenauswertung!AD41)=TRUE,Dokumentenauswertung!$C41,0))","v":""},{"$f":"IF(Dokumentenauswertung!AE$10=\"\",\"\",IF(EXACT(Dokumentenauswertung!$B41,Dokumentenauswertung!AE41)=TRUE,Dokumentenauswertung!$C41,0))","v":""},{"$f":"IF(Dokumentenauswertung!AF$10=\"\",\"\",IF(EXACT(Dokumentenauswertung!$B41,Dokumentenauswertung!AF41)=TRUE,Dokumentenauswertung!$C41,0))","v":""},{"$f":"IF(Dokumentenauswertung!AG$10=\"\",\"\",IF(EXACT(Dokumentenauswertung!$B41,Dokumentenauswertung!AG41)=TRUE,Dokumentenauswertung!$C41,0))","v":""},{"$f":"IF(Dokumentenauswertung!AH$10=\"\",\"\",IF(EXACT(Dokumentenauswertung!$B41,Dokumentenauswertung!AH41)=TRUE,Dokumentenauswertung!$C41,0))","v":""},{"$f":"IF(Dokumentenauswertung!AI$10=\"\",\"\",IF(EXACT(Dokumentenauswertung!$B41,Dokumentenauswertung!AI41)=TRUE,Dokumentenauswertung!$C41,0))","v":""},{"$f":"IF(Dokumentenauswertung!AJ$10=\"\",\"\",IF(EXACT(Dokumentenauswertung!$B41,Dokumentenauswertung!AJ41)=TRUE,Dokumentenauswertung!$C41,0))","v":""},{"$f":"IF(Dokumentenauswertung!AK$10=\"\",\"\",IF(EXACT(Dokumentenauswertung!$B41,Dokumentenauswertung!AK41)=TRUE,Dokumentenauswertung!$C41,0))","v":""}]
[null,null,{"$f":"Dokumentenauswertung!$A42","v":"C2.1"},{"$f":"IF(Dokumentenauswertung!E$10=\"\",\"\",IF(EXACT(Dokumentenauswertung!$B42,Dokumentenauswertung!E42)=TRUE,Dokumentenauswertung!$C42,0))","v":""},{"$f":"IF(Dokumentenauswertung!F$10=\"\",\"\",IF(EXACT(Dokumentenauswertung!$B42,Dokumentenauswertung!F42)=TRUE,Dokumentenauswertung!$C42,0))","v":""},{"$f":"IF(Dokumentenauswertung!G$10=\"\",\"\",IF(EXACT(Dokumentenauswertung!$B42,Dokumentenauswertung!G42)=TRUE,Dokumentenauswertung!$C42,0))","v":""},{"$f":"IF(Dokumentenauswertung!H$10=\"\",\"\",IF(EXACT(Dokumentenauswertung!$B42,Dokumentenauswertung!H42)=TRUE,Dokumentenauswertung!$C42,0))","v":""},{"$f":"IF(Dokumentenauswertung!I$10=\"\",\"\",IF(EXACT(Dokumentenauswertung!$B42,Dokumentenauswertung!I42)=TRUE,Dokumentenauswertung!$C42,0))","v":""},{"$f":"IF(Dokumentenauswertung!J$10=\"\",\"\",IF(EXACT(Dokumentenauswertung!$B42,Dokumentenauswertung!J42)=TRUE,Dokumentenauswertung!$C42,0))","v":""},{"$f":"IF(Dokumentenauswertung!K$10=\"\",\"\",IF(EXACT(Dokumentenauswertung!$B42,Dokumentenauswertung!K42)=TRUE,Dokumentenauswertung!$C42,0))","v":""},{"$f":"IF(Dokumentenauswertung!L$10=\"\",\"\",IF(EXACT(Dokumentenauswertung!$B42,Dokumentenauswertung!L42)=TRUE,Dokumentenauswertung!$C42,0))","v":""},{"$f":"IF(Dokumentenauswertung!M$10=\"\",\"\",IF(EXACT(Dokumentenauswertung!$B42,Dokumentenauswertung!M42)=TRUE,Dokumentenauswertung!$C42,0))","v":""},{"$f":"IF(Dokumentenauswertung!N$10=\"\",\"\",IF(EXACT(Dokumentenauswertung!$B42,Dokumentenauswertung!N42)=TRUE,Dokumentenauswertung!$C42,0))","v":""},{"$f":"IF(Dokumentenauswertung!O$10=\"\",\"\",IF(EXACT(Dokumentenauswertung!$B42,Dokumentenauswertung!O42)=TRUE,Dokumentenauswertung!$C42,0))","v":""},{"$f":"IF(Dokumentenauswertung!P$10=\"\",\"\",IF(EXACT(Dokumentenauswertung!$B42,Dokumentenauswertung!P42)=TRUE,Dokumentenauswertung!$C42,0))","v":""},{"$f":"IF(Dokumentenauswertung!Q$10=\"\",\"\",IF(EXACT(Dokumentenauswertung!$B42,Dokumentenauswertung!Q42)=TRUE,Dokumentenauswertung!$C42,0))","v":""},{"$f":"IF(Dokumentenauswertung!R$10=\"\",\"\",IF(EXACT(Dokumentenauswertung!$B42,Dokumentenauswertung!R42)=TRUE,Dokumentenauswertung!$C42,0))","v":""},{"$f":"IF(Dokumentenauswertung!S$10=\"\",\"\",IF(EXACT(Dokumentenauswertung!$B42,Dokumentenauswertung!S42)=TRUE,Dokumentenauswertung!$C42,0))","v":""},{"$f":"IF(Dokumentenauswertung!T$10=\"\",\"\",IF(EXACT(Dokumentenauswertung!$B42,Dokumentenauswertung!T42)=TRUE,Dokumentenauswertung!$C42,0))","v":""},{"$f":"IF(Dokumentenauswertung!U$10=\"\",\"\",IF(EXACT(Dokumentenauswertung!$B42,Dokumentenauswertung!U42)=TRUE,Dokumentenauswertung!$C42,0))","v":""},{"$f":"IF(Dokumentenauswertung!V$10=\"\",\"\",IF(EXACT(Dokumentenauswertung!$B42,Dokumentenauswertung!V42)=TRUE,Dokumentenauswertung!$C42,0))","v":""},{"$f":"IF(Dokumentenauswertung!W$10=\"\",\"\",IF(EXACT(Dokumentenauswertung!$B42,Dokumentenauswertung!W42)=TRUE,Dokumentenauswertung!$C42,0))","v":""},{"$f":"IF(Dokumentenauswertung!X$10=\"\",\"\",IF(EXACT(Dokumentenauswertung!$B42,Dokumentenauswertung!X42)=TRUE,Dokumentenauswertung!$C42,0))","v":""},{"$f":"IF(Dokumentenauswertung!Y$10=\"\",\"\",IF(EXACT(Dokumentenauswertung!$B42,Dokumentenauswertung!Y42)=TRUE,Dokumentenauswertung!$C42,0))","v":""},{"$f":"IF(Dokumentenauswertung!Z$10=\"\",\"\",IF(EXACT(Dokumentenauswertung!$B42,Dokumentenauswertung!Z42)=TRUE,Dokumentenauswertung!$C42,0))","v":""},{"$f":"IF(Dokumentenauswertung!AA$10=\"\",\"\",IF(EXACT(Dokumentenauswertung!$B42,Dokumentenauswertung!AA42)=TRUE,Dokumentenauswertung!$C42,0))","v":""},{"$f":"IF(Dokumentenauswertung!AB$10=\"\",\"\",IF(EXACT(Dokumentenauswertung!$B42,Dokumentenauswertung!AB42)=TRUE,Dokumentenauswertung!$C42,0))","v":""},{"$f":"IF(Dokumentenauswertung!AC$10=\"\",\"\",IF(EXACT(Dokumentenauswertung!$B42,Dokumentenauswertung!AC42)=TRUE,Dokumentenauswertung!$C42,0))","v":""},{"$f":"IF(Dokumentenauswertung!AD$10=\"\",\"\",IF(EXACT(Dokumentenauswertung!$B42,Dokumentenauswertung!AD42)=TRUE,Dokumentenauswertung!$C42,0))","v":""},{"$f":"IF(Dokumentenauswertung!AE$10=\"\",\"\",IF(EXACT(Dokumentenauswertung!$B42,Dokumentenauswertung!AE42)=TRUE,Dokumentenauswertung!$C42,0))","v":""},{"$f":"IF(Dokumentenauswertung!AF$10=\"\",\"\",IF(EXACT(Dokumentenauswertung!$B42,Dokumentenauswertung!AF42)=TRUE,Dokumentenauswertung!$C42,0))","v":""},{"$f":"IF(Dokumentenauswertung!AG$10=\"\",\"\",IF(EXACT(Dokumentenauswertung!$B42,Dokumentenauswertung!AG42)=TRUE,Dokumentenauswertung!$C42,0))","v":""},{"$f":"IF(Dokumentenauswertung!AH$10=\"\",\"\",IF(EXACT(Dokumentenauswertung!$B42,Dokumentenauswertung!AH42)=TRUE,Dokumentenauswertung!$C42,0))","v":""},{"$f":"IF(Dokumentenauswertung!AI$10=\"\",\"\",IF(EXACT(Dokumentenauswertung!$B42,Dokumentenauswertung!AI42)=TRUE,Dokumentenauswertung!$C42,0))","v":""},{"$f":"IF(Dokumentenauswertung!AJ$10=\"\",\"\",IF(EXACT(Dokumentenauswertung!$B42,Dokumentenauswertung!AJ42)=TRUE,Dokumentenauswertung!$C42,0))","v":""},{"$f":"IF(Dokumentenauswertung!AK$10=\"\",\"\",IF(EXACT(Dokumentenauswertung!$B42,Dokumentenauswertung!AK42)=TRUE,Dokumentenauswertung!$C42,0))","v":""}]
[null,null,{"$f":"Dokumentenauswertung!$A43","v":"C2.2"},{"$f":"IF(Dokumentenauswertung!E$10=\"\",\"\",IF(EXACT(Dokumentenauswertung!$B43,Dokumentenauswertung!E43)=TRUE,Dokumentenauswertung!$C43,0))","v":""},{"$f":"IF(Dokumentenauswertung!F$10=\"\",\"\",IF(EXACT(Dokumentenauswertung!$B43,Dokumentenauswertung!F43)=TRUE,Dokumentenauswertung!$C43,0))","v":""},{"$f":"IF(Dokumentenauswertung!G$10=\"\",\"\",IF(EXACT(Dokumentenauswertung!$B43,Dokumentenauswertung!G43)=TRUE,Dokumentenauswertung!$C43,0))","v":""},{"$f":"IF(Dokumentenauswertung!H$10=\"\",\"\",IF(EXACT(Dokumentenauswertung!$B43,Dokumentenauswertung!H43)=TRUE,Dokumentenauswertung!$C43,0))","v":""},{"$f":"IF(Dokumentenauswertung!I$10=\"\",\"\",IF(EXACT(Dokumentenauswertung!$B43,Dokumentenauswertung!I43)=TRUE,Dokumentenauswertung!$C43,0))","v":""},{"$f":"IF(Dokumentenauswertung!J$10=\"\",\"\",IF(EXACT(Dokumentenauswertung!$B43,Dokumentenauswertung!J43)=TRUE,Dokumentenauswertung!$C43,0))","v":""},{"$f":"IF(Dokumentenauswertung!K$10=\"\",\"\",IF(EXACT(Dokumentenauswertung!$B43,Dokumentenauswertung!K43)=TRUE,Dokumentenauswertung!$C43,0))","v":""},{"$f":"IF(Dokumentenauswertung!L$10=\"\",\"\",IF(EXACT(Dokumentenauswertung!$B43,Dokumentenauswertung!L43)=TRUE,Dokumentenauswertung!$C43,0))","v":""},{"$f":"IF(Dokumentenauswertung!M$10=\"\",\"\",IF(EXACT(Dokumentenauswertung!$B43,Dokumentenauswertung!M43)=TRUE,Dokumentenauswertung!$C43,0))","v":""},{"$f":"IF(Dokumentenauswertung!N$10=\"\",\"\",IF(EXACT(Dokumentenauswertung!$B43,Dokumentenauswertung!N43)=TRUE,Dokumentenauswertung!$C43,0))","v":""},{"$f":"IF(Dokumentenauswertung!O$10=\"\",\"\",IF(EXACT(Dokumentenauswertung!$B43,Dokumentenauswertung!O43)=TRUE,Dokumentenauswertung!$C43,0))","v":""},{"$f":"IF(Dokumentenauswertung!P$10=\"\",\"\",IF(EXACT(Dokumentenauswertung!$B43,Dokumentenauswertung!P43)=TRUE,Dokumentenauswertung!$C43,0))","v":""},{"$f":"IF(Dokumentenauswertung!Q$10=\"\",\"\",IF(EXACT(Dokumentenauswertung!$B43,Dokumentenauswertung!Q43)=TRUE,Dokumentenauswertung!$C43,0))","v":""},{"$f":"IF(Dokumentenauswertung!R$10=\"\",\"\",IF(EXACT(Dokumentenauswertung!$B43,Dokumentenauswertung!R43)=TRUE,Dokumentenauswertung!$C43,0))","v":""},{"$f":"IF(Dokumentenauswertung!S$10=\"\",\"\",IF(EXACT(Dokumentenauswertung!$B43,Dokumentenauswertung!S43)=TRUE,Dokumentenauswertung!$C43,0))","v":""},{"$f":"IF(Dokumentenauswertung!T$10=\"\",\"\",IF(EXACT(Dokumentenauswertung!$B43,Dokumentenauswertung!T43)=TRUE,Dokumentenauswertung!$C43,0))","v":""},{"$f":"IF(Dokumentenauswertung!U$10=\"\",\"\",IF(EXACT(Dokumentenauswertung!$B43,Dokumentenauswertung!U43)=TRUE,Dokumentenauswertung!$C43,0))","v":""},{"$f":"IF(Dokumentenauswertung!V$10=\"\",\"\",IF(EXACT(Dokumentenauswertung!$B43,Dokumentenauswertung!V43)=TRUE,Dokumentenauswertung!$C43,0))","v":""},{"$f":"IF(Dokumentenauswertung!W$10=\"\",\"\",IF(EXACT(Dokumentenauswertung!$B43,Dokumentenauswertung!W43)=TRUE,Dokumentenauswertung!$C43,0))","v":""},{"$f":"IF(Dokumentenauswertung!X$10=\"\",\"\",IF(EXACT(Dokumentenauswertung!$B43,Dokumentenauswertung!X43)=TRUE,Dokumentenauswertung!$C43,0))","v":""},{"$f":"IF(Dokumentenauswertung!Y$10=\"\",\"\",IF(EXACT(Dokumentenauswertung!$B43,Dokumentenauswertung!Y43)=TRUE,Dokumentenauswertung!$C43,0))","v":""},{"$f":"IF(Dokumentenauswertung!Z$10=\"\",\"\",IF(EXACT(Dokumentenauswertung!$B43,Dokumentenauswertung!Z43)=TRUE,Dokumentenauswertung!$C43,0))","v":""},{"$f":"IF(Dokumentenauswertung!AA$10=\"\",\"\",IF(EXACT(Dokumentenauswertung!$B43,Dokumentenauswertung!AA43)=TRUE,Dokumentenauswertung!$C43,0))","v":""},{"$f":"IF(Dokumentenauswertung!AB$10=\"\",\"\",IF(EXACT(Dokumentenauswertung!$B43,Dokumentenauswertung!AB43)=TRUE,Dokumentenauswertung!$C43,0))","v":""},{"$f":"IF(Dokumentenauswertung!AC$10=\"\",\"\",IF(EXACT(Dokumentenauswertung!$B43,Dokumentenauswertung!AC43)=TRUE,Dokumentenauswertung!$C43,0))","v":""},{"$f":"IF(Dokumentenauswertung!AD$10=\"\",\"\",IF(EXACT(Dokumentenauswertung!$B43,Dokumentenauswertung!AD43)=TRUE,Dokumentenauswertung!$C43,0))","v":""},{"$f":"IF(Dokumentenauswertung!AE$10=\"\",\"\",IF(EXACT(Dokumentenauswertung!$B43,Dokumentenauswertung!AE43)=TRUE,Dokumentenauswertung!$C43,0))","v":""},{"$f":"IF(Dokumentenauswertung!AF$10=\"\",\"\",IF(EXACT(Dokumentenauswertung!$B43,Dokumentenauswertung!AF43)=TRUE,Dokumentenauswertung!$C43,0))","v":""},{"$f":"IF(Dokumentenauswertung!AG$10=\"\",\"\",IF(EXACT(Dokumentenauswertung!$B43,Dokumentenauswertung!AG43)=TRUE,Dokumentenauswertung!$C43,0))","v":""},{"$f":"IF(Dokumentenauswertung!AH$10=\"\",\"\",IF(EXACT(Dokumentenauswertung!$B43,Dokumentenauswertung!AH43)=TRUE,Dokumentenauswertung!$C43,0))","v":""},{"$f":"IF(Dokumentenauswertung!AI$10=\"\",\"\",IF(EXACT(Dokumentenauswertung!$B43,Dokumentenauswertung!AI43)=TRUE,Dokumentenauswertung!$C43,0))","v":""},{"$f":"IF(Dokumentenauswertung!AJ$10=\"\",\"\",IF(EXACT(Dokumentenauswertung!$B43,Dokumentenauswertung!AJ43)=TRUE,Dokumentenauswertung!$C43,0))","v":""},{"$f":"IF(Dokumentenauswertung!AK$10=\"\",\"\",IF(EXACT(Dokumentenauswertung!$B43,Dokumentenauswertung!AK43)=TRUE,Dokumentenauswertung!$C43,0))","v":""}]
[null,null,{"$f":"Dokumentenauswertung!$A44","v":"C3.1"},{"$f":"IF(Dokumentenauswertung!E$10=\"\",\"\",IF(EXACT(Dokumentenauswertung!$B44,Dokumentenauswertung!E44)=TRUE,Dokumentenauswertung!$C44,0))","v":""},{"$f":"IF(Dokumentenauswertung!F$10=\"\",\"\",IF(EXACT(Dokumentenauswertung!$B44,Dokumentenauswertung!F44)=TRUE,Dokumentenauswertung!$C44,0))","v":""},{"$f":"IF(Dokumentenauswertung!G$10=\"\",\"\",IF(EXACT(Dokumentenauswertung!$B44,Dokumentenauswertung!G44)=TRUE,Dokumentenauswertung!$C44,0))","v":""},{"$f":"IF(Dokumentenauswertung!H$10=\"\",\"\",IF(EXACT(Dokumentenauswertung!$B44,Dokumentenauswertung!H44)=TRUE,Dokumentenauswertung!$C44,0))","v":""},{"$f":"IF(Dokumentenauswertung!I$10=\"\",\"\",IF(EXACT(Dokumentenauswertung!$B44,Dokumentenauswertung!I44)=TRUE,Dokumentenauswertung!$C44,0))","v":""},{"$f":"IF(Dokumentenauswertung!J$10=\"\",\"\",IF(EXACT(Dokumentenauswertung!$B44,Dokumentenauswertung!J44)=TRUE,Dokumentenauswertung!$C44,0))","v":""},{"$f":"IF(Dokumentenauswertung!K$10=\"\",\"\",IF(EXACT(Dokumentenauswertung!$B44,Dokumentenauswertung!K44)=TRUE,Dokumentenauswertung!$C44,0))","v":""},{"$f":"IF(Dokumentenauswertung!L$10=\"\",\"\",IF(EXACT(Dokumentenauswertung!$B44,Dokumentenauswertung!L44)=TRUE,Dokumentenauswertung!$C44,0))","v":""},{"$f":"IF(Dokumentenauswertung!M$10=\"\",\"\",IF(EXACT(Dokumentenauswertung!$B44,Dokumentenauswertung!M44)=TRUE,Dokumentenauswertung!$C44,0))","v":""},{"$f":"IF(Dokumentenauswertung!N$10=\"\",\"\",IF(EXACT(Dokumentenauswertung!$B44,Dokumentenauswertung!N44)=TRUE,Dokumentenauswertung!$C44,0))","v":""},{"$f":"IF(Dokumentenauswertung!O$10=\"\",\"\",IF(EXACT(Dokumentenauswertung!$B44,Dokumentenauswertung!O44)=TRUE,Dokumentenauswertung!$C44,0))","v":""},{"$f":"IF(Dokumentenauswertung!P$10=\"\",\"\",IF(EXACT(Dokumentenauswertung!$B44,Dokumentenauswertung!P44)=TRUE,Dokumentenauswertung!$C44,0))","v":""},{"$f":"IF(Dokumentenauswertung!Q$10=\"\",\"\",IF(EXACT(Dokumentenauswertung!$B44,Dokumentenauswertung!Q44)=TRUE,Dokumentenauswertung!$C44,0))","v":""},{"$f":"IF(Dokumentenauswertung!R$10=\"\",\"\",IF(EXACT(Dokumentenauswertung!$B44,Dokumentenauswertung!R44)=TRUE,Dokumentenauswertung!$C44,0))","v":""},{"$f":"IF(Dokumentenauswertung!S$10=\"\",\"\",IF(EXACT(Dokumentenauswertung!$B44,Dokumentenauswertung!S44)=TRUE,Dokumentenauswertung!$C44,0))","v":""},{"$f":"IF(Dokumentenauswertung!T$10=\"\",\"\",IF(EXACT(Dokumentenauswertung!$B44,Dokumentenauswertung!T44)=TRUE,Dokumentenauswertung!$C44,0))","v":""},{"$f":"IF(Dokumentenauswertung!U$10=\"\",\"\",IF(EXACT(Dokumentenauswertung!$B44,Dokumentenauswertung!U44)=TRUE,Dokumentenauswertung!$C44,0))","v":""},{"$f":"IF(Dokumentenauswertung!V$10=\"\",\"\",IF(EXACT(Dokumentenauswertung!$B44,Dokumentenauswertung!V44)=TRUE,Dokumentenauswertung!$C44,0))","v":""},{"$f":"IF(Dokumentenauswertung!W$10=\"\",\"\",IF(EXACT(Dokumentenauswertung!$B44,Dokumentenauswertung!W44)=TRUE,Dokumentenauswertung!$C44,0))","v":""},{"$f":"IF(Dokumentenauswertung!X$10=\"\",\"\",IF(EXACT(Dokumentenauswertung!$B44,Dokumentenauswertung!X44)=TRUE,Dokumentenauswertung!$C44,0))","v":""},{"$f":"IF(Dokumentenauswertung!Y$10=\"\",\"\",IF(EXACT(Dokumentenauswertung!$B44,Dokumentenauswertung!Y44)=TRUE,Dokumentenauswertung!$C44,0))","v":""},{"$f":"IF(Dokumentenauswertung!Z$10=\"\",\"\",IF(EXACT(Dokumentenauswertung!$B44,Dokumentenauswertung!Z44)=TRUE,Dokumentenauswertung!$C44,0))","v":""},{"$f":"IF(Dokumentenauswertung!AA$10=\"\",\"\",IF(EXACT(Dokumentenauswertung!$B44,Dokumentenauswertung!AA44)=TRUE,Dokumentenauswertung!$C44,0))","v":""},{"$f":"IF(Dokumentenauswertung!AB$10=\"\",\"\",IF(EXACT(Dokumentenauswertung!$B44,Dokumentenauswertung!AB44)=TRUE,Dokumentenauswertung!$C44,0))","v":""},{"$f":"IF(Dokumentenauswertung!AC$10=\"\",\"\",IF(EXACT(Dokumentenauswertung!$B44,Dokumentenauswertung!AC44)=TRUE,Dokumentenauswertung!$C44,0))","v":""},{"$f":"IF(Dokumentenauswertung!AD$10=\"\",\"\",IF(EXACT(Dokumentenauswertung!$B44,Dokumentenauswertung!AD44)=TRUE,Dokumentenauswertung!$C44,0))","v":""},{"$f":"IF(Dokumentenauswertung!AE$10=\"\",\"\",IF(EXACT(Dokumentenauswertung!$B44,Dokumentenauswertung!AE44)=TRUE,Dokumentenauswertung!$C44,0))","v":""},{"$f":"IF(Dokumentenauswertung!AF$10=\"\",\"\",IF(EXACT(Dokumentenauswertung!$B44,Dokumentenauswertung!AF44)=TRUE,Dokumentenauswertung!$C44,0))","v":""},{"$f":"IF(Dokumentenauswertung!AG$10=\"\",\"\",IF(EXACT(Dokumentenauswertung!$B44,Dokumentenauswertung!AG44)=TRUE,Dokumentenauswertung!$C44,0))","v":""},{"$f":"IF(Dokumentenauswertung!AH$10=\"\",\"\",IF(EXACT(Dokumentenauswertung!$B44,Dokumentenauswertung!AH44)=TRUE,Dokumentenauswertung!$C44,0))","v":""},{"$f":"IF(Dokumentenauswertung!AI$10=\"\",\"\",IF(EXACT(Dokumentenauswertung!$B44,Dokumentenauswertung!AI44)=TRUE,Dokumentenauswertung!$C44,0))","v":""},{"$f":"IF(Dokumentenauswertung!AJ$10=\"\",\"\",IF(EXACT(Dokumentenauswertung!$B44,Dokumentenauswertung!AJ44)=TRUE,Dokumentenauswertung!$C44,0))","v":""},{"$f":"IF(Dokumentenauswertung!AK$10=\"\",\"\",IF(EXACT(Dokumentenauswertung!$B44,Dokumentenauswertung!AK44)=TRUE,Dokumentenauswertung!$C44,0))","v":""}]
[null,null,{"$f":"Dokumentenauswertung!$A45","v":"C3.2"},{"$f":"IF(Dokumentenauswertung!E$10=\"\",\"\",IF(EXACT(Dokumentenauswertung!$B45,Dokumentenauswertung!E45)=TRUE,Dokumentenauswertung!$C45,0))","v":""},{"$f":"IF(Dokumentenauswertung!F$10=\"\",\"\",IF(EXACT(Dokumentenauswertung!$B45,Dokumentenauswertung!F45)=TRUE,Dokumentenauswertung!$C45,0))","v":""},{"$f":"IF(Dokumentenauswertung!G$10=\"\",\"\",IF(EXACT(Dokumentenauswertung!$B45,Dokumentenauswertung!G45)=TRUE,Dokumentenauswertung!$C45,0))","v":""},{"$f":"IF(Dokumentenauswertung!H$10=\"\",\"\",IF(EXACT(Dokumentenauswertung!$B45,Dokumentenauswertung!H45)=TRUE,Dokumentenauswertung!$C45,0))","v":""},{"$f":"IF(Dokumentenauswertung!I$10=\"\",\"\",IF(EXACT(Dokumentenauswertung!$B45,Dokumentenauswertung!I45)=TRUE,Dokumentenauswertung!$C45,0))","v":""},{"$f":"IF(Dokumentenauswertung!J$10=\"\",\"\",IF(EXACT(Dokumentenauswertung!$B45,Dokumentenauswertung!J45)=TRUE,Dokumentenauswertung!$C45,0))","v":""},{"$f":"IF(Dokumentenauswertung!K$10=\"\",\"\",IF(EXACT(Dokumentenauswertung!$B45,Dokumentenauswertung!K45)=TRUE,Dokumentenauswertung!$C45,0))","v":""},{"$f":"IF(Dokumentenauswertung!L$10=\"\",\"\",IF(EXACT(Dokumentenauswertung!$B45,Dokumentenauswertung!L45)=TRUE,Dokumentenauswertung!$C45,0))","v":""},{"$f":"IF(Dokumentenauswertung!M$10=\"\",\"\",IF(EXACT(Dokumentenauswertung!$B45,Dokumentenauswertung!M45)=TRUE,Dokumentenauswertung!$C45,0))","v":""},{"$f":"IF(Dokumentenauswertung!N$10=\"\",\"\",IF(EXACT(Dokumentenauswertung!$B45,Dokumentenauswertung!N45)=TRUE,Dokumentenauswertung!$C45,0))","v":""},{"$f":"IF(Dokumentenauswertung!O$10=\"\",\"\",IF(EXACT(Dokumentenauswertung!$B45,Dokumentenauswertung!O45)=TRUE,Dokumentenauswertung!$C45,0))","v":""},{"$f":"IF(Dokumentenauswertung!P$10=\"\",\"\",IF(EXACT(Dokumentenauswertung!$B45,Dokumentenauswertung!P45)=TRUE,Dokumentenauswertung!$C45,0))","v":""},{"$f":"IF(Dokumentenauswertung!Q$10=\"\",\"\",IF(EXACT(Dokumentenauswertung!$B45,Dokumentenauswertung!Q45)=TRUE,Dokumentenauswertung!$C45,0))","v":""},{"$f":"IF(Dokumentenauswertung!R$10=\"\",\"\",IF(EXACT(Dokumentenauswertung!$B45,Dokumentenauswertung!R45)=TRUE,Dokumentenauswertung!$C45,0))","v":""},{"$f":"IF(Dokumentenauswertung!S$10=\"\",\"\",IF(EXACT(Dokumentenauswertung!$B45,Dokumentenauswertung!S45)=TRUE,Dokumentenauswertung!$C45,0))","v":""},{"$f":"IF(Dokumentenauswertung!T$10=\"\",\"\",IF(EXACT(Dokumentenauswertung!$B45,Dokumentenauswertung!T45)=TRUE,Dokumentenauswertung!$C45,0))","v":""},{"$f":"IF(Dokumentenauswertung!U$10=\"\",\"\",IF(EXACT(Dokumentenauswertung!$B45,Dokumentenauswertung!U45)=TRUE,Dokumentenauswertung!$C45,0))","v":""},{"$f":"IF(Dokumentenauswertung!V$10=\"\",\"\",IF(EXACT(Dokumentenauswertung!$B45,Dokumentenauswertung!V45)=TRUE,Dokumentenauswertung!$C45,0))","v":""},{"$f":"IF(Dokumentenauswertung!W$10=\"\",\"\",IF(EXACT(Dokumentenauswertung!$B45,Dokumentenauswertung!W45)=TRUE,Dokumentenauswertung!$C45,0))","v":""},{"$f":"IF(Dokumentenauswertung!X$10=\"\",\"\",IF(EXACT(Dokumentenauswertung!$B45,Dokumentenauswertung!X45)=TRUE,Dokumentenauswertung!$C45,0))","v":""},{"$f":"IF(Dokumentenauswertung!Y$10=\"\",\"\",IF(EXACT(Dokumentenauswertung!$B45,Dokumentenauswertung!Y45)=TRUE,Dokumentenauswertung!$C45,0))","v":""},{"$f":"IF(Dokumentenauswertung!Z$10=\"\",\"\",IF(EXACT(Dokumentenauswertung!$B45,Dokumentenauswertung!Z45)=TRUE,Dokumentenauswertung!$C45,0))","v":""},{"$f":"IF(Dokumentenauswertung!AA$10=\"\",\"\",IF(EXACT(Dokumentenauswertung!$B45,Dokumentenauswertung!AA45)=TRUE,Dokumentenauswertung!$C45,0))","v":""},{"$f":"IF(Dokumentenauswertung!AB$10=\"\",\"\",IF(EXACT(Dokumentenauswertung!$B45,Dokumentenauswertung!AB45)=TRUE,Dokumentenauswertung!$C45,0))","v":""},{"$f":"IF(Dokumentenauswertung!AC$10=\"\",\"\",IF(EXACT(Dokumentenauswertung!$B45,Dokumentenauswertung!AC45)=TRUE,Dokumentenauswertung!$C45,0))","v":""},{"$f":"IF(Dokumentenauswertung!AD$10=\"\",\"\",IF(EXACT(Dokumentenauswertung!$B45,Dokumentenauswertung!AD45)=TRUE,Dokumentenauswertung!$C45,0))","v":""},{"$f":"IF(Dokumentenauswertung!AE$10=\"\",\"\",IF(EXACT(Dokumentenauswertung!$B45,Dokumentenauswertung!AE45)=TRUE,Dokumentenauswertung!$C45,0))","v":""},{"$f":"IF(Dokumentenauswertung!AF$10=\"\",\"\",IF(EXACT(Dokumentenauswertung!$B45,Dokumentenauswertung!AF45)=TRUE,Dokumentenauswertung!$C45,0))","v":""},{"$f":"IF(Dokumentenauswertung!AG$10=\"\",\"\",IF(EXACT(Dokumentenauswertung!$B45,Dokumentenauswertung!AG45)=TRUE,Dokumentenauswertung!$C45,0))","v":""},{"$f":"IF(Dokumentenauswertung!AH$10=\"\",\"\",IF(EXACT(Dokumentenauswertung!$B45,Dokumentenauswertung!AH45)=TRUE,Dokumentenauswertung!$C45,0))","v":""},{"$f":"IF(Dokumentenauswertung!AI$10=\"\",\"\",IF(EXACT(Dokumentenauswertung!$B45,Dokumentenauswertung!AI45)=TRUE,Dokumentenauswertung!$C45,0))","v":""},{"$f":"IF(Dokumentenauswertung!AJ$10=\"\",\"\",IF(EXACT(Dokumentenauswertung!$B45,Dokumentenauswertung!AJ45)=TRUE,Dokumentenauswertung!$C45,0))","v":""},{"$f":"IF(Dokumentenauswertung!AK$10=\"\",\"\",IF(EXACT(Dokumentenauswertung!$B45,Dokumentenauswertung!AK45)=TRUE,Dokumentenauswertung!$C45,0))","v":""}]
[null,null,{"$f":"Dokumentenauswertung!$A46","v":"C4.1"},{"$f":"IF(Dokumentenauswertung!E$10=\"\",\"\",IF(EXACT(Dokumentenauswertung!$B46,Dokumentenauswertung!E46)=TRUE,Dokumentenauswertung!$C46,0))","v":""},{"$f":"IF(Dokumentenauswertung!F$10=\"\",\"\",IF(EXACT(Dokumentenauswertung!$B46,Dokumentenauswertung!F46)=TRUE,Dokumentenauswertung!$C46,0))","v":""},{"$f":"IF(Dokumentenauswertung!G$10=\"\",\"\",IF(EXACT(Dokumentenauswertung!$B46,Dokumentenauswertung!G46)=TRUE,Dokumentenauswertung!$C46,0))","v":""},{"$f":"IF(Dokumentenauswertung!H$10=\"\",\"\",IF(EXACT(Dokumentenauswertung!$B46,Dokumentenauswertung!H46)=TRUE,Dokumentenauswertung!$C46,0))","v":""},{"$f":"IF(Dokumentenauswertung!I$10=\"\",\"\",IF(EXACT(Dokumentenauswertung!$B46,Dokumentenauswertung!I46)=TRUE,Dokumentenauswertung!$C46,0))","v":""},{"$f":"IF(Dokumentenauswertung!J$10=\"\",\"\",IF(EXACT(Dokumentenauswertung!$B46,Dokumentenauswertung!J46)=TRUE,Dokumentenauswertung!$C46,0))","v":""},{"$f":"IF(Dokumentenauswertung!K$10=\"\",\"\",IF(EXACT(Dokumentenauswertung!$B46,Dokumentenauswertung!K46)=TRUE,Dokumentenauswertung!$C46,0))","v":""},{"$f":"IF(Dokumentenauswertung!L$10=\"\",\"\",IF(EXACT(Dokumentenauswertung!$B46,Dokumentenauswertung!L46)=TRUE,Dokumentenauswertung!$C46,0))","v":""},{"$f":"IF(Dokumentenauswertung!M$10=\"\",\"\",IF(EXACT(Dokumentenauswertung!$B46,Dokumentenauswertung!M46)=TRUE,Dokumentenauswertung!$C46,0))","v":""},{"$f":"IF(Dokumentenauswertung!N$10=\"\",\"\",IF(EXACT(Dokumentenauswertung!$B46,Dokumentenauswertung!N46)=TRUE,Dokumentenauswertung!$C46,0))","v":""},{"$f":"IF(Dokumentenauswertung!O$10=\"\",\"\",IF(EXACT(Dokumentenauswertung!$B46,Dokumentenauswertung!O46)=TRUE,Dokumentenauswertung!$C46,0))","v":""},{"$f":"IF(Dokumentenauswertung!P$10=\"\",\"\",IF(EXACT(Dokumentenauswertung!$B46,Dokumentenauswertung!P46)=TRUE,Dokumentenauswertung!$C46,0))","v":""},{"$f":"IF(Dokumentenauswertung!Q$10=\"\",\"\",IF(EXACT(Dokumentenauswertung!$B46,Dokumentenauswertung!Q46)=TRUE,Dokumentenauswertung!$C46,0))","v":""},{"$f":"IF(Dokumentenauswertung!R$10=\"\",\"\",IF(EXACT(Dokumentenauswertung!$B46,Dokumentenauswertung!R46)=TRUE,Dokumentenauswertung!$C46,0))","v":""},{"$f":"IF(Dokumentenauswertung!S$10=\"\",\"\",IF(EXACT(Dokumentenauswertung!$B46,Dokumentenauswertung!S46)=TRUE,Dokumentenauswertung!$C46,0))","v":""},{"$f":"IF(Dokumentenauswertung!T$10=\"\",\"\",IF(EXACT(Dokumentenauswertung!$B46,Dokumentenauswertung!T46)=TRUE,Dokumentenauswertung!$C46,0))","v":""},{"$f":"IF(Dokumentenauswertung!U$10=\"\",\"\",IF(EXACT(Dokumentenauswertung!$B46,Dokumentenauswertung!U46)=TRUE,Dokumentenauswertung!$C46,0))","v":""},{"$f":"IF(Dokumentenauswertung!V$10=\"\",\"\",IF(EXACT(Dokumentenauswertung!$B46,Dokumentenauswertung!V46)=TRUE,Dokumentenauswertung!$C46,0))","v":""},{"$f":"IF(Dokumentenauswertung!W$10=\"\",\"\",IF(EXACT(Dokumentenauswertung!$B46,Dokumentenauswertung!W46)=TRUE,Dokumentenauswertung!$C46,0))","v":""},{"$f":"IF(Dokumentenauswertung!X$10=\"\",\"\",IF(EXACT(Dokumentenauswertung!$B46,Dokumentenauswertung!X46)=TRUE,Dokumentenauswertung!$C46,0))","v":""},{"$f":"IF(Dokumentenauswertung!Y$10=\"\",\"\",IF(EXACT(Dokumentenauswertung!$B46,Dokumentenauswertung!Y46)=TRUE,Dokumentenauswertung!$C46,0))","v":""},{"$f":"IF(Dokumentenauswertung!Z$10=\"\",\"\",IF(EXACT(Dokumentenauswertung!$B46,Dokumentenauswertung!Z46)=TRUE,Dokumentenauswertung!$C46,0))","v":""},{"$f":"IF(Dokumentenauswertung!AA$10=\"\",\"\",IF(EXACT(Dokumentenauswertung!$B46,Dokumentenauswertung!AA46)=TRUE,Dokumentenauswertung!$C46,0))","v":""},{"$f":"IF(Dokumentenauswertung!AB$10=\"\",\"\",IF(EXACT(Dokumentenauswertung!$B46,Dokumentenauswertung!AB46)=TRUE,Dokumentenauswertung!$C46,0))","v":""},{"$f":"IF(Dokumentenauswertung!AC$10=\"\",\"\",IF(EXACT(Dokumentenauswertung!$B46,Dokumentenauswertung!AC46)=TRUE,Dokumentenauswertung!$C46,0))","v":""},{"$f":"IF(Dokumentenauswertung!AD$10=\"\",\"\",IF(EXACT(Dokumentenauswertung!$B46,Dokumentenauswertung!AD46)=TRUE,Dokumentenauswertung!$C46,0))","v":""},{"$f":"IF(Dokumentenauswertung!AE$10=\"\",\"\",IF(EXACT(Dokumentenauswertung!$B46,Dokumentenauswertung!AE46)=TRUE,Dokumentenauswertung!$C46,0))","v":""},{"$f":"IF(Dokumentenauswertung!AF$10=\"\",\"\",IF(EXACT(Dokumentenauswertung!$B46,Dokumentenauswertung!AF46)=TRUE,Dokumentenauswertung!$C46,0))","v":""},{"$f":"IF(Dokumentenauswertung!AG$10=\"\",\"\",IF(EXACT(Dokumentenauswertung!$B46,Dokumentenauswertung!AG46)=TRUE,Dokumentenauswertung!$C46,0))","v":""},{"$f":"IF(Dokumentenauswertung!AH$10=\"\",\"\",IF(EXACT(Dokumentenauswertung!$B46,Dokumentenauswertung!AH46)=TRUE,Dokumentenauswertung!$C46,0))","v":""},{"$f":"IF(Dokumentenauswertung!AI$10=\"\",\"\",IF(EXACT(Dokumentenauswertung!$B46,Dokumentenauswertung!AI46)=TRUE,Dokumentenauswertung!$C46,0))","v":""},{"$f":"IF(Dokumentenauswertung!AJ$10=\"\",\"\",IF(EXACT(Dokumentenauswertung!$B46,Dokumentenauswertung!AJ46)=TRUE,Dokumentenauswertung!$C46,0))","v":""},{"$f":"IF(Dokumentenauswertung!AK$10=\"\",\"\",IF(EXACT(Dokumentenauswertung!$B46,Dokumentenauswertung!AK46)=TRUE,Dokumentenauswertung!$C46,0))","v":""}]
[null,null,{"$f":"Dokumentenauswertung!$A47","v":"C4.2"},{"$f":"IF(Dokumentenauswertung!E$10=\"\",\"\",IF(EXACT(Dokumentenauswertung!$B47,Dokumentenauswertung!E47)=TRUE,Dokumentenauswertung!$C47,0))","v":""},{"$f":"IF(Dokumentenauswertung!F$10=\"\",\"\",IF(EXACT(Dokumentenauswertung!$B47,Dokumentenauswertung!F47)=TRUE,Dokumentenauswertung!$C47,0))","v":""},{"$f":"IF(Dokumentenauswertung!G$10=\"\",\"\",IF(EXACT(Dokumentenauswertung!$B47,Dokumentenauswertung!G47)=TRUE,Dokumentenauswertung!$C47,0))","v":""},{"$f":"IF(Dokumentenauswertung!H$10=\"\",\"\",IF(EXACT(Dokumentenauswertung!$B47,Dokumentenauswertung!H47)=TRUE,Dokumentenauswertung!$C47,0))","v":""},{"$f":"IF(Dokumentenauswertung!I$10=\"\",\"\",IF(EXACT(Dokumentenauswertung!$B47,Dokumentenauswertung!I47)=TRUE,Dokumentenauswertung!$C47,0))","v":""},{"$f":"IF(Dokumentenauswertung!J$10=\"\",\"\",IF(EXACT(Dokumentenauswertung!$B47,Dokumentenauswertung!J47)=TRUE,Dokumentenauswertung!$C47,0))","v":""},{"$f":"IF(Dokumentenauswertung!K$10=\"\",\"\",IF(EXACT(Dokumentenauswertung!$B47,Dokumentenauswertung!K47)=TRUE,Dokumentenauswertung!$C47,0))","v":""},{"$f":"IF(Dokumentenauswertung!L$10=\"\",\"\",IF(EXACT(Dokumentenauswertung!$B47,Dokumentenauswertung!L47)=TRUE,Dokumentenauswertung!$C47,0))","v":""},{"$f":"IF(Dokumentenauswertung!M$10=\"\",\"\",IF(EXACT(Dokumentenauswertung!$B47,Dokumentenauswertung!M47)=TRUE,Dokumentenauswertung!$C47,0))","v":""},{"$f":"IF(Dokumentenauswertung!N$10=\"\",\"\",IF(EXACT(Dokumentenauswertung!$B47,Dokumentenauswertung!N47)=TRUE,Dokumentenauswertung!$C47,0))","v":""},{"$f":"IF(Dokumentenauswertung!O$10=\"\",\"\",IF(EXACT(Dokumentenauswertung!$B47,Dokumentenauswertung!O47)=TRUE,Dokumentenauswertung!$C47,0))","v":""},{"$f":"IF(Dokumentenauswertung!P$10=\"\",\"\",IF(EXACT(Dokumentenauswertung!$B47,Dokumentenauswertung!P47)=TRUE,Dokumentenauswertung!$C47,0))","v":""},{"$f":"IF(Dokumentenauswertung!Q$10=\"\",\"\",IF(EXACT(Dokumentenauswertung!$B47,Dokumentenauswertung!Q47)=TRUE,Dokumentenauswertung!$C47,0))","v":""},{"$f":"IF(Dokumentenauswertung!R$10=\"\",\"\",IF(EXACT(Dokumentenauswertung!$B47,Dokumentenauswertung!R47)=TRUE,Dokumentenauswertung!$C47,0))","v":""},{"$f":"IF(Dokumentenauswertung!S$10=\"\",\"\",IF(EXACT(Dokumentenauswertung!$B47,Dokumentenauswertung!S47)=TRUE,Dokumentenauswertung!$C47,0))","v":""},{"$f":"IF(Dokumentenauswertung!T$10=\"\",\"\",IF(EXACT(Dokumentenauswertung!$B47,Dokumentenauswertung!T47)=TRUE,Dokumentenauswertung!$C47,0))","v":""},{"$f":"IF(Dokumentenauswertung!U$10=\"\",\"\",IF(EXACT(Dokumentenauswertung!$B47,Dokumentenauswertung!U47)=TRUE,Dokumentenauswertung!$C47,0))","v":""},{"$f":"IF(Dokumentenauswertung!V$10=\"\",\"\",IF(EXACT(Dokumentenauswertung!$B47,Dokumentenauswertung!V47)=TRUE,Dokumentenauswertung!$C47,0))","v":""},{"$f":"IF(Dokumentenauswertung!W$10=\"\",\"\",IF(EXACT(Dokumentenauswertung!$B47,Dokumentenauswertung!W47)=TRUE,Dokumentenauswertung!$C47,0))","v":""},{"$f":"IF(Dokumentenauswertung!X$10=\"\",\"\",IF(EXACT(Dokumentenauswertung!$B47,Dokumentenauswertung!X47)=TRUE,Dokumentenauswertung!$C47,0))","v":""},{"$f":"IF(Dokumentenauswertung!Y$10=\"\",\"\",IF(EXACT(Dokumentenauswertung!$B47,Dokumentenauswertung!Y47)=TRUE,Dokumentenauswertung!$C47,0))","v":""},{"$f":"IF(Dokumentenauswertung!Z$10=\"\",\"\",IF(EXACT(Dokumentenauswertung!$B47,Dokumentenauswertung!Z47)=TRUE,Dokumentenauswertung!$C47,0))","v":""},{"$f":"IF(Dokumentenauswertung!AA$10=\"\",\"\",IF(EXACT(Dokumentenauswertung!$B47,Dokumentenauswertung!AA47)=TRUE,Dokumentenauswertung!$C47,0))","v":""},{"$f":"IF(Dokumentenauswertung!AB$10=\"\",\"\",IF(EXACT(Dokumentenauswertung!$B47,Dokumentenauswertung!AB47)=TRUE,Dokumentenauswertung!$C47,0))","v":""},{"$f":"IF(Dokumentenauswertung!AC$10=\"\",\"\",IF(EXACT(Dokumentenauswertung!$B47,Dokumentenauswertung!AC47)=TRUE,Dokumentenauswertung!$C47,0))","v":""},{"$f":"IF(Dokumentenauswertung!AD$10=\"\",\"\",IF(EXACT(Dokumentenauswertung!$B47,Dokumentenauswertung!AD47)=TRUE,Dokumentenauswertung!$C47,0))","v":""},{"$f":"IF(Dokumentenauswertung!AE$10=\"\",\"\",IF(EXACT(Dokumentenauswertung!$B47,Dokumentenauswertung!AE47)=TRUE,Dokumentenauswertung!$C47,0))","v":""},{"$f":"IF(Dokumentenauswertung!AF$10=\"\",\"\",IF(EXACT(Dokumentenauswertung!$B47,Dokumentenauswertung!AF47)=TRUE,Dokumentenauswertung!$C47,0))","v":""},{"$f":"IF(Dokumentenauswertung!AG$10=\"\",\"\",IF(EXACT(Dokumentenauswertung!$B47,Dokumentenauswertung!AG47)=TRUE,Dokumentenauswertung!$C47,0))","v":""},{"$f":"IF(Dokumentenauswertung!AH$10=\"\",\"\",IF(EXACT(Dokumentenauswertung!$B47,Dokumentenauswertung!AH47)=TRUE,Dokumentenauswertung!$C47,0))","v":""},{"$f":"IF(Dokumentenauswertung!AI$10=\"\",\"\",IF(EXACT(Dokumentenauswertung!$B47,Dokumentenauswertung!AI47)=TRUE,Dokumentenauswertung!$C47,0))","v":""},{"$f":"IF(Dokumentenauswertung!AJ$10=\"\",\"\",IF(EXACT(Dokumentenauswertung!$B47,Dokumentenauswertung!AJ47)=TRUE,Dokumentenauswertung!$C47,0))","v":""},{"$f":"IF(Dokumentenauswertung!AK$10=\"\",\"\",IF(EXACT(Dokumentenauswertung!$B47,Dokumentenauswertung!AK47)=TRUE,Dokumentenauswertung!$C47,0))","v":""}]
[null,null,{"$f":"Dokumentenauswertung!$A48","v":"D1.1"},{"$f":"IF(Dokumentenauswertung!E$10=\"\",\"\",IF(EXACT(Dokumentenauswertung!$B48,Dokumentenauswertung!E48)=TRUE,Dokumentenauswertung!$C48,0))","v":""},{"$f":"IF(Dokumentenauswertung!F$10=\"\",\"\",IF(EXACT(Dokumentenauswertung!$B48,Dokumentenauswertung!F48)=TRUE,Dokumentenauswertung!$C48,0))","v":""},{"$f":"IF(Dokumentenauswertung!G$10=\"\",\"\",IF(EXACT(Dokumentenauswertung!$B48,Dokumentenauswertung!G48)=TRUE,Dokumentenauswertung!$C48,0))","v":""},{"$f":"IF(Dokumentenauswertung!H$10=\"\",\"\",IF(EXACT(Dokumentenauswertung!$B48,Dokumentenauswertung!H48)=TRUE,Dokumentenauswertung!$C48,0))","v":""},{"$f":"IF(Dokumentenauswertung!I$10=\"\",\"\",IF(EXACT(Dokumentenauswertung!$B48,Dokumentenauswertung!I48)=TRUE,Dokumentenauswertung!$C48,0))","v":""},{"$f":"IF(Dokumentenauswertung!J$10=\"\",\"\",IF(EXACT(Dokumentenauswertung!$B48,Dokumentenauswertung!J48)=TRUE,Dokumentenauswertung!$C48,0))","v":""},{"$f":"IF(Dokumentenauswertung!K$10=\"\",\"\",IF(EXACT(Dokumentenauswertung!$B48,Dokumentenauswertung!K48)=TRUE,Dokumentenauswertung!$C48,0))","v":""},{"$f":"IF(Dokumentenauswertung!L$10=\"\",\"\",IF(EXACT(Dokumentenauswertung!$B48,Dokumentenauswertung!L48)=TRUE,Dokumentenauswertung!$C48,0))","v":""},{"$f":"IF(Dokumentenauswertung!M$10=\"\",\"\",IF(EXACT(Dokumentenauswertung!$B48,Dokumentenauswertung!M48)=TRUE,Dokumentenauswertung!$C48,0))","v":""},{"$f":"IF(Dokumentenauswertung!N$10=\"\",\"\",IF(EXACT(Dokumentenauswertung!$B48,Dokumentenauswertung!N48)=TRUE,Dokumentenauswertung!$C48,0))","v":""},{"$f":"IF(Dokumentenauswertung!O$10=\"\",\"\",IF(EXACT(Dokumentenauswertung!$B48,Dokumentenauswertung!O48)=TRUE,Dokumentenauswertung!$C48,0))","v":""},{"$f":"IF(Dokumentenauswertung!P$10=\"\",\"\",IF(EXACT(Dokumentenauswertung!$B48,Dokumentenauswertung!P48)=TRUE,Dokumentenauswertung!$C48,0))","v":""},{"$f":"IF(Dokumentenauswertung!Q$10=\"\",\"\",IF(EXACT(Dokumentenauswertung!$B48,Dokumentenauswertung!Q48)=TRUE,Dokumentenauswertung!$C48,0))","v":""},{"$f":"IF(Dokumentenauswertung!R$10=\"\",\"\",IF(EXACT(Dokumentenauswertung!$B48,Dokumentenauswertung!R48)=TRUE,Dokumentenauswertung!$C48,0))","v":""},{"$f":"IF(Dokumentenauswertung!S$10=\"\",\"\",IF(EXACT(Dokumentenauswertung!$B48,Dokumentenauswertung!S48)=TRUE,Dokumentenauswertung!$C48,0))","v":""},{"$f":"IF(Dokumentenauswertung!T$10=\"\",\"\",IF(EXACT(Dokumentenauswertung!$B48,Dokumentenauswertung!T48)=TRUE,Dokumentenauswertung!$C48,0))","v":""},{"$f":"IF(Dokumentenauswertung!U$10=\"\",\"\",IF(EXACT(Dokumentenauswertung!$B48,Dokumentenauswertung!U48)=TRUE,Dokumentenauswertung!$C48,0))","v":""},{"$f":"IF(Dokumentenauswertung!V$10=\"\",\"\",IF(EXACT(Dokumentenauswertung!$B48,Dokumentenauswertung!V48)=TRUE,Dokumentenauswertung!$C48,0))","v":""},{"$f":"IF(Dokumentenauswertung!W$10=\"\",\"\",IF(EXACT(Dokumentenauswertung!$B48,Dokumentenauswertung!W48)=TRUE,Dokumentenauswertung!$C48,0))","v":""},{"$f":"IF(Dokumentenauswertung!X$10=\"\",\"\",IF(EXACT(Dokumentenauswertung!$B48,Dokumentenauswertung!X48)=TRUE,Dokumentenauswertung!$C48,0))","v":""},{"$f":"IF(Dokumentenauswertung!Y$10=\"\",\"\",IF(EXACT(Dokumentenauswertung!$B48,Dokumentenauswertung!Y48)=TRUE,Dokumentenauswertung!$C48,0))","v":""},{"$f":"IF(Dokumentenauswertung!Z$10=\"\",\"\",IF(EXACT(Dokumentenauswertung!$B48,Dokumentenauswertung!Z48)=TRUE,Dokumentenauswertung!$C48,0))","v":""},{"$f":"IF(Dokumentenauswertung!AA$10=\"\",\"\",IF(EXACT(Dokumentenauswertung!$B48,Dokumentenauswertung!AA48)=TRUE,Dokumentenauswertung!$C48,0))","v":""},{"$f":"IF(Dokumentenauswertung!AB$10=\"\",\"\",IF(EXACT(Dokumentenauswertung!$B48,Dokumentenauswertung!AB48)=TRUE,Dokumentenauswertung!$C48,0))","v":""},{"$f":"IF(Dokumentenauswertung!AC$10=\"\",\"\",IF(EXACT(Dokumentenauswertung!$B48,Dokumentenauswertung!AC48)=TRUE,Dokumentenauswertung!$C48,0))","v":""},{"$f":"IF(Dokumentenauswertung!AD$10=\"\",\"\",IF(EXACT(Dokumentenauswertung!$B48,Dokumentenauswertung!AD48)=TRUE,Dokumentenauswertung!$C48,0))","v":""},{"$f":"IF(Dokumentenauswertung!AE$10=\"\",\"\",IF(EXACT(Dokumentenauswertung!$B48,Dokumentenauswertung!AE48)=TRUE,Dokumentenauswertung!$C48,0))","v":""},{"$f":"IF(Dokumentenauswertung!AF$10=\"\",\"\",IF(EXACT(Dokumentenauswertung!$B48,Dokumentenauswertung!AF48)=TRUE,Dokumentenauswertung!$C48,0))","v":""},{"$f":"IF(Dokumentenauswertung!AG$10=\"\",\"\",IF(EXACT(Dokumentenauswertung!$B48,Dokumentenauswertung!AG48)=TRUE,Dokumentenauswertung!$C48,0))","v":""},{"$f":"IF(Dokumentenauswertung!AH$10=\"\",\"\",IF(EXACT(Dokumentenauswertung!$B48,Dokumentenauswertung!AH48)=TRUE,Dokumentenauswertung!$C48,0))","v":""},{"$f":"IF(Dokumentenauswertung!AI$10=\"\",\"\",IF(EXACT(Dokumentenauswertung!$B48,Dokumentenauswertung!AI48)=TRUE,Dokumentenauswertung!$C48,0))","v":""},{"$f":"IF(Dokumentenauswertung!AJ$10=\"\",\"\",IF(EXACT(Dokumentenauswertung!$B48,Dokumentenauswertung!AJ48)=TRUE,Dokumentenauswertung!$C48,0))","v":""},{"$f":"IF(Dokumentenauswertung!AK$10=\"\",\"\",IF(EXACT(Dokumentenauswertung!$B48,Dokumentenauswertung!AK48)=TRUE,Dokumentenauswertung!$C48,0))","v":""}]
[null,null,{"$f":"Dokumentenauswertung!$A49","v":"D1.2"},{"$f":"IF(Dokumentenauswertung!E$10=\"\",\"\",IF(EXACT(Dokumentenauswertung!$B49,Dokumentenauswertung!E49)=TRUE,Dokumentenauswertung!$C49,0))","v":""},{"$f":"IF(Dokumentenauswertung!F$10=\"\",\"\",IF(EXACT(Dokumentenauswertung!$B49,Dokumentenauswertung!F49)=TRUE,Dokumentenauswertung!$C49,0))","v":""},{"$f":"IF(Dokumentenauswertung!G$10=\"\",\"\",IF(EXACT(Dokumentenauswertung!$B49,Dokumentenauswertung!G49)=TRUE,Dokumentenauswertung!$C49,0))","v":""},{"$f":"IF(Dokumentenauswertung!H$10=\"\",\"\",IF(EXACT(Dokumentenauswertung!$B49,Dokumentenauswertung!H49)=TRUE,Dokumentenauswertung!$C49,0))","v":""},{"$f":"IF(Dokumentenauswertung!I$10=\"\",\"\",IF(EXACT(Dokumentenauswertung!$B49,Dokumentenauswertung!I49)=TRUE,Dokumentenauswertung!$C49,0))","v":""},{"$f":"IF(Dokumentenauswertung!J$10=\"\",\"\",IF(EXACT(Dokumentenauswertung!$B49,Dokumentenauswertung!J49)=TRUE,Dokumentenauswertung!$C49,0))","v":""},{"$f":"IF(Dokumentenauswertung!K$10=\"\",\"\",IF(EXACT(Dokumentenauswertung!$B49,Dokumentenauswertung!K49)=TRUE,Dokumentenauswertung!$C49,0))","v":""},{"$f":"IF(Dokumentenauswertung!L$10=\"\",\"\",IF(EXACT(Dokumentenauswertung!$B49,Dokumentenauswertung!L49)=TRUE,Dokumentenauswertung!$C49,0))","v":""},{"$f":"IF(Dokumentenauswertung!M$10=\"\",\"\",IF(EXACT(Dokumentenauswertung!$B49,Dokumentenauswertung!M49)=TRUE,Dokumentenauswertung!$C49,0))","v":""},{"$f":"IF(Dokumentenauswertung!N$10=\"\",\"\",IF(EXACT(Dokumentenauswertung!$B49,Dokumentenauswertung!N49)=TRUE,Dokumentenauswertung!$C49,0))","v":""},{"$f":"IF(Dokumentenauswertung!O$10=\"\",\"\",IF(EXACT(Dokumentenauswertung!$B49,Dokumentenauswertung!O49)=TRUE,Dokumentenauswertung!$C49,0))","v":""},{"$f":"IF(Dokumentenauswertung!P$10=\"\",\"\",IF(EXACT(Dokumentenauswertung!$B49,Dokumentenauswertung!P49)=TRUE,Dokumentenauswertung!$C49,0))","v":""},{"$f":"IF(Dokumentenauswertung!Q$10=\"\",\"\",IF(EXACT(Dokumentenauswertung!$B49,Dokumentenauswertung!Q49)=TRUE,Dokumentenauswertung!$C49,0))","v":""},{"$f":"IF(Dokumentenauswertung!R$10=\"\",\"\",IF(EXACT(Dokumentenauswertung!$B49,Dokumentenauswertung!R49)=TRUE,Dokumentenauswertung!$C49,0))","v":""},{"$f":"IF(Dokumentenauswertung!S$10=\"\",\"\",IF(EXACT(Dokumentenauswertung!$B49,Dokumentenauswertung!S49)=TRUE,Dokumentenauswertung!$C49,0))","v":""},{"$f":"IF(Dokumentenauswertung!T$10=\"\",\"\",IF(EXACT(Dokumentenauswertung!$B49,Dokumentenauswertung!T49)=TRUE,Dokumentenauswertung!$C49,0))","v":""},{"$f":"IF(Dokumentenauswertung!U$10=\"\",\"\",IF(EXACT(Dokumentenauswertung!$B49,Dokumentenauswertung!U49)=TRUE,Dokumentenauswertung!$C49,0))","v":""},{"$f":"IF(Dokumentenauswertung!V$10=\"\",\"\",IF(EXACT(Dokumentenauswertung!$B49,Dokumentenauswertung!V49)=TRUE,Dokumentenauswertung!$C49,0))","v":""},{"$f":"IF(Dokumentenauswertung!W$10=\"\",\"\",IF(EXACT(Dokumentenauswertung!$B49,Dokumentenauswertung!W49)=TRUE,Dokumentenauswertung!$C49,0))","v":""},{"$f":"IF(Dokumentenauswertung!X$10=\"\",\"\",IF(EXACT(Dokumentenauswertung!$B49,Dokumentenauswertung!X49)=TRUE,Dokumentenauswertung!$C49,0))","v":""},{"$f":"IF(Dokumentenauswertung!Y$10=\"\",\"\",IF(EXACT(Dokumentenauswertung!$B49,Dokumentenauswertung!Y49)=TRUE,Dokumentenauswertung!$C49,0))","v":""},{"$f":"IF(Dokumentenauswertung!Z$10=\"\",\"\",IF(EXACT(Dokumentenauswertung!$B49,Dokumentenauswertung!Z49)=TRUE,Dokumentenauswertung!$C49,0))","v":""},{"$f":"IF(Dokumentenauswertung!AA$10=\"\",\"\",IF(EXACT(Dokumentenauswertung!$B49,Dokumentenauswertung!AA49)=TRUE,Dokumentenauswertung!$C49,0))","v":""},{"$f":"IF(Dokumentenauswertung!AB$10=\"\",\"\",IF(EXACT(Dokumentenauswertung!$B49,Dokumentenauswertung!AB49)=TRUE,Dokumentenauswertung!$C49,0))","v":""},{"$f":"IF(Dokumentenauswertung!AC$10=\"\",\"\",IF(EXACT(Dokumentenauswertung!$B49,Dokumentenauswertung!AC49)=TRUE,Dokumentenauswertung!$C49,0))","v":""},{"$f":"IF(Dokumentenauswertung!AD$10=\"\",\"\",IF(EXACT(Dokumentenauswertung!$B49,Dokumentenauswertung!AD49)=TRUE,Dokumentenauswertung!$C49,0))","v":""},{"$f":"IF(Dokumentenauswertung!AE$10=\"\",\"\",IF(EXACT(Dokumentenauswertung!$B49,Dokumentenauswertung!AE49)=TRUE,Dokumentenauswertung!$C49,0))","v":""},{"$f":"IF(Dokumentenauswertung!AF$10=\"\",\"\",IF(EXACT(Dokumentenauswertung!$B49,Dokumentenauswertung!AF49)=TRUE,Dokumentenauswertung!$C49,0))","v":""},{"$f":"IF(Dokumentenauswertung!AG$10=\"\",\"\",IF(EXACT(Dokumentenauswertung!$B49,Dokumentenauswertung!AG49)=TRUE,Dokumentenauswertung!$C49,0))","v":""},{"$f":"IF(Dokumentenauswertung!AH$10=\"\",\"\",IF(EXACT(Dokumentenauswertung!$B49,Dokumentenauswertung!AH49)=TRUE,Dokumentenauswertung!$C49,0))","v":""},{"$f":"IF(Dokumentenauswertung!AI$10=\"\",\"\",IF(EXACT(Dokumentenauswertung!$B49,Dokumentenauswertung!AI49)=TRUE,Dokumentenauswertung!$C49,0))","v":""},{"$f":"IF(Dokumentenauswertung!AJ$10=\"\",\"\",IF(EXACT(Dokumentenauswertung!$B49,Dokumentenauswertung!AJ49)=TRUE,Dokumentenauswertung!$C49,0))","v":""},{"$f":"IF(Dokumentenauswertung!AK$10=\"\",\"\",IF(EXACT(Dokumentenauswertung!$B49,Dokumentenauswertung!AK49)=TRUE,Dokumentenauswertung!$C49,0))","v":""}]
[null,null,{"$f":"Dokumentenauswertung!$A50","v":"D1.3"},{"$f":"IF(Dokumentenauswertung!E$10=\"\",\"\",IF(EXACT(Dokumentenauswertung!$B50,Dokumentenauswertung!E50)=TRUE,Dokumentenauswertung!$C50,0))","v":""},{"$f":"IF(Dokumentenauswertung!F$10=\"\",\"\",IF(EXACT(Dokumentenauswertung!$B50,Dokumentenauswertung!F50)=TRUE,Dokumentenauswertung!$C50,0))","v":""},{"$f":"IF(Dokumentenauswertung!G$10=\"\",\"\",IF(EXACT(Dokumentenauswertung!$B50,Dokumentenauswertung!G50)=TRUE,Dokumentenauswertung!$C50,0))","v":""},{"$f":"IF(Dokumentenauswertung!H$10=\"\",\"\",IF(EXACT(Dokumentenauswertung!$B50,Dokumentenauswertung!H50)=TRUE,Dokumentenauswertung!$C50,0))","v":""},{"$f":"IF(Dokumentenauswertung!I$10=\"\",\"\",IF(EXACT(Dokumentenauswertung!$B50,Dokumentenauswertung!I50)=TRUE,Dokumentenauswertung!$C50,0))","v":""},{"$f":"IF(Dokumentenauswertung!J$10=\"\",\"\",IF(EXACT(Dokumentenauswertung!$B50,Dokumentenauswertung!J50)=TRUE,Dokumentenauswertung!$C50,0))","v":""},{"$f":"IF(Dokumentenauswertung!K$10=\"\",\"\",IF(EXACT(Dokumentenauswertung!$B50,Dokumentenauswertung!K50)=TRUE,Dokumentenauswertung!$C50,0))","v":""},{"$f":"IF(Dokumentenauswertung!L$10=\"\",\"\",IF(EXACT(Dokumentenauswertung!$B50,Dokumentenauswertung!L50)=TRUE,Dokumentenauswertung!$C50,0))","v":""},{"$f":"IF(Dokumentenauswertung!M$10=\"\",\"\",IF(EXACT(Dokumentenauswertung!$B50,Dokumentenauswertung!M50)=TRUE,Dokumentenauswertung!$C50,0))","v":""},{"$f":"IF(Dokumentenauswertung!N$10=\"\",\"\",IF(EXACT(Dokumentenauswertung!$B50,Dokumentenauswertung!N50)=TRUE,Dokumentenauswertung!$C50,0))","v":""},{"$f":"IF(Dokumentenauswertung!O$10=\"\",\"\",IF(EXACT(Dokumentenauswertung!$B50,Dokumentenauswertung!O50)=TRUE,Dokumentenauswertung!$C50,0))","v":""},{"$f":"IF(Dokumentenauswertung!P$10=\"\",\"\",IF(EXACT(Dokumentenauswertung!$B50,Dokumentenauswertung!P50)=TRUE,Dokumentenauswertung!$C50,0))","v":""},{"$f":"IF(Dokumentenauswertung!Q$10=\"\",\"\",IF(EXACT(Dokumentenauswertung!$B50,Dokumentenauswertung!Q50)=TRUE,Dokumentenauswertung!$C50,0))","v":""},{"$f":"IF(Dokumentenauswertung!R$10=\"\",\"\",IF(EXACT(Dokumentenauswertung!$B50,Dokumentenauswertung!R50)=TRUE,Dokumentenauswertung!$C50,0))","v":""},{"$f":"IF(Dokumentenauswertung!S$10=\"\",\"\",IF(EXACT(Dokumentenauswertung!$B50,Dokumentenauswertung!S50)=TRUE,Dokumentenauswertung!$C50,0))","v":""},{"$f":"IF(Dokumentenauswertung!T$10=\"\",\"\",IF(EXACT(Dokumentenauswertung!$B50,Dokumentenauswertung!T50)=TRUE,Dokumentenauswertung!$C50,0))","v":""},{"$f":"IF(Dokumentenauswertung!U$10=\"\",\"\",IF(EXACT(Dokumentenauswertung!$B50,Dokumentenauswertung!U50)=TRUE,Dokumentenauswertung!$C50,0))","v":""},{"$f":"IF(Dokumentenauswertung!V$10=\"\",\"\",IF(EXACT(Dokumentenauswertung!$B50,Dokumentenauswertung!V50)=TRUE,Dokumentenauswertung!$C50,0))","v":""},{"$f":"IF(Dokumentenauswertung!W$10=\"\",\"\",IF(EXACT(Dokumentenauswertung!$B50,Dokumentenauswertung!W50)=TRUE,Dokumentenauswertung!$C50,0))","v":""},{"$f":"IF(Dokumentenauswertung!X$10=\"\",\"\",IF(EXACT(Dokumentenauswertung!$B50,Dokumentenauswertung!X50)=TRUE,Dokumentenauswertung!$C50,0))","v":""},{"$f":"IF(Dokumentenauswertung!Y$10=\"\",\"\",IF(EXACT(Dokumentenauswertung!$B50,Dokumentenauswertung!Y50)=TRUE,Dokumentenauswertung!$C50,0))","v":""},{"$f":"IF(Dokumentenauswertung!Z$10=\"\",\"\",IF(EXACT(Dokumentenauswertung!$B50,Dokumentenauswertung!Z50)=TRUE,Dokumentenauswertung!$C50,0))","v":""},{"$f":"IF(Dokumentenauswertung!AA$10=\"\",\"\",IF(EXACT(Dokumentenauswertung!$B50,Dokumentenauswertung!AA50)=TRUE,Dokumentenauswertung!$C50,0))","v":""},{"$f":"IF(Dokumentenauswertung!AB$10=\"\",\"\",IF(EXACT(Dokumentenauswertung!$B50,Dokumentenauswertung!AB50)=TRUE,Dokumentenauswertung!$C50,0))","v":""},{"$f":"IF(Dokumentenauswertung!AC$10=\"\",\"\",IF(EXACT(Dokumentenauswertung!$B50,Dokumentenauswertung!AC50)=TRUE,Dokumentenauswertung!$C50,0))","v":""},{"$f":"IF(Dokumentenauswertung!AD$10=\"\",\"\",IF(EXACT(Dokumentenauswertung!$B50,Dokumentenauswertung!AD50)=TRUE,Dokumentenauswertung!$C50,0))","v":""},{"$f":"IF(Dokumentenauswertung!AE$10=\"\",\"\",IF(EXACT(Dokumentenauswertung!$B50,Dokumentenauswertung!AE50)=TRUE,Dokumentenauswertung!$C50,0))","v":""},{"$f":"IF(Dokumentenauswertung!AF$10=\"\",\"\",IF(EXACT(Dokumentenauswertung!$B50,Dokumentenauswertung!AF50)=TRUE,Dokumentenauswertung!$C50,0))","v":""},{"$f":"IF(Dokumentenauswertung!AG$10=\"\",\"\",IF(EXACT(Dokumentenauswertung!$B50,Dokumentenauswertung!AG50)=TRUE,Dokumentenauswertung!$C50,0))","v":""},{"$f":"IF(Dokumentenauswertung!AH$10=\"\",\"\",IF(EXACT(Dokumentenauswertung!$B50,Dokumentenauswertung!AH50)=TRUE,Dokumentenauswertung!$C50,0))","v":""},{"$f":"IF(Dokumentenauswertung!AI$10=\"\",\"\",IF(EXACT(Dokumentenauswertung!$B50,Dokumentenauswertung!AI50)=TRUE,Dokumentenauswertung!$C50,0))","v":""},{"$f":"IF(Dokumentenauswertung!AJ$10=\"\",\"\",IF(EXACT(Dokumentenauswertung!$B50,Dokumentenauswertung!AJ50)=TRUE,Dokumentenauswertung!$C50,0))","v":""},{"$f":"IF(Dokumentenauswertung!AK$10=\"\",\"\",IF(EXACT(Dokumentenauswertung!$B50,Dokumentenauswertung!AK50)=TRUE,Dokumentenauswertung!$C50,0))","v":""}]
[null,null,{"$f":"Dokumentenauswertung!$A51","v":"D1.4"},{"$f":"IF(Dokumentenauswertung!E$10=\"\",\"\",IF(EXACT(Dokumentenauswertung!$B51,Dokumentenauswertung!E51)=TRUE,Dokumentenauswertung!$C51,0))","v":""},{"$f":"IF(Dokumentenauswertung!F$10=\"\",\"\",IF(EXACT(Dokumentenauswertung!$B51,Dokumentenauswertung!F51)=TRUE,Dokumentenauswertung!$C51,0))","v":""},{"$f":"IF(Dokumentenauswertung!G$10=\"\",\"\",IF(EXACT(Dokumentenauswertung!$B51,Dokumentenauswertung!G51)=TRUE,Dokumentenauswertung!$C51,0))","v":""},{"$f":"IF(Dokumentenauswertung!H$10=\"\",\"\",IF(EXACT(Dokumentenauswertung!$B51,Dokumentenauswertung!H51)=TRUE,Dokumentenauswertung!$C51,0))","v":""},{"$f":"IF(Dokumentenauswertung!I$10=\"\",\"\",IF(EXACT(Dokumentenauswertung!$B51,Dokumentenauswertung!I51)=TRUE,Dokumentenauswertung!$C51,0))","v":""},{"$f":"IF(Dokumentenauswertung!J$10=\"\",\"\",IF(EXACT(Dokumentenauswertung!$B51,Dokumentenauswertung!J51)=TRUE,Dokumentenauswertung!$C51,0))","v":""},{"$f":"IF(Dokumentenauswertung!K$10=\"\",\"\",IF(EXACT(Dokumentenauswertung!$B51,Dokumentenauswertung!K51)=TRUE,Dokumentenauswertung!$C51,0))","v":""},{"$f":"IF(Dokumentenauswertung!L$10=\"\",\"\",IF(EXACT(Dokumentenauswertung!$B51,Dokumentenauswertung!L51)=TRUE,Dokumentenauswertung!$C51,0))","v":""},{"$f":"IF(Dokumentenauswertung!M$10=\"\",\"\",IF(EXACT(Dokumentenauswertung!$B51,Dokumentenauswertung!M51)=TRUE,Dokumentenauswertung!$C51,0))","v":""},{"$f":"IF(Dokumentenauswertung!N$10=\"\",\"\",IF(EXACT(Dokumentenauswertung!$B51,Dokumentenauswertung!N51)=TRUE,Dokumentenauswertung!$C51,0))","v":""},{"$f":"IF(Dokumentenauswertung!O$10=\"\",\"\",IF(EXACT(Dokumentenauswertung!$B51,Dokumentenauswertung!O51)=TRUE,Dokumentenauswertung!$C51,0))","v":""},{"$f":"IF(Dokumentenauswertung!P$10=\"\",\"\",IF(EXACT(Dokumentenauswertung!$B51,Dokumentenauswertung!P51)=TRUE,Dokumentenauswertung!$C51,0))","v":""},{"$f":"IF(Dokumentenauswertung!Q$10=\"\",\"\",IF(EXACT(Dokumentenauswertung!$B51,Dokumentenauswertung!Q51)=TRUE,Dokumentenauswertung!$C51,0))","v":""},{"$f":"IF(Dokumentenauswertung!R$10=\"\",\"\",IF(EXACT(Dokumentenauswertung!$B51,Dokumentenauswertung!R51)=TRUE,Dokumentenauswertung!$C51,0))","v":""},{"$f":"IF(Dokumentenauswertung!S$10=\"\",\"\",IF(EXACT(Dokumentenauswertung!$B51,Dokumentenauswertung!S51)=TRUE,Dokumentenauswertung!$C51,0))","v":""},{"$f":"IF(Dokumentenauswertung!T$10=\"\",\"\",IF(EXACT(Dokumentenauswertung!$B51,Dokumentenauswertung!T51)=TRUE,Dokumentenauswertung!$C51,0))","v":""},{"$f":"IF(Dokumentenauswertung!U$10=\"\",\"\",IF(EXACT(Dokumentenauswertung!$B51,Dokumentenauswertung!U51)=TRUE,Dokumentenauswertung!$C51,0))","v":""},{"$f":"IF(Dokumentenauswertung!V$10=\"\",\"\",IF(EXACT(Dokumentenauswertung!$B51,Dokumentenauswertung!V51)=TRUE,Dokumentenauswertung!$C51,0))","v":""},{"$f":"IF(Dokumentenauswertung!W$10=\"\",\"\",IF(EXACT(Dokumentenauswertung!$B51,Dokumentenauswertung!W51)=TRUE,Dokumentenauswertung!$C51,0))","v":""},{"$f":"IF(Dokumentenauswertung!X$10=\"\",\"\",IF(EXACT(Dokumentenauswertung!$B51,Dokumentenauswertung!X51)=TRUE,Dokumentenauswertung!$C51,0))","v":""},{"$f":"IF(Dokumentenauswertung!Y$10=\"\",\"\",IF(EXACT(Dokumentenauswertung!$B51,Dokumentenauswertung!Y51)=TRUE,Dokumentenauswertung!$C51,0))","v":""},{"$f":"IF(Dokumentenauswertung!Z$10=\"\",\"\",IF(EXACT(Dokumentenauswertung!$B51,Dokumentenauswertung!Z51)=TRUE,Dokumentenauswertung!$C51,0))","v":""},{"$f":"IF(Dokumentenauswertung!AA$10=\"\",\"\",IF(EXACT(Dokumentenauswertung!$B51,Dokumentenauswertung!AA51)=TRUE,Dokumentenauswertung!$C51,0))","v":""},{"$f":"IF(Dokumentenauswertung!AB$10=\"\",\"\",IF(EXACT(Dokumentenauswertung!$B51,Dokumentenauswertung!AB51)=TRUE,Dokumentenauswertung!$C51,0))","v":""},{"$f":"IF(Dokumentenauswertung!AC$10=\"\",\"\",IF(EXACT(Dokumentenauswertung!$B51,Dokumentenauswertung!AC51)=TRUE,Dokumentenauswertung!$C51,0))","v":""},{"$f":"IF(Dokumentenauswertung!AD$10=\"\",\"\",IF(EXACT(Dokumentenauswertung!$B51,Dokumentenauswertung!AD51)=TRUE,Dokumentenauswertung!$C51,0))","v":""},{"$f":"IF(Dokumentenauswertung!AE$10=\"\",\"\",IF(EXACT(Dokumentenauswertung!$B51,Dokumentenauswertung!AE51)=TRUE,Dokumentenauswertung!$C51,0))","v":""},{"$f":"IF(Dokumentenauswertung!AF$10=\"\",\"\",IF(EXACT(Dokumentenauswertung!$B51,Dokumentenauswertung!AF51)=TRUE,Dokumentenauswertung!$C51,0))","v":""},{"$f":"IF(Dokumentenauswertung!AG$10=\"\",\"\",IF(EXACT(Dokumentenauswertung!$B51,Dokumentenauswertung!AG51)=TRUE,Dokumentenauswertung!$C51,0))","v":""},{"$f":"IF(Dokumentenauswertung!AH$10=\"\",\"\",IF(EXACT(Dokumentenauswertung!$B51,Dokumentenauswertung!AH51)=TRUE,Dokumentenauswertung!$C51,0))","v":""},{"$f":"IF(Dokumentenauswertung!AI$10=\"\",\"\",IF(EXACT(Dokumentenauswertung!$B51,Dokumentenauswertung!AI51)=TRUE,Dokumentenauswertung!$C51,0))","v":""},{"$f":"IF(Dokumentenauswertung!AJ$10=\"\",\"\",IF(EXACT(Dokumentenauswertung!$B51,Dokumentenauswertung!AJ51)=TRUE,Dokumentenauswertung!$C51,0))","v":""},{"$f":"IF(Dokumentenauswertung!AK$10=\"\",\"\",IF(EXACT(Dokumentenauswertung!$B51,Dokumentenauswertung!AK51)=TRUE,Dokumentenauswertung!$C51,0))","v":""}]
[null,null,{"$f":"Dokumentenauswertung!$A52","v":"D2.1"},{"$f":"IF(Dokumentenauswertung!E$10=\"\",\"\",IF(EXACT(Dokumentenauswertung!$B52,Dokumentenauswertung!E52)=TRUE,Dokumentenauswertung!$C52,0))","v":""},{"$f":"IF(Dokumentenauswertung!F$10=\"\",\"\",IF(EXACT(Dokumentenauswertung!$B52,Dokumentenauswertung!F52)=TRUE,Dokumentenauswertung!$C52,0))","v":""},{"$f":"IF(Dokumentenauswertung!G$10=\"\",\"\",IF(EXACT(Dokumentenauswertung!$B52,Dokumentenauswertung!G52)=TRUE,Dokumentenauswertung!$C52,0))","v":""},{"$f":"IF(Dokumentenauswertung!H$10=\"\",\"\",IF(EXACT(Dokumentenauswertung!$B52,Dokumentenauswertung!H52)=TRUE,Dokumentenauswertung!$C52,0))","v":""},{"$f":"IF(Dokumentenauswertung!I$10=\"\",\"\",IF(EXACT(Dokumentenauswertung!$B52,Dokumentenauswertung!I52)=TRUE,Dokumentenauswertung!$C52,0))","v":""},{"$f":"IF(Dokumentenauswertung!J$10=\"\",\"\",IF(EXACT(Dokumentenauswertung!$B52,Dokumentenauswertung!J52)=TRUE,Dokumentenauswertung!$C52,0))","v":""},{"$f":"IF(Dokumentenauswertung!K$10=\"\",\"\",IF(EXACT(Dokumentenauswertung!$B52,Dokumentenauswertung!K52)=TRUE,Dokumentenauswertung!$C52,0))","v":""},{"$f":"IF(Dokumentenauswertung!L$10=\"\",\"\",IF(EXACT(Dokumentenauswertung!$B52,Dokumentenauswertung!L52)=TRUE,Dokumentenauswertung!$C52,0))","v":""},{"$f":"IF(Dokumentenauswertung!M$10=\"\",\"\",IF(EXACT(Dokumentenauswertung!$B52,Dokumentenauswertung!M52)=TRUE,Dokumentenauswertung!$C52,0))","v":""},{"$f":"IF(Dokumentenauswertung!N$10=\"\",\"\",IF(EXACT(Dokumentenauswertung!$B52,Dokumentenauswertung!N52)=TRUE,Dokumentenauswertung!$C52,0))","v":""},{"$f":"IF(Dokumentenauswertung!O$10=\"\",\"\",IF(EXACT(Dokumentenauswertung!$B52,Dokumentenauswertung!O52)=TRUE,Dokumentenauswertung!$C52,0))","v":""},{"$f":"IF(Dokumentenauswertung!P$10=\"\",\"\",IF(EXACT(Dokumentenauswertung!$B52,Dokumentenauswertung!P52)=TRUE,Dokumentenauswertung!$C52,0))","v":""},{"$f":"IF(Dokumentenauswertung!Q$10=\"\",\"\",IF(EXACT(Dokumentenauswertung!$B52,Dokumentenauswertung!Q52)=TRUE,Dokumentenauswertung!$C52,0))","v":""},{"$f":"IF(Dokumentenauswertung!R$10=\"\",\"\",IF(EXACT(Dokumentenauswertung!$B52,Dokumentenauswertung!R52)=TRUE,Dokumentenauswertung!$C52,0))","v":""},{"$f":"IF(Dokumentenauswertung!S$10=\"\",\"\",IF(EXACT(Dokumentenauswertung!$B52,Dokumentenauswertung!S52)=TRUE,Dokumentenauswertung!$C52,0))","v":""},{"$f":"IF(Dokumentenauswertung!T$10=\"\",\"\",IF(EXACT(Dokumentenauswertung!$B52,Dokumentenauswertung!T52)=TRUE,Dokumentenauswertung!$C52,0))","v":""},{"$f":"IF(Dokumentenauswertung!U$10=\"\",\"\",IF(EXACT(Dokumentenauswertung!$B52,Dokumentenauswertung!U52)=TRUE,Dokumentenauswertung!$C52,0))","v":""},{"$f":"IF(Dokumentenauswertung!V$10=\"\",\"\",IF(EXACT(Dokumentenauswertung!$B52,Dokumentenauswertung!V52)=TRUE,Dokumentenauswertung!$C52,0))","v":""},{"$f":"IF(Dokumentenauswertung!W$10=\"\",\"\",IF(EXACT(Dokumentenauswertung!$B52,Dokumentenauswertung!W52)=TRUE,Dokumentenauswertung!$C52,0))","v":""},{"$f":"IF(Dokumentenauswertung!X$10=\"\",\"\",IF(EXACT(Dokumentenauswertung!$B52,Dokumentenauswertung!X52)=TRUE,Dokumentenauswertung!$C52,0))","v":""},{"$f":"IF(Dokumentenauswertung!Y$10=\"\",\"\",IF(EXACT(Dokumentenauswertung!$B52,Dokumentenauswertung!Y52)=TRUE,Dokumentenauswertung!$C52,0))","v":""},{"$f":"IF(Dokumentenauswertung!Z$10=\"\",\"\",IF(EXACT(Dokumentenauswertung!$B52,Dokumentenauswertung!Z52)=TRUE,Dokumentenauswertung!$C52,0))","v":""},{"$f":"IF(Dokumentenauswertung!AA$10=\"\",\"\",IF(EXACT(Dokumentenauswertung!$B52,Dokumentenauswertung!AA52)=TRUE,Dokumentenauswertung!$C52,0))","v":""},{"$f":"IF(Dokumentenauswertung!AB$10=\"\",\"\",IF(EXACT(Dokumentenauswertung!$B52,Dokumentenauswertung!AB52)=TRUE,Dokumentenauswertung!$C52,0))","v":""},{"$f":"IF(Dokumentenauswertung!AC$10=\"\",\"\",IF(EXACT(Dokumentenauswertung!$B52,Dokumentenauswertung!AC52)=TRUE,Dokumentenauswertung!$C52,0))","v":""},{"$f":"IF(Dokumentenauswertung!AD$10=\"\",\"\",IF(EXACT(Dokumentenauswertung!$B52,Dokumentenauswertung!AD52)=TRUE,Dokumentenauswertung!$C52,0))","v":""},{"$f":"IF(Dokumentenauswertung!AE$10=\"\",\"\",IF(EXACT(Dokumentenauswertung!$B52,Dokumentenauswertung!AE52)=TRUE,Dokumentenauswertung!$C52,0))","v":""},{"$f":"IF(Dokumentenauswertung!AF$10=\"\",\"\",IF(EXACT(Dokumentenauswertung!$B52,Dokumentenauswertung!AF52)=TRUE,Dokumentenauswertung!$C52,0))","v":""},{"$f":"IF(Dokumentenauswertung!AG$10=\"\",\"\",IF(EXACT(Dokumentenauswertung!$B52,Dokumentenauswertung!AG52)=TRUE,Dokumentenauswertung!$C52,0))","v":""},{"$f":"IF(Dokumentenauswertung!AH$10=\"\",\"\",IF(EXACT(Dokumentenauswertung!$B52,Dokumentenauswertung!AH52)=TRUE,Dokumentenauswertung!$C52,0))","v":""},{"$f":"IF(Dokumentenauswertung!AI$10=\"\",\"\",IF(EXACT(Dokumentenauswertung!$B52,Dokumentenauswertung!AI52)=TRUE,Dokumentenauswertung!$C52,0))","v":""},{"$f":"IF(Dokumentenauswertung!AJ$10=\"\",\"\",IF(EXACT(Dokumentenauswertung!$B52,Dokumentenauswertung!AJ52)=TRUE,Dokumentenauswertung!$C52,0))","v":""},{"$f":"IF(Dokumentenauswertung!AK$10=\"\",\"\",IF(EXACT(Dokumentenauswertung!$B52,Dokumentenauswertung!AK52)=TRUE,Dokumentenauswertung!$C52,0))","v":""}]
[null,null,{"$f":"Dokumentenauswertung!$A53","v":"D2.2"},{"$f":"IF(Dokumentenauswertung!E$10=\"\",\"\",IF(EXACT(Dokumentenauswertung!$B53,Dokumentenauswertung!E53)=TRUE,Dokumentenauswertung!$C53,0))","v":""},{"$f":"IF(Dokumentenauswertung!F$10=\"\",\"\",IF(EXACT(Dokumentenauswertung!$B53,Dokumentenauswertung!F53)=TRUE,Dokumentenauswertung!$C53,0))","v":""},{"$f":"IF(Dokumentenauswertung!G$10=\"\",\"\",IF(EXACT(Dokumentenauswertung!$B53,Dokumentenauswertung!G53)=TRUE,Dokumentenauswertung!$C53,0))","v":""},{"$f":"IF(Dokumentenauswertung!H$10=\"\",\"\",IF(EXACT(Dokumentenauswertung!$B53,Dokumentenauswertung!H53)=TRUE,Dokumentenauswertung!$C53,0))","v":""},{"$f":"IF(Dokumentenauswertung!I$10=\"\",\"\",IF(EXACT(Dokumentenauswertung!$B53,Dokumentenauswertung!I53)=TRUE,Dokumentenauswertung!$C53,0))","v":""},{"$f":"IF(Dokumentenauswertung!J$10=\"\",\"\",IF(EXACT(Dokumentenauswertung!$B53,Dokumentenauswertung!J53)=TRUE,Dokumentenauswertung!$C53,0))","v":""},{"$f":"IF(Dokumentenauswertung!K$10=\"\",\"\",IF(EXACT(Dokumentenauswertung!$B53,Dokumentenauswertung!K53)=TRUE,Dokumentenauswertung!$C53,0))","v":""},{"$f":"IF(Dokumentenauswertung!L$10=\"\",\"\",IF(EXACT(Dokumentenauswertung!$B53,Dokumentenauswertung!L53)=TRUE,Dokumentenauswertung!$C53,0))","v":""},{"$f":"IF(Dokumentenauswertung!M$10=\"\",\"\",IF(EXACT(Dokumentenauswertung!$B53,Dokumentenauswertung!M53)=TRUE,Dokumentenauswertung!$C53,0))","v":""},{"$f":"IF(Dokumentenauswertung!N$10=\"\",\"\",IF(EXACT(Dokumentenauswertung!$B53,Dokumentenauswertung!N53)=TRUE,Dokumentenauswertung!$C53,0))","v":""},{"$f":"IF(Dokumentenauswertung!O$10=\"\",\"\",IF(EXACT(Dokumentenauswertung!$B53,Dokumentenauswertung!O53)=TRUE,Dokumentenauswertung!$C53,0))","v":""},{"$f":"IF(Dokumentenauswertung!P$10=\"\",\"\",IF(EXACT(Dokumentenauswertung!$B53,Dokumentenauswertung!P53)=TRUE,Dokumentenauswertung!$C53,0))","v":""},{"$f":"IF(Dokumentenauswertung!Q$10=\"\",\"\",IF(EXACT(Dokumentenauswertung!$B53,Dokumentenauswertung!Q53)=TRUE,Dokumentenauswertung!$C53,0))","v":""},{"$f":"IF(Dokumentenauswertung!R$10=\"\",\"\",IF(EXACT(Dokumentenauswertung!$B53,Dokumentenauswertung!R53)=TRUE,Dokumentenauswertung!$C53,0))","v":""},{"$f":"IF(Dokumentenauswertung!S$10=\"\",\"\",IF(EXACT(Dokumentenauswertung!$B53,Dokumentenauswertung!S53)=TRUE,Dokumentenauswertung!$C53,0))","v":""},{"$f":"IF(Dokumentenauswertung!T$10=\"\",\"\",IF(EXACT(Dokumentenauswertung!$B53,Dokumentenauswertung!T53)=TRUE,Dokumentenauswertung!$C53,0))","v":""},{"$f":"IF(Dokumentenauswertung!U$10=\"\",\"\",IF(EXACT(Dokumentenauswertung!$B53,Dokumentenauswertung!U53)=TRUE,Dokumentenauswertung!$C53,0))","v":""},{"$f":"IF(Dokumentenauswertung!V$10=\"\",\"\",IF(EXACT(Dokumentenauswertung!$B53,Dokumentenauswertung!V53)=TRUE,Dokumentenauswertung!$C53,0))","v":""},{"$f":"IF(Dokumentenauswertung!W$10=\"\",\"\",IF(EXACT(Dokumentenauswertung!$B53,Dokumentenauswertung!W53)=TRUE,Dokumentenauswertung!$C53,0))","v":""},{"$f":"IF(Dokumentenauswertung!X$10=\"\",\"\",IF(EXACT(Dokumentenauswertung!$B53,Dokumentenauswertung!X53)=TRUE,Dokumentenauswertung!$C53,0))","v":""},{"$f":"IF(Dokumentenauswertung!Y$10=\"\",\"\",IF(EXACT(Dokumentenauswertung!$B53,Dokumentenauswertung!Y53)=TRUE,Dokumentenauswertung!$C53,0))","v":""},{"$f":"IF(Dokumentenauswertung!Z$10=\"\",\"\",IF(EXACT(Dokumentenauswertung!$B53,Dokumentenauswertung!Z53)=TRUE,Dokumentenauswertung!$C53,0))","v":""},{"$f":"IF(Dokumentenauswertung!AA$10=\"\",\"\",IF(EXACT(Dokumentenauswertung!$B53,Dokumentenauswertung!AA53)=TRUE,Dokumentenauswertung!$C53,0))","v":""},{"$f":"IF(Dokumentenauswertung!AB$10=\"\",\"\",IF(EXACT(Dokumentenauswertung!$B53,Dokumentenauswertung!AB53)=TRUE,Dokumentenauswertung!$C53,0))","v":""},{"$f":"IF(Dokumentenauswertung!AC$10=\"\",\"\",IF(EXACT(Dokumentenauswertung!$B53,Dokumentenauswertung!AC53)=TRUE,Dokumentenauswertung!$C53,0))","v":""},{"$f":"IF(Dokumentenauswertung!AD$10=\"\",\"\",IF(EXACT(Dokumentenauswertung!$B53,Dokumentenauswertung!AD53)=TRUE,Dokumentenauswertung!$C53,0))","v":""},{"$f":"IF(Dokumentenauswertung!AE$10=\"\",\"\",IF(EXACT(Dokumentenauswertung!$B53,Dokumentenauswertung!AE53)=TRUE,Dokumentenauswertung!$C53,0))","v":""},{"$f":"IF(Dokumentenauswertung!AF$10=\"\",\"\",IF(EXACT(Dokumentenauswertung!$B53,Dokumentenauswertung!AF53)=TRUE,Dokumentenauswertung!$C53,0))","v":""},{"$f":"IF(Dokumentenauswertung!AG$10=\"\",\"\",IF(EXACT(Dokumentenauswertung!$B53,Dokumentenauswertung!AG53)=TRUE,Dokumentenauswertung!$C53,0))","v":""},{"$f":"IF(Dokumentenauswertung!AH$10=\"\",\"\",IF(EXACT(Dokumentenauswertung!$B53,Dokumentenauswertung!AH53)=TRUE,Dokumentenauswertung!$C53,0))","v":""},{"$f":"IF(Dokumentenauswertung!AI$10=\"\",\"\",IF(EXACT(Dokumentenauswertung!$B53,Dokumentenauswertung!AI53)=TRUE,Dokumentenauswertung!$C53,0))","v":""},{"$f":"IF(Dokumentenauswertung!AJ$10=\"\",\"\",IF(EXACT(Dokumentenauswertung!$B53,Dokumentenauswertung!AJ53)=TRUE,Dokumentenauswertung!$C53,0))","v":""},{"$f":"IF(Dokumentenauswertung!AK$10=\"\",\"\",IF(EXACT(Dokumentenauswertung!$B53,Dokumentenauswertung!AK53)=TRUE,Dokumentenauswertung!$C53,0))","v":""}]
[null,null,{"$f":"Dokumentenauswertung!$A54","v":"D2.3"},{"$f":"IF(Dokumentenauswertung!E$10=\"\",\"\",IF(EXACT(Dokumentenauswertung!$B54,Dokumentenauswertung!E54)=TRUE,Dokumentenauswertung!$C54,0))","v":""},{"$f":"IF(Dokumentenauswertung!F$10=\"\",\"\",IF(EXACT(Dokumentenauswertung!$B54,Dokumentenauswertung!F54)=TRUE,Dokumentenauswertung!$C54,0))","v":""},{"$f":"IF(Dokumentenauswertung!G$10=\"\",\"\",IF(EXACT(Dokumentenauswertung!$B54,Dokumentenauswertung!G54)=TRUE,Dokumentenauswertung!$C54,0))","v":""},{"$f":"IF(Dokumentenauswertung!H$10=\"\",\"\",IF(EXACT(Dokumentenauswertung!$B54,Dokumentenauswertung!H54)=TRUE,Dokumentenauswertung!$C54,0))","v":""},{"$f":"IF(Dokumentenauswertung!I$10=\"\",\"\",IF(EXACT(Dokumentenauswertung!$B54,Dokumentenauswertung!I54)=TRUE,Dokumentenauswertung!$C54,0))","v":""},{"$f":"IF(Dokumentenauswertung!J$10=\"\",\"\",IF(EXACT(Dokumentenauswertung!$B54,Dokumentenauswertung!J54)=TRUE,Dokumentenauswertung!$C54,0))","v":""},{"$f":"IF(Dokumentenauswertung!K$10=\"\",\"\",IF(EXACT(Dokumentenauswertung!$B54,Dokumentenauswertung!K54)=TRUE,Dokumentenauswertung!$C54,0))","v":""},{"$f":"IF(Dokumentenauswertung!L$10=\"\",\"\",IF(EXACT(Dokumentenauswertung!$B54,Dokumentenauswertung!L54)=TRUE,Dokumentenauswertung!$C54,0))","v":""},{"$f":"IF(Dokumentenauswertung!M$10=\"\",\"\",IF(EXACT(Dokumentenauswertung!$B54,Dokumentenauswertung!M54)=TRUE,Dokumentenauswertung!$C54,0))","v":""},{"$f":"IF(Dokumentenauswertung!N$10=\"\",\"\",IF(EXACT(Dokumentenauswertung!$B54,Dokumentenauswertung!N54)=TRUE,Dokumentenauswertung!$C54,0))","v":""},{"$f":"IF(Dokumentenauswertung!O$10=\"\",\"\",IF(EXACT(Dokumentenauswertung!$B54,Dokumentenauswertung!O54)=TRUE,Dokumentenauswertung!$C54,0))","v":""},{"$f":"IF(Dokumentenauswertung!P$10=\"\",\"\",IF(EXACT(Dokumentenauswertung!$B54,Dokumentenauswertung!P54)=TRUE,Dokumentenauswertung!$C54,0))","v":""},{"$f":"IF(Dokumentenauswertung!Q$10=\"\",\"\",IF(EXACT(Dokumentenauswertung!$B54,Dokumentenauswertung!Q54)=TRUE,Dokumentenauswertung!$C54,0))","v":""},{"$f":"IF(Dokumentenauswertung!R$10=\"\",\"\",IF(EXACT(Dokumentenauswertung!$B54,Dokumentenauswertung!R54)=TRUE,Dokumentenauswertung!$C54,0))","v":""},{"$f":"IF(Dokumentenauswertung!S$10=\"\",\"\",IF(EXACT(Dokumentenauswertung!$B54,Dokumentenauswertung!S54)=TRUE,Dokumentenauswertung!$C54,0))","v":""},{"$f":"IF(Dokumentenauswertung!T$10=\"\",\"\",IF(EXACT(Dokumentenauswertung!$B54,Dokumentenauswertung!T54)=TRUE,Dokumentenauswertung!$C54,0))","v":""},{"$f":"IF(Dokumentenauswertung!U$10=\"\",\"\",IF(EXACT(Dokumentenauswertung!$B54,Dokumentenauswertung!U54)=TRUE,Dokumentenauswertung!$C54,0))","v":""},{"$f":"IF(Dokumentenauswertung!V$10=\"\",\"\",IF(EXACT(Dokumentenauswertung!$B54,Dokumentenauswertung!V54)=TRUE,Dokumentenauswertung!$C54,0))","v":""},{"$f":"IF(Dokumentenauswertung!W$10=\"\",\"\",IF(EXACT(Dokumentenauswertung!$B54,Dokumentenauswertung!W54)=TRUE,Dokumentenauswertung!$C54,0))","v":""},{"$f":"IF(Dokumentenauswertung!X$10=\"\",\"\",IF(EXACT(Dokumentenauswertung!$B54,Dokumentenauswertung!X54)=TRUE,Dokumentenauswertung!$C54,0))","v":""},{"$f":"IF(Dokumentenauswertung!Y$10=\"\",\"\",IF(EXACT(Dokumentenauswertung!$B54,Dokumentenauswertung!Y54)=TRUE,Dokumentenauswertung!$C54,0))","v":""},{"$f":"IF(Dokumentenauswertung!Z$10=\"\",\"\",IF(EXACT(Dokumentenauswertung!$B54,Dokumentenauswertung!Z54)=TRUE,Dokumentenauswertung!$C54,0))","v":""},{"$f":"IF(Dokumentenauswertung!AA$10=\"\",\"\",IF(EXACT(Dokumentenauswertung!$B54,Dokumentenauswertung!AA54)=TRUE,Dokumentenauswertung!$C54,0))","v":""},{"$f":"IF(Dokumentenauswertung!AB$10=\"\",\"\",IF(EXACT(Dokumentenauswertung!$B54,Dokumentenauswertung!AB54)=TRUE,Dokumentenauswertung!$C54,0))","v":""},{"$f":"IF(Dokumentenauswertung!AC$10=\"\",\"\",IF(EXACT(Dokumentenauswertung!$B54,Dokumentenauswertung!AC54)=TRUE,Dokumentenauswertung!$C54,0))","v":""},{"$f":"IF(Dokumentenauswertung!AD$10=\"\",\"\",IF(EXACT(Dokumentenauswertung!$B54,Dokumentenauswertung!AD54)=TRUE,Dokumentenauswertung!$C54,0))","v":""},{"$f":"IF(Dokumentenauswertung!AE$10=\"\",\"\",IF(EXACT(Dokumentenauswertung!$B54,Dokumentenauswertung!AE54)=TRUE,Dokumentenauswertung!$C54,0))","v":""},{"$f":"IF(Dokumentenauswertung!AF$10=\"\",\"\",IF(EXACT(Dokumentenauswertung!$B54,Dokumentenauswertung!AF54)=TRUE,Dokumentenauswertung!$C54,0))","v":""},{"$f":"IF(Dokumentenauswertung!AG$10=\"\",\"\",IF(EXACT(Dokumentenauswertung!$B54,Dokumentenauswertung!AG54)=TRUE,Dokumentenauswertung!$C54,0))","v":""},{"$f":"IF(Dokumentenauswertung!AH$10=\"\",\"\",IF(EXACT(Dokumentenauswertung!$B54,Dokumentenauswertung!AH54)=TRUE,Dokumentenauswertung!$C54,0))","v":""},{"$f":"IF(Dokumentenauswertung!AI$10=\"\",\"\",IF(EXACT(Dokumentenauswertung!$B54,Dokumentenauswertung!AI54)=TRUE,Dokumentenauswertung!$C54,0))","v":""},{"$f":"IF(Dokumentenauswertung!AJ$10=\"\",\"\",IF(EXACT(Dokumentenauswertung!$B54,Dokumentenauswertung!AJ54)=TRUE,Dokumentenauswertung!$C54,0))","v":""},{"$f":"IF(Dokumentenauswertung!AK$10=\"\",\"\",IF(EXACT(Dokumentenauswertung!$B54,Dokumentenauswertung!AK54)=TRUE,Dokumentenauswertung!$C54,0))","v":""}]
[null,null,{"$f":"Dokumentenauswertung!$A55","v":"D3.1"},{"$f":"IF(Dokumentenauswertung!E$10=\"\",\"\",IF(EXACT(Dokumentenauswertung!$B55,Dokumentenauswertung!E55)=TRUE,Dokumentenauswertung!$C55,0))","v":""},{"$f":"IF(Dokumentenauswertung!F$10=\"\",\"\",IF(EXACT(Dokumentenauswertung!$B55,Dokumentenauswertung!F55)=TRUE,Dokumentenauswertung!$C55,0))","v":""},{"$f":"IF(Dokumentenauswertung!G$10=\"\",\"\",IF(EXACT(Dokumentenauswertung!$B55,Dokumentenauswertung!G55)=TRUE,Dokumentenauswertung!$C55,0))","v":""},{"$f":"IF(Dokumentenauswertung!H$10=\"\",\"\",IF(EXACT(Dokumentenauswertung!$B55,Dokumentenauswertung!H55)=TRUE,Dokumentenauswertung!$C55,0))","v":""},{"$f":"IF(Dokumentenauswertung!I$10=\"\",\"\",IF(EXACT(Dokumentenauswertung!$B55,Dokumentenauswertung!I55)=TRUE,Dokumentenauswertung!$C55,0))","v":""},{"$f":"IF(Dokumentenauswertung!J$10=\"\",\"\",IF(EXACT(Dokumentenauswertung!$B55,Dokumentenauswertung!J55)=TRUE,Dokumentenauswertung!$C55,0))","v":""},{"$f":"IF(Dokumentenauswertung!K$10=\"\",\"\",IF(EXACT(Dokumentenauswertung!$B55,Dokumentenauswertung!K55)=TRUE,Dokumentenauswertung!$C55,0))","v":""},{"$f":"IF(Dokumentenauswertung!L$10=\"\",\"\",IF(EXACT(Dokumentenauswertung!$B55,Dokumentenauswertung!L55)=TRUE,Dokumentenauswertung!$C55,0))","v":""},{"$f":"IF(Dokumentenauswertung!M$10=\"\",\"\",IF(EXACT(Dokumentenauswertung!$B55,Dokumentenauswertung!M55)=TRUE,Dokumentenauswertung!$C55,0))","v":""},{"$f":"IF(Dokumentenauswertung!N$10=\"\",\"\",IF(EXACT(Dokumentenauswertung!$B55,Dokumentenauswertung!N55)=TRUE,Dokumentenauswertung!$C55,0))","v":""},{"$f":"IF(Dokumentenauswertung!O$10=\"\",\"\",IF(EXACT(Dokumentenauswertung!$B55,Dokumentenauswertung!O55)=TRUE,Dokumentenauswertung!$C55,0))","v":""},{"$f":"IF(Dokumentenauswertung!P$10=\"\",\"\",IF(EXACT(Dokumentenauswertung!$B55,Dokumentenauswertung!P55)=TRUE,Dokumentenauswertung!$C55,0))","v":""},{"$f":"IF(Dokumentenauswertung!Q$10=\"\",\"\",IF(EXACT(Dokumentenauswertung!$B55,Dokumentenauswertung!Q55)=TRUE,Dokumentenauswertung!$C55,0))","v":""},{"$f":"IF(Dokumentenauswertung!R$10=\"\",\"\",IF(EXACT(Dokumentenauswertung!$B55,Dokumentenauswertung!R55)=TRUE,Dokumentenauswertung!$C55,0))","v":""},{"$f":"IF(Dokumentenauswertung!S$10=\"\",\"\",IF(EXACT(Dokumentenauswertung!$B55,Dokumentenauswertung!S55)=TRUE,Dokumentenauswertung!$C55,0))","v":""},{"$f":"IF(Dokumentenauswertung!T$10=\"\",\"\",IF(EXACT(Dokumentenauswertung!$B55,Dokumentenauswertung!T55)=TRUE,Dokumentenauswertung!$C55,0))","v":""},{"$f":"IF(Dokumentenauswertung!U$10=\"\",\"\",IF(EXACT(Dokumentenauswertung!$B55,Dokumentenauswertung!U55)=TRUE,Dokumentenauswertung!$C55,0))","v":""},{"$f":"IF(Dokumentenauswertung!V$10=\"\",\"\",IF(EXACT(Dokumentenauswertung!$B55,Dokumentenauswertung!V55)=TRUE,Dokumentenauswertung!$C55,0))","v":""},{"$f":"IF(Dokumentenauswertung!W$10=\"\",\"\",IF(EXACT(Dokumentenauswertung!$B55,Dokumentenauswertung!W55)=TRUE,Dokumentenauswertung!$C55,0))","v":""},{"$f":"IF(Dokumentenauswertung!X$10=\"\",\"\",IF(EXACT(Dokumentenauswertung!$B55,Dokumentenauswertung!X55)=TRUE,Dokumentenauswertung!$C55,0))","v":""},{"$f":"IF(Dokumentenauswertung!Y$10=\"\",\"\",IF(EXACT(Dokumentenauswertung!$B55,Dokumentenauswertung!Y55)=TRUE,Dokumentenauswertung!$C55,0))","v":""},{"$f":"IF(Dokumentenauswertung!Z$10=\"\",\"\",IF(EXACT(Dokumentenauswertung!$B55,Dokumentenauswertung!Z55)=TRUE,Dokumentenauswertung!$C55,0))","v":""},{"$f":"IF(Dokumentenauswertung!AA$10=\"\",\"\",IF(EXACT(Dokumentenauswertung!$B55,Dokumentenauswertung!AA55)=TRUE,Dokumentenauswertung!$C55,0))","v":""},{"$f":"IF(Dokumentenauswertung!AB$10=\"\",\"\",IF(EXACT(Dokumentenauswertung!$B55,Dokumentenauswertung!AB55)=TRUE,Dokumentenauswertung!$C55,0))","v":""},{"$f":"IF(Dokumentenauswertung!AC$10=\"\",\"\",IF(EXACT(Dokumentenauswertung!$B55,Dokumentenauswertung!AC55)=TRUE,Dokumentenauswertung!$C55,0))","v":""},{"$f":"IF(Dokumentenauswertung!AD$10=\"\",\"\",IF(EXACT(Dokumentenauswertung!$B55,Dokumentenauswertung!AD55)=TRUE,Dokumentenauswertung!$C55,0))","v":""},{"$f":"IF(Dokumentenauswertung!AE$10=\"\",\"\",IF(EXACT(Dokumentenauswertung!$B55,Dokumentenauswertung!AE55)=TRUE,Dokumentenauswertung!$C55,0))","v":""},{"$f":"IF(Dokumentenauswertung!AF$10=\"\",\"\",IF(EXACT(Dokumentenauswertung!$B55,Dokumentenauswertung!AF55)=TRUE,Dokumentenauswertung!$C55,0))","v":""},{"$f":"IF(Dokumentenauswertung!AG$10=\"\",\"\",IF(EXACT(Dokumentenauswertung!$B55,Dokumentenauswertung!AG55)=TRUE,Dokumentenauswertung!$C55,0))","v":""},{"$f":"IF(Dokumentenauswertung!AH$10=\"\",\"\",IF(EXACT(Dokumentenauswertung!$B55,Dokumentenauswertung!AH55)=TRUE,Dokumentenauswertung!$C55,0))","v":""},{"$f":"IF(Dokumentenauswertung!AI$10=\"\",\"\",IF(EXACT(Dokumentenauswertung!$B55,Dokumentenauswertung!AI55)=TRUE,Dokumentenauswertung!$C55,0))","v":""},{"$f":"IF(Dokumentenauswertung!AJ$10=\"\",\"\",IF(EXACT(Dokumentenauswertung!$B55,Dokumentenauswertung!AJ55)=TRUE,Dokumentenauswertung!$C55,0))","v":""},{"$f":"IF(Dokumentenauswertung!AK$10=\"\",\"\",IF(EXACT(Dokumentenauswertung!$B55,Dokumentenauswertung!AK55)=TRUE,Dokumentenauswertung!$C55,0))","v":""}]
[null,null,{"$f":"Dokumentenauswertung!$A56","v":"D3.2"},{"$f":"IF(Dokumentenauswertung!E$10=\"\",\"\",IF(EXACT(Dokumentenauswertung!$B56,Dokumentenauswertung!E56)=TRUE,Dokumentenauswertung!$C56,0))","v":""},{"$f":"IF(Dokumentenauswertung!F$10=\"\",\"\",IF(EXACT(Dokumentenauswertung!$B56,Dokumentenauswertung!F56)=TRUE,Dokumentenauswertung!$C56,0))","v":""},{"$f":"IF(Dokumentenauswertung!G$10=\"\",\"\",IF(EXACT(Dokumentenauswertung!$B56,Dokumentenauswertung!G56)=TRUE,Dokumentenauswertung!$C56,0))","v":""},{"$f":"IF(Dokumentenauswertung!H$10=\"\",\"\",IF(EXACT(Dokumentenauswertung!$B56,Dokumentenauswertung!H56)=TRUE,Dokumentenauswertung!$C56,0))","v":""},{"$f":"IF(Dokumentenauswertung!I$10=\"\",\"\",IF(EXACT(Dokumentenauswertung!$B56,Dokumentenauswertung!I56)=TRUE,Dokumentenauswertung!$C56,0))","v":""},{"$f":"IF(Dokumentenauswertung!J$10=\"\",\"\",IF(EXACT(Dokumentenauswertung!$B56,Dokumentenauswertung!J56)=TRUE,Dokumentenauswertung!$C56,0))","v":""},{"$f":"IF(Dokumentenauswertung!K$10=\"\",\"\",IF(EXACT(Dokumentenauswertung!$B56,Dokumentenauswertung!K56)=TRUE,Dokumentenauswertung!$C56,0))","v":""},{"$f":"IF(Dokumentenauswertung!L$10=\"\",\"\",IF(EXACT(Dokumentenauswertung!$B56,Dokumentenauswertung!L56)=TRUE,Dokumentenauswertung!$C56,0))","v":""},{"$f":"IF(Dokumentenauswertung!M$10=\"\",\"\",IF(EXACT(Dokumentenauswertung!$B56,Dokumentenauswertung!M56)=TRUE,Dokumentenauswertung!$C56,0))","v":""},{"$f":"IF(Dokumentenauswertung!N$10=\"\",\"\",IF(EXACT(Dokumentenauswertung!$B56,Dokumentenauswertung!N56)=TRUE,Dokumentenauswertung!$C56,0))","v":""},{"$f":"IF(Dokumentenauswertung!O$10=\"\",\"\",IF(EXACT(Dokumentenauswertung!$B56,Dokumentenauswertung!O56)=TRUE,Dokumentenauswertung!$C56,0))","v":""},{"$f":"IF(Dokumentenauswertung!P$10=\"\",\"\",IF(EXACT(Dokumentenauswertung!$B56,Dokumentenauswertung!P56)=TRUE,Dokumentenauswertung!$C56,0))","v":""},{"$f":"IF(Dokumentenauswertung!Q$10=\"\",\"\",IF(EXACT(Dokumentenauswertung!$B56,Dokumentenauswertung!Q56)=TRUE,Dokumentenauswertung!$C56,0))","v":""},{"$f":"IF(Dokumentenauswertung!R$10=\"\",\"\",IF(EXACT(Dokumentenauswertung!$B56,Dokumentenauswertung!R56)=TRUE,Dokumentenauswertung!$C56,0))","v":""},{"$f":"IF(Dokumentenauswertung!S$10=\"\",\"\",IF(EXACT(Dokumentenauswertung!$B56,Dokumentenauswertung!S56)=TRUE,Dokumentenauswertung!$C56,0))","v":""},{"$f":"IF(Dokumentenauswertung!T$10=\"\",\"\",IF(EXACT(Dokumentenauswertung!$B56,Dokumentenauswertung!T56)=TRUE,Dokumentenauswertung!$C56,0))","v":""},{"$f":"IF(Dokumentenauswertung!U$10=\"\",\"\",IF(EXACT(Dokumentenauswertung!$B56,Dokumentenauswertung!U56)=TRUE,Dokumentenauswertung!$C56,0))","v":""},{"$f":"IF(Dokumentenauswertung!V$10=\"\",\"\",IF(EXACT(Dokumentenauswertung!$B56,Dokumentenauswertung!V56)=TRUE,Dokumentenauswertung!$C56,0))","v":""},{"$f":"IF(Dokumentenauswertung!W$10=\"\",\"\",IF(EXACT(Dokumentenauswertung!$B56,Dokumentenauswertung!W56)=TRUE,Dokumentenauswertung!$C56,0))","v":""},{"$f":"IF(Dokumentenauswertung!X$10=\"\",\"\",IF(EXACT(Dokumentenauswertung!$B56,Dokumentenauswertung!X56)=TRUE,Dokumentenauswertung!$C56,0))","v":""},{"$f":"IF(Dokumentenauswertung!Y$10=\"\",\"\",IF(EXACT(Dokumentenauswertung!$B56,Dokumentenauswertung!Y56)=TRUE,Dokumentenauswertung!$C56,0))","v":""},{"$f":"IF(Dokumentenauswertung!Z$10=\"\",\"\",IF(EXACT(Dokumentenauswertung!$B56,Dokumentenauswertung!Z56)=TRUE,Dokumentenauswertung!$C56,0))","v":""},{"$f":"IF(Dokumentenauswertung!AA$10=\"\",\"\",IF(EXACT(Dokumentenauswertung!$B56,Dokumentenauswertung!AA56)=TRUE,Dokumentenauswertung!$C56,0))","v":""},{"$f":"IF(Dokumentenauswertung!AB$10=\"\",\"\",IF(EXACT(Dokumentenauswertung!$B56,Dokumentenauswertung!AB56)=TRUE,Dokumentenauswertung!$C56,0))","v":""},{"$f":"IF(Dokumentenauswertung!AC$10=\"\",\"\",IF(EXACT(Dokumentenauswertung!$B56,Dokumentenauswertung!AC56)=TRUE,Dokumentenauswertung!$C56,0))","v":""},{"$f":"IF(Dokumentenauswertung!AD$10=\"\",\"\",IF(EXACT(Dokumentenauswertung!$B56,Dokumentenauswertung!AD56)=TRUE,Dokumentenauswertung!$C56,0))","v":""},{"$f":"IF(Dokumentenauswertung!AE$10=\"\",\"\",IF(EXACT(Dokumentenauswertung!$B56,Dokumentenauswertung!AE56)=TRUE,Dokumentenauswertung!$C56,0))","v":""},{"$f":"IF(Dokumentenauswertung!AF$10=\"\",\"\",IF(EXACT(Dokumentenauswertung!$B56,Dokumentenauswertung!AF56)=TRUE,Dokumentenauswertung!$C56,0))","v":""},{"$f":"IF(Dokumentenauswertung!AG$10=\"\",\"\",IF(EXACT(Dokumentenauswertung!$B56,Dokumentenauswertung!AG56)=TRUE,Dokumentenauswertung!$C56,0))","v":""},{"$f":"IF(Dokumentenauswertung!AH$10=\"\",\"\",IF(EXACT(Dokumentenauswertung!$B56,Dokumentenauswertung!AH56)=TRUE,Dokumentenauswertung!$C56,0))","v":""},{"$f":"IF(Dokumentenauswertung!AI$10=\"\",\"\",IF(EXACT(Dokumentenauswertung!$B56,Dokumentenauswertung!AI56)=TRUE,Dokumentenauswertung!$C56,0))","v":""},{"$f":"IF(Dokumentenauswertung!AJ$10=\"\",\"\",IF(EXACT(Dokumentenauswertung!$B56,Dokumentenauswertung!AJ56)=TRUE,Dokumentenauswertung!$C56,0))","v":""},{"$f":"IF(Dokumentenauswertung!AK$10=\"\",\"\",IF(EXACT(Dokumentenauswertung!$B56,Dokumentenauswertung!AK56)=TRUE,Dokumentenauswertung!$C56,0))","v":""}]
[null,null,{"$f":"Dokumentenauswertung!$A57","v":"D3.3"},{"$f":"IF(Dokumentenauswertung!E$10=\"\",\"\",IF(EXACT(Dokumentenauswertung!$B57,Dokumentenauswertung!E57)=TRUE,Dokumentenauswertung!$C57,0))","v":""},{"$f":"IF(Dokumentenauswertung!F$10=\"\",\"\",IF(EXACT(Dokumentenauswertung!$B57,Dokumentenauswertung!F57)=TRUE,Dokumentenauswertung!$C57,0))","v":""},{"$f":"IF(Dokumentenauswertung!G$10=\"\",\"\",IF(EXACT(Dokumentenauswertung!$B57,Dokumentenauswertung!G57)=TRUE,Dokumentenauswertung!$C57,0))","v":""},{"$f":"IF(Dokumentenauswertung!H$10=\"\",\"\",IF(EXACT(Dokumentenauswertung!$B57,Dokumentenauswertung!H57)=TRUE,Dokumentenauswertung!$C57,0))","v":""},{"$f":"IF(Dokumentenauswertung!I$10=\"\",\"\",IF(EXACT(Dokumentenauswertung!$B57,Dokumentenauswertung!I57)=TRUE,Dokumentenauswertung!$C57,0))","v":""},{"$f":"IF(Dokumentenauswertung!J$10=\"\",\"\",IF(EXACT(Dokumentenauswertung!$B57,Dokumentenauswertung!J57)=TRUE,Dokumentenauswertung!$C57,0))","v":""},{"$f":"IF(Dokumentenauswertung!K$10=\"\",\"\",IF(EXACT(Dokumentenauswertung!$B57,Dokumentenauswertung!K57)=TRUE,Dokumentenauswertung!$C57,0))","v":""},{"$f":"IF(Dokumentenauswertung!L$10=\"\",\"\",IF(EXACT(Dokumentenauswertung!$B57,Dokumentenauswertung!L57)=TRUE,Dokumentenauswertung!$C57,0))","v":""},{"$f":"IF(Dokumentenauswertung!M$10=\"\",\"\",IF(EXACT(Dokumentenauswertung!$B57,Dokumentenauswertung!M57)=TRUE,Dokumentenauswertung!$C57,0))","v":""},{"$f":"IF(Dokumentenauswertung!N$10=\"\",\"\",IF(EXACT(Dokumentenauswertung!$B57,Dokumentenauswertung!N57)=TRUE,Dokumentenauswertung!$C57,0))","v":""},{"$f":"IF(Dokumentenauswertung!O$10=\"\",\"\",IF(EXACT(Dokumentenauswertung!$B57,Dokumentenauswertung!O57)=TRUE,Dokumentenauswertung!$C57,0))","v":""},{"$f":"IF(Dokumentenauswertung!P$10=\"\",\"\",IF(EXACT(Dokumentenauswertung!$B57,Dokumentenauswertung!P57)=TRUE,Dokumentenauswertung!$C57,0))","v":""},{"$f":"IF(Dokumentenauswertung!Q$10=\"\",\"\",IF(EXACT(Dokumentenauswertung!$B57,Dokumentenauswertung!Q57)=TRUE,Dokumentenauswertung!$C57,0))","v":""},{"$f":"IF(Dokumentenauswertung!R$10=\"\",\"\",IF(EXACT(Dokumentenauswertung!$B57,Dokumentenauswertung!R57)=TRUE,Dokumentenauswertung!$C57,0))","v":""},{"$f":"IF(Dokumentenauswertung!S$10=\"\",\"\",IF(EXACT(Dokumentenauswertung!$B57,Dokumentenauswertung!S57)=TRUE,Dokumentenauswertung!$C57,0))","v":""},{"$f":"IF(Dokumentenauswertung!T$10=\"\",\"\",IF(EXACT(Dokumentenauswertung!$B57,Dokumentenauswertung!T57)=TRUE,Dokumentenauswertung!$C57,0))","v":""},{"$f":"IF(Dokumentenauswertung!U$10=\"\",\"\",IF(EXACT(Dokumentenauswertung!$B57,Dokumentenauswertung!U57)=TRUE,Dokumentenauswertung!$C57,0))","v":""},{"$f":"IF(Dokumentenauswertung!V$10=\"\",\"\",IF(EXACT(Dokumentenauswertung!$B57,Dokumentenauswertung!V57)=TRUE,Dokumentenauswertung!$C57,0))","v":""},{"$f":"IF(Dokumentenauswertung!W$10=\"\",\"\",IF(EXACT(Dokumentenauswertung!$B57,Dokumentenauswertung!W57)=TRUE,Dokumentenauswertung!$C57,0))","v":""},{"$f":"IF(Dokumentenauswertung!X$10=\"\",\"\",IF(EXACT(Dokumentenauswertung!$B57,Dokumentenauswertung!X57)=TRUE,Dokumentenauswertung!$C57,0))","v":""},{"$f":"IF(Dokumentenauswertung!Y$10=\"\",\"\",IF(EXACT(Dokumentenauswertung!$B57,Dokumentenauswertung!Y57)=TRUE,Dokumentenauswertung!$C57,0))","v":""},{"$f":"IF(Dokumentenauswertung!Z$10=\"\",\"\",IF(EXACT(Dokumentenauswertung!$B57,Dokumentenauswertung!Z57)=TRUE,Dokumentenauswertung!$C57,0))","v":""},{"$f":"IF(Dokumentenauswertung!AA$10=\"\",\"\",IF(EXACT(Dokumentenauswertung!$B57,Dokumentenauswertung!AA57)=TRUE,Dokumentenauswertung!$C57,0))","v":""},{"$f":"IF(Dokumentenauswertung!AB$10=\"\",\"\",IF(EXACT(Dokumentenauswertung!$B57,Dokumentenauswertung!AB57)=TRUE,Dokumentenauswertung!$C57,0))","v":""},{"$f":"IF(Dokumentenauswertung!AC$10=\"\",\"\",IF(EXACT(Dokumentenauswertung!$B57,Dokumentenauswertung!AC57)=TRUE,Dokumentenauswertung!$C57,0))","v":""},{"$f":"IF(Dokumentenauswertung!AD$10=\"\",\"\",IF(EXACT(Dokumentenauswertung!$B57,Dokumentenauswertung!AD57)=TRUE,Dokumentenauswertung!$C57,0))","v":""},{"$f":"IF(Dokumentenauswertung!AE$10=\"\",\"\",IF(EXACT(Dokumentenauswertung!$B57,Dokumentenauswertung!AE57)=TRUE,Dokumentenauswertung!$C57,0))","v":""},{"$f":"IF(Dokumentenauswertung!AF$10=\"\",\"\",IF(EXACT(Dokumentenauswertung!$B57,Dokumentenauswertung!AF57)=TRUE,Dokumentenauswertung!$C57,0))","v":""},{"$f":"IF(Dokumentenauswertung!AG$10=\"\",\"\",IF(EXACT(Dokumentenauswertung!$B57,Dokumentenauswertung!AG57)=TRUE,Dokumentenauswertung!$C57,0))","v":""},{"$f":"IF(Dokumentenauswertung!AH$10=\"\",\"\",IF(EXACT(Dokumentenauswertung!$B57,Dokumentenauswertung!AH57)=TRUE,Dokumentenauswertung!$C57,0))","v":""},{"$f":"IF(Dokumentenauswertung!AI$10=\"\",\"\",IF(EXACT(Dokumentenauswertung!$B57,Dokumentenauswertung!AI57)=TRUE,Dokumentenauswertung!$C57,0))","v":""},{"$f":"IF(Dokumentenauswertung!AJ$10=\"\",\"\",IF(EXACT(Dokumentenauswertung!$B57,Dokumentenauswertung!AJ57)=TRUE,Dokumentenauswertung!$C57,0))","v":""},{"$f":"IF(Dokumentenauswertung!AK$10=\"\",\"\",IF(EXACT(Dokumentenauswertung!$B57,Dokumentenauswertung!AK57)=TRUE,Dokumentenauswertung!$C57,0))","v":""}]
[null,null,{"$f":"Dokumentenauswertung!$A58","v":"D4.1"},{"$f":"IF(Dokumentenauswertung!E$10=\"\",\"\",IF(EXACT(Dokumentenauswertung!$B58,Dokumentenauswertung!E58)=TRUE,Dokumentenauswertung!$C58,0))","v":""},{"$f":"IF(Dokumentenauswertung!F$10=\"\",\"\",IF(EXACT(Dokumentenauswertung!$B58,Dokumentenauswertung!F58)=TRUE,Dokumentenauswertung!$C58,0))","v":""},{"$f":"IF(Dokumentenauswertung!G$10=\"\",\"\",IF(EXACT(Dokumentenauswertung!$B58,Dokumentenauswertung!G58)=TRUE,Dokumentenauswertung!$C58,0))","v":""},{"$f":"IF(Dokumentenauswertung!H$10=\"\",\"\",IF(EXACT(Dokumentenauswertung!$B58,Dokumentenauswertung!H58)=TRUE,Dokumentenauswertung!$C58,0))","v":""},{"$f":"IF(Dokumentenauswertung!I$10=\"\",\"\",IF(EXACT(Dokumentenauswertung!$B58,Dokumentenauswertung!I58)=TRUE,Dokumentenauswertung!$C58,0))","v":""},{"$f":"IF(Dokumentenauswertung!J$10=\"\",\"\",IF(EXACT(Dokumentenauswertung!$B58,Dokumentenauswertung!J58)=TRUE,Dokumentenauswertung!$C58,0))","v":""},{"$f":"IF(Dokumentenauswertung!K$10=\"\",\"\",IF(EXACT(Dokumentenauswertung!$B58,Dokumentenauswertung!K58)=TRUE,Dokumentenauswertung!$C58,0))","v":""},{"$f":"IF(Dokumentenauswertung!L$10=\"\",\"\",IF(EXACT(Dokumentenauswertung!$B58,Dokumentenauswertung!L58)=TRUE,Dokumentenauswertung!$C58,0))","v":""},{"$f":"IF(Dokumentenauswertung!M$10=\"\",\"\",IF(EXACT(Dokumentenauswertung!$B58,Dokumentenauswertung!M58)=TRUE,Dokumentenauswertung!$C58,0))","v":""},{"$f":"IF(Dokumentenauswertung!N$10=\"\",\"\",IF(EXACT(Dokumentenauswertung!$B58,Dokumentenauswertung!N58)=TRUE,Dokumentenauswertung!$C58,0))","v":""},{"$f":"IF(Dokumentenauswertung!O$10=\"\",\"\",IF(EXACT(Dokumentenauswertung!$B58,Dokumentenauswertung!O58)=TRUE,Dokumentenauswertung!$C58,0))","v":""},{"$f":"IF(Dokumentenauswertung!P$10=\"\",\"\",IF(EXACT(Dokumentenauswertung!$B58,Dokumentenauswertung!P58)=TRUE,Dokumentenauswertung!$C58,0))","v":""},{"$f":"IF(Dokumentenauswertung!Q$10=\"\",\"\",IF(EXACT(Dokumentenauswertung!$B58,Dokumentenauswertung!Q58)=TRUE,Dokumentenauswertung!$C58,0))","v":""},{"$f":"IF(Dokumentenauswertung!R$10=\"\",\"\",IF(EXACT(Dokumentenauswertung!$B58,Dokumentenauswertung!R58)=TRUE,Dokumentenauswertung!$C58,0))","v":""},{"$f":"IF(Dokumentenauswertung!S$10=\"\",\"\",IF(EXACT(Dokumentenauswertung!$B58,Dokumentenauswertung!S58)=TRUE,Dokumentenauswertung!$C58,0))","v":""},{"$f":"IF(Dokumentenauswertung!T$10=\"\",\"\",IF(EXACT(Dokumentenauswertung!$B58,Dokumentenauswertung!T58)=TRUE,Dokumentenauswertung!$C58,0))","v":""},{"$f":"IF(Dokumentenauswertung!U$10=\"\",\"\",IF(EXACT(Dokumentenauswertung!$B58,Dokumentenauswertung!U58)=TRUE,Dokumentenauswertung!$C58,0))","v":""},{"$f":"IF(Dokumentenauswertung!V$10=\"\",\"\",IF(EXACT(Dokumentenauswertung!$B58,Dokumentenauswertung!V58)=TRUE,Dokumentenauswertung!$C58,0))","v":""},{"$f":"IF(Dokumentenauswertung!W$10=\"\",\"\",IF(EXACT(Dokumentenauswertung!$B58,Dokumentenauswertung!W58)=TRUE,Dokumentenauswertung!$C58,0))","v":""},{"$f":"IF(Dokumentenauswertung!X$10=\"\",\"\",IF(EXACT(Dokumentenauswertung!$B58,Dokumentenauswertung!X58)=TRUE,Dokumentenauswertung!$C58,0))","v":""},{"$f":"IF(Dokumentenauswertung!Y$10=\"\",\"\",IF(EXACT(Dokumentenauswertung!$B58,Dokumentenauswertung!Y58)=TRUE,Dokumentenauswertung!$C58,0))","v":""},{"$f":"IF(Dokumentenauswertung!Z$10=\"\",\"\",IF(EXACT(Dokumentenauswertung!$B58,Dokumentenauswertung!Z58)=TRUE,Dokumentenauswertung!$C58,0))","v":""},{"$f":"IF(Dokumentenauswertung!AA$10=\"\",\"\",IF(EXACT(Dokumentenauswertung!$B58,Dokumentenauswertung!AA58)=TRUE,Dokumentenauswertung!$C58,0))","v":""},{"$f":"IF(Dokumentenauswertung!AB$10=\"\",\"\",IF(EXACT(Dokumentenauswertung!$B58,Dokumentenauswertung!AB58)=TRUE,Dokumentenauswertung!$C58,0))","v":""},{"$f":"IF(Dokumentenauswertung!AC$10=\"\",\"\",IF(EXACT(Dokumentenauswertung!$B58,Dokumentenauswertung!AC58)=TRUE,Dokumentenauswertung!$C58,0))","v":""},{"$f":"IF(Dokumentenauswertung!AD$10=\"\",\"\",IF(EXACT(Dokumentenauswertung!$B58,Dokumentenauswertung!AD58)=TRUE,Dokumentenauswertung!$C58,0))","v":""},{"$f":"IF(Dokumentenauswertung!AE$10=\"\",\"\",IF(EXACT(Dokumentenauswertung!$B58,Dokumentenauswertung!AE58)=TRUE,Dokumentenauswertung!$C58,0))","v":""},{"$f":"IF(Dokumentenauswertung!AF$10=\"\",\"\",IF(EXACT(Dokumentenauswertung!$B58,Dokumentenauswertung!AF58)=TRUE,Dokumentenauswertung!$C58,0))","v":""},{"$f":"IF(Dokumentenauswertung!AG$10=\"\",\"\",IF(EXACT(Dokumentenauswertung!$B58,Dokumentenauswertung!AG58)=TRUE,Dokumentenauswertung!$C58,0))","v":""},{"$f":"IF(Dokumentenauswertung!AH$10=\"\",\"\",IF(EXACT(Dokumentenauswertung!$B58,Dokumentenauswertung!AH58)=TRUE,Dokumentenauswertung!$C58,0))","v":""},{"$f":"IF(Dokumentenauswertung!AI$10=\"\",\"\",IF(EXACT(Dokumentenauswertung!$B58,Dokumentenauswertung!AI58)=TRUE,Dokumentenauswertung!$C58,0))","v":""},{"$f":"IF(Dokumentenauswertung!AJ$10=\"\",\"\",IF(EXACT(Dokumentenauswertung!$B58,Dokumentenauswertung!AJ58)=TRUE,Dokumentenauswertung!$C58,0))","v":""},{"$f":"IF(Dokumentenauswertung!AK$10=\"\",\"\",IF(EXACT(Dokumentenauswertung!$B58,Dokumentenauswertung!AK58)=TRUE,Dokumentenauswertung!$C58,0))","v":""}]
[null,null,{"$f":"Dokumentenauswertung!$A59","v":"D4.2"},{"$f":"IF(Dokumentenauswertung!E$10=\"\",\"\",IF(EXACT(Dokumentenauswertung!$B59,Dokumentenauswertung!E59)=TRUE,Dokumentenauswertung!$C59,0))","v":""},{"$f":"IF(Dokumentenauswertung!F$10=\"\",\"\",IF(EXACT(Dokumentenauswertung!$B59,Dokumentenauswertung!F59)=TRUE,Dokumentenauswertung!$C59,0))","v":""},{"$f":"IF(Dokumentenauswertung!G$10=\"\",\"\",IF(EXACT(Dokumentenauswertung!$B59,Dokumentenauswertung!G59)=TRUE,Dokumentenauswertung!$C59,0))","v":""},{"$f":"IF(Dokumentenauswertung!H$10=\"\",\"\",IF(EXACT(Dokumentenauswertung!$B59,Dokumentenauswertung!H59)=TRUE,Dokumentenauswertung!$C59,0))","v":""},{"$f":"IF(Dokumentenauswertung!I$10=\"\",\"\",IF(EXACT(Dokumentenauswertung!$B59,Dokumentenauswertung!I59)=TRUE,Dokumentenauswertung!$C59,0))","v":""},{"$f":"IF(Dokumentenauswertung!J$10=\"\",\"\",IF(EXACT(Dokumentenauswertung!$B59,Dokumentenauswertung!J59)=TRUE,Dokumentenauswertung!$C59,0))","v":""},{"$f":"IF(Dokumentenauswertung!K$10=\"\",\"\",IF(EXACT(Dokumentenauswertung!$B59,Dokumentenauswertung!K59)=TRUE,Dokumentenauswertung!$C59,0))","v":""},{"$f":"IF(Dokumentenauswertung!L$10=\"\",\"\",IF(EXACT(Dokumentenauswertung!$B59,Dokumentenauswertung!L59)=TRUE,Dokumentenauswertung!$C59,0))","v":""},{"$f":"IF(Dokumentenauswertung!M$10=\"\",\"\",IF(EXACT(Dokumentenauswertung!$B59,Dokumentenauswertung!M59)=TRUE,Dokumentenauswertung!$C59,0))","v":""},{"$f":"IF(Dokumentenauswertung!N$10=\"\",\"\",IF(EXACT(Dokumentenauswertung!$B59,Dokumentenauswertung!N59)=TRUE,Dokumentenauswertung!$C59,0))","v":""},{"$f":"IF(Dokumentenauswertung!O$10=\"\",\"\",IF(EXACT(Dokumentenauswertung!$B59,Dokumentenauswertung!O59)=TRUE,Dokumentenauswertung!$C59,0))","v":""},{"$f":"IF(Dokumentenauswertung!P$10=\"\",\"\",IF(EXACT(Dokumentenauswertung!$B59,Dokumentenauswertung!P59)=TRUE,Dokumentenauswertung!$C59,0))","v":""},{"$f":"IF(Dokumentenauswertung!Q$10=\"\",\"\",IF(EXACT(Dokumentenauswertung!$B59,Dokumentenauswertung!Q59)=TRUE,Dokumentenauswertung!$C59,0))","v":""},{"$f":"IF(Dokumentenauswertung!R$10=\"\",\"\",IF(EXACT(Dokumentenauswertung!$B59,Dokumentenauswertung!R59)=TRUE,Dokumentenauswertung!$C59,0))","v":""},{"$f":"IF(Dokumentenauswertung!S$10=\"\",\"\",IF(EXACT(Dokumentenauswertung!$B59,Dokumentenauswertung!S59)=TRUE,Dokumentenauswertung!$C59,0))","v":""},{"$f":"IF(Dokumentenauswertung!T$10=\"\",\"\",IF(EXACT(Dokumentenauswertung!$B59,Dokumentenauswertung!T59)=TRUE,Dokumentenauswertung!$C59,0))","v":""},{"$f":"IF(Dokumentenauswertung!U$10=\"\",\"\",IF(EXACT(Dokumentenauswertung!$B59,Dokumentenauswertung!U59)=TRUE,Dokumentenauswertung!$C59,0))","v":""},{"$f":"IF(Dokumentenauswertung!V$10=\"\",\"\",IF(EXACT(Dokumentenauswertung!$B59,Dokumentenauswertung!V59)=TRUE,Dokumentenauswertung!$C59,0))","v":""},{"$f":"IF(Dokumentenauswertung!W$10=\"\",\"\",IF(EXACT(Dokumentenauswertung!$B59,Dokumentenauswertung!W59)=TRUE,Dokumentenauswertung!$C59,0))","v":""},{"$f":"IF(Dokumentenauswertung!X$10=\"\",\"\",IF(EXACT(Dokumentenauswertung!$B59,Dokumentenauswertung!X59)=TRUE,Dokumentenauswertung!$C59,0))","v":""},{"$f":"IF(Dokumentenauswertung!Y$10=\"\",\"\",IF(EXACT(Dokumentenauswertung!$B59,Dokumentenauswertung!Y59)=TRUE,Dokumentenauswertung!$C59,0))","v":""},{"$f":"IF(Dokumentenauswertung!Z$10=\"\",\"\",IF(EXACT(Dokumentenauswertung!$B59,Dokumentenauswertung!Z59)=TRUE,Dokumentenauswertung!$C59,0))","v":""},{"$f":"IF(Dokumentenauswertung!AA$10=\"\",\"\",IF(EXACT(Dokumentenauswertung!$B59,Dokumentenauswertung!AA59)=TRUE,Dokumentenauswertung!$C59,0))","v":""},{"$f":"IF(Dokumentenauswertung!AB$10=\"\",\"\",IF(EXACT(Dokumentenauswertung!$B59,Dokumentenauswertung!AB59)=TRUE,Dokumentenauswertung!$C59,0))","v":""},{"$f":"IF(Dokumentenauswertung!AC$10=\"\",\"\",IF(EXACT(Dokumentenauswertung!$B59,Dokumentenauswertung!AC59)=TRUE,Dokumentenauswertung!$C59,0))","v":""},{"$f":"IF(Dokumentenauswertung!AD$10=\"\",\"\",IF(EXACT(Dokumentenauswertung!$B59,Dokumentenauswertung!AD59)=TRUE,Dokumentenauswertung!$C59,0))","v":""},{"$f":"IF(Dokumentenauswertung!AE$10=\"\",\"\",IF(EXACT(Dokumentenauswertung!$B59,Dokumentenauswertung!AE59)=TRUE,Dokumentenauswertung!$C59,0))","v":""},{"$f":"IF(Dokumentenauswertung!AF$10=\"\",\"\",IF(EXACT(Dokumentenauswertung!$B59,Dokumentenauswertung!AF59)=TRUE,Dokumentenauswertung!$C59,0))","v":""},{"$f":"IF(Dokumentenauswertung!AG$10=\"\",\"\",IF(EXACT(Dokumentenauswertung!$B59,Dokumentenauswertung!AG59)=TRUE,Dokumentenauswertung!$C59,0))","v":""},{"$f":"IF(Dokumentenauswertung!AH$10=\"\",\"\",IF(EXACT(Dokumentenauswertung!$B59,Dokumentenauswertung!AH59)=TRUE,Dokumentenauswertung!$C59,0))","v":""},{"$f":"IF(Dokumentenauswertung!AI$10=\"\",\"\",IF(EXACT(Dokumentenauswertung!$B59,Dokumentenauswertung!AI59)=TRUE,Dokumentenauswertung!$C59,0))","v":""},{"$f":"IF(Dokumentenauswertung!AJ$10=\"\",\"\",IF(EXACT(Dokumentenauswertung!$B59,Dokumentenauswertung!AJ59)=TRUE,Dokumentenauswertung!$C59,0))","v":""},{"$f":"IF(Dokumentenauswertung!AK$10=\"\",\"\",IF(EXACT(Dokumentenauswertung!$B59,Dokumentenauswertung!AK59)=TRUE,Dokumentenauswertung!$C59,0))","v":""}]
[null,null,{"$f":"Dokumentenauswertung!$A60","v":"E1"},{"$f":"IF(Dokumentenauswertung!E$10=\"\",\"\",IF(EXACT(Dokumentenauswertung!$B60,Dokumentenauswertung!E60)=TRUE,Dokumentenauswertung!$C60,0))","v":""},{"$f":"IF(Dokumentenauswertung!F$10=\"\",\"\",IF(EXACT(Dokumentenauswertung!$B60,Dokumentenauswertung!F60)=TRUE,Dokumentenauswertung!$C60,0))","v":""},{"$f":"IF(Dokumentenauswertung!G$10=\"\",\"\",IF(EXACT(Dokumentenauswertung!$B60,Dokumentenauswertung!G60)=TRUE,Dokumentenauswertung!$C60,0))","v":""},{"$f":"IF(Dokumentenauswertung!H$10=\"\",\"\",IF(EXACT(Dokumentenauswertung!$B60,Dokumentenauswertung!H60)=TRUE,Dokumentenauswertung!$C60,0))","v":""},{"$f":"IF(Dokumentenauswertung!I$10=\"\",\"\",IF(EXACT(Dokumentenauswertung!$B60,Dokumentenauswertung!I60)=TRUE,Dokumentenauswertung!$C60,0))","v":""},{"$f":"IF(Dokumentenauswertung!J$10=\"\",\"\",IF(EXACT(Dokumentenauswertung!$B60,Dokumentenauswertung!J60)=TRUE,Dokumentenauswertung!$C60,0))","v":""},{"$f":"IF(Dokumentenauswertung!K$10=\"\",\"\",IF(EXACT(Dokumentenauswertung!$B60,Dokumentenauswertung!K60)=TRUE,Dokumentenauswertung!$C60,0))","v":""},{"$f":"IF(Dokumentenauswertung!L$10=\"\",\"\",IF(EXACT(Dokumentenauswertung!$B60,Dokumentenauswertung!L60)=TRUE,Dokumentenauswertung!$C60,0))","v":""},{"$f":"IF(Dokumentenauswertung!M$10=\"\",\"\",IF(EXACT(Dokumentenauswertung!$B60,Dokumentenauswertung!M60)=TRUE,Dokumentenauswertung!$C60,0))","v":""},{"$f":"IF(Dokumentenauswertung!N$10=\"\",\"\",IF(EXACT(Dokumentenauswertung!$B60,Dokumentenauswertung!N60)=TRUE,Dokumentenauswertung!$C60,0))","v":""},{"$f":"IF(Dokumentenauswertung!O$10=\"\",\"\",IF(EXACT(Dokumentenauswertung!$B60,Dokumentenauswertung!O60)=TRUE,Dokumentenauswertung!$C60,0))","v":""},{"$f":"IF(Dokumentenauswertung!P$10=\"\",\"\",IF(EXACT(Dokumentenauswertung!$B60,Dokumentenauswertung!P60)=TRUE,Dokumentenauswertung!$C60,0))","v":""},{"$f":"IF(Dokumentenauswertung!Q$10=\"\",\"\",IF(EXACT(Dokumentenauswertung!$B60,Dokumentenauswertung!Q60)=TRUE,Dokumentenauswertung!$C60,0))","v":""},{"$f":"IF(Dokumentenauswertung!R$10=\"\",\"\",IF(EXACT(Dokumentenauswertung!$B60,Dokumentenauswertung!R60)=TRUE,Dokumentenauswertung!$C60,0))","v":""},{"$f":"IF(Dokumentenauswertung!S$10=\"\",\"\",IF(EXACT(Dokumentenauswertung!$B60,Dokumentenauswertung!S60)=TRUE,Dokumentenauswertung!$C60,0))","v":""},{"$f":"IF(Dokumentenauswertung!T$10=\"\",\"\",IF(EXACT(Dokumentenauswertung!$B60,Dokumentenauswertung!T60)=TRUE,Dokumentenauswertung!$C60,0))","v":""},{"$f":"IF(Dokumentenauswertung!U$10=\"\",\"\",IF(EXACT(Dokumentenauswertung!$B60,Dokumentenauswertung!U60)=TRUE,Dokumentenauswertung!$C60,0))","v":""},{"$f":"IF(Dokumentenauswertung!V$10=\"\",\"\",IF(EXACT(Dokumentenauswertung!$B60,Dokumentenauswertung!V60)=TRUE,Dokumentenauswertung!$C60,0))","v":""},{"$f":"IF(Dokumentenauswertung!W$10=\"\",\"\",IF(EXACT(Dokumentenauswertung!$B60,Dokumentenauswertung!W60)=TRUE,Dokumentenauswertung!$C60,0))","v":""},{"$f":"IF(Dokumentenauswertung!X$10=\"\",\"\",IF(EXACT(Dokumentenauswertung!$B60,Dokumentenauswertung!X60)=TRUE,Dokumentenauswertung!$C60,0))","v":""},{"$f":"IF(Dokumentenauswertung!Y$10=\"\",\"\",IF(EXACT(Dokumentenauswertung!$B60,Dokumentenauswertung!Y60)=TRUE,Dokumentenauswertung!$C60,0))","v":""},{"$f":"IF(Dokumentenauswertung!Z$10=\"\",\"\",IF(EXACT(Dokumentenauswertung!$B60,Dokumentenauswertung!Z60)=TRUE,Dokumentenauswertung!$C60,0))","v":""},{"$f":"IF(Dokumentenauswertung!AA$10=\"\",\"\",IF(EXACT(Dokumentenauswertung!$B60,Dokumentenauswertung!AA60)=TRUE,Dokumentenauswertung!$C60,0))","v":""},{"$f":"IF(Dokumentenauswertung!AB$10=\"\",\"\",IF(EXACT(Dokumentenauswertung!$B60,Dokumentenauswertung!AB60)=TRUE,Dokumentenauswertung!$C60,0))","v":""},{"$f":"IF(Dokumentenauswertung!AC$10=\"\",\"\",IF(EXACT(Dokumentenauswertung!$B60,Dokumentenauswertung!AC60)=TRUE,Dokumentenauswertung!$C60,0))","v":""},{"$f":"IF(Dokumentenauswertung!AD$10=\"\",\"\",IF(EXACT(Dokumentenauswertung!$B60,Dokumentenauswertung!AD60)=TRUE,Dokumentenauswertung!$C60,0))","v":""},{"$f":"IF(Dokumentenauswertung!AE$10=\"\",\"\",IF(EXACT(Dokumentenauswertung!$B60,Dokumentenauswertung!AE60)=TRUE,Dokumentenauswertung!$C60,0))","v":""},{"$f":"IF(Dokumentenauswertung!AF$10=\"\",\"\",IF(EXACT(Dokumentenauswertung!$B60,Dokumentenauswertung!AF60)=TRUE,Dokumentenauswertung!$C60,0))","v":""},{"$f":"IF(Dokumentenauswertung!AG$10=\"\",\"\",IF(EXACT(Dokumentenauswertung!$B60,Dokumentenauswertung!AG60)=TRUE,Dokumentenauswertung!$C60,0))","v":""},{"$f":"IF(Dokumentenauswertung!AH$10=\"\",\"\",IF(EXACT(Dokumentenauswertung!$B60,Dokumentenauswertung!AH60)=TRUE,Dokumentenauswertung!$C60,0))","v":""},{"$f":"IF(Dokumentenauswertung!AI$10=\"\",\"\",IF(EXACT(Dokumentenauswertung!$B60,Dokumentenauswertung!AI60)=TRUE,Dokumentenauswertung!$C60,0))","v":""},{"$f":"IF(Dokumentenauswertung!AJ$10=\"\",\"\",IF(EXACT(Dokumentenauswertung!$B60,Dokumentenauswertung!AJ60)=TRUE,Dokumentenauswertung!$C60,0))","v":""},{"$f":"IF(Dokumentenauswertung!AK$10=\"\",\"\",IF(EXACT(Dokumentenauswertung!$B60,Dokumentenauswertung!AK60)=TRUE,Dokumentenauswertung!$C60,0))","v":""}]
[null,null,{"$f":"Dokumentenauswertung!$A61","v":"E2.1"},{"$f":"IF(Dokumentenauswertung!E$10=\"\",\"\",IF(EXACT(Dokumentenauswertung!$B61,Dokumentenauswertung!E61)=TRUE,Dokumentenauswertung!$C61,0))","v":""},{"$f":"IF(Dokumentenauswertung!F$10=\"\",\"\",IF(EXACT(Dokumentenauswertung!$B61,Dokumentenauswertung!F61)=TRUE,Dokumentenauswertung!$C61,0))","v":""},{"$f":"IF(Dokumentenauswertung!G$10=\"\",\"\",IF(EXACT(Dokumentenauswertung!$B61,Dokumentenauswertung!G61)=TRUE,Dokumentenauswertung!$C61,0))","v":""},{"$f":"IF(Dokumentenauswertung!H$10=\"\",\"\",IF(EXACT(Dokumentenauswertung!$B61,Dokumentenauswertung!H61)=TRUE,Dokumentenauswertung!$C61,0))","v":""},{"$f":"IF(Dokumentenauswertung!I$10=\"\",\"\",IF(EXACT(Dokumentenauswertung!$B61,Dokumentenauswertung!I61)=TRUE,Dokumentenauswertung!$C61,0))","v":""},{"$f":"IF(Dokumentenauswertung!J$10=\"\",\"\",IF(EXACT(Dokumentenauswertung!$B61,Dokumentenauswertung!J61)=TRUE,Dokumentenauswertung!$C61,0))","v":""},{"$f":"IF(Dokumentenauswertung!K$10=\"\",\"\",IF(EXACT(Dokumentenauswertung!$B61,Dokumentenauswertung!K61)=TRUE,Dokumentenauswertung!$C61,0))","v":""},{"$f":"IF(Dokumentenauswertung!L$10=\"\",\"\",IF(EXACT(Dokumentenauswertung!$B61,Dokumentenauswertung!L61)=TRUE,Dokumentenauswertung!$C61,0))","v":""},{"$f":"IF(Dokumentenauswertung!M$10=\"\",\"\",IF(EXACT(Dokumentenauswertung!$B61,Dokumentenauswertung!M61)=TRUE,Dokumentenauswertung!$C61,0))","v":""},{"$f":"IF(Dokumentenauswertung!N$10=\"\",\"\",IF(EXACT(Dokumentenauswertung!$B61,Dokumentenauswertung!N61)=TRUE,Dokumentenauswertung!$C61,0))","v":""},{"$f":"IF(Dokumentenauswertung!O$10=\"\",\"\",IF(EXACT(Dokumentenauswertung!$B61,Dokumentenauswertung!O61)=TRUE,Dokumentenauswertung!$C61,0))","v":""},{"$f":"IF(Dokumentenauswertung!P$10=\"\",\"\",IF(EXACT(Dokumentenauswertung!$B61,Dokumentenauswertung!P61)=TRUE,Dokumentenauswertung!$C61,0))","v":""},{"$f":"IF(Dokumentenauswertung!Q$10=\"\",\"\",IF(EXACT(Dokumentenauswertung!$B61,Dokumentenauswertung!Q61)=TRUE,Dokumentenauswertung!$C61,0))","v":""},{"$f":"IF(Dokumentenauswertung!R$10=\"\",\"\",IF(EXACT(Dokumentenauswertung!$B61,Dokumentenauswertung!R61)=TRUE,Dokumentenauswertung!$C61,0))","v":""},{"$f":"IF(Dokumentenauswertung!S$10=\"\",\"\",IF(EXACT(Dokumentenauswertung!$B61,Dokumentenauswertung!S61)=TRUE,Dokumentenauswertung!$C61,0))","v":""},{"$f":"IF(Dokumentenauswertung!T$10=\"\",\"\",IF(EXACT(Dokumentenauswertung!$B61,Dokumentenauswertung!T61)=TRUE,Dokumentenauswertung!$C61,0))","v":""},{"$f":"IF(Dokumentenauswertung!U$10=\"\",\"\",IF(EXACT(Dokumentenauswertung!$B61,Dokumentenauswertung!U61)=TRUE,Dokumentenauswertung!$C61,0))","v":""},{"$f":"IF(Dokumentenauswertung!V$10=\"\",\"\",IF(EXACT(Dokumentenauswertung!$B61,Dokumentenauswertung!V61)=TRUE,Dokumentenauswertung!$C61,0))","v":""},{"$f":"IF(Dokumentenauswertung!W$10=\"\",\"\",IF(EXACT(Dokumentenauswertung!$B61,Dokumentenauswertung!W61)=TRUE,Dokumentenauswertung!$C61,0))","v":""},{"$f":"IF(Dokumentenauswertung!X$10=\"\",\"\",IF(EXACT(Dokumentenauswertung!$B61,Dokumentenauswertung!X61)=TRUE,Dokumentenauswertung!$C61,0))","v":""},{"$f":"IF(Dokumentenauswertung!Y$10=\"\",\"\",IF(EXACT(Dokumentenauswertung!$B61,Dokumentenauswertung!Y61)=TRUE,Dokumentenauswertung!$C61,0))","v":""},{"$f":"IF(Dokumentenauswertung!Z$10=\"\",\"\",IF(EXACT(Dokumentenauswertung!$B61,Dokumentenauswertung!Z61)=TRUE,Dokumentenauswertung!$C61,0))","v":""},{"$f":"IF(Dokumentenauswertung!AA$10=\"\",\"\",IF(EXACT(Dokumentenauswertung!$B61,Dokumentenauswertung!AA61)=TRUE,Dokumentenauswertung!$C61,0))","v":""},{"$f":"IF(Dokumentenauswertung!AB$10=\"\",\"\",IF(EXACT(Dokumentenauswertung!$B61,Dokumentenauswertung!AB61)=TRUE,Dokumentenauswertung!$C61,0))","v":""},{"$f":"IF(Dokumentenauswertung!AC$10=\"\",\"\",IF(EXACT(Dokumentenauswertung!$B61,Dokumentenauswertung!AC61)=TRUE,Dokumentenauswertung!$C61,0))","v":""},{"$f":"IF(Dokumentenauswertung!AD$10=\"\",\"\",IF(EXACT(Dokumentenauswertung!$B61,Dokumentenauswertung!AD61)=TRUE,Dokumentenauswertung!$C61,0))","v":""},{"$f":"IF(Dokumentenauswertung!AE$10=\"\",\"\",IF(EXACT(Dokumentenauswertung!$B61,Dokumentenauswertung!AE61)=TRUE,Dokumentenauswertung!$C61,0))","v":""},{"$f":"IF(Dokumentenauswertung!AF$10=\"\",\"\",IF(EXACT(Dokumentenauswertung!$B61,Dokumentenauswertung!AF61)=TRUE,Dokumentenauswertung!$C61,0))","v":""},{"$f":"IF(Dokumentenauswertung!AG$10=\"\",\"\",IF(EXACT(Dokumentenauswertung!$B61,Dokumentenauswertung!AG61)=TRUE,Dokumentenauswertung!$C61,0))","v":""},{"$f":"IF(Dokumentenauswertung!AH$10=\"\",\"\",IF(EXACT(Dokumentenauswertung!$B61,Dokumentenauswertung!AH61)=TRUE,Dokumentenauswertung!$C61,0))","v":""},{"$f":"IF(Dokumentenauswertung!AI$10=\"\",\"\",IF(EXACT(Dokumentenauswertung!$B61,Dokumentenauswertung!AI61)=TRUE,Dokumentenauswertung!$C61,0))","v":""},{"$f":"IF(Dokumentenauswertung!AJ$10=\"\",\"\",IF(EXACT(Dokumentenauswertung!$B61,Dokumentenauswertung!AJ61)=TRUE,Dokumentenauswertung!$C61,0))","v":""},{"$f":"IF(Dokumentenauswertung!AK$10=\"\",\"\",IF(EXACT(Dokumentenauswertung!$B61,Dokumentenauswertung!AK61)=TRUE,Dokumentenauswertung!$C61,0))","v":""}]
[null,null,{"$f":"Dokumentenauswertung!$A62","v":"E2.2"},{"$f":"IF(Dokumentenauswertung!E$10=\"\",\"\",IF(EXACT(Dokumentenauswertung!$B62,Dokumentenauswertung!E62)=TRUE,Dokumentenauswertung!$C62,0))","v":""},{"$f":"IF(Dokumentenauswertung!F$10=\"\",\"\",IF(EXACT(Dokumentenauswertung!$B62,Dokumentenauswertung!F62)=TRUE,Dokumentenauswertung!$C62,0))","v":""},{"$f":"IF(Dokumentenauswertung!G$10=\"\",\"\",IF(EXACT(Dokumentenauswertung!$B62,Dokumentenauswertung!G62)=TRUE,Dokumentenauswertung!$C62,0))","v":""},{"$f":"IF(Dokumentenauswertung!H$10=\"\",\"\",IF(EXACT(Dokumentenauswertung!$B62,Dokumentenauswertung!H62)=TRUE,Dokumentenauswertung!$C62,0))","v":""},{"$f":"IF(Dokumentenauswertung!I$10=\"\",\"\",IF(EXACT(Dokumentenauswertung!$B62,Dokumentenauswertung!I62)=TRUE,Dokumentenauswertung!$C62,0))","v":""},{"$f":"IF(Dokumentenauswertung!J$10=\"\",\"\",IF(EXACT(Dokumentenauswertung!$B62,Dokumentenauswertung!J62)=TRUE,Dokumentenauswertung!$C62,0))","v":""},{"$f":"IF(Dokumentenauswertung!K$10=\"\",\"\",IF(EXACT(Dokumentenauswertung!$B62,Dokumentenauswertung!K62)=TRUE,Dokumentenauswertung!$C62,0))","v":""},{"$f":"IF(Dokumentenauswertung!L$10=\"\",\"\",IF(EXACT(Dokumentenauswertung!$B62,Dokumentenauswertung!L62)=TRUE,Dokumentenauswertung!$C62,0))","v":""},{"$f":"IF(Dokumentenauswertung!M$10=\"\",\"\",IF(EXACT(Dokumentenauswertung!$B62,Dokumentenauswertung!M62)=TRUE,Dokumentenauswertung!$C62,0))","v":""},{"$f":"IF(Dokumentenauswertung!N$10=\"\",\"\",IF(EXACT(Dokumentenauswertung!$B62,Dokumentenauswertung!N62)=TRUE,Dokumentenauswertung!$C62,0))","v":""},{"$f":"IF(Dokumentenauswertung!O$10=\"\",\"\",IF(EXACT(Dokumentenauswertung!$B62,Dokumentenauswertung!O62)=TRUE,Dokumentenauswertung!$C62,0))","v":""},{"$f":"IF(Dokumentenauswertung!P$10=\"\",\"\",IF(EXACT(Dokumentenauswertung!$B62,Dokumentenauswertung!P62)=TRUE,Dokumentenauswertung!$C62,0))","v":""},{"$f":"IF(Dokumentenauswertung!Q$10=\"\",\"\",IF(EXACT(Dokumentenauswertung!$B62,Dokumentenauswertung!Q62)=TRUE,Dokumentenauswertung!$C62,0))","v":""},{"$f":"IF(Dokumentenauswertung!R$10=\"\",\"\",IF(EXACT(Dokumentenauswertung!$B62,Dokumentenauswertung!R62)=TRUE,Dokumentenauswertung!$C62,0))","v":""},{"$f":"IF(Dokumentenauswertung!S$10=\"\",\"\",IF(EXACT(Dokumentenauswertung!$B62,Dokumentenauswertung!S62)=TRUE,Dokumentenauswertung!$C62,0))","v":""},{"$f":"IF(Dokumentenauswertung!T$10=\"\",\"\",IF(EXACT(Dokumentenauswertung!$B62,Dokumentenauswertung!T62)=TRUE,Dokumentenauswertung!$C62,0))","v":""},{"$f":"IF(Dokumentenauswertung!U$10=\"\",\"\",IF(EXACT(Dokumentenauswertung!$B62,Dokumentenauswertung!U62)=TRUE,Dokumentenauswertung!$C62,0))","v":""},{"$f":"IF(Dokumentenauswertung!V$10=\"\",\"\",IF(EXACT(Dokumentenauswertung!$B62,Dokumentenauswertung!V62)=TRUE,Dokumentenauswertung!$C62,0))","v":""},{"$f":"IF(Dokumentenauswertung!W$10=\"\",\"\",IF(EXACT(Dokumentenauswertung!$B62,Dokumentenauswertung!W62)=TRUE,Dokumentenauswertung!$C62,0))","v":""},{"$f":"IF(Dokumentenauswertung!X$10=\"\",\"\",IF(EXACT(Dokumentenauswertung!$B62,Dokumentenauswertung!X62)=TRUE,Dokumentenauswertung!$C62,0))","v":""},{"$f":"IF(Dokumentenauswertung!Y$10=\"\",\"\",IF(EXACT(Dokumentenauswertung!$B62,Dokumentenauswertung!Y62)=TRUE,Dokumentenauswertung!$C62,0))","v":""},{"$f":"IF(Dokumentenauswertung!Z$10=\"\",\"\",IF(EXACT(Dokumentenauswertung!$B62,Dokumentenauswertung!Z62)=TRUE,Dokumentenauswertung!$C62,0))","v":""},{"$f":"IF(Dokumentenauswertung!AA$10=\"\",\"\",IF(EXACT(Dokumentenauswertung!$B62,Dokumentenauswertung!AA62)=TRUE,Dokumentenauswertung!$C62,0))","v":""},{"$f":"IF(Dokumentenauswertung!AB$10=\"\",\"\",IF(EXACT(Dokumentenauswertung!$B62,Dokumentenauswertung!AB62)=TRUE,Dokumentenauswertung!$C62,0))","v":""},{"$f":"IF(Dokumentenauswertung!AC$10=\"\",\"\",IF(EXACT(Dokumentenauswertung!$B62,Dokumentenauswertung!AC62)=TRUE,Dokumentenauswertung!$C62,0))","v":""},{"$f":"IF(Dokumentenauswertung!AD$10=\"\",\"\",IF(EXACT(Dokumentenauswertung!$B62,Dokumentenauswertung!AD62)=TRUE,Dokumentenauswertung!$C62,0))","v":""},{"$f":"IF(Dokumentenauswertung!AE$10=\"\",\"\",IF(EXACT(Dokumentenauswertung!$B62,Dokumentenauswertung!AE62)=TRUE,Dokumentenauswertung!$C62,0))","v":""},{"$f":"IF(Dokumentenauswertung!AF$10=\"\",\"\",IF(EXACT(Dokumentenauswertung!$B62,Dokumentenauswertung!AF62)=TRUE,Dokumentenauswertung!$C62,0))","v":""},{"$f":"IF(Dokumentenauswertung!AG$10=\"\",\"\",IF(EXACT(Dokumentenauswertung!$B62,Dokumentenauswertung!AG62)=TRUE,Dokumentenauswertung!$C62,0))","v":""},{"$f":"IF(Dokumentenauswertung!AH$10=\"\",\"\",IF(EXACT(Dokumentenauswertung!$B62,Dokumentenauswertung!AH62)=TRUE,Dokumentenauswertung!$C62,0))","v":""},{"$f":"IF(Dokumentenauswertung!AI$10=\"\",\"\",IF(EXACT(Dokumentenauswertung!$B62,Dokumentenauswertung!AI62)=TRUE,Dokumentenauswertung!$C62,0))","v":""},{"$f":"IF(Dokumentenauswertung!AJ$10=\"\",\"\",IF(EXACT(Dokumentenauswertung!$B62,Dokumentenauswertung!AJ62)=TRUE,Dokumentenauswertung!$C62,0))","v":""},{"$f":"IF(Dokumentenauswertung!AK$10=\"\",\"\",IF(EXACT(Dokumentenauswertung!$B62,Dokumentenauswertung!AK62)=TRUE,Dokumentenauswertung!$C62,0))","v":""}]
[null,null,{"$f":"Dokumentenauswertung!$A63","v":"E3"},{"$f":"IF(Dokumentenauswertung!E$10=\"\",\"\",IF(EXACT(Dokumentenauswertung!$B63,Dokumentenauswertung!E63)=TRUE,Dokumentenauswertung!$C63,0))","v":""},{"$f":"IF(Dokumentenauswertung!F$10=\"\",\"\",IF(EXACT(Dokumentenauswertung!$B63,Dokumentenauswertung!F63)=TRUE,Dokumentenauswertung!$C63,0))","v":""},{"$f":"IF(Dokumentenauswertung!G$10=\"\",\"\",IF(EXACT(Dokumentenauswertung!$B63,Dokumentenauswertung!G63)=TRUE,Dokumentenauswertung!$C63,0))","v":""},{"$f":"IF(Dokumentenauswertung!H$10=\"\",\"\",IF(EXACT(Dokumentenauswertung!$B63,Dokumentenauswertung!H63)=TRUE,Dokumentenauswertung!$C63,0))","v":""},{"$f":"IF(Dokumentenauswertung!I$10=\"\",\"\",IF(EXACT(Dokumentenauswertung!$B63,Dokumentenauswertung!I63)=TRUE,Dokumentenauswertung!$C63,0))","v":""},{"$f":"IF(Dokumentenauswertung!J$10=\"\",\"\",IF(EXACT(Dokumentenauswertung!$B63,Dokumentenauswertung!J63)=TRUE,Dokumentenauswertung!$C63,0))","v":""},{"$f":"IF(Dokumentenauswertung!K$10=\"\",\"\",IF(EXACT(Dokumentenauswertung!$B63,Dokumentenauswertung!K63)=TRUE,Dokumentenauswertung!$C63,0))","v":""},{"$f":"IF(Dokumentenauswertung!L$10=\"\",\"\",IF(EXACT(Dokumentenauswertung!$B63,Dokumentenauswertung!L63)=TRUE,Dokumentenauswertung!$C63,0))","v":""},{"$f":"IF(Dokumentenauswertung!M$10=\"\",\"\",IF(EXACT(Dokumentenauswertung!$B63,Dokumentenauswertung!M63)=TRUE,Dokumentenauswertung!$C63,0))","v":""},{"$f":"IF(Dokumentenauswertung!N$10=\"\",\"\",IF(EXACT(Dokumentenauswertung!$B63,Dokumentenauswertung!N63)=TRUE,Dokumentenauswertung!$C63,0))","v":""},{"$f":"IF(Dokumentenauswertung!O$10=\"\",\"\",IF(EXACT(Dokumentenauswertung!$B63,Dokumentenauswertung!O63)=TRUE,Dokumentenauswertung!$C63,0))","v":""},{"$f":"IF(Dokumentenauswertung!P$10=\"\",\"\",IF(EXACT(Dokumentenauswertung!$B63,Dokumentenauswertung!P63)=TRUE,Dokumentenauswertung!$C63,0))","v":""},{"$f":"IF(Dokumentenauswertung!Q$10=\"\",\"\",IF(EXACT(Dokumentenauswertung!$B63,Dokumentenauswertung!Q63)=TRUE,Dokumentenauswertung!$C63,0))","v":""},{"$f":"IF(Dokumentenauswertung!R$10=\"\",\"\",IF(EXACT(Dokumentenauswertung!$B63,Dokumentenauswertung!R63)=TRUE,Dokumentenauswertung!$C63,0))","v":""},{"$f":"IF(Dokumentenauswertung!S$10=\"\",\"\",IF(EXACT(Dokumentenauswertung!$B63,Dokumentenauswertung!S63)=TRUE,Dokumentenauswertung!$C63,0))","v":""},{"$f":"IF(Dokumentenauswertung!T$10=\"\",\"\",IF(EXACT(Dokumentenauswertung!$B63,Dokumentenauswertung!T63)=TRUE,Dokumentenauswertung!$C63,0))","v":""},{"$f":"IF(Dokumentenauswertung!U$10=\"\",\"\",IF(EXACT(Dokumentenauswertung!$B63,Dokumentenauswertung!U63)=TRUE,Dokumentenauswertung!$C63,0))","v":""},{"$f":"IF(Dokumentenauswertung!V$10=\"\",\"\",IF(EXACT(Dokumentenauswertung!$B63,Dokumentenauswertung!V63)=TRUE,Dokumentenauswertung!$C63,0))","v":""},{"$f":"IF(Dokumentenauswertung!W$10=\"\",\"\",IF(EXACT(Dokumentenauswertung!$B63,Dokumentenauswertung!W63)=TRUE,Dokumentenauswertung!$C63,0))","v":""},{"$f":"IF(Dokumentenauswertung!X$10=\"\",\"\",IF(EXACT(Dokumentenauswertung!$B63,Dokumentenauswertung!X63)=TRUE,Dokumentenauswertung!$C63,0))","v":""},{"$f":"IF(Dokumentenauswertung!Y$10=\"\",\"\",IF(EXACT(Dokumentenauswertung!$B63,Dokumentenauswertung!Y63)=TRUE,Dokumentenauswertung!$C63,0))","v":""},{"$f":"IF(Dokumentenauswertung!Z$10=\"\",\"\",IF(EXACT(Dokumentenauswertung!$B63,Dokumentenauswertung!Z63)=TRUE,Dokumentenauswertung!$C63,0))","v":""},{"$f":"IF(Dokumentenauswertung!AA$10=\"\",\"\",IF(EXACT(Dokumentenauswertung!$B63,Dokumentenauswertung!AA63)=TRUE,Dokumentenauswertung!$C63,0))","v":""},{"$f":"IF(Dokumentenauswertung!AB$10=\"\",\"\",IF(EXACT(Dokumentenauswertung!$B63,Dokumentenauswertung!AB63)=TRUE,Dokumentenauswertung!$C63,0))","v":""},{"$f":"IF(Dokumentenauswertung!AC$10=\"\",\"\",IF(EXACT(Dokumentenauswertung!$B63,Dokumentenauswertung!AC63)=TRUE,Dokumentenauswertung!$C63,0))","v":""},{"$f":"IF(Dokumentenauswertung!AD$10=\"\",\"\",IF(EXACT(Dokumentenauswertung!$B63,Dokumentenauswertung!AD63)=TRUE,Dokumentenauswertung!$C63,0))","v":""},{"$f":"IF(Dokumentenauswertung!AE$10=\"\",\"\",IF(EXACT(Dokumentenauswertung!$B63,Dokumentenauswertung!AE63)=TRUE,Dokumentenauswertung!$C63,0))","v":""},{"$f":"IF(Dokumentenauswertung!AF$10=\"\",\"\",IF(EXACT(Dokumentenauswertung!$B63,Dokumentenauswertung!AF63)=TRUE,Dokumentenauswertung!$C63,0))","v":""},{"$f":"IF(Dokumentenauswertung!AG$10=\"\",\"\",IF(EXACT(Dokumentenauswertung!$B63,Dokumentenauswertung!AG63)=TRUE,Dokumentenauswertung!$C63,0))","v":""},{"$f":"IF(Dokumentenauswertung!AH$10=\"\",\"\",IF(EXACT(Dokumentenauswertung!$B63,Dokumentenauswertung!AH63)=TRUE,Dokumentenauswertung!$C63,0))","v":""},{"$f":"IF(Dokumentenauswertung!AI$10=\"\",\"\",IF(EXACT(Dokumentenauswertung!$B63,Dokumentenauswertung!AI63)=TRUE,Dokumentenauswertung!$C63,0))","v":""},{"$f":"IF(Dokumentenauswertung!AJ$10=\"\",\"\",IF(EXACT(Dokumentenauswertung!$B63,Dokumentenauswertung!AJ63)=TRUE,Dokumentenauswertung!$C63,0))","v":""},{"$f":"IF(Dokumentenauswertung!AK$10=\"\",\"\",IF(EXACT(Dokumentenauswertung!$B63,Dokumentenauswertung!AK63)=TRUE,Dokumentenauswertung!$C63,0))","v":""}]
[]
[null,null,"Richtige pro Fragebogen",{"$f":"IF(Dokumentenauswertung!E$10=\"\",\"\",COUNTIF(D$14:D$63,\">0\"))","v":""},{"$f":"IF(Dokumentenauswertung!F$10=\"\",\"\",COUNTIF(E$14:E$63,\">0\"))","v":""},{"$f":"IF(Dokumentenauswertung!G$10=\"\",\"\",COUNTIF(F$14:F$63,\">0\"))","v":""},{"$f":"IF(Dokumentenauswertung!H$10=\"\",\"\",COUNTIF(G$14:G$63,\">0\"))","v":""},{"$f":"IF(Dokumentenauswertung!I$10=\"\",\"\",COUNTIF(H$14:H$63,\">0\"))","v":""},{"$f":"IF(Dokumentenauswertung!J$10=\"\",\"\",COUNTIF(I$14:I$63,\">0\"))","v":""},{"$f":"IF(Dokumentenauswertung!K$10=\"\",\"\",COUNTIF(J$14:J$63,\">0\"))","v":""},{"$f":"IF(Dokumentenauswertung!L$10=\"\",\"\",COUNTIF(K$14:K$63,\">0\"))","v":""},{"$f":"IF(Dokumentenauswertung!M$10=\"\",\"\",COUNTIF(L$14:L$63,\">0\"))","v":""},{"$f":"IF(Dokumentenauswertung!N$10=\"\",\"\",COUNTIF(M$14:M$63,\">0\"))","v":""},{"$f":"IF(Dokumentenauswertung!O$10=\"\",\"\",COUNTIF(N$14:N$63,\">0\"))","v":""},{"$f":"IF(Dokumentenauswertung!P$10=\"\",\"\",COUNTIF(O$14:O$63,\">0\"))","v":""},{"$f":"IF(Dokumentenauswertung!Q$10=\"\",\"\",COUNTIF(P$14:P$63,\">0\"))","v":""},{"$f":"IF(Dokumentenauswertung!R$10=\"\",\"\",COUNTIF(Q$14:Q$63,\">0\"))","v":""},{"$f":"IF(Dokumentenauswertung!S$10=\"\",\"\",COUNTIF(R$14:R$63,\">0\"))","v":""},{"$f":"IF(Dokumentenauswertung!T$10=\"\",\"\",COUNTIF(S$14:S$63,\">0\"))","v":""},{"$f":"IF(Dokumentenauswertung!U$10=\"\",\"\",COUNTIF(T$14:T$63,\">0\"))","v":""},{"$f":"IF(Dokumentenauswertung!V$10=\"\",\"\",COUNTIF(U$14:U$63,\">0\"))","v":""},{"$f":"IF(Dokumentenauswertung!W$10=\"\",\"\",COUNTIF(V$14:V$63,\">0\"))","v":""},{"$f":"IF(Dokumentenauswertung!X$10=\"\",\"\",COUNTIF(W$14:W$63,\">0\"))","v":""},{"$f":"IF(Dokumentenauswertung!Y$10=\"\",\"\",COUNTIF(X$14:X$63,\">0\"))","v":""},{"$f":"IF(Dokumentenauswertung!Z$10=\"\",\"\",COUNTIF(Y$14:Y$63,\">0\"))","v":""},{"$f":"IF(Dokumentenauswertung!AA$10=\"\",\"\",COUNTIF(Z$14:Z$63,\">0\"))","v":""},{"$f":"IF(Dokumentenauswertung!AB$10=\"\",\"\",COUNTIF(AA$14:AA$63,\">0\"))","v":""},{"$f":"IF(Dokumentenauswertung!AC$10=\"\",\"\",COUNTIF(AB$14:AB$63,\">0\"))","v":""},{"$f":"IF(Dokumentenauswertung!AD$10=\"\",\"\",COUNTIF(AC$14:AC$63,\">0\"))","v":""},{"$f":"IF(Dokumentenauswertung!AE$10=\"\",\"\",COUNTIF(AD$14:AD$63,\">0\"))","v":""},{"$f":"IF(Dokumentenauswertung!AF$10=\"\",\"\",COUNTIF(AE$14:AE$63,\">0\"))","v":""},{"$f":"IF(Dokumentenauswertung!AG$10=\"\",\"\",COUNTIF(AF$14:AF$63,\">0\"))","v":""},{"$f":"IF(Dokumentenauswertung!AH$10=\"\",\"\",COUNTIF(AG$14:AG$63,\">0\"))","v":""},{"$f":"IF(Dokumentenauswertung!AI$10=\"\",\"\",COUNTIF(AH$14:AH$63,\">0\"))","v":""},{"$f":"IF(Dokumentenauswertung!AJ$10=\"\",\"\",COUNTIF(AI$14:AI$63,\">0\"))","v":""},{"$f":"IF(Dokumentenauswertung!AK$10=\"\",\"\",COUNTIF(AJ$14:AJ$63,\">0\"))","v":""}]
[null,null,"Falsche pro Fragebogen",{"$f":"IF(Dokumentenauswertung!E$10=\"\",\"\",COUNTIF(D$14:D$63,0))","v":""},{"$f":"IF(Dokumentenauswertung!F$10=\"\",\"\",COUNTIF(E$14:E$63,0))","v":""},{"$f":"IF(Dokumentenauswertung!G$10=\"\",\"\",COUNTIF(F$14:F$63,0))","v":""},{"$f":"IF(Dokumentenauswertung!H$10=\"\",\"\",COUNTIF(G$14:G$63,0))","v":""},{"$f":"IF(Dokumentenauswertung!I$10=\"\",\"\",COUNTIF(H$14:H$63,0))","v":""},{"$f":"IF(Dokumentenauswertung!J$10=\"\",\"\",COUNTIF(I$14:I$63,0))","v":""},{"$f":"IF(Dokumentenauswertung!K$10=\"\",\"\",COUNTIF(J$14:J$63,0))","v":""},{"$f":"IF(Dokumentenauswertung!L$10=\"\",\"\",COUNTIF(K$14:K$63,0))","v":""},{"$f":"IF(Dokumentenauswertung!M$10=\"\",\"\",COUNTIF(L$14:L$63,0))","v":""},{"$f":"IF(Dokumentenauswertung!N$10=\"\",\"\",COUNTIF(M$14:M$63,0))","v":""},{"$f":"IF(Dokumentenauswertung!O$10=\"\",\"\",COUNTIF(N$14:N$63,0))","v":""},{"$f":"IF(Dokumentenauswertung!P$10=\"\",\"\",COUNTIF(O$14:O$63,0))","v":""},{"$f":"IF(Dokumentenauswertung!Q$10=\"\",\"\",COUNTIF(P$14:P$63,0))","v":""},{"$f":"IF(Dokumentenauswertung!R$10=\"\",\"\",COUNTIF(Q$14:Q$63,0))","v":""},{"$f":"IF(Dokumentenauswertung!S$10=\"\",\"\",COUNTIF(R$14:R$63,0))","v":""},{"$f":"IF(Dokumentenauswertung!T$10=\"\",\"\",COUNTIF(S$14:S$63,0))","v":""},{"$f":"IF(Dokumentenauswertung!U$10=\"\",\"\",COUNTIF(T$14:T$63,0))","v":""},{"$f":"IF(Dokumentenauswertung!V$10=\"\",\"\",COUNTIF(U$14:U$63,0))","v":""},{"$f":"IF(Dokumentenauswertung!W$10=\"\",\"\",COUNTIF(V$14:V$63,0))","v":""},{"$f":"IF(Dokumentenauswertung!X$10=\"\",\"\",COUNTIF(W$14:W$63,0))","v":""},{"$f":"IF(Dokumentenauswertung!Y$10=\"\",\"\",COUNTIF(X$14:X$63,0))","v":""},{"$f":"IF(Dokumentenauswertung!Z$10=\"\",\"\",COUNTIF(Y$14:Y$63,0))","v":""},{"$f":"IF(Dokumentenauswertung!AA$10=\"\",\"\",COUNTIF(Z$14:Z$63,0))","v":""},{"$f":"IF(Dokumentenauswertung!AB$10=\"\",\"\",COUNTIF(AA$14:AA$63,0))","v":""},{"$f":"IF(Dokumentenauswertung!AC$10=\"\",\"\",COUNTIF(AB$14:AB$63,0))","v":""},{"$f":"IF(Dokumentenauswertung!AD$10=\"\",\"\",COUNTIF(AC$14:AC$63,0))","v":""},{"$f":"IF(Dokumentenauswertung!AE$10=\"\",\"\",COUNTIF(AD$14:AD$63,0))","v":""},{"$f":"IF(Dokumentenauswertung!AF$10=\"\",\"\",COUNTIF(AE$14:AE$63,0))","v":""},{"$f":"IF(Dokumentenauswertung!AG$10=\"\",\"\",COUNTIF(AF$14:AF$63,0))","v":""},{"$f":"IF(Dokumentenauswertung!AH$10=\"\",\"\",COUNTIF(AG$14:AG$63,0))","v":""},{"$f":"IF(Dokumentenauswertung!AI$10=\"\",\"\",COUNTIF(AH$14:AH$63,0))","v":""},{"$f":"IF(Dokumentenauswertung!AJ$10=\"\",\"\",COUNTIF(AI$14:AI$63,0))","v":""},{"$f":"IF(Dokumentenauswertung!AK$10=\"\",\"\",COUNTIF(AJ$14:AJ$63,0))","v":""}]
[]
[null,null,"Richtige pro Fragebogen in %",{"$f":"IF(Dokumentenauswertung!E$10=\"\",\"\",D65/SUM(D65:D66))","v":""},{"$f":"IF(Dokumentenauswertung!F$10=\"\",\"\",E65/SUM(E65:E66))","v":""},{"$f":"IF(Dokumentenauswertung!G$10=\"\",\"\",F65/SUM(F65:F66))","v":""},{"$f":"IF(Dokumentenauswertung!H$10=\"\",\"\",G65/SUM(G65:G66))","v":""},{"$f":"IF(Dokumentenauswertung!I$10=\"\",\"\",H65/SUM(H65:H66))","v":""},{"$f":"IF(Dokumentenauswertung!J$10=\"\",\"\",I65/SUM(I65:I66))","v":""},{"$f":"IF(Dokumentenauswertung!K$10=\"\",\"\",J65/SUM(J65:J66))","v":""},{"$f":"IF(Dokumentenauswertung!L$10=\"\",\"\",K65/SUM(K65:K66))","v":""},{"$f":"IF(Dokumentenauswertung!M$10=\"\",\"\",L65/SUM(L65:L66))","v":""},{"$f":"IF(Dokumentenauswertung!N$10=\"\",\"\",M65/SUM(M65:M66))","v":""},{"$f":"IF(Dokumentenauswertung!O$10=\"\",\"\",N65/SUM(N65:N66))","v":""},{"$f":"IF(Dokumentenauswertung!P$10=\"\",\"\",O65/SUM(O65:O66))","v":""},{"$f":"IF(Dokumentenauswertung!Q$10=\"\",\"\",P65/SUM(P65:P66))","v":""},{"$f":"IF(Dokumentenauswertung!R$10=\"\",\"\",Q65/SUM(Q65:Q66))","v":""},{"$f":"IF(Dokumentenauswertung!S$10=\"\",\"\",R65/SUM(R65:R66))","v":""},{"$f":"IF(Dokumentenauswertung!T$10=\"\",\"\",S65/SUM(S65:S66))","v":""},{"$f":"IF(Dokumentenauswertung!U$10=\"\",\"\",T65/SUM(T65:T66))","v":""},{"$f":"IF(Dokumentenauswertung!V$10=\"\",\"\",U65/SUM(U65:U66))","v":""},{"$f":"IF(Dokumentenauswertung!W$10=\"\",\"\",V65/SUM(V65:V66))","v":""},{"$f":"IF(Dokumentenauswertung!X$10=\"\",\"\",W65/SUM(W65:W66))","v":""},{"$f":"IF(Dokumentenauswertung!Y$10=\"\",\"\",X65/SUM(X65:X66))","v":""},{"$f":"IF(Dokumentenauswertung!Z$10=\"\",\"\",Y65/SUM(Y65:Y66))","v":""},{"$f":"IF(Dokumentenauswertung!AA$10=\"\",\"\",Z65/SUM(Z65:Z66))","v":""},{"$f":"IF(Dokumentenauswertung!AB$10=\"\",\"\",AA65/SUM(AA65:AA66))","v":""},{"$f":"IF(Dokumentenauswertung!AC$10=\"\",\"\",AB65/SUM(AB65:AB66))","v":""},{"$f":"IF(Dokumentenauswertung!AD$10=\"\",\"\",AC65/SUM(AC65:AC66))","v":""},{"$f":"IF(Dokumentenauswertung!AE$10=\"\",\"\",AD65/SUM(AD65:AD66))","v":""},{"$f":"IF(Dokumentenauswertung!AF$10=\"\",\"\",AE65/SUM(AE65:AE66))","v":""},{"$f":"IF(Dokumentenauswertung!AG$10=\"\",\"\",AF65/SUM(AF65:AF66))","v":""},{"$f":"IF(Dokumentenauswertung!AH$10=\"\",\"\",AG65/SUM(AG65:AG66))","v":""},{"$f":"IF(Dokumentenauswertung!AI$10=\"\",\"\",AH65/SUM(AH65:AH66))","v":""},{"$f":"IF(Dokumentenauswertung!AJ$10=\"\",\"\",AI65/SUM(AI65:AI66))","v":""},{"$f":"IF(Dokumentenauswertung!AK$10=\"\",\"\",AJ65/SUM(AJ65:AJ66))","v":""}]
[]
[null,null,"Maximal erreichbare Punktezahl",{"$f":"IF(Dokumentenauswertung!E$10=\"\",\"\",SUM(Dokumentenauswertung!$C$14:$C$63))","v":""},{"$f":"IF(Dokumentenauswertung!F$10=\"\",\"\",SUM(Dokumentenauswertung!$C$14:$C$63))","v":""},{"$f":"IF(Dokumentenauswertung!G$10=\"\",\"\",SUM(Dokumentenauswertung!$C$14:$C$63))","v":""},{"$f":"IF(Dokumentenauswertung!H$10=\"\",\"\",SUM(Dokumentenauswertung!$C$14:$C$63))","v":""},{"$f":"IF(Dokumentenauswertung!I$10=\"\",\"\",SUM(Dokumentenauswertung!$C$14:$C$63))","v":""},{"$f":"IF(Dokumentenauswertung!J$10=\"\",\"\",SUM(Dokumentenauswertung!$C$14:$C$63))","v":""},{"$f":"IF(Dokumentenauswertung!K$10=\"\",\"\",SUM(Dokumentenauswertung!$C$14:$C$63))","v":""},{"$f":"IF(Dokumentenauswertung!L$10=\"\",\"\",SUM(Dokumentenauswertung!$C$14:$C$63))","v":""},{"$f":"IF(Dokumentenauswertung!M$10=\"\",\"\",SUM(Dokumentenauswertung!$C$14:$C$63))","v":""},{"$f":"IF(Dokumentenauswertung!N$10=\"\",\"\",SUM(Dokumentenauswertung!$C$14:$C$63))","v":""},{"$f":"IF(Dokumentenauswertung!O$10=\"\",\"\",SUM(Dokumentenauswertung!$C$14:$C$63))","v":""},{"$f":"IF(Dokumentenauswertung!P$10=\"\",\"\",SUM(Dokumentenauswertung!$C$14:$C$63))","v":""},{"$f":"IF(Dokumentenauswertung!Q$10=\"\",\"\",SUM(Dokumentenauswertung!$C$14:$C$63))","v":""},{"$f":"IF(Dokumentenauswertung!R$10=\"\",\"\",SUM(Dokumentenauswertung!$C$14:$C$63))","v":""},{"$f":"IF(Dokumentenauswertung!S$10=\"\",\"\",SUM(Dokumentenauswertung!$C$14:$C$63))","v":""},{"$f":"IF(Dokumentenauswertung!T$10=\"\",\"\",SUM(Dokumentenauswertung!$C$14:$C$63))","v":""},{"$f":"IF(Dokumentenauswertung!U$10=\"\",\"\",SUM(Dokumentenauswertung!$C$14:$C$63))","v":""},{"$f":"IF(Dokumentenauswertung!V$10=\"\",\"\",SUM(Dokumentenauswertung!$C$14:$C$63))","v":""},{"$f":"IF(Dokumentenauswertung!W$10=\"\",\"\",SUM(Dokumentenauswertung!$C$14:$C$63))","v":""},{"$f":"IF(Dokumentenauswertung!X$10=\"\",\"\",SUM(Dokumentenauswertung!$C$14:$C$63))","v":""},{"$f":"IF(Dokumentenauswertung!Y$10=\"\",\"\",SUM(Dokumentenauswertung!$C$14:$C$63))","v":""},{"$f":"IF(Dokumentenauswertung!Z$10=\"\",\"\",SUM(Dokumentenauswertung!$C$14:$C$63))","v":""},{"$f":"IF(Dokumentenauswertung!AA$10=\"\",\"\",SUM(Dokumentenauswertung!$C$14:$C$63))","v":""},{"$f":"IF(Dokumentenauswertung!AB$10=\"\",\"\",SUM(Dokumentenauswertung!$C$14:$C$63))","v":""},{"$f":"IF(Dokumentenauswertung!AC$10=\"\",\"\",SUM(Dokumentenauswertung!$C$14:$C$63))","v":""},{"$f":"IF(Dokumentenauswertung!AD$10=\"\",\"\",SUM(Dokumentenauswertung!$C$14:$C$63))","v":""},{"$f":"IF(Dokumentenauswertung!AE$10=\"\",\"\",SUM(Dokumentenauswertung!$C$14:$C$63))","v":""},{"$f":"IF(Dokumentenauswertung!AF$10=\"\",\"\",SUM(Dokumentenauswertung!$C$14:$C$63))","v":""},{"$f":"IF(Dokumentenauswertung!AG$10=\"\",\"\",SUM(Dokumentenauswertung!$C$14:$C$63))","v":""},{"$f":"IF(Dokumentenauswertung!AH$10=\"\",\"\",SUM(Dokumentenauswertung!$C$14:$C$63))","v":""},{"$f":"IF(Dokumentenauswertung!AI$10=\"\",\"\",SUM(Dokumentenauswertung!$C$14:$C$63))","v":""},{"$f":"IF(Dokumentenauswertung!AJ$10=\"\",\"\",SUM(Dokumentenauswertung!$C$14:$C$63))","v":""},{"$f":"IF(Dokumentenauswertung!AK$10=\"\",\"\",SUM(Dokumentenauswertung!$C$14:$C$63))","v":""}]
[null,null,"Punktezahl pro Fragebogen",{"$f":"IF(Dokumentenauswertung!E$10=\"\",\"\",SUM(D$14:D$61))","v":""},{"$f":"IF(Dokumentenauswertung!F$10=\"\",\"\",SUM(E$14:E$61))","v":""},{"$f":"IF(Dokumentenauswertung!G$10=\"\",\"\",SUM(F$14:F$61))","v":""},{"$f":"IF(Dokumentenauswertung!H$10=\"\",\"\",SUM(G$14:G$61))","v":""},{"$f":"IF(Dokumentenauswertung!I$10=\"\",\"\",SUM(H$14:H$61))","v":""},{"$f":"IF(Dokumentenauswertung!J$10=\"\",\"\",SUM(I$14:I$61))","v":""},{"$f":"IF(Dokumentenauswertung!K$10=\"\",\"\",SUM(J$14:J$61))","v":""},{"$f":"IF(Dokumentenauswertung!L$10=\"\",\"\",SUM(K$14:K$61))","v":""},{"$f":"IF(Dokumentenauswertung!M$10=\"\",\"\",SUM(L$14:L$61))","v":""},{"$f":"IF(Dokumentenauswertung!N$10=\"\",\"\",SUM(M$14:M$61))","v":""},{"$f":"IF(Dokumentenauswertung!O$10=\"\",\"\",SUM(N$14:N$61))","v":""},{"$f":"IF(Dokumentenauswertung!P$10=\"\",\"\",SUM(O$14:O$61))","v":""},{"$f":"IF(Dokumentenauswertung!Q$10=\"\",\"\",SUM(P$14:P$61))","v":""},{"$f":"IF(Dokumentenauswertung!R$10=\"\",\"\",SUM(Q$14:Q$61))","v":""},{"$f":"IF(Dokumentenauswertung!S$10=\"\",\"\",SUM(R$14:R$61))","v":""},{"$f":"IF(Dokumentenauswertung!T$10=\"\",\"\",SUM(S$14:S$61))","v":""},{"$f":"IF(Dokumentenauswertung!U$10=\"\",\"\",SUM(T$14:T$61))","v":""},{"$f":"IF(Dokumentenauswertung!V$10=\"\",\"\",SUM(U$14:U$61))","v":""},{"$f":"IF(Dokumentenauswertung!W$10=\"\",\"\",SUM(V$14:V$61))","v":""},{"$f":"IF(Dokumentenauswertung!X$10=\"\",\"\",SUM(W$14:W$61))","v":""},{"$f":"IF(Dokumentenauswertung!Y$10=\"\",\"\",SUM(X$14:X$61))","v":""},{"$f":"IF(Dokumentenauswertung!Z$10=\"\",\"\",SUM(Y$14:Y$61))","v":""},{"$f":"IF(Dokumentenauswertung!AA$10=\"\",\"\",SUM(Z$14:Z$61))","v":""},{"$f":"IF(Dokumentenauswertung!AB$10=\"\",\"\",SUM(AA$14:AA$61))","v":""},{"$f":"IF(Dokumentenauswertung!AC$10=\"\",\"\",SUM(AB$14:AB$61))","v":""},{"$f":"IF(Dokumentenauswertung!AD$10=\"\",\"\",SUM(AC$14:AC$61))","v":""},{"$f":"IF(Dokumentenauswertung!AE$10=\"\",\"\",SUM(AD$14:AD$61))","v":""},{"$f":"IF(Dokumentenauswertung!AF$10=\"\",\"\",SUM(AE$14:AE$61))","v":""},{"$f":"IF(Dokumentenauswertung!AG$10=\"\",\"\",SUM(AF$14:AF$61))","v":""},{"$f":"IF(Dokumentenauswertung!AH$10=\"\",\"\",SUM(AG$14:AG$61))","v":""},{"$f":"IF(Dokumentenauswertung!AI$10=\"\",\"\",SUM(AH$14:AH$61))","v":""},{"$f":"IF(Dokumentenauswertung!AJ$10=\"\",\"\",SUM(AI$14:AI$61))","v":""},{"$f":"IF(Dokumentenauswertung!AK$10=\"\",\"\",SUM(AJ$14:AJ$61))","v":""}]
[null,null,"Punktezahl in %",{"$f":"IF(Dokumentenauswertung!E$10=\"\",\"\",D$71/D$70)","v":""},{"$f":"IF(Dokumentenauswertung!F$10=\"\",\"\",E$71/E$70)","v":""},{"$f":"IF(Dokumentenauswertung!G$10=\"\",\"\",F$71/F$70)","v":""},{"$f":"IF(Dokumentenauswertung!H$10=\"\",\"\",G$71/G$70)","v":""},{"$f":"IF(Dokumentenauswertung!I$10=\"\",\"\",H$71/H$70)","v":""},{"$f":"IF(Dokumentenauswertung!J$10=\"\",\"\",I$71/I$70)","v":""},{"$f":"IF(Dokumentenauswertung!K$10=\"\",\"\",J$71/J$70)","v":""},{"$f":"IF(Dokumentenauswertung!L$10=\"\",\"\",K$71/K$70)","v":""},{"$f":"IF(Dokumentenauswertung!M$10=\"\",\"\",L$71/L$70)","v":""},{"$f":"IF(Dokumentenauswertung!N$10=\"\",\"\",M$71/M$70)","v":""},{"$f":"IF(Dokumentenauswertung!O$10=\"\",\"\",N$71/N$70)","v":""},{"$f":"IF(Dokumentenauswertung!P$10=\"\",\"\",O$71/O$70)","v":""},{"$f":"IF(Dokumentenauswertung!Q$10=\"\",\"\",P$71/P$70)","v":""},{"$f":"IF(Dokumentenauswertung!R$10=\"\",\"\",Q$71/Q$70)","v":""},{"$f":"IF(Dokumentenauswertung!S$10=\"\",\"\",R$71/R$70)","v":""},{"$f":"IF(Dokumentenauswertung!T$10=\"\",\"\",S$71/S$70)","v":""},{"$f":"IF(Dokumentenauswertung!U$10=\"\",\"\",T$71/T$70)","v":""},{"$f":"IF(Dokumentenauswertung!V$10=\"\",\"\",U$71/U$70)","v":""},{"$f":"IF(Dokumentenauswertung!W$10=\"\",\"\",V$71/V$70)","v":""},{"$f":"IF(Dokumentenauswertung!X$10=\"\",\"\",W$71/W$70)","v":""},{"$f":"IF(Dokumentenauswertung!Y$10=\"\",\"\",X$71/X$70)","v":""},{"$f":"IF(Dokumentenauswertung!Z$10=\"\",\"\",Y$71/Y$70)","v":""},{"$f":"IF(Dokumentenauswertung!AA$10=\"\",\"\",Z$71/Z$70)","v":""},{"$f":"IF(Dokumentenauswertung!AB$10=\"\",\"\",AA$71/AA$70)","v":""},{"$f":"IF(Dokumentenauswertung!AC$10=\"\",\"\",AB$71/AB$70)","v":""},{"$f":"IF(Dokumentenauswertung!AD$10=\"\",\"\",AC$71/AC$70)","v":""},{"$f":"IF(Dokumentenauswertung!AE$10=\"\",\"\",AD$71/AD$70)","v":""},{"$f":"IF(Dokumentenauswertung!AF$10=\"\",\"\",AE$71/AE$70)","v":""},{"$f":"IF(Dokumentenauswertung!AG$10=\"\",\"\",AF$71/AF$70)","v":""},{"$f":"IF(Dokumentenauswertung!AH$10=\"\",\"\",AG$71/AG$70)","v":""},{"$f":"IF(Dokumentenauswertung!AI$10=\"\",\"\",AH$71/AH$70)","v":""},{"$f":"IF(Dokumentenauswertung!AJ$10=\"\",\"\",AI$71/AI$70)","v":""},{"$f":"IF(Dokumentenauswertung!AK$10=\"\",\"\",AJ$71/AJ$70)","v":""}]
[]
[]
[]
[null,null,"Mittelwert Richtige in % (über alle Auswertungen)"]
[null,null,{"$f":"IFERROR(AVERAGE(D68:AJ68),\"keine Daten zur Bestimmung des Mittelwertes\")","v":"keine Daten zur Bestimmung des Mittelwertes"}]
[]
[null,null,"Mittelwert Punktezahl in % (über alle Auswertungen)"]
[null,null,{"$f":"IFERROR(AVERAGE(D72:AJ72),\"keine Daten zur Bestimmung des Mittelwertes\")","v":"keine Daten zur Bestimmung des Mittelwertes"}]

{"sheet":"Fragenauswertung","index":2,"n_rows":51,"n_cols":6,"rows_kept":51,"cut":false,"hidden":false,"merged":[]}
["Frage Nr.","Richtige","Falsche","Richtig in %","Falsch in %","Gesamt"]
[{"$f":"Dokumentenauswertung!$A14","v":"A1.a"},{"$f":"COUNTIF(Punkteauswertung!$D14:$AJ14,\">0\")","v":0},{"$f":"COUNTIF(Punkteauswertung!$D14:$AJ14,0)","v":0},{"$f":"IFERROR(B2/$F2,\"\")","v":""},{"$f":"IFERROR(C2/$F2,\"\")","v":""},{"$f":"SUM(B2:C2)","v":0}]
[{"$f":"Dokumentenauswertung!$A15","v":"A1.b"},{"$f":"COUNTIF(Punkteauswertung!$D15:$AJ15,\">0\")","v":0},{"$f":"COUNTIF(Punkteauswertung!$D15:$AJ15,0)","v":0},"","",0]
[{"$f":"Dokumentenauswertung!$A16","v":"A1.c"},{"$f":"COUNTIF(Punkteauswertung!$D16:$AJ16,\">0\")","v":0},{"$f":"COUNTIF(Punkteauswertung!$D16:$AJ16,0)","v":0},"","",0]
[{"$f":"Dokumentenauswertung!$A17","v":"A2.a.1"},{"$f":"COUNTIF(Punkteauswertung!$D17:$AJ17,\">0\")","v":0},{"$f":"COUNTIF(Punkteauswertung!$D17:$AJ17,0)","v":0},"","",0]
[{"$f":"Dokumentenauswertung!$A18","v":"A2.a.2"},{"$f":"COUNTIF(Punkteauswertung!$D18:$AJ18,\">0\")","v":0},{"$f":"COUNTIF(Punkteauswertung!$D18:$AJ18,0)","v":0},"","",0]
[{"$f":"Dokumentenauswertung!$A19","v":"A2.b.1"},{"$f":"COUNTIF(Punkteauswertung!$D19:$AJ19,\">0\")","v":0},{"$f":"COUNTIF(Punkteauswertung!$D19:$AJ19,0)","v":0},"","",0]
[{"$f":"Dokumentenauswertung!$A20","v":"A2.b.2"},{"$f":"COUNTIF(Punkteauswertung!$D20:$AJ20,\">0\")","v":0},{"$f":"COUNTIF(Punkteauswertung!$D20:$AJ20,0)","v":0},"","",0]
[{"$f":"Dokumentenauswertung!$A21","v":"A3.a"},{"$f":"COUNTIF(Punkteauswertung!$D21:$AJ21,\">0\")","v":0},{"$f":"COUNTIF(Punkteauswertung!$D21:$AJ21,0)","v":0},"","",0]
[{"$f":"Dokumentenauswertung!$A22","v":"A3.b"},{"$f":"COUNTIF(Punkteauswertung!$D22:$AJ22,\">0\")","v":0},{"$f":"COUNTIF(Punkteauswertung!$D22:$AJ22,0)","v":0},"","",0]
[{"$f":"Dokumentenauswertung!$A23","v":"A3.c"},{"$f":"COUNTIF(Punkteauswertung!$D23:$AJ23,\">0\")","v":0},{"$f":"COUNTIF(Punkteauswertung!$D23:$AJ23,0)","v":0},"","",0]
[{"$f":"Dokumentenauswertung!$A24","v":"A3.d"},{"$f":"COUNTIF(Punkteauswertung!$D24:$AJ24,\">0\")","v":0},{"$f":"COUNTIF(Punkteauswertung!$D24:$AJ24,0)","v":0},"","",0]
[{"$f":"Dokumentenauswertung!$A25","v":"A3.g"},{"$f":"COUNTIF(Punkteauswertung!$D25:$AJ25,\">0\")","v":0},{"$f":"COUNTIF(Punkteauswertung!$D25:$AJ25,0)","v":0},"","",0]
[{"$f":"Dokumentenauswertung!$A26","v":"A3.h"},{"$f":"COUNTIF(Punkteauswertung!$D26:$AJ26,\">0\")","v":0},{"$f":"COUNTIF(Punkteauswertung!$D26:$AJ26,0)","v":0},"","",0]
[{"$f":"Dokumentenauswertung!$A27","v":"A3.e"},{"$f":"COUNTIF(Punkteauswertung!$D27:$AJ27,\">0\")","v":0},{"$f":"COUNTIF(Punkteauswertung!$D27:$AJ27,0)","v":0},"","",0]
[{"$f":"Dokumentenauswertung!$A28","v":"A3.f"},{"$f":"COUNTIF(Punkteauswertung!$D28:$AJ28,\">0\")","v":0},{"$f":"COUNTIF(Punkteauswertung!$D28:$AJ28,0)","v":0},"","",0]
[{"$f":"Dokumentenauswertung!$A29","v":"A4.a"},{"$f":"COUNTIF(Punkteauswertung!$D29:$AJ29,\">0\")","v":0},{"$f":"COUNTIF(Punkteauswertung!$D29:$AJ29,0)","v":0},"","",0]
[{"$f":"Dokumentenauswertung!$A30","v":"A4.b"},{"$f":"COUNTIF(Punkteauswertung!$D30:$AJ30,\">0\")","v":0},{"$f":"COUNTIF(Punkteauswertung!$D30:$AJ30,0)","v":0},"","",0]
[{"$f":"Dokumentenauswertung!$A31","v":"A4.c"},{"$f":"COUNTIF(Punkteauswertung!$D31:$AJ31,\">0\")","v":0},{"$f":"COUNTIF(Punkteauswertung!$D31:$AJ31,0)","v":0},"","",0]
[{"$f":"Dokumentenauswertung!$A32","v":"B1.1"},{"$f":"COUNTIF(Punkteauswertung!$D32:$AJ32,\">0\")","v":0},{"$f":"COUNTIF(Punkteauswertung!$D32:$AJ32,0)","v":0},"","",0]
[{"$f":"Dokumentenauswertung!$A33","v":"B1.2"},{"$f":"COUNTIF(Punkteauswertung!$D33:$AJ33,\">0\")","v":0},{"$f":"COUNTIF(Punkteauswertung!$D33:$AJ33,0)","v":0},"","",0]
[{"$f":"Dokumentenauswertung!$A34","v":"B2.1"},{"$f":"COUNTIF(Punkteauswertung!$D34:$AJ34,\">0\")","v":0},{"$f":"COUNTIF(Punkteauswertung!$D34:$AJ34,0)","v":0},"","",0]
[{"$f":"Dokumentenauswertung!$A35","v":"B2.2"},{"$f":"COUNTIF(Punkteauswertung!$D35:$AJ35,\">0\")","v":0},{"$f":"COUNTIF(Punkteauswertung!$D35:$AJ35,0)","v":0},"","",0]
[{"$f":"Dokumentenauswertung!$A36","v":"B3.1"},{"$f":"COUNTIF(Punkteauswertung!$D36:$AJ36,\">0\")","v":0},{"$f":"COUNTIF(Punkteauswertung!$D36:$AJ36,0)","v":0},"","",0]
[{"$f":"Dokumentenauswertung!$A37","v":"B3.2"},{"$f":"COUNTIF(Punkteauswertung!$D37:$AJ37,\">0\")","v":0},{"$f":"COUNTIF(Punkteauswertung!$D37:$AJ37,0)","v":0},"","",0]
[{"$f":"Dokumentenauswertung!$A38","v":"B4.1"},{"$f":"COUNTIF(Punkteauswertung!$D38:$AJ38,\">0\")","v":0},{"$f":"COUNTIF(Punkteauswertung!$D38:$AJ38,0)","v":0},"","",0]
[{"$f":"Dokumentenauswertung!$A39","v":"B4.2"},{"$f":"COUNTIF(Punkteauswertung!$D39:$AJ39,\">0\")","v":0},{"$f":"COUNTIF(Punkteauswertung!$D39:$AJ39,0)","v":0},"","",0]
[{"$f":"Dokumentenauswertung!$A40","v":"C1.1"},{"$f":"COUNTIF(Punkteauswertung!$D40:$AJ40,\">0\")","v":0},{"$f":"COUNTIF(Punkteauswertung!$D40:$AJ40,0)","v":0},"","",0]
[{"$f":"Dokumentenauswertung!$A41","v":"C1.2"},{"$f":"COUNTIF(Punkteauswertung!$D41:$AJ41,\">0\")","v":0},{"$f":"COUNTIF(Punkteauswertung!$D41:$AJ41,0)","v":0},"","",0]
[{"$f":"Dokumentenauswertung!$A42","v":"C2.1"},{"$f":"COUNTIF(Punkteauswertung!$D42:$AJ42,\">0\")","v":0},{"$f":"COUNTIF(Punkteauswertung!$D42:$AJ42,0)","v":0},"","",0]
[{"$f":"Dokumentenauswertung!$A43","v":"C2.2"},{"$f":"COUNTIF(Punkteauswertung!$D43:$AJ43,\">0\")","v":0},{"$f":"COUNTIF(Punkteauswertung!$D43:$AJ43,0)","v":0},"","",0]
[{"$f":"Dokumentenauswertung!$A44","v":"C3.1"},{"$f":"COUNTIF(Punkteauswertung!$D44:$AJ44,\">0\")","v":0},{"$f":"COUNTIF(Punkteauswertung!$D44:$AJ44,0)","v":0},"","",0]
[{"$f":"Dokumentenauswertung!$A45","v":"C3.2"},{"$f":"COUNTIF(Punkteauswertung!$D45:$AJ45,\">0\")","v":0},{"$f":"COUNTIF(Punkteauswertung!$D45:$AJ45,0)","v":0},"","",0]
[{"$f":"Dokumentenauswertung!$A46","v":"C4.1"},{"$f":"COUNTIF(Punkteauswertung!$D46:$AJ46,\">0\")","v":0},{"$f":"COUNTIF(Punkteauswertung!$D46:$AJ46,0)","v":0},"","",0]
[{"$f":"Dokumentenauswertung!$A47","v":"C4.2"},{"$f":"COUNTIF(Punkteauswertung!$D47:$AJ47,\">0\")","v":0},{"$f":"COUNTIF(Punkteauswertung!$D47:$AJ47,0)","v":0},"","",0]
[{"$f":"Dokumentenauswertung!$A48","v":"D1.1"},{"$f":"COUNTIF(Punkteauswertung!$D48:$AJ48,\">0\")","v":0},{"$f":"COUNTIF(Punkteauswertung!$D48:$AJ48,0)","v":0},"","",0]
[{"$f":"Dokumentenauswertung!$A49","v":"D1.2"},{"$f":"COUNTIF(Punkteauswertung!$D49:$AJ49,\">0\")","v":0},{"$f":"COUNTIF(Punkteauswertung!$D49:$AJ49,0)","v":0},"","",0]
[{"$f":"Dokumentenauswertung!$A50","v":"D1.3"},{"$f":"COUNTIF(Punkteauswertung!$D50:$AJ50,\">0\")","v":0},{"$f":"COUNTIF(Punkteauswertung!$D50:$AJ50,0)","v":0},"","",0]
[{"$f":"Dokumentenauswertung!$A51","v":"D1.4"},{"$f":"COUNTIF(Punkteauswertung!$D51:$AJ51,\">0\")","v":0},{"$f":"COUNTIF(Punkteauswertung!$D51:$AJ51,0)","v":0},"","",0]
[{"$f":"Dokumentenauswertung!$A52","v":"D2.1"},{"$f":"COUNTIF(Punkteauswertung!$D52:$AJ52,\">0\")","v":0},{"$f":"COUNTIF(Punkteauswertung!$D52:$AJ52,0)","v":0},"","",0]
[{"$f":"Dokumentenauswertung!$A53","v":"D2.2"},{"$f":"COUNTIF(Punkteauswertung!$D53:$AJ53,\">0\")","v":0},{"$f":"COUNTIF(Punkteauswertung!$D53:$AJ53,0)","v":0},"","",0]
[{"$f":"Dokumentenauswertung!$A54","v":"D2.3"},{"$f":"COUNTIF(Punkteauswertung!$D54:$AJ54,\">0\")","v":0},{"$f":"COUNTIF(Punkteauswertung!$D54:$AJ54,0)","v":0},"","",0]
[{"$f":"Dokumentenauswertung!$A55","v":"D3.1"},{"$f":"COUNTIF(Punkteauswertung!$D55:$AJ55,\">0\")","v":0},{"$f":"COUNTIF(Punkteauswertung!$D55:$AJ55,0)","v":0},"","",0]
[{"$f":"Dokumentenauswertung!$A56","v":"D3.2"},{"$f":"COUNTIF(Punkteauswertung!$D56:$AJ56,\">0\")","v":0},{"$f":"COUNTIF(Punkteauswertung!$D56:$AJ56,0)","v":0},"","",0]
[{"$f":"Dokumentenauswertung!$A57","v":"D3.3"},{"$f":"COUNTIF(Punkteauswertung!$D57:$AJ57,\">0\")","v":0},{"$f":"COUNTIF(Punkteauswertung!$D57:$AJ57,0)","v":0},"","",0]
[{"$f":"Dokumentenauswertung!$A58","v":"D4.1"},{"$f":"COUNTIF(Punkteauswertung!$D58:$AJ58,\">0\")","v":0},{"$f":"COUNTIF(Punkteauswertung!$D58:$AJ58,0)","v":0},"","",0]
[{"$f":"Dokumentenauswertung!$A59","v":"D4.2"},{"$f":"COUNTIF(Punkteauswertung!$D59:$AJ59,\">0\")","v":0},{"$f":"COUNTIF(Punkteauswertung!$D59:$AJ59,0)","v":0},"","",0]
[{"$f":"Dokumentenauswertung!$A60","v":"E1"},{"$f":"COUNTIF(Punkteauswertung!$D60:$AJ60,\">0\")","v":0},{"$f":"COUNTIF(Punkteauswertung!$D60:$AJ60,0)","v":0},"","",0]
[{"$f":"Dokumentenauswertung!$A61","v":"E2.1"},{"$f":"COUNTIF(Punkteauswertung!$D61:$AJ61,\">0\")","v":0},{"$f":"COUNTIF(Punkteauswertung!$D61:$AJ61,0)","v":0},"","",0]
[{"$f":"Dokumentenauswertung!$A62","v":"E2.2"},{"$f":"COUNTIF(Punkteauswertung!$D62:$AJ62,\">0\")","v":0},{"$f":"COUNTIF(Punkteauswertung!$D62:$AJ62,0)","v":0},"","",0]
[{"$f":"Dokumentenauswertung!$A63","v":"E3"},{"$f":"COUNTIF(Punkteauswertung!$D63:$AJ63,\">0\")","v":0},{"$f":"COUNTIF(Punkteauswertung!$D63:$AJ63,0)","v":0},"","",0]